Workbook

Sheet Description and Intro

Sheet Inputs & Mkt Adj
B1: Dropdown Menu Inputs are in yellow | C1: Value Inputs are in blue
B3: Site Information | E3: Market Cap Rate
B4: City | C4: CA-LosAngeles-LongBeach-Glendale | E4: Location Default | F4: =INDEX('Cap Rate Data'!H2:H1440,MATCH(1,('Cap Rate Data'!A2:A1440=C4)*('Cap Rate Data'!C2:C1440='Inputs & Mkt Adj'!C5)*('Cap Rate Data'!D2:D1440='Inputs & Mkt Adj'!C6),0)) -> 0.04175565988
B5: Property Type O = office, A = Apt, R = retail, I = Industrial | C5: A | E5: Property Size Tier | F5: =IF(ISNA(MATCH(C7,'Cap Rate Data'!U35:U38,0)),IF(ISNA(MATCH(C7,'Cap Rate Data'!V35:V38,0)),IF(ISNA(MATCH(C7,'Cap Rate Data'!W35:W38,0)),IF(ISNA(MATCH(C7,'Cap Rate Data'!X35:X38,0)),IF(ISNA(MATCH(C7,'Cap Rate Data'!Y35:Y38,0)),0,'Cap Rate Data'!Y34),'Cap Rate Data'!X34),'Cap Rate Data'!W34),'Cap Rate Data'!V34),'Cap Rate Data'!U34) -> Tier 5
B6: Quarter Analysis Start Date (Choose first day of quarter desired) | C6: 20162 | E6: Tier Adjustment | F6: =IF(F5='Cap Rate Data'!U34,INDEX('Cap Rate Data'!U43:U46,MATCH('Inputs & Mkt Adj'!C5,'Cap Rate Data'!S43:S46,0)),IF(F5='Cap Rate Data'!V34,INDEX('Cap Rate Data'!V43:V46,MATCH('Inputs & Mkt Adj'!C5,'Cap Rate Data'!S43:S46,0)),IF(F5='Cap Rate Data'!W34,INDEX('Cap Rate Data'!W43:W46,MATCH('Inputs & Mkt Adj'!C5,'Cap Rate Data'!S43:S46,0)),IF(F5='Cap Rate Data'!X34,INDEX('Cap Rate Data'!X43:X46,MATCH('Inputs & Mkt Adj'!C5,'Cap Rate Data'!S43:S46,0)),IF(F5='Cap Rate Data'!Y34,INDEX('Cap Rate Data'!Y43:Y46,MATCH('Inputs & Mkt Adj'!C5,'Cap Rate Data'!S43:S46,0)),0))))) -> 0.03
B7: SqFt (In tiers, see dropdown) | C7: <10,000 SqFt, <10 Units | E7: Bldg or LEED Cap Rate Adjustment | F7: 0
E8: Tenant Quality Adjustment | F8: 0
E9: User Cap Rate Override | F9: 0
B10: Base Assumptions | E10: Final Market Cap Rate | F10: =IF(F9=0,F4+F6+F7+F8,SUM(F9)) -> 0.07175565988
B11: Year 1 NOI | C11: 50000
B12: Loan To Value | C12: 0.75 | E12: NOI Growth Rate
B13: Mortgage Rate | C13: 0.06 | E13: Growth Rate Input | F13: 0.03
B14: Equity Yield Target | C14: 0.15 | E14: Growth Rate Sensitivity Increment Range | F14: 0.01
B15: Equity Yield Target Range | C15: 0.005 | E15: Growth Rate Used | F15: =F13 -> 0.03
B16: Amortization in Years | C16: 30
B17: Required Cash on Cash Yield | C17: 0.0856
B18: LTV Target Range | C18: 0.01
B19: Disposition Year | C19: 10
B20: Transaction Cost | C20: 0.07

Sheet Derived Cap Rate & Results
B3: Subject Property and Cap Rate and value Reults | E3: DCR Calc
B4: PV of NOI only | C4: ='Cap Rate Data'!X50 -> 485436.8932 | E4: Initial NOI | F4: ='Cap Rate Data'!X70 -> 50000
B5: Annuity | C5: ='Cap Rate Data'!X51 -> 55250.49798 | E5: Growth Rate | F5: ='Cap Rate Data'!X71 -> 0.03
E6: Effective Constant NOI | F6: ='Cap Rate Data'!X72 -> 55250.49798
B7: Sinking Fund Factor | C7: ='Cap Rate Data'!X53 -> 0.04925206252 | E7: Annual Debt Service | F7: ='Cap Rate Data'!X73 -> 40768.15054
B8: Gross Appreciation | C8: ='Cap Rate Data'!X54 -> 1.343916379 | E8: DCR From Derived Cap Rate | F8: ='Cap Rate Data'!X74 -> 1.355236802
B9: Net Appreciation | C9: ='Cap Rate Data'!X55 -> 0.2498422328 | E9: DCR From Market Cap Rate | F9: ='Cap Rate Data'!X75 -> 1.329804706
B10: Proportion of Loan Repaid | C10: ='Cap Rate Data'!X56 -> 0.1631427504
B11: Monthly Mortgage Constant | C11: ='Cap Rate Data'!X57 -> 0.005995505252
B12: Annualized Mortgage Constant | C12: ='Cap Rate Data'!X58 -> 0.07194606302
B13: C Coefficient | C13: ='Cap Rate Data'!X59 -> 0.08608905392 | E13: Location Selected | F13: ='Inputs & Mkt Adj'!C4 -> CA-LosAngeles-LongBeach-Glendale
B14: Basic Rate | C14: ='Cap Rate Data'!X60 -> 0.08543320956 | E14: Industry Selected | F14: =IF('Inputs & Mkt Adj'!C5="A","Apartments",IF('Inputs & Mkt Adj'!C5="I","Industrial",IF('Inputs & Mkt Adj'!C5="O","Office",IF('Inputs & Mkt Adj'!C5="R","Retail","No industry Selected")))) -> Apartments
B15: Cap Rate derived from investor requirements. Note: This is a variation on Ellwood with growth of NOI factored in. | C15: ='Cap Rate Data'!X61 -> 0.07312796429
B16: Value from Derived Cap Rate | C16: ='Cap Rate Data'!X62 -> 755531.7383 | E16: Average Spread Over 10 Yr for Selected Metro | F16: =INDEX('TNG Spread Calc'!K17:BJ17,MATCH('Derived Cap Rate & Results'!F13,'TNG Spread Calc'!K20:BJ20,0)) -> 0.02037921484
B17: Market Cap Rate from empirical data | C17: ='Cap Rate Data'!X63 -> 0.07175565988 | E17: Cap Rate Average for Selected Metro | F17: =INDEX('Cap Rate Graph Table'!C3:BB3,MATCH('Derived Cap Rate & Results'!F13,'Cap Rate Graph Table'!C6:BB6,0)) -> 0.04274921484
B18: Value from Market Cap Rate | C18: ='Cap Rate Data'!X64 -> 769981.0449
B19: Dollar Value of Supportable Mortgage | C19: ='Cap Rate Data'!X65 -> 485436.8932
B20: Implied LTV ratio using derived cap rate value and DSCR calculated supportable loan | C20: ='Cap Rate Data'!X66 -> 0.6425102595

Sheet Derived Cap Rates Graph

Sheet Ten Year Treasury

Sheet NOI Req Grth Rate for EY Graph

Sheet Sheet1

Sheet Equity Yield

Sheet Mortgage Rate

Sheet Cap Rate Data
A1: CBSAName | B1: CBSAorDIV | C1: PropertyType | D1: YYYYQ | E1: Year | F1: Quarter | G1: First day of Quarter | H1: CapRate | I1: CountOfPROP | J1: MV | K1: NOI | L1: MV Wtd Cap | M1: Unique Name | N1: Unique Property Type | O1: Unique Quarter | P1: Unique Quarter Sorting
A2: CA-LosAngeles-LongBeach-Glendale | B2: 31084 | C2: A | D2: 20051 | E2: =VALUE(LEFT(D2,4)) -> 2005 | F2: =VALUE(MID(D2,5,1)) -> 1 | G2: =DATE(E2,IF(F2=1,1,IF(F2=2,4,IF(F2=3,7,IF(F2=4,10,5)))),1) -> 2005-01-01 | H2: 0.0456546345 | I2: 21 | J2: 1137876436 | K2: 12790483 | L2: 0.04496264303 | M2: =INDEX(Unique_Name,MATCH(0,COUNTIF($M$1:M1,Unique_Name),0)) -> CA-LosAngeles-LongBeach-Glendale | N2: =INDEX(Unique_Property_Type,MATCH(0,COUNTIF($N$1:N1,Unique_Property_Type)+(Unique_Name<>'Inputs & Mkt Adj'!$C$4),0)) -> A | O2: =(INDEX(Unique_Date,MATCH(0,COUNTIF($O$1:O1,Unique_Date)+(Unique_Name<>'Inputs & Mkt Adj'!$C$4)+(Unique_Property_Type<>'Inputs & Mkt Adj'!$C$5),0))) -> 20051 | P2: 1 | Q2: =LARGE(IF(ISNUMBER($O$2:$O$101),$O$2:$O$101),P2) -> 20162
A3: CA-LosAngeles-LongBeach-Glendale | B3: 31084 | C3: A | D3: 20061 | E3: =VALUE(LEFT(D3,4)) -> 2006 | F3: =VALUE(MID(D3,5,1)) -> 1 | G3: =DATE(E3,IF(F3=1,1,IF(F3=2,4,IF(F3=3,7,IF(F3=4,10,5)))),1) -> 2006-01-01 | H3: 0.04333203429 | I3: 25 | J3: 1354558684 | K3: 14457167 | L3: 0.04269188828 | M3: =INDEX(Unique_Name,MATCH(0,COUNTIF($M$1:M2,Unique_Name),0)) -> CA-SanDiego-Carlsbad | N3: =INDEX(Unique_Property_Type,MATCH(0,COUNTIF($N$1:N2,Unique_Property_Type)+(Unique_Name<>'Inputs & Mkt Adj'!$C$4),0)) -> I | O3: =INDEX(Unique_Date,MATCH(0,COUNTIF($O$1:O2,Unique_Date)+(Unique_Name<>'Inputs & Mkt Adj'!$C$4)+(Unique_Property_Type<>'Inputs & Mkt Adj'!$C$5),0)) -> 20061 | P3: 2 | Q3: =LARGE(IF(ISNUMBER($O$2:$O$101),$O$2:$O$101),P3) -> 20161
A4: CA-LosAngeles-LongBeach-Glendale | B4: 31084 | C4: A | D4: 20071 | E4: 2007 | F4: 1 | G4: 2007-01-01 | H4: 0.03631143748 | I4: 27 | J4: 1765619760 | K4: 15838744 | L4: 0.03588257078 | M4: =INDEX(Unique_Name,MATCH(0,COUNTIF($M$1:M3,Unique_Name),0)) -> CA-SanFrancisco-RedwoodCity-SouthSanFrancisco | N4: =INDEX(Unique_Property_Type,MATCH(0,COUNTIF($N$1:N3,Unique_Property_Type)+(Unique_Name<>'Inputs & Mkt Adj'!$C$4),0)) -> O | O4: =INDEX(Unique_Date,MATCH(0,COUNTIF($O$1:O3,Unique_Date)+(Unique_Name<>'Inputs & Mkt Adj'!$C$4)+(Unique_Property_Type<>'Inputs & Mkt Adj'!$C$5),0)) -> 20071 | P4: 3 | Q4: =LARGE(IF(ISNUMBER($O$2:$O$101),$O$2:$O$101),P4) -> 20154
A5: CA-LosAngeles-LongBeach-Glendale | B5: 31084 | C5: A | D5: 20081 | E5: 2008 | F5: 1 | G5: 2008-01-01 | H5: 0.03558505825 | I5: 39 | J5: 2313848410 | K5: 21394095 | L5: 0.03698443668 | M5: =INDEX(Unique_Name,MATCH(0,COUNTIF($M$1:M4,Unique_Name),0)) -> DC-VA-MD-WV-Washington-Arlington-Alexandria | N5: =INDEX(Unique_Property_Type,MATCH(0,COUNTIF($N$1:N4,Unique_Property_Type)+(Unique_Name<>'Inputs & Mkt Adj'!$C$4),0)) -> R | O5: =INDEX(Unique_Date,MATCH(0,COUNTIF($O$1:O4,Unique_Date)+(Unique_Name<>'Inputs & Mkt Adj'!$C$4)+(Unique_Property_Type<>'Inputs & Mkt Adj'!$C$5),0)) -> 20081 | P5: 4 | Q5: =LARGE(IF(ISNUMBER($O$2:$O$101),$O$2:$O$101),P5) -> 20153
A6: CA-LosAngeles-LongBeach-Glendale | B6: 31084 | C6: A | D6: 20082 | E6: 2008 | F6: 2 | G6: 2008-04-01 | H6: 0.03420443348 | I6: 27 | J6: 1192468060 | K6: 10723208 | L6: 0.03596979528 | M6: =INDEX(Unique_Name,MATCH(0,COUNTIF($M$1:M5,Unique_Name),0)) -> GA-Atlanta-SandySprings-Roswell | N6: =INDEX(Unique_Property_Type,MATCH(0,COUNTIF($N$1:N5,Unique_Property_Type)+(Unique_Name<>'Inputs & Mkt Adj'!$C$4),0)) ->  | O6: =INDEX(Unique_Date,MATCH(0,COUNTIF($O$1:O5,Unique_Date)+(Unique_Name<>'Inputs & Mkt Adj'!$C$4)+(Unique_Property_Type<>'Inputs & Mkt Adj'!$C$5),0)) -> 20082 | P6: 5 | Q6: =LARGE(IF(ISNUMBER($O$2:$O$101),$O$2:$O$101),P6) -> 20152 | T6: Growth Range | U6: Equity Yield Range | V6: Mortgage Rate Range
A7: CA-LosAngeles-LongBeach-Glendale | B7: 31084 | C7: A | D7: 20083 | E7: 2008 | F7: 3 | G7: 2008-07-01 | H7: 0.0382862381 | I7: 26 | J7: 1704130539 | K7: 17327703 | L7: 0.04067224336 | M7: =INDEX(Unique_Name,MATCH(0,COUNTIF($M$1:M6,Unique_Name),0)) -> IL-Chicago-Naperville-ArlingtonHeights | N7: =INDEX(Unique_Property_Type,MATCH(0,COUNTIF($N$1:N6,Unique_Property_Type)+(Unique_Name<>'Inputs & Mkt Adj'!$C$4),0)) ->  | O7: =INDEX(Unique_Date,MATCH(0,COUNTIF($O$1:O6,Unique_Date)+(Unique_Name<>'Inputs & Mkt Adj'!$C$4)+(Unique_Property_Type<>'Inputs & Mkt Adj'!$C$5),0)) -> 20083 | P7: 6 | Q7: =LARGE(IF(ISNUMBER($O$2:$O$101),$O$2:$O$101),P7) -> 20151 | T7: 0 | U7: 0.005 | V7: 0.005
A8: CA-LosAngeles-LongBeach-Glendale | B8: 31084 | C8: A | D8: 20084 | E8: 2008 | F8: 4 | G8: 2008-10-01 | H8: 0.04135938753 | I8: 49 | J8: 3041835750 | K8: 32448911 | L8: 0.0426701685 | M8: =INDEX(Unique_Name,MATCH(0,COUNTIF($M$1:M7,Unique_Name),0)) -> TX-Dallas-Plano-Irving | O8: =INDEX(Unique_Date,MATCH(0,COUNTIF($O$1:O7,Unique_Date)+(Unique_Name<>'Inputs & Mkt Adj'!$C$4)+(Unique_Property_Type<>'Inputs & Mkt Adj'!$C$5),0)) -> 20084 | P8: 7 | Q8: =LARGE(IF(ISNUMBER($O$2:$O$101),$O$2:$O$101),P8) -> 20144 | T8: 0.0025 | U8: 0.01 | V8: 0.01
A9: CA-LosAngeles-LongBeach-Glendale | B9: 31084 | C9: A | D9: 20091 | E9: 2009 | F9: 1 | G9: 2009-01-01 | H9: 0.04480654811 | I9: 51 | J9: 2721584184 | K9: 30522273 | L9: 0.04485956845 | M9: =INDEX(Unique_Name,MATCH(0,COUNTIF($M$1:M8,Unique_Name),0)) -> TX-Houston-TheWoodlands-SugarLand | O9: =INDEX(Unique_Date,MATCH(0,COUNTIF($O$1:O8,Unique_Date)+(Unique_Name<>'Inputs & Mkt Adj'!$C$4)+(Unique_Property_Type<>'Inputs & Mkt Adj'!$C$5),0)) -> 20091 | P9: 8 | Q9: =LARGE(IF(ISNUMBER($O$2:$O$101),$O$2:$O$101),P9) -> 20143 | T9: 0.005 | U9: 0.015 | V9: 0.015
A10: CA-LosAngeles-LongBeach-Glendale | B10: 31084 | C10: A | D10: 20092 | E10: 2009 | F10: 2 | G10: 2009-04-01 | H10: 0.0483252098 | I10: 45 | J10: 2460823839 | K10: 29766421 | L10: 0.04838448089 | M10: =INDEX(Unique_Name,MATCH(0,COUNTIF($M$1:M9,Unique_Name),0)) -> WA-Seattle-Bellevue-Everett | O10: =INDEX(Unique_Date,MATCH(0,COUNTIF($O$1:O9,Unique_Date)+(Unique_Name<>'Inputs & Mkt Adj'!$C$4)+(Unique_Property_Type<>'Inputs & Mkt Adj'!$C$5),0)) -> 20092 | P10: 9 | Q10: =LARGE(IF(ISNUMBER($O$2:$O$101),$O$2:$O$101),P10) -> 20142 | T10: 0.0075 | U10: 0.02 | V10: 0.02
A11: CA-LosAngeles-LongBeach-Glendale | B11: 31084 | C11: A | D11: 20093 | E11: 2009 | F11: 3 | G11: 2009-07-01 | H11: 0.04831573449 | I11: 48 | J11: 2040705300 | K11: 24772377 | L11: 0.04855650054 | M11: =INDEX(Unique_Name,MATCH(0,COUNTIF($M$1:M10,Unique_Name),0)) -> Austin-Round Rock-San Marcos, TX | O11: =INDEX(Unique_Date,MATCH(0,COUNTIF($O$1:O10,Unique_Date)+(Unique_Name<>'Inputs & Mkt Adj'!$C$4)+(Unique_Property_Type<>'Inputs & Mkt Adj'!$C$5),0)) -> 20093 | P11: 10 | Q11: =LARGE(IF(ISNUMBER($O$2:$O$101),$O$2:$O$101),P11) -> 20141 | T11: 0.01 | U11: 0.025 | V11: 0.025
A12: CA-LosAngeles-LongBeach-Glendale | B12: 31084 | C12: A | D12: 20094 | E12: 2009 | F12: 4 | G12: 2009-10-01 | H12: 0.0463808007 | I12: 62 | J12: 2723704163 | K12: 33833131 | L12: 0.04968693951 | M12: =INDEX(Unique_Name,MATCH(0,COUNTIF($M$1:M11,Unique_Name),0)) -> Baltimore-Towson, MD | O12: =INDEX(Unique_Date,MATCH(0,COUNTIF($O$1:O11,Unique_Date)+(Unique_Name<>'Inputs & Mkt Adj'!$C$4)+(Unique_Property_Type<>'Inputs & Mkt Adj'!$C$5),0)) -> 20094 | P12: 11 | Q12: =LARGE(IF(ISNUMBER($O$2:$O$101),$O$2:$O$101),P12) -> 20134 | T12: 0.0125 | U12: 0.03 | V12: 0.03
A13: CA-LosAngeles-LongBeach-Glendale | B13: 31084 | C13: A | D13: 20101 | E13: 2010 | F13: 1 | G13: 2010-01-01 | H13: 0.05262637308 | I13: 54 | J13: 1992002384 | K13: 26206182 | L13: 0.05262279244 | M13: =INDEX(Unique_Name,MATCH(0,COUNTIF($M$1:M12,Unique_Name),0)) -> Birmingham-Hoover, AL | O13: =INDEX(Unique_Date,MATCH(0,COUNTIF($O$1:O12,Unique_Date)+(Unique_Name<>'Inputs & Mkt Adj'!$C$4)+(Unique_Property_Type<>'Inputs & Mkt Adj'!$C$5),0)) -> 20101 | P13: 12 | Q13: =LARGE(IF(ISNUMBER($O$2:$O$101),$O$2:$O$101),P13) -> 20133 | T13: 0.015 | U13: 0.035 | V13: 0.035
A14: CA-LosAngeles-LongBeach-Glendale | B14: 31084 | C14: A | D14: 20102 | E14: 2010 | F14: 2 | G14: 2010-04-01 | H14: 0.0481736746 | I14: 51 | J14: 2561497871 | K14: 31242919 | L14: 0.04878851449 | M14: =INDEX(Unique_Name,MATCH(0,COUNTIF($M$1:M13,Unique_Name),0)) -> Boston-Cambridge-Quincy, MA-NH | O14: =INDEX(Unique_Date,MATCH(0,COUNTIF($O$1:O13,Unique_Date)+(Unique_Name<>'Inputs & Mkt Adj'!$C$4)+(Unique_Property_Type<>'Inputs & Mkt Adj'!$C$5),0)) -> 20102 | P14: 13 | Q14: =LARGE(IF(ISNUMBER($O$2:$O$101),$O$2:$O$101),P14) -> 20132 | T14: 0.0175 | U14: 0.04 | V14: 0.04
A15: CA-LosAngeles-LongBeach-Glendale | B15: 31084 | C15: A | D15: 20103 | E15: 2010 | F15: 3 | G15: 2010-07-01 | H15: 0.04817373282 | I15: 59 | J15: 2451752285 | K15: 29367098 | L15: 0.0479120149 | M15: =INDEX(Unique_Name,MATCH(0,COUNTIF($M$1:M14,Unique_Name),0)) -> Buffalo-Niagara Falls, NY | O15: =INDEX(Unique_Date,MATCH(0,COUNTIF($O$1:O14,Unique_Date)+(Unique_Name<>'Inputs & Mkt Adj'!$C$4)+(Unique_Property_Type<>'Inputs & Mkt Adj'!$C$5),0)) -> 20103 | P15: 14 | Q15: =LARGE(IF(ISNUMBER($O$2:$O$101),$O$2:$O$101),P15) -> 20131
A16: CA-LosAngeles-LongBeach-Glendale | B16: 31084 | C16: A | D16: 20104 | E16: 2010 | F16: 4 | G16: 2010-10-01 | H16: 0.04421669791 | I16: 59 | J16: 2885951728 | K16: 32645165 | L16: 0.04524700075 | M16: =INDEX(Unique_Name,MATCH(0,COUNTIF($M$1:M15,Unique_Name),0)) -> Charlotte-Gastonia-Rock Hill, NC-SC | O16: =INDEX(Unique_Date,MATCH(0,COUNTIF($O$1:O15,Unique_Date)+(Unique_Name<>'Inputs & Mkt Adj'!$C$4)+(Unique_Property_Type<>'Inputs & Mkt Adj'!$C$5),0)) -> 20104 | P16: 15 | Q16: =LARGE(IF(ISNUMBER($O$2:$O$101),$O$2:$O$101),P16) -> 20124
A17: CA-LosAngeles-LongBeach-Glendale | B17: 31084 | C17: A | D17: 20111 | E17: 2011 | F17: 1 | G17: 2011-01-01 | H17: 0.04872428769 | I17: 47 | J17: 1920145888 | K17: 22846905 | L17: 0.04759410239 | M17: =INDEX(Unique_Name,MATCH(0,COUNTIF($M$1:M16,Unique_Name),0)) -> Cincinnati-Middletown, OH-KY-IN | O17: =INDEX(Unique_Date,MATCH(0,COUNTIF($O$1:O16,Unique_Date)+(Unique_Name<>'Inputs & Mkt Adj'!$C$4)+(Unique_Property_Type<>'Inputs & Mkt Adj'!$C$5),0)) -> 20111 | P17: 16 | Q17: =LARGE(IF(ISNUMBER($O$2:$O$101),$O$2:$O$101),P17) -> 20123
A18: CA-LosAngeles-LongBeach-Glendale | B18: 31084 | C18: A | D18: 20112 | E18: 2011 | F18: 2 | G18: 2011-04-01 | H18: 0.0449130472 | I18: 56 | J18: 2946893354 | K18: 32938804 | L18: 0.04470986906 | M18: =INDEX(Unique_Name,MATCH(0,COUNTIF($M$1:M17,Unique_Name),0)) -> Cleveland-Elyria-Mentor, OH | O18: =INDEX(Unique_Date,MATCH(0,COUNTIF($O$1:O17,Unique_Date)+(Unique_Name<>'Inputs & Mkt Adj'!$C$4)+(Unique_Property_Type<>'Inputs & Mkt Adj'!$C$5),0)) -> 20112 | P18: 17 | Q18: =LARGE(IF(ISNUMBER($O$2:$O$101),$O$2:$O$101),P18) -> 20122
A19: CA-LosAngeles-LongBeach-Glendale | B19: 31084 | C19: A | D19: 20113 | E19: 2011 | F19: 3 | G19: 2011-07-01 | H19: 0.0447615405 | I19: 51 | J19: 2249391880 | K19: 24287846 | L19: 0.04319006611 | M19: =INDEX(Unique_Name,MATCH(0,COUNTIF($M$1:M18,Unique_Name),0)) -> Columbus, OH | O19: =INDEX(Unique_Date,MATCH(0,COUNTIF($O$1:O18,Unique_Date)+(Unique_Name<>'Inputs & Mkt Adj'!$C$4)+(Unique_Property_Type<>'Inputs & Mkt Adj'!$C$5),0)) -> 20113 | P19: 18 | Q19: =LARGE(IF(ISNUMBER($O$2:$O$101),$O$2:$O$101),P19) -> 20121
A20: CA-LosAngeles-LongBeach-Glendale | B20: 31084 | C20: A | D20: 20114 | E20: 2011 | F20: 4 | G20: 2011-10-01 | H20: 0.04509255626 | I20: 52 | J20: 2838334402 | K20: 31518687 | L20: 0.04441856742 | M20: =INDEX(Unique_Name,MATCH(0,COUNTIF($M$1:M19,Unique_Name),0)) -> Denver-Aurora-Broomfield, CO | O20: =INDEX(Unique_Date,MATCH(0,COUNTIF($O$1:O19,Unique_Date)+(Unique_Name<>'Inputs & Mkt Adj'!$C$4)+(Unique_Property_Type<>'Inputs & Mkt Adj'!$C$5),0)) -> 20114 | P20: 19 | Q20: =LARGE(IF(ISNUMBER($O$2:$O$101),$O$2:$O$101),P20) -> 20114
A21: CA-LosAngeles-LongBeach-Glendale | B21: 31084 | C21: A | D21: 20121 | E21: 2012 | F21: 1 | G21: 2012-01-01 | H21: 0.04568718416 | I21: 51 | J21: 2632648216 | K21: 28887647 | L21: 0.0438913894 | M21: =INDEX(Unique_Name,MATCH(0,COUNTIF($M$1:M20,Unique_Name),0)) -> Detroit-Warren-Livonia, MI | O21: =INDEX(Unique_Date,MATCH(0,COUNTIF($O$1:O20,Unique_Date)+(Unique_Name<>'Inputs & Mkt Adj'!$C$4)+(Unique_Property_Type<>'Inputs & Mkt Adj'!$C$5),0)) -> 20121 | P21: 20 | Q21: =LARGE(IF(ISNUMBER($O$2:$O$101),$O$2:$O$101),P21) -> 20113
A22: CA-LosAngeles-LongBeach-Glendale | B22: 31084 | C22: A | D22: 20122 | E22: 2012 | F22: 2 | G22: 2012-04-01 | H22: 0.04587511912 | I22: 57 | J22: 3523521826 | K22: 39883850 | L22: 0.04527725607 | M22: =INDEX(Unique_Name,MATCH(0,COUNTIF($M$1:M21,Unique_Name),0)) -> Hartford-West Hartford-East Hartford, CT | O22: =INDEX(Unique_Date,MATCH(0,COUNTIF($O$1:O21,Unique_Date)+(Unique_Name<>'Inputs & Mkt Adj'!$C$4)+(Unique_Property_Type<>'Inputs & Mkt Adj'!$C$5),0)) -> 20122 | P22: 21 | Q22: =LARGE(IF(ISNUMBER($O$2:$O$101),$O$2:$O$101),P22) -> 20112
A23: CA-LosAngeles-LongBeach-Glendale | B23: 31084 | C23: A | D23: 20123 | E23: 2012 | F23: 3 | G23: 2012-07-01 | H23: 0.04607825464 | I23: 42 | J23: 1992430805 | K23: 21664293 | L23: 0.04349319022 | M23: =INDEX(Unique_Name,MATCH(0,COUNTIF($M$1:M22,Unique_Name),0)) -> Indianapolis-Carmel, IN | O23: =INDEX(Unique_Date,MATCH(0,COUNTIF($O$1:O22,Unique_Date)+(Unique_Name<>'Inputs & Mkt Adj'!$C$4)+(Unique_Property_Type<>'Inputs & Mkt Adj'!$C$5),0)) -> 20123 | P23: 22 | Q23: =LARGE(IF(ISNUMBER($O$2:$O$101),$O$2:$O$101),P23) -> 20111
A24: CA-LosAngeles-LongBeach-Glendale | B24: 31084 | C24: A | D24: 20124 | E24: 2012 | F24: 4 | G24: 2012-10-01 | H24: 0.04683573957 | I24: 45 | J24: 2947509197 | K24: 31918417 | L24: 0.04331578274 | M24: =INDEX(Unique_Name,MATCH(0,COUNTIF($M$1:M23,Unique_Name),0)) -> Jacksonville, FL | O24: =INDEX(Unique_Date,MATCH(0,COUNTIF($O$1:O23,Unique_Date)+(Unique_Name<>'Inputs & Mkt Adj'!$C$4)+(Unique_Property_Type<>'Inputs & Mkt Adj'!$C$5),0)) -> 20124 | P24: 23 | Q24: =LARGE(IF(ISNUMBER($O$2:$O$101),$O$2:$O$101),P24) -> 20104
A25: CA-LosAngeles-LongBeach-Glendale | B25: 31084 | C25: A | D25: 20131 | E25: 2013 | F25: 1 | G25: 2013-01-01 | H25: 0.0450558008 | I25: 52 | J25: 2888924036 | K25: 30772687 | L25: 0.04260781747 | M25: =INDEX(Unique_Name,MATCH(0,COUNTIF($M$1:M24,Unique_Name),0)) -> Kansas City, MO-KS | O25: =INDEX(Unique_Date,MATCH(0,COUNTIF($O$1:O24,Unique_Date)+(Unique_Name<>'Inputs & Mkt Adj'!$C$4)+(Unique_Property_Type<>'Inputs & Mkt Adj'!$C$5),0)) -> 20131 | P25: 24 | Q25: =LARGE(IF(ISNUMBER($O$2:$O$101),$O$2:$O$101),P25) -> 20103
A26: CA-LosAngeles-LongBeach-Glendale | B26: 31084 | C26: A | D26: 20132 | E26: 2013 | F26: 2 | G26: 2013-04-01 | H26: 0.04516375746 | I26: 48 | J26: 3135754900 | K26: 34152985 | L26: 0.04356588584 | M26: =INDEX(Unique_Name,MATCH(0,COUNTIF($M$1:M25,Unique_Name),0)) -> Las Vegas-Paradise, NV | O26: =INDEX(Unique_Date,MATCH(0,COUNTIF($O$1:O25,Unique_Date)+(Unique_Name<>'Inputs & Mkt Adj'!$C$4)+(Unique_Property_Type<>'Inputs & Mkt Adj'!$C$5),0)) -> 20132 | P26: 25 | Q26: =LARGE(IF(ISNUMBER($O$2:$O$101),$O$2:$O$101),P26) -> 20102
A27: CA-LosAngeles-LongBeach-Glendale | B27: 31084 | C27: A | D27: 20133 | E27: 2013 | F27: 3 | G27: 2013-07-01 | H27: 0.04241977136 | I27: 47 | J27: 2576279318 | K27: 25555859 | L27: 0.03967870847 | M27: =INDEX(Unique_Name,MATCH(0,COUNTIF($M$1:M26,Unique_Name),0)) -> Louisville/Jefferson County, KY-IN | O27: =INDEX(Unique_Date,MATCH(0,COUNTIF($O$1:O26,Unique_Date)+(Unique_Name<>'Inputs & Mkt Adj'!$C$4)+(Unique_Property_Type<>'Inputs & Mkt Adj'!$C$5),0)) -> 20133 | P27: 26 | Q27: =LARGE(IF(ISNUMBER($O$2:$O$101),$O$2:$O$101),P27) -> 20101
A28: CA-LosAngeles-LongBeach-Glendale | B28: 31084 | C28: A | D28: 20134 | E28: 2013 | F28: 4 | G28: 2013-10-01 | H28: 0.04268050493 | I28: 51 | J28: 3531925863 | K28: 36827696 | L28: 0.04170834545 | M28: =INDEX(Unique_Name,MATCH(0,COUNTIF($M$1:M27,Unique_Name),0)) -> Memphis, TN-MS-AR | O28: =INDEX(Unique_Date,MATCH(0,COUNTIF($O$1:O27,Unique_Date)+(Unique_Name<>'Inputs & Mkt Adj'!$C$4)+(Unique_Property_Type<>'Inputs & Mkt Adj'!$C$5),0)) -> 20134 | P28: 27 | Q28: =LARGE(IF(ISNUMBER($O$2:$O$101),$O$2:$O$101),P28) -> 20094
A29: CA-LosAngeles-LongBeach-Glendale | B29: 31084 | C29: A | D29: 20141 | E29: 2014 | F29: 1 | G29: 2014-01-01 | H29: 0.04327308698 | I29: 55 | J29: 3454140650 | K29: 34249637 | L29: 0.03966212204 | M29: =INDEX(Unique_Name,MATCH(0,COUNTIF($M$1:M28,Unique_Name),0)) -> Miami-Fort Lauderdale-Pompano Beach, FL | O29: =INDEX(Unique_Date,MATCH(0,COUNTIF($O$1:O28,Unique_Date)+(Unique_Name<>'Inputs & Mkt Adj'!$C$4)+(Unique_Property_Type<>'Inputs & Mkt Adj'!$C$5),0)) -> 20141 | P29: 28 | Q29: =LARGE(IF(ISNUMBER($O$2:$O$101),$O$2:$O$101),P29) -> 20093
A30: CA-LosAngeles-LongBeach-Glendale | B30: 31084 | C30: A | D30: 20142 | E30: 2014 | F30: 2 | G30: 2014-04-01 | H30: 0.04259454155 | I30: 53 | J30: 3936940512 | K30: 40650301 | L30: 0.04130141248 | M30: =INDEX(Unique_Name,MATCH(0,COUNTIF($M$1:M29,Unique_Name),0)) -> Milwaukee-Waukesha-West Allis, WI | O30: =INDEX(Unique_Date,MATCH(0,COUNTIF($O$1:O29,Unique_Date)+(Unique_Name<>'Inputs & Mkt Adj'!$C$4)+(Unique_Property_Type<>'Inputs & Mkt Adj'!$C$5),0)) -> 20142 | P30: 29 | Q30: =LARGE(IF(ISNUMBER($O$2:$O$101),$O$2:$O$101),P30) -> 20092
A31: CA-LosAngeles-LongBeach-Glendale | B31: 31084 | C31: A | D31: 20143 | E31: 2014 | F31: 3 | G31: 2014-07-01 | H31: 0.04398712666 | I31: 55 | J31: 3702710557 | K31: 39301379 | L31: 0.04245687411 | M31: =INDEX(Unique_Name,MATCH(0,COUNTIF($M$1:M30,Unique_Name),0)) -> Minneapolis-St. Paul-Bloomington, MN-WI | O31: =INDEX(Unique_Date,MATCH(0,COUNTIF($O$1:O30,Unique_Date)+(Unique_Name<>'Inputs & Mkt Adj'!$C$4)+(Unique_Property_Type<>'Inputs & Mkt Adj'!$C$5),0)) -> 20143 | P31: 30 | Q31: =LARGE(IF(ISNUMBER($O$2:$O$101),$O$2:$O$101),P31) -> 20091
A32: CA-LosAngeles-LongBeach-Glendale | B32: 31084 | C32: A | D32: 20144 | E32: 2014 | F32: 4 | G32: 2014-10-01 | H32: 0.04396725834 | I32: 60 | J32: 4626119292 | K32: 49325473 | L32: 0.04264954696 | M32: =INDEX(Unique_Name,MATCH(0,COUNTIF($M$1:M31,Unique_Name),0)) -> Nashville-Davidson--Murfreesboro--Franklin, TN | O32: =INDEX(Unique_Date,MATCH(0,COUNTIF($O$1:O31,Unique_Date)+(Unique_Name<>'Inputs & Mkt Adj'!$C$4)+(Unique_Property_Type<>'Inputs & Mkt Adj'!$C$5),0)) -> 20144 | P32: 31 | Q32: =LARGE(IF(ISNUMBER($O$2:$O$101),$O$2:$O$101),P32) -> 20084 | T32: These are our property size tiers as used in the drop down menu
A33: CA-LosAngeles-LongBeach-Glendale | B33: 31084 | C33: A | D33: 20151 | E33: 2015 | F33: 1 | G33: 2015-01-01 | H33: 0.04303801043 | I33: 65 | J33: 5572140304 | K33: 57312627 | L33: 0.04114227128 | M33: =INDEX(Unique_Name,MATCH(0,COUNTIF($M$1:M32,Unique_Name),0)) -> New Orleans-Metairie-Kenner, LA | O33: =INDEX(Unique_Date,MATCH(0,COUNTIF($O$1:O32,Unique_Date)+(Unique_Name<>'Inputs & Mkt Adj'!$C$4)+(Unique_Property_Type<>'Inputs & Mkt Adj'!$C$5),0)) -> 20151 | P33: 32 | Q33: =LARGE(IF(ISNUMBER($O$2:$O$101),$O$2:$O$101),P33) -> 20083 | U33: Largest | Y33: Smallest (or below)
A34: CA-LosAngeles-LongBeach-Glendale | B34: 31084 | C34: A | D34: 20152 | E34: 2015 | F34: 2 | G34: 2015-04-01 | H34: 0.04397077392 | I34: 66 | J34: 5621464477 | K34: 57267532 | L34: 0.0407491907 | M34: =INDEX(Unique_Name,MATCH(0,COUNTIF($M$1:M33,Unique_Name),0)) -> New York-Northern NJ-Long Island, NY-NJ-PA | O34: =INDEX(Unique_Date,MATCH(0,COUNTIF($O$1:O33,Unique_Date)+(Unique_Name<>'Inputs & Mkt Adj'!$C$4)+(Unique_Property_Type<>'Inputs & Mkt Adj'!$C$5),0)) -> 20152 | P34: 33 | Q34: =LARGE(IF(ISNUMBER($O$2:$O$101),$O$2:$O$101),P34) -> 20082 | S34: Abbv | T34: GBA | U34: Tier 1 | V34: Tier 2 | W34: Tier 3 | X34: Tier 4 | Y34: Tier 5
A35: CA-LosAngeles-LongBeach-Glendale | B35: 31084 | C35: A | D35: 20153 | E35: 2015 | F35: 3 | G35: 2015-07-01 | H35: 0.04227096355 | I35: 75 | J35: 6738117535 | K35: 67958893 | L35: 0.04034295493 | M35: =INDEX(Unique_Name,MATCH(0,COUNTIF($M$1:M34,Unique_Name),0)) -> Oklahoma City, OK | O35: =INDEX(Unique_Date,MATCH(0,COUNTIF($O$1:O34,Unique_Date)+(Unique_Name<>'Inputs & Mkt Adj'!$C$4)+(Unique_Property_Type<>'Inputs & Mkt Adj'!$C$5),0)) -> 20153 | P35: 34 | Q35: =LARGE(IF(ISNUMBER($O$2:$O$101),$O$2:$O$101),P35) -> 20081 | S35: O | T35: Office | U35: 200,000+ | V35: 50,000-200,000 | W35: 25000-50,000 | X35: 10,000-25,000 | Y35: <10000
A36: CA-LosAngeles-LongBeach-Glendale | B36: 31084 | C36: A | D36: 20154 | E36: 2015 | F36: 4 | G36: 2015-10-01 | H36: 0.04068328011 | I36: 76 | J36: 6853297336 | K36: 68083023 | L36: 0.03973738168 | M36: =INDEX(Unique_Name,MATCH(0,COUNTIF($M$1:M35,Unique_Name),0)) -> Orlando-Kissimmee-Sanford, FL | O36: =INDEX(Unique_Date,MATCH(0,COUNTIF($O$1:O35,Unique_Date)+(Unique_Name<>'Inputs & Mkt Adj'!$C$4)+(Unique_Property_Type<>'Inputs & Mkt Adj'!$C$5),0)) -> 20154 | P36: 35 | Q36: =LARGE(IF(ISNUMBER($O$2:$O$101),$O$2:$O$101),P36) -> 20071 | S36: R | T36: Retail | U36: 750,000+ | V36: 250,000-750,000 | W36: 50,000-250,000 | X36: 25,000-50,000 | Y36: <25000
A37: CA-LosAngeles-LongBeach-Glendale | B37: 31084 | C37: A | D37: 20161 | E37: 2016 | F37: 1 | G37: 2016-01-01 | H37: 0.04195144701 | I37: 75 | J37: 6783027461 | K37: 69489652 | L37: 0.04097854676 | M37: =INDEX(Unique_Name,MATCH(0,COUNTIF($M$1:M36,Unique_Name),0)) -> Philadelphia-Camden-Wilmington, PA-NJ-DE-MD | O37: =INDEX(Unique_Date,MATCH(0,COUNTIF($O$1:O36,Unique_Date)+(Unique_Name<>'Inputs & Mkt Adj'!$C$4)+(Unique_Property_Type<>'Inputs & Mkt Adj'!$C$5),0)) -> 20161 | P37: 36 | Q37: =LARGE(IF(ISNUMBER($O$2:$O$101),$O$2:$O$101),P37) -> 20061 | S37: I | T37: Industrial | U37: 500,000+ | V37: 100,000-500,000 | W37: 50,000-100,000 | X37: 25,000-50,000 | Y37: <25,000
A38: CA-LosAngeles-LongBeach-Glendale | B38: 31084 | C38: A | D38: 20162 | E38: 2016 | F38: 2 | G38: 2016-04-01 | H38: 0.04175565988 | I38: 77 | J38: 7099986971 | K38: 71587296 | L38: 0.040330945 | M38: =INDEX(Unique_Name,MATCH(0,COUNTIF($M$1:M37,Unique_Name),0)) -> Phoenix-Mesa-Glendale, AZ | O38: =INDEX(Unique_Date,MATCH(0,COUNTIF($O$1:O37,Unique_Date)+(Unique_Name<>'Inputs & Mkt Adj'!$C$4)+(Unique_Property_Type<>'Inputs & Mkt Adj'!$C$5),0)) -> 20162 | P38: 37 | Q38: =LARGE(IF(ISNUMBER($O$2:$O$101),$O$2:$O$101),P38) -> 20051 | S38: A | T38: Multifamily | U38: 120,000+ SqFt, 150+ Units | V38: 80,000-120,000 SqFt, 100-150 Units | W38: 40,000-80,000SqFt, 50-100 Units | X38: 10,000-40,000 SqFt, 10-50 Units | Y38: <10,000 SqFt, <10 Units
A39: CA-LosAngeles-LongBeach-Glendale | B39: 31084 | C39: I | D39: 19902 | E39: 1990 | F39: 2 | G39: 1990-04-01 | H39: 0.05610434294 | I39: 20 | J39: 336701341 | K39: 5066957 | L39: 0.06019526961 | M39: =INDEX(Unique_Name,MATCH(0,COUNTIF($M$1:M38,Unique_Name),0)) -> Pittsburgh, PA | O39: =INDEX(Unique_Date,MATCH(0,COUNTIF($O$1:O38,Unique_Date)+(Unique_Name<>'Inputs & Mkt Adj'!$C$4)+(Unique_Property_Type<>'Inputs & Mkt Adj'!$C$5),0)) ->  | P39: 38 | Q39: =LARGE(IF(ISNUMBER($O$2:$O$101),$O$2:$O$101),P39) -> 
A40: CA-LosAngeles-LongBeach-Glendale | B40: 31084 | C40: I | D40: 19903 | E40: 1990 | F40: 3 | G40: 1990-07-01 | H40: 0.06584331825 | I40: 21 | J40: 370291284 | K40: 6008918 | L40: 0.06491017488 | M40: =INDEX(Unique_Name,MATCH(0,COUNTIF($M$1:M39,Unique_Name),0)) -> Portland-Vancouver-Hillsboro, OR-WA | O40: =INDEX(Unique_Date,MATCH(0,COUNTIF($O$1:O39,Unique_Date)+(Unique_Name<>'Inputs & Mkt Adj'!$C$4)+(Unique_Property_Type<>'Inputs & Mkt Adj'!$C$5),0)) ->  | P40: 39 | Q40: =LARGE(IF(ISNUMBER($O$2:$O$101),$O$2:$O$101),P40) ->  | T40: Multifamily | U40: 150 units+ | V40: 100-150 | W40: 50-100 | X40: 10-50 | Y40: <10
A41: CA-LosAngeles-LongBeach-Glendale | B41: 31084 | C41: I | D41: 19904 | E41: 1990 | F41: 4 | G41: 1990-10-01 | H41: 0.07482080607 | I41: 32 | J41: 662620216 | K41: 11844342 | L41: 0.07150003404 | M41: =INDEX(Unique_Name,MATCH(0,COUNTIF($M$1:M40,Unique_Name),0)) -> Providence-New Bedford-Fall River, RI-MA | O41: =INDEX(Unique_Date,MATCH(0,COUNTIF($O$1:O40,Unique_Date)+(Unique_Name<>'Inputs & Mkt Adj'!$C$4)+(Unique_Property_Type<>'Inputs & Mkt Adj'!$C$5),0)) ->  | P41: 40 | Q41: =LARGE(IF(ISNUMBER($O$2:$O$101),$O$2:$O$101),P41) ->  | T41: These are the spreads in cap rates used to adjust for size tiers from the base.
A42: CA-LosAngeles-LongBeach-Glendale | B42: 31084 | C42: I | D42: 19913 | E42: 1991 | F42: 3 | G42: 1991-07-01 | H42: 0.07693901988 | I42: 24 | J42: 479822609 | K42: 8456143 | L42: 0.07049391039 | M42: =INDEX(Unique_Name,MATCH(0,COUNTIF($M$1:M41,Unique_Name),0)) -> Raleigh-Cary, NC | O42: =INDEX(Unique_Date,MATCH(0,COUNTIF($O$1:O41,Unique_Date)+(Unique_Name<>'Inputs & Mkt Adj'!$C$4)+(Unique_Property_Type<>'Inputs & Mkt Adj'!$C$5),0)) ->  | P42: 41 | Q42: =LARGE(IF(ISNUMBER($O$2:$O$101),$O$2:$O$101),P42) ->  | S42: Cap Rate Change | U42: Tier 1 Adjustment | V42: Tier 2 Adjustment | W42: Tier 3 Adjustment | X42: Tier 4 Adjustment | Y42: Tier 5 Adjustment
A43: CA-LosAngeles-LongBeach-Glendale | B43: 31084 | C43: I | D43: 19914 | E43: 1991 | F43: 4 | G43: 1991-10-01 | H43: 0.07784151204 | I43: 43 | J43: 790132975 | K43: 14710753 | L43: 0.07447228993 | M43: =INDEX(Unique_Name,MATCH(0,COUNTIF($M$1:M42,Unique_Name),0)) -> Richmond, VA | O43: =INDEX(Unique_Date,MATCH(0,COUNTIF($O$1:O42,Unique_Date)+(Unique_Name<>'Inputs & Mkt Adj'!$C$4)+(Unique_Property_Type<>'Inputs & Mkt Adj'!$C$5),0)) ->  | P43: 42 | Q43: =LARGE(IF(ISNUMBER($O$2:$O$101),$O$2:$O$101),P43) ->  | S43: O | T43: Office | U43: 0 | V43: 0.01 | W43: 0.015 | X43: 0.025 | Y43: 0.035
A44: CA-LosAngeles-LongBeach-Glendale | B44: 31084 | C44: I | D44: 19921 | E44: 1992 | F44: 1 | G44: 1992-01-01 | H44: 0.07362709953 | I44: 20 | J44: 520322333 | K44: 9186016 | L44: 0.07061788755 | M44: =INDEX(Unique_Name,MATCH(0,COUNTIF($M$1:M43,Unique_Name),0)) -> Riverside-San Bernardino-Ontario, CA | O44: =INDEX(Unique_Date,MATCH(0,COUNTIF($O$1:O43,Unique_Date)+(Unique_Name<>'Inputs & Mkt Adj'!$C$4)+(Unique_Property_Type<>'Inputs & Mkt Adj'!$C$5),0)) ->  | P44: 43 | Q44: =LARGE(IF(ISNUMBER($O$2:$O$101),$O$2:$O$101),P44) ->  | S44: R | T44: Retail | U44: 0 | V44: 0.01 | W44: 0.015 | X44: 0.025 | Y44: 0.035
A45: CA-LosAngeles-LongBeach-Glendale | B45: 31084 | C45: I | D45: 19922 | E45: 1992 | F45: 2 | G45: 1992-04-01 | H45: 0.07648348955 | I45: 27 | J45: 453644036 | K45: 8667486 | L45: 0.07642543768 | M45: =INDEX(Unique_Name,MATCH(0,COUNTIF($M$1:M44,Unique_Name),0)) -> Rochester, NY | O45: =INDEX(Unique_Date,MATCH(0,COUNTIF($O$1:O44,Unique_Date)+(Unique_Name<>'Inputs & Mkt Adj'!$C$4)+(Unique_Property_Type<>'Inputs & Mkt Adj'!$C$5),0)) ->  | P45: 44 | Q45: =LARGE(IF(ISNUMBER($O$2:$O$101),$O$2:$O$101),P45) ->  | S45: I | T45: Industrial | U45: 0 | V45: 0.015 | W45: 0.015 | X45: 0.025 | Y45: 0.035
A46: CA-LosAngeles-LongBeach-Glendale | B46: 31084 | C46: I | D46: 19923 | E46: 1992 | F46: 3 | G46: 1992-07-01 | H46: 0.08680065307 | I46: 25 | J46: 433146000 | K46: 9303803 | L46: 0.08591840165 | M46: =INDEX(Unique_Name,MATCH(0,COUNTIF($M$1:M45,Unique_Name),0)) -> Sacramento--Arden-Arcade--Roseville, CA | O46: =INDEX(Unique_Date,MATCH(0,COUNTIF($O$1:O45,Unique_Date)+(Unique_Name<>'Inputs & Mkt Adj'!$C$4)+(Unique_Property_Type<>'Inputs & Mkt Adj'!$C$5),0)) ->  | P46: 45 | Q46: =LARGE(IF(ISNUMBER($O$2:$O$101),$O$2:$O$101),P46) ->  | S46: A | T46: Multifamily | U46: 0 | V46: 0.01 | W46: 0.015 | X46: 0.02 | Y46: 0.03
A47: CA-LosAngeles-LongBeach-Glendale | B47: 31084 | C47: I | D47: 19924 | E47: 1992 | F47: 4 | G47: 1992-10-01 | H47: 0.0895580367 | I47: 40 | J47: 595300642 | K47: 12736924 | L47: 0.08558313633 | M47: =INDEX(Unique_Name,MATCH(0,COUNTIF($M$1:M46,Unique_Name),0)) -> Salt Lake City, UT | O47: =INDEX(Unique_Date,MATCH(0,COUNTIF($O$1:O46,Unique_Date)+(Unique_Name<>'Inputs & Mkt Adj'!$C$4)+(Unique_Property_Type<>'Inputs & Mkt Adj'!$C$5),0)) ->  | P47: 46 | Q47: =LARGE(IF(ISNUMBER($O$2:$O$101),$O$2:$O$101),P47) -> 
A48: CA-LosAngeles-LongBeach-Glendale | B48: 31084 | C48: I | D48: 19932 | E48: 1993 | F48: 2 | G48: 1993-04-01 | H48: 0.1000347054 | I48: 39 | J48: 713021581 | K48: 17495816 | L48: 0.09815027464 | M48: =INDEX(Unique_Name,MATCH(0,COUNTIF($M$1:M47,Unique_Name),0)) -> San Antonio-New Braunfels, TX | O48: =INDEX(Unique_Date,MATCH(0,COUNTIF($O$1:O47,Unique_Date)+(Unique_Name<>'Inputs & Mkt Adj'!$C$4)+(Unique_Property_Type<>'Inputs & Mkt Adj'!$C$5),0)) ->  | P48: 47 | Q48: =LARGE(IF(ISNUMBER($O$2:$O$101),$O$2:$O$101),P48) ->  | T48: Property Calculation for Cap Rate
A49: CA-LosAngeles-LongBeach-Glendale | B49: 31084 | C49: I | D49: 19933 | E49: 1993 | F49: 3 | G49: 1993-07-01 | H49: 0.103317042 | I49: 32 | J49: 523528155 | K49: 12973408 | L49: 0.09912290582 | M49: =INDEX(Unique_Name,MATCH(0,COUNTIF($M$1:M48,Unique_Name),0)) -> San Jose-Sunnyvale-Santa Clara, CA | O49: =INDEX(Unique_Date,MATCH(0,COUNTIF($O$1:O48,Unique_Date)+(Unique_Name<>'Inputs & Mkt Adj'!$C$4)+(Unique_Property_Type<>'Inputs & Mkt Adj'!$C$5),0)) ->  | P49: 48 | Q49: =LARGE(IF(ISNUMBER($O$2:$O$101),$O$2:$O$101),P49) ->  | T49: Calculation of Effective NOI | W49: Cap Rate and value Calculation
A50: CA-LosAngeles-LongBeach-Glendale | B50: 31084 | C50: I | D50: 19934 | E50: 1993 | F50: 4 | G50: 1993-10-01 | H50: 0.09831797975 | I50: 34 | J50: 540946589 | K50: 13438715 | L50: 0.0993718439 | M50: =INDEX(Unique_Name,MATCH(0,COUNTIF($M$1:M49,Unique_Name),0)) -> St. Louis, MO-IL | O50: =INDEX(Unique_Date,MATCH(0,COUNTIF($O$1:O49,Unique_Date)+(Unique_Name<>'Inputs & Mkt Adj'!$C$4)+(Unique_Property_Type<>'Inputs & Mkt Adj'!$C$5),0)) ->  | P50: 49 | Q50: =LARGE(IF(ISNUMBER($O$2:$O$101),$O$2:$O$101),P50) ->  | T50: Year | U50: Amount | W50: PV of NOI only | X50: =NPV('Inputs & Mkt Adj'!F15,'Cap Rate Data'!U51:INDEX('Cap Rate Data'!U51:U80,'Inputs & Mkt Adj'!C19)) -> 485436.8932
A51: CA-LosAngeles-LongBeach-Glendale | B51: 31084 | C51: I | D51: 19941 | E51: 1994 | F51: 1 | G51: 1994-01-01 | H51: 0.09313454327 | I51: 20 | J51: 369131082 | K51: 8957617 | L51: 0.0970670576 | M51: =INDEX(Unique_Name,MATCH(0,COUNTIF($M$1:M50,Unique_Name),0)) -> Tampa-St. Petersburg-Clearwater, FL | O51: =INDEX(Unique_Date,MATCH(0,COUNTIF($O$1:O50,Unique_Date)+(Unique_Name<>'Inputs & Mkt Adj'!$C$4)+(Unique_Property_Type<>'Inputs & Mkt Adj'!$C$5),0)) ->  | P51: 50 | Q51: =LARGE(IF(ISNUMBER($O$2:$O$101),$O$2:$O$101),P51) ->  | T51: 1 | U51: ='Inputs & Mkt Adj'!C11 -> 50000 | W51: Annuity | X51: =-PPMT('Inputs & Mkt Adj'!F15,'Inputs & Mkt Adj'!C19,'Inputs & Mkt Adj'!C19,X50,0,0) -> 55250.49798
A52: CA-LosAngeles-LongBeach-Glendale | B52: 31084 | C52: I | D52: 19942 | E52: 1994 | F52: 2 | G52: 1994-04-01 | H52: 0.09415583472 | I52: 40 | J52: 748968899 | K52: 16927647 | L52: 0.09040507301 | M52: =INDEX(Unique_Name,MATCH(0,COUNTIF($M$1:M51,Unique_Name),0)) -> Virginia Beach-Norfolk-Newport News, VA-NC | O52: =INDEX(Unique_Date,MATCH(0,COUNTIF($O$1:O51,Unique_Date)+(Unique_Name<>'Inputs & Mkt Adj'!$C$4)+(Unique_Property_Type<>'Inputs & Mkt Adj'!$C$5),0)) ->  | P52: 51 | Q52: =LARGE(IF(ISNUMBER($O$2:$O$101),$O$2:$O$101),P52) ->  | T52: 2 | U52: =U51*(1+'Inputs & Mkt Adj'!$F$15) -> 51500
A53: CA-LosAngeles-LongBeach-Glendale | B53: 31084 | C53: I | D53: 19943 | E53: 1994 | F53: 3 | G53: 1994-07-01 | H53: 0.09526478341 | I53: 31 | J53: 569025838 | K53: 13933275 | L53: 0.09794476152 | M53: =INDEX(Unique_Name,MATCH(0,COUNTIF($M$1:M52,Unique_Name),0)) ->  | O53: =INDEX(Unique_Date,MATCH(0,COUNTIF($O$1:O52,Unique_Date)+(Unique_Name<>'Inputs & Mkt Adj'!$C$4)+(Unique_Property_Type<>'Inputs & Mkt Adj'!$C$5),0)) ->  | P53: 52 | Q53: =LARGE(IF(ISNUMBER($O$2:$O$101),$O$2:$O$101),P53) ->  | T53: 3 | U53: =U52*(1+'Inputs & Mkt Adj'!$F$15) -> 53045 | W53: Sinking Fund Factor | X53: ='Inputs & Mkt Adj'!$C$14/((1+'Inputs & Mkt Adj'!$C$14)^'Inputs & Mkt Adj'!$C$19-1) -> 0.04925206252
A54: CA-LosAngeles-LongBeach-Glendale | B54: 31084 | C54: I | D54: 19944 | E54: 1994 | F54: 4 | G54: 1994-10-01 | H54: 0.09701540009 | I54: 24 | J54: 356770167 | K54: 9042134 | L54: 0.1013776917 | M54: =INDEX(Unique_Name,MATCH(0,COUNTIF($M$1:M53,Unique_Name),0)) ->  | O54: =INDEX(Unique_Date,MATCH(0,COUNTIF($O$1:O53,Unique_Date)+(Unique_Name<>'Inputs & Mkt Adj'!$C$4)+(Unique_Property_Type<>'Inputs & Mkt Adj'!$C$5),0)) ->  | P54: 53 | Q54: =LARGE(IF(ISNUMBER($O$2:$O$101),$O$2:$O$101),P54) ->  | T54: 4 | U54: =U53*(1+'Inputs & Mkt Adj'!$F$15) -> 54636.35 | W54: Gross Price as a % of Original | X54: =(1+'Inputs & Mkt Adj'!$F$15)^'Inputs & Mkt Adj'!$C$19 -> 1.343916379
A55: CA-LosAngeles-LongBeach-Glendale | B55: 31084 | C55: I | D55: 19951 | E55: 1995 | F55: 1 | G55: 1995-01-01 | H55: 0.09212407842 | I55: 23 | J55: 417851528 | K55: 10120583 | L55: 0.09688209636 | M55: =INDEX(Unique_Name,MATCH(0,COUNTIF($M$1:M54,Unique_Name),0)) ->  | O55: =INDEX(Unique_Date,MATCH(0,COUNTIF($O$1:O54,Unique_Date)+(Unique_Name<>'Inputs & Mkt Adj'!$C$4)+(Unique_Property_Type<>'Inputs & Mkt Adj'!$C$5),0)) ->  | P55: 54 | Q55: =LARGE(IF(ISNUMBER($O$2:$O$101),$O$2:$O$101),P55) ->  | T55: 5 | U55: =U54*(1+'Inputs & Mkt Adj'!$F$15) -> 56275.4405 | W55: Net Appreciation | X55: =X54-'Inputs & Mkt Adj'!$C$20*X54-1 -> 0.2498422328
A56: CA-LosAngeles-LongBeach-Glendale | B56: 31084 | C56: I | D56: 19952 | E56: 1995 | F56: 2 | G56: 1995-04-01 | H56: 0.1010683941 | I56: 33 | J56: 613970169 | K56: 16105171 | L56: 0.1049247785 | M56: =INDEX(Unique_Name,MATCH(0,COUNTIF($M$1:M55,Unique_Name),0)) ->  | O56: =INDEX(Unique_Date,MATCH(0,COUNTIF($O$1:O55,Unique_Date)+(Unique_Name<>'Inputs & Mkt Adj'!$C$4)+(Unique_Property_Type<>'Inputs & Mkt Adj'!$C$5),0)) ->  | P56: 55 | Q56: =LARGE(IF(ISNUMBER($O$2:$O$101),$O$2:$O$101),P56) ->  | T56: 6 | U56: =U55*(1+'Inputs & Mkt Adj'!$F$15) -> 57963.70371 | W56: Proportion of Loan Repaid | X56: =1+PV('Inputs & Mkt Adj'!$C$13/12,('Inputs & Mkt Adj'!$C$16-'Inputs & Mkt Adj'!$C$19)*12,X57) -> 0.1631427504
A57: CA-LosAngeles-LongBeach-Glendale | B57: 31084 | C57: I | D57: 19954 | E57: 1995 | F57: 4 | G57: 1995-10-01 | H57: 0.09867398322 | I57: 22 | J57: 351104097 | K57: 7905129 | L57: 0.09006023077 | M57: =INDEX(Unique_Name,MATCH(0,COUNTIF($M$1:M56,Unique_Name),0)) ->  | O57: =INDEX(Unique_Date,MATCH(0,COUNTIF($O$1:O56,Unique_Date)+(Unique_Name<>'Inputs & Mkt Adj'!$C$4)+(Unique_Property_Type<>'Inputs & Mkt Adj'!$C$5),0)) ->  | P57: 56 | Q57: =LARGE(IF(ISNUMBER($O$2:$O$101),$O$2:$O$101),P57) ->  | T57: 7 | U57: =U56*(1+'Inputs & Mkt Adj'!$F$15) -> 59702.61483 | W57: Monthly Mortgage Constant | X57: =1/(((1-1/(1+('Inputs & Mkt Adj'!$C$13/12))^('Inputs & Mkt Adj'!$C$16*12))/('Inputs & Mkt Adj'!$C$13/12))) -> 0.005995505252
A58: CA-LosAngeles-LongBeach-Glendale | B58: 31084 | C58: I | D58: 19962 | E58: 1996 | F58: 2 | G58: 1996-04-01 | H58: 0.08966540873 | I58: 28 | J58: 569598111 | K58: 13906183 | L58: 0.09765610336 | M58: =INDEX(Unique_Name,MATCH(0,COUNTIF($M$1:M57,Unique_Name),0)) ->  | O58: =INDEX(Unique_Date,MATCH(0,COUNTIF($O$1:O57,Unique_Date)+(Unique_Name<>'Inputs & Mkt Adj'!$C$4)+(Unique_Property_Type<>'Inputs & Mkt Adj'!$C$5),0)) ->  | P58: 57 | Q58: =LARGE(IF(ISNUMBER($O$2:$O$101),$O$2:$O$101),P58) ->  | T58: 8 | U58: =U57*(1+'Inputs & Mkt Adj'!$F$15) -> 61493.69327 | W58: Annualized Mortgage Constant | X58: =X57*12 -> 0.07194606302
A59: CA-LosAngeles-LongBeach-Glendale | B59: 31084 | C59: I | D59: 19963 | E59: 1996 | F59: 3 | G59: 1996-07-01 | H59: 0.09396522239 | I59: 27 | J59: 486659605 | K59: 12307192 | L59: 0.1011564705 | M59: =INDEX(Unique_Name,MATCH(0,COUNTIF($M$1:M58,Unique_Name),0)) ->  | O59: =INDEX(Unique_Date,MATCH(0,COUNTIF($O$1:O58,Unique_Date)+(Unique_Name<>'Inputs & Mkt Adj'!$C$4)+(Unique_Property_Type<>'Inputs & Mkt Adj'!$C$5),0)) ->  | P59: 58 | Q59: =LARGE(IF(ISNUMBER($O$2:$O$101),$O$2:$O$101),P59) ->  | T59: 9 | U59: =U58*(1+'Inputs & Mkt Adj'!$F$15) -> 63338.50407 | W59: C Coefficient (Adjusts for the prin repaid) | X59: ='Inputs & Mkt Adj'!$C$14+X53*(1-((PV('Inputs & Mkt Adj'!$C$13/12,('Inputs & Mkt Adj'!$C$16-'Inputs & Mkt Adj'!$C$19)*12,-1))/(PV('Inputs & Mkt Adj'!$C$13/12,'Inputs & Mkt Adj'!$C$16*12,-1))))-(12*(PMT('Inputs & Mkt Adj'!$C$13/12,'Inputs & Mkt Adj'!$C$16*12,-1))) -> 0.08608905392
A60: CA-LosAngeles-LongBeach-Glendale | B60: 31084 | C60: I | D60: 19964 | E60: 1996 | F60: 4 | G60: 1996-10-01 | H60: 0.09740990064 | I60: 20 | J60: 418644052 | K60: 9736842 | L60: 0.09303217809 | M60: =INDEX(Unique_Name,MATCH(0,COUNTIF($M$1:M59,Unique_Name),0)) ->  | O60: =INDEX(Unique_Date,MATCH(0,COUNTIF($O$1:O59,Unique_Date)+(Unique_Name<>'Inputs & Mkt Adj'!$C$4)+(Unique_Property_Type<>'Inputs & Mkt Adj'!$C$5),0)) ->  | P60: 59 | Q60: =LARGE(IF(ISNUMBER($O$2:$O$101),$O$2:$O$101),P60) ->  | T60: 10 | U60: =U59*(1+'Inputs & Mkt Adj'!$F$15) -> 65238.65919 | W60: Basic Rate (prior to adj for net appreciation) | X60: ='Inputs & Mkt Adj'!$C$14-'Inputs & Mkt Adj'!$C$12*X59 -> 0.08543320956
A61: CA-LosAngeles-LongBeach-Glendale | B61: 31084 | C61: I | D61: 19972 | E61: 1997 | F61: 2 | G61: 1997-04-01 | H61: 0.08429997854 | I61: 42 | J61: 936921691 | K61: 17762866 | L61: 0.07583500807 | M61: =INDEX(Unique_Name,MATCH(0,COUNTIF($M$1:M60,Unique_Name),0)) ->  | O61: =INDEX(Unique_Date,MATCH(0,COUNTIF($O$1:O60,Unique_Date)+(Unique_Name<>'Inputs & Mkt Adj'!$C$4)+(Unique_Property_Type<>'Inputs & Mkt Adj'!$C$5),0)) ->  | P61: 60 | Q61: =LARGE(IF(ISNUMBER($O$2:$O$101),$O$2:$O$101),P61) ->  | T61: 11 | U61: =U60*(1+'Inputs & Mkt Adj'!$F$15) -> 67195.81897 | W61: Indicated Cap Rate | X61: =('Inputs & Mkt Adj'!$C$12*$X$58)+((1-'Inputs & Mkt Adj'!$C$12)*'Inputs & Mkt Adj'!$C$14)+(-$X$56*$X$53*'Inputs & Mkt Adj'!$C$12)+(-$X$55*$X$53) -> 0.07312796429
A62: CA-LosAngeles-LongBeach-Glendale | B62: 31084 | C62: I | D62: 19973 | E62: 1997 | F62: 3 | G62: 1997-07-01 | H62: 0.08918352454 | I62: 20 | J62: 338992676 | K62: 5803987 | L62: 0.06848510202 | M62: =INDEX(Unique_Name,MATCH(0,COUNTIF($M$1:M61,Unique_Name),0)) ->  | O62: =INDEX(Unique_Date,MATCH(0,COUNTIF($O$1:O61,Unique_Date)+(Unique_Name<>'Inputs & Mkt Adj'!$C$4)+(Unique_Property_Type<>'Inputs & Mkt Adj'!$C$5),0)) ->  | P62: 61 | Q62: =LARGE(IF(ISNUMBER($O$2:$O$101),$O$2:$O$101),P62) ->  | T62: 12 | U62: =U61*(1+'Inputs & Mkt Adj'!$F$15) -> 69211.69354 | W62: Value | X62: =X51/X61 -> 755531.7383
A63: CA-LosAngeles-LongBeach-Glendale | B63: 31084 | C63: I | D63: 19974 | E63: 1997 | F63: 4 | G63: 1997-10-01 | H63: 0.09662269752 | I63: 40 | J63: 859554231 | K63: 20001551 | L63: 0.09307871582 | M63: =INDEX(Unique_Name,MATCH(0,COUNTIF($M$1:M62,Unique_Name),0)) ->  | O63: =INDEX(Unique_Date,MATCH(0,COUNTIF($O$1:O62,Unique_Date)+(Unique_Name<>'Inputs & Mkt Adj'!$C$4)+(Unique_Property_Type<>'Inputs & Mkt Adj'!$C$5),0)) ->  | P63: 62 | Q63: =LARGE(IF(ISNUMBER($O$2:$O$101),$O$2:$O$101),P63) ->  | T63: 13 | U63: =U62*(1+'Inputs & Mkt Adj'!$F$15) -> 71288.04434 | W63: Market Cap Rate from empirical data | X63: ='Inputs & Mkt Adj'!F10 -> 0.07175565988
A64: CA-LosAngeles-LongBeach-Glendale | B64: 31084 | C64: I | D64: 19981 | E64: 1998 | F64: 1 | G64: 1998-01-01 | H64: 0.08617962622 | I64: 22 | J64: 446552116 | K64: 10471119 | L64: 0.09379526935 | M64: =INDEX(Unique_Name,MATCH(0,COUNTIF($M$1:M63,Unique_Name),0)) ->  | O64: =INDEX(Unique_Date,MATCH(0,COUNTIF($O$1:O63,Unique_Date)+(Unique_Name<>'Inputs & Mkt Adj'!$C$4)+(Unique_Property_Type<>'Inputs & Mkt Adj'!$C$5),0)) ->  | P64: 63 | Q64: =LARGE(IF(ISNUMBER($O$2:$O$101),$O$2:$O$101),P64) ->  | T64: 14 | U64: =U63*(1+'Inputs & Mkt Adj'!$F$15) -> 73426.68567 | W64: Value from Market Cap Rate | X64: ='Cap Rate Data'!X72/X63 -> 769981.0449
A65: CA-LosAngeles-LongBeach-Glendale | B65: 31084 | C65: I | D65: 19982 | E65: 1998 | F65: 2 | G65: 1998-04-01 | H65: 0.09113774375 | I65: 47 | J65: 1271441000 | K65: 28913722 | L65: 0.09096362946 | M65: =INDEX(Unique_Name,MATCH(0,COUNTIF($M$1:M64,Unique_Name),0)) ->  | O65: =INDEX(Unique_Date,MATCH(0,COUNTIF($O$1:O64,Unique_Date)+(Unique_Name<>'Inputs & Mkt Adj'!$C$4)+(Unique_Property_Type<>'Inputs & Mkt Adj'!$C$5),0)) ->  | P65: 64 | Q65: =LARGE(IF(ISNUMBER($O$2:$O$101),$O$2:$O$101),P65) ->  | T65: 15 | U65: =U64*(1+'Inputs & Mkt Adj'!$F$15) -> 75629.48624 | W65: Dollar Value of Supportable Mortgage | X65: ='Cap Rate Data'!X66*X62 -> 485436.8932
A66: CA-LosAngeles-LongBeach-Glendale | B66: 31084 | C66: I | D66: 19983 | E66: 1998 | F66: 3 | G66: 1998-07-01 | H66: 0.08995954715 | I66: 38 | J66: 673912364 | K66: 14781619 | L66: 0.08773614962 | M66: =INDEX(Unique_Name,MATCH(0,COUNTIF($M$1:M65,Unique_Name),0)) ->  | O66: =INDEX(Unique_Date,MATCH(0,COUNTIF($O$1:O65,Unique_Date)+(Unique_Name<>'Inputs & Mkt Adj'!$C$4)+(Unique_Property_Type<>'Inputs & Mkt Adj'!$C$5),0)) ->  | P66: 65 | Q66: =LARGE(IF(ISNUMBER($O$2:$O$101),$O$2:$O$101),P66) ->  | T66: 16 | U66: =U65*(1+'Inputs & Mkt Adj'!$F$15) -> 77898.37083 | W66: Proportion of Value Supported by Projected Cash Flow | X66: =X50/X62 -> 0.6425102595
A67: CA-LosAngeles-LongBeach-Glendale | B67: 31084 | C67: I | D67: 19984 | E67: =VALUE(LEFT(D67,4)) -> 1998 | F67: =VALUE(MID(D67,5,1)) -> 4 | G67: =DATE(E67,IF(F67=1,1,IF(F67=2,4,IF(F67=3,7,IF(F67=4,10,5)))),1) -> 1998-10-01 | H67: 0.08912593581 | I67: 31 | J67: 756060591 | K67: 17296000 | L67: 0.09150589361 | M67: =INDEX(Unique_Name,MATCH(0,COUNTIF($M$1:M66,Unique_Name),0)) ->  | O67: =INDEX(Unique_Date,MATCH(0,COUNTIF($O$1:O66,Unique_Date)+(Unique_Name<>'Inputs & Mkt Adj'!$C$4)+(Unique_Property_Type<>'Inputs & Mkt Adj'!$C$5),0)) ->  | P67: 66 | Q67: =LARGE(IF(ISNUMBER($O$2:$O$101),$O$2:$O$101),P67) ->  | T67: 17 | U67: =U66*(1+'Inputs & Mkt Adj'!$F$15) -> 80235.32195 | W67: Cap rate is equal to the Basic rate plus (net appreciation times sinking fund factor)
A68: CA-LosAngeles-LongBeach-Glendale | B68: 31084 | C68: I | D68: 19991 | E68: 1999 | F68: 1 | G68: 1999-01-01 | H68: 0.09097389203 | I68: 22 | J68: 412140579 | K68: 9076040 | L68: 0.08808683699 | M68: =INDEX(Unique_Name,MATCH(0,COUNTIF($M$1:M67,Unique_Name),0)) ->  | O68: =INDEX(Unique_Date,MATCH(0,COUNTIF($O$1:O67,Unique_Date)+(Unique_Name<>'Inputs & Mkt Adj'!$C$4)+(Unique_Property_Type<>'Inputs & Mkt Adj'!$C$5),0)) ->  | P68: 67 | Q68: =LARGE(IF(ISNUMBER($O$2:$O$101),$O$2:$O$101),P68) ->  | T68: 18 | U68: =U67*(1+'Inputs & Mkt Adj'!$F$15) -> 82642.38161
A69: CA-LosAngeles-LongBeach-Glendale | B69: 31084 | C69: I | D69: 19992 | E69: 1999 | F69: 2 | G69: 1999-04-01 | H69: 0.09003688681 | I69: 53 | J69: 1268466382 | K69: 27442985 | L69: 0.08653910073 | M69: =INDEX(Unique_Name,MATCH(0,COUNTIF($M$1:M68,Unique_Name),0)) ->  | O69: =INDEX(Unique_Date,MATCH(0,COUNTIF($O$1:O68,Unique_Date)+(Unique_Name<>'Inputs & Mkt Adj'!$C$4)+(Unique_Property_Type<>'Inputs & Mkt Adj'!$C$5),0)) ->  | P69: 68 | Q69: =LARGE(IF(ISNUMBER($O$2:$O$101),$O$2:$O$101),P69) ->  | T69: 19 | U69: =U68*(1+'Inputs & Mkt Adj'!$F$15) -> 85121.65306 | W69: DCR Calc
A70: CA-LosAngeles-LongBeach-Glendale | B70: 31084 | C70: I | D70: 19993 | E70: 1999 | F70: 3 | G70: 1999-07-01 | H70: 0.09682860599 | I70: 23 | J70: 462751812 | K70: 10879730 | L70: 0.09404375925 | M70: =INDEX(Unique_Name,MATCH(0,COUNTIF($M$1:M69,Unique_Name),0)) ->  | O70: =INDEX(Unique_Date,MATCH(0,COUNTIF($O$1:O69,Unique_Date)+(Unique_Name<>'Inputs & Mkt Adj'!$C$4)+(Unique_Property_Type<>'Inputs & Mkt Adj'!$C$5),0)) ->  | P70: 69 | Q70: =LARGE(IF(ISNUMBER($O$2:$O$101),$O$2:$O$101),P70) ->  | T70: 20 | U70: =U69*(1+'Inputs & Mkt Adj'!$F$15) -> 87675.30265 | W70: Initial NOI | X70: ='Cap Rate Data'!U51 -> 50000
A71: CA-LosAngeles-LongBeach-Glendale | B71: 31084 | C71: I | D71: 19994 | E71: 1999 | F71: 4 | G71: 1999-10-01 | H71: 0.08328387925 | I71: 29 | J71: 620212629 | K71: 13171080 | L71: 0.08494557759 | M71: =INDEX(Unique_Name,MATCH(0,COUNTIF($M$1:M70,Unique_Name),0)) ->  | O71: =INDEX(Unique_Date,MATCH(0,COUNTIF($O$1:O70,Unique_Date)+(Unique_Name<>'Inputs & Mkt Adj'!$C$4)+(Unique_Property_Type<>'Inputs & Mkt Adj'!$C$5),0)) ->  | P71: 70 | Q71: =LARGE(IF(ISNUMBER($O$2:$O$101),$O$2:$O$101),P71) ->  | T71: 21 | U71: =U70*(1+'Inputs & Mkt Adj'!$F$15) -> 90305.56173 | W71: Growth Rate | X71: ='Inputs & Mkt Adj'!F15 -> 0.03
A72: CA-LosAngeles-LongBeach-Glendale | B72: 31084 | C72: I | D72: 20001 | E72: 2000 | F72: 1 | G72: 2000-01-01 | H72: 0.09269840184 | I72: 20 | J72: 205228626 | K72: 5029334 | L72: 0.09802402517 | M72: =INDEX(Unique_Name,MATCH(0,COUNTIF($M$1:M71,Unique_Name),0)) ->  | O72: =INDEX(Unique_Date,MATCH(0,COUNTIF($O$1:O71,Unique_Date)+(Unique_Name<>'Inputs & Mkt Adj'!$C$4)+(Unique_Property_Type<>'Inputs & Mkt Adj'!$C$5),0)) ->  | P72: 71 | Q72: =LARGE(IF(ISNUMBER($O$2:$O$101),$O$2:$O$101),P72) ->  | T72: 22 | U72: =U71*(1+'Inputs & Mkt Adj'!$F$15) -> 93014.72859 | W72: Effective Constant NOI | X72: ='Cap Rate Data'!X51 -> 55250.49798
A73: CA-LosAngeles-LongBeach-Glendale | B73: 31084 | C73: I | D73: 20002 | E73: 2000 | F73: 2 | G73: 2000-04-01 | H73: 0.08983031174 | I73: 47 | J73: 964783585 | K73: 21163883 | L73: 0.0877456181 | M73: =INDEX(Unique_Name,MATCH(0,COUNTIF($M$1:M72,Unique_Name),0)) ->  | O73: =INDEX(Unique_Date,MATCH(0,COUNTIF($O$1:O72,Unique_Date)+(Unique_Name<>'Inputs & Mkt Adj'!$C$4)+(Unique_Property_Type<>'Inputs & Mkt Adj'!$C$5),0)) ->  | P73: 72 | Q73: =LARGE(IF(ISNUMBER($O$2:$O$101),$O$2:$O$101),P73) ->  | T73: 23 | U73: =U72*(1+'Inputs & Mkt Adj'!$F$15) -> 95805.17044 | W73: Annual Debt Service | X73: =(12*(PMT('Inputs & Mkt Adj'!C13/12,'Inputs & Mkt Adj'!C16*12,-('Cap Rate Data'!X62*'Inputs & Mkt Adj'!C12)))) -> 40768.15054
A74: CA-LosAngeles-LongBeach-Glendale | B74: 31084 | C74: I | D74: 20003 | E74: 2000 | F74: 3 | G74: 2000-07-01 | H74: 0.09494958428 | I74: 24 | J74: 466933956 | K74: 12395682 | L74: 0.1061878824 | M74: =INDEX(Unique_Name,MATCH(0,COUNTIF($M$1:M73,Unique_Name),0)) ->  | O74: =INDEX(Unique_Date,MATCH(0,COUNTIF($O$1:O73,Unique_Date)+(Unique_Name<>'Inputs & Mkt Adj'!$C$4)+(Unique_Property_Type<>'Inputs & Mkt Adj'!$C$5),0)) ->  | P74: 73 | Q74: =LARGE(IF(ISNUMBER($O$2:$O$101),$O$2:$O$101),P74) ->  | T74: 24 | U74: =U73*(1+'Inputs & Mkt Adj'!$F$15) -> 98679.32556 | W74: Resulting DCR | X74: =X72/X73 -> 1.355236802
A75: CA-LosAngeles-LongBeach-Glendale | B75: 31084 | C75: I | D75: 20004 | E75: 2000 | F75: 4 | G75: 2000-10-01 | H75: 0.09145254331 | I75: 42 | J75: 523295022 | K75: 11902686 | L75: 0.09098260446 | M75: =INDEX(Unique_Name,MATCH(0,COUNTIF($M$1:M74,Unique_Name),0)) ->  | O75: =INDEX(Unique_Date,MATCH(0,COUNTIF($O$1:O74,Unique_Date)+(Unique_Name<>'Inputs & Mkt Adj'!$C$4)+(Unique_Property_Type<>'Inputs & Mkt Adj'!$C$5),0)) ->  | P75: 74 | Q75: =LARGE(IF(ISNUMBER($O$2:$O$101),$O$2:$O$101),P75) ->  | T75: 25 | U75: =U74*(1+'Inputs & Mkt Adj'!$F$15) -> 101639.7053 | W75: DCR From Market Cap Rate | X75: =X72/(12*(PMT('Inputs & Mkt Adj'!C13/12,'Inputs & Mkt Adj'!C16*12,-('Cap Rate Data'!X64*'Inputs & Mkt Adj'!C12)))) -> 1.329804706
A76: CA-LosAngeles-LongBeach-Glendale | B76: 31084 | C76: I | D76: 20011 | E76: 2001 | F76: 1 | G76: 2001-01-01 | H76: 0.08726862454 | I76: 30 | J76: 586914348 | K76: 13264661 | L76: 0.09040270387 | M76: =INDEX(Unique_Name,MATCH(0,COUNTIF($M$1:M75,Unique_Name),0)) ->  | O76: =INDEX(Unique_Date,MATCH(0,COUNTIF($O$1:O75,Unique_Date)+(Unique_Name<>'Inputs & Mkt Adj'!$C$4)+(Unique_Property_Type<>'Inputs & Mkt Adj'!$C$5),0)) ->  | P76: 75 | Q76: =LARGE(IF(ISNUMBER($O$2:$O$101),$O$2:$O$101),P76) ->  | T76: 26 | U76: =U75*(1+'Inputs & Mkt Adj'!$F$15) -> 104688.8965
A77: CA-LosAngeles-LongBeach-Glendale | B77: 31084 | C77: I | D77: 20012 | E77: 2001 | F77: 2 | G77: 2001-04-01 | H77: 0.08732582454 | I77: 58 | J77: 1378737676 | K77: 28776362 | L77: 0.08348611197 | M77: =INDEX(Unique_Name,MATCH(0,COUNTIF($M$1:M76,Unique_Name),0)) ->  | O77: =INDEX(Unique_Date,MATCH(0,COUNTIF($O$1:O76,Unique_Date)+(Unique_Name<>'Inputs & Mkt Adj'!$C$4)+(Unique_Property_Type<>'Inputs & Mkt Adj'!$C$5),0)) ->  | P77: 76 | Q77: =LARGE(IF(ISNUMBER($O$2:$O$101),$O$2:$O$101),P77) ->  | T77: 27 | U77: =U76*(1+'Inputs & Mkt Adj'!$F$15) -> 107829.5634
A78: CA-LosAngeles-LongBeach-Glendale | B78: 31084 | C78: I | D78: 20013 | E78: 2001 | F78: 3 | G78: 2001-07-01 | H78: 0.08754175017 | I78: 37 | J78: 717228035 | K78: 15434290 | L78: 0.08607744955 | O78: =INDEX(Unique_Date,MATCH(0,COUNTIF($O$1:O77,Unique_Date)+(Unique_Name<>'Inputs & Mkt Adj'!$C$4)+(Unique_Property_Type<>'Inputs & Mkt Adj'!$C$5),0)) ->  | P78: 77 | Q78: =LARGE(IF(ISNUMBER($O$2:$O$101),$O$2:$O$101),P78) ->  | T78: 28 | U78: =U77*(1+'Inputs & Mkt Adj'!$F$15) -> 111064.4503
A79: CA-LosAngeles-LongBeach-Glendale | B79: 31084 | C79: I | D79: 20014 | E79: 2001 | F79: 4 | G79: 2001-10-01 | H79: 0.08964688333 | I79: 51 | J79: 1003125751 | K79: 21648838 | L79: 0.08632551992 | O79: =INDEX(Unique_Date,MATCH(0,COUNTIF($O$1:O78,Unique_Date)+(Unique_Name<>'Inputs & Mkt Adj'!$C$4)+(Unique_Property_Type<>'Inputs & Mkt Adj'!$C$5),0)) ->  | P79: 78 | Q79: =LARGE(IF(ISNUMBER($O$2:$O$101),$O$2:$O$101),P79) ->  | T79: 29 | U79: =U78*(1+'Inputs & Mkt Adj'!$F$15) -> 114396.3838
A80: CA-LosAngeles-LongBeach-Glendale | B80: 31084 | C80: I | D80: 20021 | E80: 2002 | F80: 1 | G80: 2002-01-01 | H80: 0.08661851638 | I80: 23 | J80: 579802806 | K80: 12503900 | L80: 0.08626312167 | O80: =INDEX(Unique_Date,MATCH(0,COUNTIF($O$1:O79,Unique_Date)+(Unique_Name<>'Inputs & Mkt Adj'!$C$4)+(Unique_Property_Type<>'Inputs & Mkt Adj'!$C$5),0)) ->  | P80: 79 | Q80: =LARGE(IF(ISNUMBER($O$2:$O$101),$O$2:$O$101),P80) ->  | T80: 30 | U80: =U79*(1+'Inputs & Mkt Adj'!$F$15) -> 117828.2753
A81: CA-LosAngeles-LongBeach-Glendale | B81: 31084 | C81: I | D81: 20022 | E81: 2002 | F81: 2 | G81: 2002-04-01 | H81: 0.09024578312 | I81: 52 | J81: 1096399861 | K81: 24459947 | L81: 0.08923732251 | O81: =INDEX(Unique_Date,MATCH(0,COUNTIF($O$1:O80,Unique_Date)+(Unique_Name<>'Inputs & Mkt Adj'!$C$4)+(Unique_Property_Type<>'Inputs & Mkt Adj'!$C$5),0)) ->  | P81: 80 | Q81: =LARGE(IF(ISNUMBER($O$2:$O$101),$O$2:$O$101),P81) -> 
A82: CA-LosAngeles-LongBeach-Glendale | B82: 31084 | C82: I | D82: 20023 | E82: 2002 | F82: 3 | G82: 2002-07-01 | H82: 0.08562560521 | I82: 37 | J82: 788449121 | K82: 16578266 | L82: 0.08410569843 | O82: =INDEX(Unique_Date,MATCH(0,COUNTIF($O$1:O81,Unique_Date)+(Unique_Name<>'Inputs & Mkt Adj'!$C$4)+(Unique_Property_Type<>'Inputs & Mkt Adj'!$C$5),0)) ->  | P82: 81 | Q82: =LARGE(IF(ISNUMBER($O$2:$O$101),$O$2:$O$101),P82) ->  | S82: Used in Sensitivity Analysis
A83: CA-LosAngeles-LongBeach-Glendale | B83: 31084 | C83: I | D83: 20024 | E83: 2002 | F83: 4 | G83: 2002-10-01 | H83: 0.08916107605 | I83: 39 | J83: 987473288 | K83: 21161900 | L83: 0.08572140738 | O83: =INDEX(Unique_Date,MATCH(0,COUNTIF($O$1:O82,Unique_Date)+(Unique_Name<>'Inputs & Mkt Adj'!$C$4)+(Unique_Property_Type<>'Inputs & Mkt Adj'!$C$5),0)) ->  | P83: 82 | Q83: =LARGE(IF(ISNUMBER($O$2:$O$101),$O$2:$O$101),P83) ->  | V83: Growth | W83: Annuity | X83: Equity Yield Required | Y83: Ellwood Cap Rate | Z83: Basic Rate | AA83: Net Appreciation | AB83: Sinking Fund Factor | AC83: C Coefficient
A84: CA-LosAngeles-LongBeach-Glendale | B84: 31084 | C84: I | D84: 20031 | E84: 2003 | F84: 1 | G84: 2003-01-01 | H84: 0.09260148738 | I84: 30 | J84: 627048754 | K84: 14192811 | L84: 0.09053720885 | O84: =INDEX(Unique_Date,MATCH(0,COUNTIF($O$1:O83,Unique_Date)+(Unique_Name<>'Inputs & Mkt Adj'!$C$4)+(Unique_Property_Type<>'Inputs & Mkt Adj'!$C$5),0)) ->  | P84: 83 | Q84: =LARGE(IF(ISNUMBER($O$2:$O$101),$O$2:$O$101),P84) ->  | T84: Find Growth | V84: =V85-'Inputs & Mkt Adj'!$F$14 -> -0.02 | W84: =-PPMT(V84,'Inputs & Mkt Adj'!$C$19,'Inputs & Mkt Adj'!$C$19,'Cap Rate Data'!$X$50,0,0) -> 44250.60227 | X84: =X85-'Inputs & Mkt Adj'!$C$15 -> 0.125 | Y84: =('Inputs & Mkt Adj'!$C$12*'Cap Rate Data'!$X$58)+((1-'Inputs & Mkt Adj'!$C$12)*X84)+(-'Cap Rate Data'!$X$56*$AB84*'Inputs & Mkt Adj'!$C$12)+(-$AA84*$AB84) -> 0.09175985903 | Z84: =X84-'Inputs & Mkt Adj'!$C$12*AC84 -> 0.0784038294 | AA84: =((1+V84)^'Inputs & Mkt Adj'!$C$19)-'Inputs & Mkt Adj'!$C$20*((1+V84)^'Inputs & Mkt Adj'!$C$19)-1 -> -0.2401222896 | AB84: =X84/((1+X84)^'Inputs & Mkt Adj'!$C$19-1) -> 0.05562178193 | AC84: =X84+AB84*(1-((PV('Inputs & Mkt Adj'!$C$13/12,('Inputs & Mkt Adj'!$C$16-'Inputs & Mkt Adj'!$C$19)*12,-1))/(PV('Inputs & Mkt Adj'!$C$13/12,'Inputs & Mkt Adj'!$C$16*12,-1))))-(12*(PMT('Inputs & Mkt Adj'!$C$13/12,'Inputs & Mkt Adj'!$C$16*12,-1))) -> 0.06212822747
A85: CA-LosAngeles-LongBeach-Glendale | B85: 31084 | C85: I | D85: 20032 | E85: 2003 | F85: 2 | G85: 2003-04-01 | H85: 0.08533881981 | I85: 60 | J85: 1440932475 | K85: 30273325 | L85: 0.08403815037 | O85: =INDEX(Unique_Date,MATCH(0,COUNTIF($O$1:O84,Unique_Date)+(Unique_Name<>'Inputs & Mkt Adj'!$C$4)+(Unique_Property_Type<>'Inputs & Mkt Adj'!$C$5),0)) ->  | P85: 84 | Q85: =LARGE(IF(ISNUMBER($O$2:$O$101),$O$2:$O$101),P85) ->  | V85: =V86-'Inputs & Mkt Adj'!$F$14 -> -0.01 | W85: =-PPMT(V85,'Inputs & Mkt Adj'!$C$19,'Inputs & Mkt Adj'!$C$19,'Cap Rate Data'!$X$50,0,0) -> 46377.80777 | X85: =X86-'Inputs & Mkt Adj'!$C$15 -> 0.13 | Y85: =('Inputs & Mkt Adj'!$C$12*'Cap Rate Data'!$X$58)+((1-'Inputs & Mkt Adj'!$C$12)*X85)+(-'Cap Rate Data'!$X$56*$AB85*'Inputs & Mkt Adj'!$C$12)+(-$AA85*$AB85) -> 0.08844478643 | Z85: =X85-'Inputs & Mkt Adj'!$C$12*AC85 -> 0.07981683667 | AA85: =((1+V85)^'Inputs & Mkt Adj'!$C$19)-'Inputs & Mkt Adj'!$C$20*((1+V85)^'Inputs & Mkt Adj'!$C$19)-1 -> -0.1589246702 | AB85: =X85/((1+X85)^'Inputs & Mkt Adj'!$C$19-1) -> 0.05428955583 | AC85: =X85+AB85*(1-((PV('Inputs & Mkt Adj'!$C$13/12,('Inputs & Mkt Adj'!$C$16-'Inputs & Mkt Adj'!$C$19)*12,-1))/(PV('Inputs & Mkt Adj'!$C$13/12,'Inputs & Mkt Adj'!$C$16*12,-1))))-(12*(PMT('Inputs & Mkt Adj'!$C$13/12,'Inputs & Mkt Adj'!$C$16*12,-1))) -> 0.06691088444
A86: CA-LosAngeles-LongBeach-Glendale | B86: 31084 | C86: I | D86: 20033 | E86: 2003 | F86: 3 | G86: 2003-07-01 | H86: 0.08777896571 | I86: 34 | J86: 771393751 | K86: 16214876 | L86: 0.08408093003 | O86: =INDEX(Unique_Date,MATCH(0,COUNTIF($O$1:O85,Unique_Date)+(Unique_Name<>'Inputs & Mkt Adj'!$C$4)+(Unique_Property_Type<>'Inputs & Mkt Adj'!$C$5),0)) ->  | P86: 85 | Q86: =LARGE(IF(ISNUMBER($O$2:$O$101),$O$2:$O$101),P86) ->  | V86: =V87-'Inputs & Mkt Adj'!$F$14 -> 0 | W86: =-PPMT(V86,'Inputs & Mkt Adj'!$C$19,'Inputs & Mkt Adj'!$C$19,'Cap Rate Data'!$X$50,0,0) -> 48543.68932 | X86: =X87-'Inputs & Mkt Adj'!$C$15 -> 0.135 | Y86: =('Inputs & Mkt Adj'!$C$12*'Cap Rate Data'!$X$58)+((1-'Inputs & Mkt Adj'!$C$12)*X86)+(-'Cap Rate Data'!$X$56*$AB86*'Inputs & Mkt Adj'!$C$12)+(-$AA86*$AB86) -> 0.08493530473 | Z86: =X86-'Inputs & Mkt Adj'!$C$12*AC86 -> 0.08122621627 | AA86: =((1+V86)^'Inputs & Mkt Adj'!$C$19)-'Inputs & Mkt Adj'!$C$20*((1+V86)^'Inputs & Mkt Adj'!$C$19)-1 -> -0.07 | AB86: =X86/((1+X86)^'Inputs & Mkt Adj'!$C$19-1) -> 0.05298697799 | AC86: =X86+AB86*(1-((PV('Inputs & Mkt Adj'!$C$13/12,('Inputs & Mkt Adj'!$C$16-'Inputs & Mkt Adj'!$C$19)*12,-1))/(PV('Inputs & Mkt Adj'!$C$13/12,'Inputs & Mkt Adj'!$C$16*12,-1))))-(12*(PMT('Inputs & Mkt Adj'!$C$13/12,'Inputs & Mkt Adj'!$C$16*12,-1))) -> 0.0716983783
A87: CA-LosAngeles-LongBeach-Glendale | B87: 31084 | C87: I | D87: 20034 | E87: 2003 | F87: 4 | G87: 2003-10-01 | H87: 0.08388881117 | I87: 55 | J87: 1401534187 | K87: 28813179 | L87: 0.08223325344 | O87: =INDEX(Unique_Date,MATCH(0,COUNTIF($O$1:O86,Unique_Date)+(Unique_Name<>'Inputs & Mkt Adj'!$C$4)+(Unique_Property_Type<>'Inputs & Mkt Adj'!$C$5),0)) ->  | P87: 86 | Q87: =LARGE(IF(ISNUMBER($O$2:$O$101),$O$2:$O$101),P87) ->  | V87: =V88-'Inputs & Mkt Adj'!$F$14 -> 0.01 | W87: =-PPMT(V87,'Inputs & Mkt Adj'!$C$19,'Inputs & Mkt Adj'!$C$19,'Cap Rate Data'!$X$50,0,0) -> 50745.97546 | X87: =X88-'Inputs & Mkt Adj'!$C$15 -> 0.14 | Y87: =('Inputs & Mkt Adj'!$C$12*'Cap Rate Data'!$X$58)+((1-'Inputs & Mkt Adj'!$C$12)*X87)+(-'Cap Rate Data'!$X$56*$AB87*'Inputs & Mkt Adj'!$C$12)+(-$AA87*$AB87) -> 0.08122032424 | Z87: =X87-'Inputs & Mkt Adj'!$C$12*AC87 -> 0.0826320303 | AA87: =((1+V87)^'Inputs & Mkt Adj'!$C$19)-'Inputs & Mkt Adj'!$C$20*((1+V87)^'Inputs & Mkt Adj'!$C$19)-1 -> 0.02729857663 | AB87: =X87/((1+X87)^'Inputs & Mkt Adj'!$C$19-1) -> 0.05171354084 | AC87: =X87+AB87*(1-((PV('Inputs & Mkt Adj'!$C$13/12,('Inputs & Mkt Adj'!$C$16-'Inputs & Mkt Adj'!$C$19)*12,-1))/(PV('Inputs & Mkt Adj'!$C$13/12,'Inputs & Mkt Adj'!$C$16*12,-1))))-(12*(PMT('Inputs & Mkt Adj'!$C$13/12,'Inputs & Mkt Adj'!$C$16*12,-1))) -> 0.07649062627
A88: CA-LosAngeles-LongBeach-Glendale | B88: 31084 | C88: I | D88: 20041 | E88: 2004 | F88: 1 | G88: 2004-01-01 | H88: 0.083034531 | I88: 31 | J88: 773796386 | K88: 15272857 | L88: 0.07895026276 | O88: =INDEX(Unique_Date,MATCH(0,COUNTIF($O$1:O87,Unique_Date)+(Unique_Name<>'Inputs & Mkt Adj'!$C$4)+(Unique_Property_Type<>'Inputs & Mkt Adj'!$C$5),0)) ->  | P88: 87 | Q88: =LARGE(IF(ISNUMBER($O$2:$O$101),$O$2:$O$101),P88) ->  | V88: =V89-'Inputs & Mkt Adj'!$F$14 -> 0.02 | W88: =-PPMT(V88,'Inputs & Mkt Adj'!$C$19,'Inputs & Mkt Adj'!$C$19,'Cap Rate Data'!$X$50,0,0) -> 52982.35668 | X88: =X89-'Inputs & Mkt Adj'!$C$15 -> 0.145 | Y88: =('Inputs & Mkt Adj'!$C$12*'Cap Rate Data'!$X$58)+((1-'Inputs & Mkt Adj'!$C$12)*X88)+(-'Cap Rate Data'!$X$56*$AB88*'Inputs & Mkt Adj'!$C$12)+(-$AA88*$AB88) -> 0.07728844653 | Z88: =X88-'Inputs & Mkt Adj'!$C$12*AC88 -> 0.08403434077 | AA88: =((1+V88)^'Inputs & Mkt Adj'!$C$19)-'Inputs & Mkt Adj'!$C$20*((1+V88)^'Inputs & Mkt Adj'!$C$19)-1 -> 0.1336648106 | AB88: =X88/((1+X88)^'Inputs & Mkt Adj'!$C$19-1) -> 0.05046873756 | AC88: =X88+AB88*(1-((PV('Inputs & Mkt Adj'!$C$13/12,('Inputs & Mkt Adj'!$C$16-'Inputs & Mkt Adj'!$C$19)*12,-1))/(PV('Inputs & Mkt Adj'!$C$13/12,'Inputs & Mkt Adj'!$C$16*12,-1))))-(12*(PMT('Inputs & Mkt Adj'!$C$13/12,'Inputs & Mkt Adj'!$C$16*12,-1))) -> 0.08128754563
A89: CA-LosAngeles-LongBeach-Glendale | B89: 31084 | C89: I | D89: 20042 | E89: 2004 | F89: 2 | G89: 2004-04-01 | H89: 0.07706643891 | I89: 77 | J89: 1832808241 | K89: 32524650 | L89: 0.07098320331 | O89: =INDEX(Unique_Date,MATCH(0,COUNTIF($O$1:O88,Unique_Date)+(Unique_Name<>'Inputs & Mkt Adj'!$C$4)+(Unique_Property_Type<>'Inputs & Mkt Adj'!$C$5),0)) ->  | P89: 88 | Q89: =LARGE(IF(ISNUMBER($O$2:$O$101),$O$2:$O$101),P89) ->  | V89: ='Inputs & Mkt Adj'!F15 -> 0.03 | W89: =-PPMT(V89,'Inputs & Mkt Adj'!$C$19,'Inputs & Mkt Adj'!$C$19,'Cap Rate Data'!$X$50,0,0) -> 55250.49798 | X89: ='Inputs & Mkt Adj'!C14 -> 0.15 | Y89: =('Inputs & Mkt Adj'!$C$12*'Cap Rate Data'!$X$58)+((1-'Inputs & Mkt Adj'!$C$12)*X89)+(-'Cap Rate Data'!$X$56*$AB89*'Inputs & Mkt Adj'!$C$12)+(-$AA89*$AB89) -> 0.07312796429 | Z89: =X89-'Inputs & Mkt Adj'!$C$12*AC89 -> 0.08543320956 | AA89: =((1+V89)^'Inputs & Mkt Adj'!$C$19)-'Inputs & Mkt Adj'!$C$20*((1+V89)^'Inputs & Mkt Adj'!$C$19)-1 -> 0.2498422328 | AB89: =X89/((1+X89)^'Inputs & Mkt Adj'!$C$19-1) -> 0.04925206252 | AC89: =X89+AB89*(1-((PV('Inputs & Mkt Adj'!$C$13/12,('Inputs & Mkt Adj'!$C$16-'Inputs & Mkt Adj'!$C$19)*12,-1))/(PV('Inputs & Mkt Adj'!$C$13/12,'Inputs & Mkt Adj'!$C$16*12,-1))))-(12*(PMT('Inputs & Mkt Adj'!$C$13/12,'Inputs & Mkt Adj'!$C$16*12,-1))) -> 0.08608905392
A90: CA-LosAngeles-LongBeach-Glendale | B90: 31084 | C90: I | D90: 20043 | E90: 2004 | F90: 3 | G90: 2004-07-01 | H90: 0.08053904767 | I90: 33 | J90: 994374457 | K90: 18926243 | L90: 0.07613326294 | O90: =INDEX(Unique_Date,MATCH(0,COUNTIF($O$1:O89,Unique_Date)+(Unique_Name<>'Inputs & Mkt Adj'!$C$4)+(Unique_Property_Type<>'Inputs & Mkt Adj'!$C$5),0)) ->  | P90: 89 | Q90: =LARGE(IF(ISNUMBER($O$2:$O$101),$O$2:$O$101),P90) ->  | V90: =V89+'Inputs & Mkt Adj'!$F$14 -> 0.04 | W90: =-PPMT(V90,'Inputs & Mkt Adj'!$C$19,'Inputs & Mkt Adj'!$C$19,'Cap Rate Data'!$X$50,0,0) -> 57548.05094 | X90: =X89+'Inputs & Mkt Adj'!$C$15 -> 0.155 | Y90: =('Inputs & Mkt Adj'!$C$12*'Cap Rate Data'!$X$58)+((1-'Inputs & Mkt Adj'!$C$12)*X90)+(-'Cap Rate Data'!$X$56*$AB90*'Inputs & Mkt Adj'!$C$12)+(-$AA90*$AB90) -> 0.06872686153 | Z90: =X90-'Inputs & Mkt Adj'!$C$12*AC90 -> 0.08682869833 | AA90: =((1+V90)^'Inputs & Mkt Adj'!$C$19)-'Inputs & Mkt Adj'!$C$20*((1+V90)^'Inputs & Mkt Adj'!$C$19)-1 -> 0.376627185 | AB90: =X90/((1+X90)^'Inputs & Mkt Adj'!$C$19-1) -> 0.04806301169 | AC90: =X90+AB90*(1-((PV('Inputs & Mkt Adj'!$C$13/12,('Inputs & Mkt Adj'!$C$16-'Inputs & Mkt Adj'!$C$19)*12,-1))/(PV('Inputs & Mkt Adj'!$C$13/12,'Inputs & Mkt Adj'!$C$16*12,-1))))-(12*(PMT('Inputs & Mkt Adj'!$C$13/12,'Inputs & Mkt Adj'!$C$16*12,-1))) -> 0.0908950689
A91: CA-LosAngeles-LongBeach-Glendale | B91: 31084 | C91: I | D91: 20044 | E91: 2004 | F91: 4 | G91: 2004-10-01 | H91: 0.07412531941 | I91: 55 | J91: 1882942766 | K91: 33894084 | L91: 0.07200236696 | O91: =INDEX(Unique_Date,MATCH(0,COUNTIF($O$1:O90,Unique_Date)+(Unique_Name<>'Inputs & Mkt Adj'!$C$4)+(Unique_Property_Type<>'Inputs & Mkt Adj'!$C$5),0)) ->  | P91: 90 | Q91: =LARGE(IF(ISNUMBER($O$2:$O$101),$O$2:$O$101),P91) ->  | V91: =V90+'Inputs & Mkt Adj'!$F$14 -> 0.05 | W91: =-PPMT(V91,'Inputs & Mkt Adj'!$C$19,'Inputs & Mkt Adj'!$C$19,'Cap Rate Data'!$X$50,0,0) -> 59872.66526 | X91: =X90+'Inputs & Mkt Adj'!$C$15 -> 0.16 | Y91: =('Inputs & Mkt Adj'!$C$12*'Cap Rate Data'!$X$58)+((1-'Inputs & Mkt Adj'!$C$12)*X91)+(-'Cap Rate Data'!$X$56*$AB91*'Inputs & Mkt Adj'!$C$12)+(-$AA91*$AB91) -> 0.06407281392 | Z91: =X91-'Inputs & Mkt Adj'!$C$12*AC91 -> 0.0882208685 | AA91: =((1+V91)^'Inputs & Mkt Adj'!$C$19)-'Inputs & Mkt Adj'!$C$20*((1+V91)^'Inputs & Mkt Adj'!$C$19)-1 -> 0.5148720029 | AB91: =X91/((1+X91)^'Inputs & Mkt Adj'!$C$19-1) -> 0.04690108307 | AC91: =X91+AB91*(1-((PV('Inputs & Mkt Adj'!$C$13/12,('Inputs & Mkt Adj'!$C$16-'Inputs & Mkt Adj'!$C$19)*12,-1))/(PV('Inputs & Mkt Adj'!$C$13/12,'Inputs & Mkt Adj'!$C$16*12,-1))))-(12*(PMT('Inputs & Mkt Adj'!$C$13/12,'Inputs & Mkt Adj'!$C$16*12,-1))) -> 0.09570550867
A92: CA-LosAngeles-LongBeach-Glendale | B92: 31084 | C92: I | D92: 20051 | E92: 2005 | F92: 1 | G92: 2005-01-01 | H92: 0.07076453564 | I92: 29 | J92: 1054898139 | K92: 18345041 | L92: 0.06956137402 | O92: =INDEX(Unique_Date,MATCH(0,COUNTIF($O$1:O91,Unique_Date)+(Unique_Name<>'Inputs & Mkt Adj'!$C$4)+(Unique_Property_Type<>'Inputs & Mkt Adj'!$C$5),0)) ->  | P92: 91 | Q92: =LARGE(IF(ISNUMBER($O$2:$O$101),$O$2:$O$101),P92) ->  | V92: =V91+'Inputs & Mkt Adj'!$F$14 -> 0.06 | W92: =-PPMT(V92,'Inputs & Mkt Adj'!$C$19,'Inputs & Mkt Adj'!$C$19,'Cap Rate Data'!$X$50,0,0) -> 62221.99955 | X92: =X91+'Inputs & Mkt Adj'!$C$15 -> 0.165 | Y92: =('Inputs & Mkt Adj'!$C$12*'Cap Rate Data'!$X$58)+((1-'Inputs & Mkt Adj'!$C$12)*X92)+(-'Cap Rate Data'!$X$56*$AB92*'Inputs & Mkt Adj'!$C$12)+(-$AA92*$AB92) -> 0.05915318942 | Z92: =X92-'Inputs & Mkt Adj'!$C$12*AC92 -> 0.08960978121 | AA92: =((1+V92)^'Inputs & Mkt Adj'!$C$19)-'Inputs & Mkt Adj'!$C$20*((1+V92)^'Inputs & Mkt Adj'!$C$19)-1 -> 0.6654883578 | AB92: =X92/((1+X92)^'Inputs & Mkt Adj'!$C$19-1) -> 0.04576577702 | AC92: =X92+AB92*(1-((PV('Inputs & Mkt Adj'!$C$13/12,('Inputs & Mkt Adj'!$C$16-'Inputs & Mkt Adj'!$C$19)*12,-1))/(PV('Inputs & Mkt Adj'!$C$13/12,'Inputs & Mkt Adj'!$C$16*12,-1))))-(12*(PMT('Inputs & Mkt Adj'!$C$13/12,'Inputs & Mkt Adj'!$C$16*12,-1))) -> 0.1005202917
A93: CA-LosAngeles-LongBeach-Glendale | B93: 31084 | C93: I | D93: 20052 | E93: 2005 | F93: 2 | G93: 2005-04-01 | H93: 0.06850013982 | I93: 74 | J93: 1469437792 | K93: 24643181 | L93: 0.06708193061 | O93: =INDEX(Unique_Date,MATCH(0,COUNTIF($O$1:O92,Unique_Date)+(Unique_Name<>'Inputs & Mkt Adj'!$C$4)+(Unique_Property_Type<>'Inputs & Mkt Adj'!$C$5),0)) ->  | P93: 92 | Q93: =LARGE(IF(ISNUMBER($O$2:$O$101),$O$2:$O$101),P93) ->  | V93: =V92+'Inputs & Mkt Adj'!$F$14 -> 0.07 | W93: =-PPMT(V93,'Inputs & Mkt Adj'!$C$19,'Inputs & Mkt Adj'!$C$19,'Cap Rate Data'!$X$50,0,0) -> 64593.73139 | X93: =X92+'Inputs & Mkt Adj'!$C$15 -> 0.17 | Y93: =('Inputs & Mkt Adj'!$C$12*'Cap Rate Data'!$X$58)+((1-'Inputs & Mkt Adj'!$C$12)*X93)+(-'Cap Rate Data'!$X$56*$AB93*'Inputs & Mkt Adj'!$C$12)+(-$AA93*$AB93) -> 0.05395504911 | Z93: =X93-'Inputs & Mkt Adj'!$C$12*AC93 -> 0.09099549726 | AA93: =((1+V93)^'Inputs & Mkt Adj'!$C$19)-'Inputs & Mkt Adj'!$C$20*((1+V93)^'Inputs & Mkt Adj'!$C$19)-1 -> 0.8294507623 | AB93: =X93/((1+X93)^'Inputs & Mkt Adj'!$C$19-1) -> 0.04465659668 | AC93: =X93+AB93*(1-((PV('Inputs & Mkt Adj'!$C$13/12,('Inputs & Mkt Adj'!$C$16-'Inputs & Mkt Adj'!$C$19)*12,-1))/(PV('Inputs & Mkt Adj'!$C$13/12,'Inputs & Mkt Adj'!$C$16*12,-1))))-(12*(PMT('Inputs & Mkt Adj'!$C$13/12,'Inputs & Mkt Adj'!$C$16*12,-1))) -> 0.105339337
A94: CA-LosAngeles-LongBeach-Glendale | B94: 31084 | C94: I | D94: 20053 | E94: 2005 | F94: 3 | G94: 2005-07-01 | H94: 0.06648448069 | I94: 48 | J94: 1610867244 | K94: 26506168 | L94: 0.06581837975 | O94: =INDEX(Unique_Date,MATCH(0,COUNTIF($O$1:O93,Unique_Date)+(Unique_Name<>'Inputs & Mkt Adj'!$C$4)+(Unique_Property_Type<>'Inputs & Mkt Adj'!$C$5),0)) ->  | P94: 93 | Q94: =LARGE(IF(ISNUMBER($O$2:$O$101),$O$2:$O$101),P94) ->  | V94: =V93+'Inputs & Mkt Adj'!$F$14 -> 0.08 | W94: =-PPMT(V94,'Inputs & Mkt Adj'!$C$19,'Inputs & Mkt Adj'!$C$19,'Cap Rate Data'!$X$50,0,0) -> 66985.56666 | X94: =X93+'Inputs & Mkt Adj'!$C$15 -> 0.175 | Y94: =('Inputs & Mkt Adj'!$C$12*'Cap Rate Data'!$X$58)+((1-'Inputs & Mkt Adj'!$C$12)*X94)+(-'Cap Rate Data'!$X$56*$AB94*'Inputs & Mkt Adj'!$C$12)+(-$AA94*$AB94) -> 0.04846514827 | Z94: =X94-'Inputs & Mkt Adj'!$C$12*AC94 -> 0.09237807707 | AA94: =((1+V94)^'Inputs & Mkt Adj'!$C$19)-'Inputs & Mkt Adj'!$C$20*((1+V94)^'Inputs & Mkt Adj'!$C$19)-1 -> 1.007800247 | AB94: =X94/((1+X94)^'Inputs & Mkt Adj'!$C$19-1) -> 0.04357304824 | AC94: =X94+AB94*(1-((PV('Inputs & Mkt Adj'!$C$13/12,('Inputs & Mkt Adj'!$C$16-'Inputs & Mkt Adj'!$C$19)*12,-1))/(PV('Inputs & Mkt Adj'!$C$13/12,'Inputs & Mkt Adj'!$C$16*12,-1))))-(12*(PMT('Inputs & Mkt Adj'!$C$13/12,'Inputs & Mkt Adj'!$C$16*12,-1))) -> 0.1101625639
A95: CA-LosAngeles-LongBeach-Glendale | B95: 31084 | C95: I | D95: 20054 | E95: 2005 | F95: 4 | G95: 2005-10-01 | H95: 0.06492162575 | I95: 72 | J95: 2269246054 | K95: 36052577 | L95: 0.06354987717 | O95: =INDEX(Unique_Date,MATCH(0,COUNTIF($O$1:O94,Unique_Date)+(Unique_Name<>'Inputs & Mkt Adj'!$C$4)+(Unique_Property_Type<>'Inputs & Mkt Adj'!$C$5),0)) ->  | P95: 94 | Q95: =LARGE(IF(ISNUMBER($O$2:$O$101),$O$2:$O$101),P95) -> 
A96: CA-LosAngeles-LongBeach-Glendale | B96: 31084 | C96: I | D96: 20061 | E96: 2006 | F96: 1 | G96: 2006-01-01 | H96: 0.06018326524 | I96: 52 | J96: 1652928595 | K96: 23921603 | L96: 0.05788901728 | O96: =INDEX(Unique_Date,MATCH(0,COUNTIF($O$1:O95,Unique_Date)+(Unique_Name<>'Inputs & Mkt Adj'!$C$4)+(Unique_Property_Type<>'Inputs & Mkt Adj'!$C$5),0)) ->  | P96: 95 | Q96: =LARGE(IF(ISNUMBER($O$2:$O$101),$O$2:$O$101),P96) ->  | T96: Find Equity | V96: =V97-'Inputs & Mkt Adj'!$F$14 -> -0.02 | W96: =-PPMT(V96,'Inputs & Mkt Adj'!$C$19,'Inputs & Mkt Adj'!$C$19,'Cap Rate Data'!$X$50,0,0) -> 44250.60227 | X96: -0.08762724966 | Y96: =('Inputs & Mkt Adj'!$C$12*'Cap Rate Data'!$X$58)+((1-'Inputs & Mkt Adj'!$C$12)*X96)+(-'Cap Rate Data'!$X$56*$AB96*'Inputs & Mkt Adj'!$C$12)+(-$AA96*$AB96) -> 0.04924291889 | Z96: =X96-'Inputs & Mkt Adj'!$C$12*AC96 -> 0.01419228075 | AA96: =((1+V96)^'Inputs & Mkt Adj'!$C$19)-'Inputs & Mkt Adj'!$C$20*((1+V96)^'Inputs & Mkt Adj'!$C$19)-1 -> -0.2401222896 | AB96: =X96/((1+X96)^'Inputs & Mkt Adj'!$C$19-1) -> 0.145969948 | AC96: =X96+AB96*(1-((PV('Inputs & Mkt Adj'!$C$13/12,('Inputs & Mkt Adj'!$C$16-'Inputs & Mkt Adj'!$C$19)*12,-1))/(PV('Inputs & Mkt Adj'!$C$13/12,'Inputs & Mkt Adj'!$C$16*12,-1))))-(12*(PMT('Inputs & Mkt Adj'!$C$13/12,'Inputs & Mkt Adj'!$C$16*12,-1))) -> -0.1357593739
A97: CA-LosAngeles-LongBeach-Glendale | B97: 31084 | C97: I | D97: 20062 | E97: 2006 | F97: 2 | G97: 2006-04-01 | H97: 0.06090388912 | I97: 84 | J97: 2462657666 | K97: 37431441 | L97: 0.06079844798 | O97: =INDEX(Unique_Date,MATCH(0,COUNTIF($O$1:O96,Unique_Date)+(Unique_Name<>'Inputs & Mkt Adj'!$C$4)+(Unique_Property_Type<>'Inputs & Mkt Adj'!$C$5),0)) ->  | P97: 96 | Q97: =LARGE(IF(ISNUMBER($O$2:$O$101),$O$2:$O$101),P97) ->  | V97: =V98-'Inputs & Mkt Adj'!$F$14 -> -0.01 | W97: =-PPMT(V97,'Inputs & Mkt Adj'!$C$19,'Inputs & Mkt Adj'!$C$19,'Cap Rate Data'!$X$50,0,0) -> 46377.80777 | X97: -0.02299520825 | Y97: =('Inputs & Mkt Adj'!$C$12*'Cap Rate Data'!$X$58)+((1-'Inputs & Mkt Adj'!$C$12)*X97)+(-'Cap Rate Data'!$X$56*$AB97*'Inputs & Mkt Adj'!$C$12)+(-$AA97*$AB97) -> 0.05226202579 | Z97: =X97-'Inputs & Mkt Adj'!$C$12*AC97 -> 0.03465495557 | AA97: =((1+V97)^'Inputs & Mkt Adj'!$C$19)-'Inputs & Mkt Adj'!$C$20*((1+V97)^'Inputs & Mkt Adj'!$C$19)-1 -> -0.1589246702 | AB97: =X97/((1+X97)^'Inputs & Mkt Adj'!$C$19-1) -> 0.1107887793 | AC97: =X97+AB97*(1-((PV('Inputs & Mkt Adj'!$C$13/12,('Inputs & Mkt Adj'!$C$16-'Inputs & Mkt Adj'!$C$19)*12,-1))/(PV('Inputs & Mkt Adj'!$C$13/12,'Inputs & Mkt Adj'!$C$16*12,-1))))-(12*(PMT('Inputs & Mkt Adj'!$C$13/12,'Inputs & Mkt Adj'!$C$16*12,-1))) -> -0.0768668851
A98: CA-LosAngeles-LongBeach-Glendale | B98: 31084 | C98: I | D98: 20063 | E98: 2006 | F98: 3 | G98: 2006-07-01 | H98: 0.06248657702 | I98: 60 | J98: 2046525425 | K98: 30295711 | L98: 0.05921394502 | O98: =INDEX(Unique_Date,MATCH(0,COUNTIF($O$1:O97,Unique_Date)+(Unique_Name<>'Inputs & Mkt Adj'!$C$4)+(Unique_Property_Type<>'Inputs & Mkt Adj'!$C$5),0)) ->  | P98: 97 | Q98: =LARGE(IF(ISNUMBER($O$2:$O$101),$O$2:$O$101),P98) ->  | V98: =V99-'Inputs & Mkt Adj'!$F$14 -> 0 | W98: =-PPMT(V98,'Inputs & Mkt Adj'!$C$19,'Inputs & Mkt Adj'!$C$19,'Cap Rate Data'!$X$50,0,0) -> 48543.68932 | X98: 0.01260200565 | Y98: =('Inputs & Mkt Adj'!$C$12*'Cap Rate Data'!$X$58)+((1-'Inputs & Mkt Adj'!$C$12)*X98)+(-'Cap Rate Data'!$X$56*$AB98*'Inputs & Mkt Adj'!$C$12)+(-$AA98*$AB98) -> 0.05216443911 | Z98: =X98-'Inputs & Mkt Adj'!$C$12*AC98 -> 0.04555229069 | AA98: =((1+V98)^'Inputs & Mkt Adj'!$C$19)-'Inputs & Mkt Adj'!$C$20*((1+V98)^'Inputs & Mkt Adj'!$C$19)-1 -> -0.07 | AB98: =X98/((1+X98)^'Inputs & Mkt Adj'!$C$19-1) -> 0.09445926312 | AC98: =X98+AB98*(1-((PV('Inputs & Mkt Adj'!$C$13/12,('Inputs & Mkt Adj'!$C$16-'Inputs & Mkt Adj'!$C$19)*12,-1))/(PV('Inputs & Mkt Adj'!$C$13/12,'Inputs & Mkt Adj'!$C$16*12,-1))))-(12*(PMT('Inputs & Mkt Adj'!$C$13/12,'Inputs & Mkt Adj'!$C$16*12,-1))) -> -0.04393371339
A99: CA-LosAngeles-LongBeach-Glendale | B99: 31084 | C99: I | D99: 20064 | E99: 2006 | F99: 4 | G99: 2006-10-01 | H99: 0.05681081431 | I99: 89 | J99: 3263856486 | K99: 44598626 | L99: 0.05465758215 | O99: =INDEX(Unique_Date,MATCH(0,COUNTIF($O$1:O98,Unique_Date)+(Unique_Name<>'Inputs & Mkt Adj'!$C$4)+(Unique_Property_Type<>'Inputs & Mkt Adj'!$C$5),0)) ->  | P99: 98 | Q99: =LARGE(IF(ISNUMBER($O$2:$O$101),$O$2:$O$101),P99) ->  | V99: =V100-'Inputs & Mkt Adj'!$F$14 -> 0.01 | W99: =-PPMT(V99,'Inputs & Mkt Adj'!$C$19,'Inputs & Mkt Adj'!$C$19,'Cap Rate Data'!$X$50,0,0) -> 50745.97546 | X99: 0.04825515282 | Y99: =('Inputs & Mkt Adj'!$C$12*'Cap Rate Data'!$X$58)+((1-'Inputs & Mkt Adj'!$C$12)*X99)+(-'Cap Rate Data'!$X$56*$AB99*'Inputs & Mkt Adj'!$C$12)+(-$AA99*$AB99) -> 0.05402778432 | Z99: =X99-'Inputs & Mkt Adj'!$C$12*AC99 -> 0.05621588411 | AA99: =((1+V99)^'Inputs & Mkt Adj'!$C$19)-'Inputs & Mkt Adj'!$C$20*((1+V99)^'Inputs & Mkt Adj'!$C$19)-1 -> 0.02729857663 | AB99: =X99/((1+X99)^'Inputs & Mkt Adj'!$C$19-1) -> 0.08015435432 | AC99: =X99+AB99*(1-((PV('Inputs & Mkt Adj'!$C$13/12,('Inputs & Mkt Adj'!$C$16-'Inputs & Mkt Adj'!$C$19)*12,-1))/(PV('Inputs & Mkt Adj'!$C$13/12,'Inputs & Mkt Adj'!$C$16*12,-1))))-(12*(PMT('Inputs & Mkt Adj'!$C$13/12,'Inputs & Mkt Adj'!$C$16*12,-1))) -> -0.01061430839
A100: CA-LosAngeles-LongBeach-Glendale | B100: 31084 | C100: I | D100: 20071 | E100: 2007 | F100: 1 | G100: 2007-01-01 | H100: 0.05699378707 | I100: 69 | J100: 3241737493 | K100: 44069318 | L100: 0.05437740483 | O100: =INDEX(Unique_Date,MATCH(0,COUNTIF($O$1:O99,Unique_Date)+(Unique_Name<>'Inputs & Mkt Adj'!$C$4)+(Unique_Property_Type<>'Inputs & Mkt Adj'!$C$5),0)) ->  | P100: 99 | Q100: =LARGE(IF(ISNUMBER($O$2:$O$101),$O$2:$O$101),P100) ->  | V100: =V101-'Inputs & Mkt Adj'!$F$14 -> 0.02 | W100: =-PPMT(V100,'Inputs & Mkt Adj'!$C$19,'Inputs & Mkt Adj'!$C$19,'Cap Rate Data'!$X$50,0,0) -> 52982.35668 | X100: 0.06404769748 | Y100: =('Inputs & Mkt Adj'!$C$12*'Cap Rate Data'!$X$58)+((1-'Inputs & Mkt Adj'!$C$12)*X100)+(-'Cap Rate Data'!$X$56*$AB100*'Inputs & Mkt Adj'!$C$12)+(-$AA100*$AB100) -> 0.05091378526 | Z100: =X100-'Inputs & Mkt Adj'!$C$12*AC100 -> 0.06086348997 | AA100: =((1+V100)^'Inputs & Mkt Adj'!$C$19)-'Inputs & Mkt Adj'!$C$20*((1+V100)^'Inputs & Mkt Adj'!$C$19)-1 -> 0.1336648106 | AB100: =X100/((1+X100)^'Inputs & Mkt Adj'!$C$19-1) -> 0.07443772721 | AC100: =X100+AB100*(1-((PV('Inputs & Mkt Adj'!$C$13/12,('Inputs & Mkt Adj'!$C$16-'Inputs & Mkt Adj'!$C$19)*12,-1))/(PV('Inputs & Mkt Adj'!$C$13/12,'Inputs & Mkt Adj'!$C$16*12,-1))))-(12*(PMT('Inputs & Mkt Adj'!$C$13/12,'Inputs & Mkt Adj'!$C$16*12,-1))) -> 0.004245610008
A101: CA-LosAngeles-LongBeach-Glendale | B101: 31084 | C101: I | D101: 20072 | E101: 2007 | F101: 2 | G101: 2007-04-01 | H101: 0.0527555705 | I101: 88 | J101: 3161482812 | K101: 40438218 | L101: 0.05116360949 | O101: =INDEX(Unique_Date,MATCH(0,COUNTIF($O$1:O100,Unique_Date)+(Unique_Name<>'Inputs & Mkt Adj'!$C$4)+(Unique_Property_Type<>'Inputs & Mkt Adj'!$C$5),0)) ->  | P101: 100 | Q101: =LARGE(IF(ISNUMBER($O$2:$O$101),$O$2:$O$101),P101) ->  | V101: ='Inputs & Mkt Adj'!F15 -> 0.03 | W101: =-PPMT(V101,'Inputs & Mkt Adj'!$C$19,'Inputs & Mkt Adj'!$C$19,'Cap Rate Data'!$X$50,0,0) -> 55250.49798 | X101: 0.0980192076 | Y101: =('Inputs & Mkt Adj'!$C$12*'Cap Rate Data'!$X$58)+((1-'Inputs & Mkt Adj'!$C$12)*X101)+(-'Cap Rate Data'!$X$56*$AB101*'Inputs & Mkt Adj'!$C$12)+(-$AA101*$AB101) -> 0.05488778727 | Z101: =X101-'Inputs & Mkt Adj'!$C$12*AC101 -> 0.07071377333 | AA101: =((1+V101)^'Inputs & Mkt Adj'!$C$19)-'Inputs & Mkt Adj'!$C$20*((1+V101)^'Inputs & Mkt Adj'!$C$19)-1 -> 0.2498422328 | AB101: =X101/((1+X101)^'Inputs & Mkt Adj'!$C$19-1) -> 0.06334391863 | AC101: =X101+AB101*(1-((PV('Inputs & Mkt Adj'!$C$13/12,('Inputs & Mkt Adj'!$C$16-'Inputs & Mkt Adj'!$C$19)*12,-1))/(PV('Inputs & Mkt Adj'!$C$13/12,'Inputs & Mkt Adj'!$C$16*12,-1))))-(12*(PMT('Inputs & Mkt Adj'!$C$13/12,'Inputs & Mkt Adj'!$C$16*12,-1))) -> 0.03640724568
A102: CA-LosAngeles-LongBeach-Glendale | B102: 31084 | C102: I | D102: 20073 | E102: 2007 | F102: 3 | G102: 2007-07-01 | H102: 0.05567768104 | I102: 70 | J102: 2889585218 | K102: 38956155 | L102: 0.05392629331 | V102: =V101+'Inputs & Mkt Adj'!$F$14 -> 0.04 | W102: =-PPMT(V102,'Inputs & Mkt Adj'!$C$19,'Inputs & Mkt Adj'!$C$19,'Cap Rate Data'!$X$50,0,0) -> 57548.05094 | X102: 0.1173834841 | Y102: =('Inputs & Mkt Adj'!$C$12*'Cap Rate Data'!$X$58)+((1-'Inputs & Mkt Adj'!$C$12)*X102)+(-'Cap Rate Data'!$X$56*$AB102*'Inputs & Mkt Adj'!$C$12)+(-$AA102*$AB102) -> 0.05450939023 | Z102: =X102-'Inputs & Mkt Adj'!$C$12*AC102 -> 0.07624427873 | AA102: =((1+V102)^'Inputs & Mkt Adj'!$C$19)-'Inputs & Mkt Adj'!$C$20*((1+V102)^'Inputs & Mkt Adj'!$C$19)-1 -> 0.376627185 | AB102: =X102/((1+X102)^'Inputs & Mkt Adj'!$C$19-1) -> 0.05770929281 | AC102: =X102+AB102*(1-((PV('Inputs & Mkt Adj'!$C$13/12,('Inputs & Mkt Adj'!$C$16-'Inputs & Mkt Adj'!$C$19)*12,-1))/(PV('Inputs & Mkt Adj'!$C$13/12,'Inputs & Mkt Adj'!$C$16*12,-1))))-(12*(PMT('Inputs & Mkt Adj'!$C$13/12,'Inputs & Mkt Adj'!$C$16*12,-1))) -> 0.05485227383
A103: CA-LosAngeles-LongBeach-Glendale | B103: 31084 | C103: I | D103: 20074 | E103: 2007 | F103: 4 | G103: 2007-10-01 | H103: 0.05647380785 | I103: 99 | J103: 3671749358 | K103: 49141974 | L103: 0.05353521628 | V103: =V102+'Inputs & Mkt Adj'!$F$14 -> 0.05 | W103: =-PPMT(V103,'Inputs & Mkt Adj'!$C$19,'Inputs & Mkt Adj'!$C$19,'Cap Rate Data'!$X$50,0,0) -> 59872.66526 | X103: 0.1329025132 | Y103: =('Inputs & Mkt Adj'!$C$12*'Cap Rate Data'!$X$58)+((1-'Inputs & Mkt Adj'!$C$12)*X103)+(-'Cap Rate Data'!$X$56*$AB103*'Inputs & Mkt Adj'!$C$12)+(-$AA103*$AB103) -> 0.05307441291 | Z103: =X103-'Inputs & Mkt Adj'!$C$12*AC103 -> 0.08063542296 | AA103: =((1+V103)^'Inputs & Mkt Adj'!$C$19)-'Inputs & Mkt Adj'!$C$20*((1+V103)^'Inputs & Mkt Adj'!$C$19)-1 -> 0.5148720029 | AB103: =X103/((1+X103)^'Inputs & Mkt Adj'!$C$19-1) -> 0.05352982857 | AC103: =X103+AB103*(1-((PV('Inputs & Mkt Adj'!$C$13/12,('Inputs & Mkt Adj'!$C$16-'Inputs & Mkt Adj'!$C$19)*12,-1))/(PV('Inputs & Mkt Adj'!$C$13/12,'Inputs & Mkt Adj'!$C$16*12,-1))))-(12*(PMT('Inputs & Mkt Adj'!$C$13/12,'Inputs & Mkt Adj'!$C$16*12,-1))) -> 0.0696894536
A104: CA-LosAngeles-LongBeach-Glendale | B104: 31084 | C104: I | D104: 20081 | E104: 2008 | F104: 1 | G104: 2008-01-01 | H104: 0.05383870768 | I104: 58 | J104: 2814661646 | K104: 36319722 | L104: 0.05161504517 | V104: =V103+'Inputs & Mkt Adj'!$F$14 -> 0.06 | W104: =-PPMT(V104,'Inputs & Mkt Adj'!$C$19,'Inputs & Mkt Adj'!$C$19,'Cap Rate Data'!$X$50,0,0) -> 62221.99955 | X104: 0.1475531756 | Y104: =('Inputs & Mkt Adj'!$C$12*'Cap Rate Data'!$X$58)+((1-'Inputs & Mkt Adj'!$C$12)*X104)+(-'Cap Rate Data'!$X$56*$AB104*'Inputs & Mkt Adj'!$C$12)+(-$AA104*$AB104) -> 0.05157849147 | Z104: =X104-'Inputs & Mkt Adj'!$C$12*AC104 -> 0.08474907844 | AA104: =((1+V104)^'Inputs & Mkt Adj'!$C$19)-'Inputs & Mkt Adj'!$C$20*((1+V104)^'Inputs & Mkt Adj'!$C$19)-1 -> 0.6654883578 | AB104: =X104/((1+X104)^'Inputs & Mkt Adj'!$C$19-1) -> 0.04984397786 | AC104: =X104+AB104*(1-((PV('Inputs & Mkt Adj'!$C$13/12,('Inputs & Mkt Adj'!$C$16-'Inputs & Mkt Adj'!$C$19)*12,-1))/(PV('Inputs & Mkt Adj'!$C$13/12,'Inputs & Mkt Adj'!$C$16*12,-1))))-(12*(PMT('Inputs & Mkt Adj'!$C$13/12,'Inputs & Mkt Adj'!$C$16*12,-1))) -> 0.08373879625
A105: CA-LosAngeles-LongBeach-Glendale | B105: 31084 | C105: I | D105: 20082 | E105: 2008 | F105: 2 | G105: 2008-04-01 | H105: 0.05471271713 | I105: 91 | J105: 3359756205 | K105: 44742396 | L105: 0.05326862221 | V105: =V104+'Inputs & Mkt Adj'!$F$14 -> 0.07 | W105: =-PPMT(V105,'Inputs & Mkt Adj'!$C$19,'Inputs & Mkt Adj'!$C$19,'Cap Rate Data'!$X$50,0,0) -> 64593.73139 | X105: 0.1614939244 | Y105: =('Inputs & Mkt Adj'!$C$12*'Cap Rate Data'!$X$58)+((1-'Inputs & Mkt Adj'!$C$12)*X105)+(-'Cap Rate Data'!$X$56*$AB105*'Inputs & Mkt Adj'!$C$12)+(-$AA105*$AB105) -> 0.05001770839 | Z105: =X105-'Inputs & Mkt Adj'!$C$12*AC105 -> 0.0886361931 | AA105: =((1+V105)^'Inputs & Mkt Adj'!$C$19)-'Inputs & Mkt Adj'!$C$20*((1+V105)^'Inputs & Mkt Adj'!$C$19)-1 -> 0.8294507623 | AB105: =X105/((1+X105)^'Inputs & Mkt Adj'!$C$19-1) -> 0.04655910449 | AC105: =X105+AB105*(1-((PV('Inputs & Mkt Adj'!$C$13/12,('Inputs & Mkt Adj'!$C$16-'Inputs & Mkt Adj'!$C$19)*12,-1))/(PV('Inputs & Mkt Adj'!$C$13/12,'Inputs & Mkt Adj'!$C$16*12,-1))))-(12*(PMT('Inputs & Mkt Adj'!$C$13/12,'Inputs & Mkt Adj'!$C$16*12,-1))) -> 0.09714364177
A106: CA-LosAngeles-LongBeach-Glendale | B106: 31084 | C106: I | D106: 20083 | E106: 2008 | F106: 3 | G106: 2008-07-01 | H106: 0.05536884976 | I106: 67 | J106: 2785355554 | K106: 39825018 | L106: 0.05719200616 | V106: =V105+'Inputs & Mkt Adj'!$F$14 -> 0.08 | W106: =-PPMT(V106,'Inputs & Mkt Adj'!$C$19,'Inputs & Mkt Adj'!$C$19,'Cap Rate Data'!$X$50,0,0) -> 66985.56666 | X106: 0.1751114127 | Y106: =('Inputs & Mkt Adj'!$C$12*'Cap Rate Data'!$X$58)+((1-'Inputs & Mkt Adj'!$C$12)*X106)+(-'Cap Rate Data'!$X$56*$AB106*'Inputs & Mkt Adj'!$C$12)+(-$AA106*$AB106) -> 0.04851996252 | Z106: =X106-'Inputs & Mkt Adj'!$C$12*AC106 -> 0.09240884919 | AA106: =((1+V106)^'Inputs & Mkt Adj'!$C$19)-'Inputs & Mkt Adj'!$C$20*((1+V106)^'Inputs & Mkt Adj'!$C$19)-1 -> 1.007800247 | AB106: =X106/((1+X106)^'Inputs & Mkt Adj'!$C$19-1) -> 0.0435491922 | AC106: =X106+AB106*(1-((PV('Inputs & Mkt Adj'!$C$13/12,('Inputs & Mkt Adj'!$C$16-'Inputs & Mkt Adj'!$C$19)*12,-1))/(PV('Inputs & Mkt Adj'!$C$13/12,'Inputs & Mkt Adj'!$C$16*12,-1))))-(12*(PMT('Inputs & Mkt Adj'!$C$13/12,'Inputs & Mkt Adj'!$C$16*12,-1))) -> 0.1102700846
A107: CA-LosAngeles-LongBeach-Glendale | B107: 31084 | C107: I | D107: 20084 | E107: 2008 | F107: 4 | G107: 2008-10-01 | H107: 0.06101860686 | I107: 154 | J107: 4545529947 | K107: 68673539 | L107: 0.06043171186
A108: CA-LosAngeles-LongBeach-Glendale | B108: 31084 | C108: I | D108: 20091 | E108: 2009 | F108: 1 | G108: 2009-01-01 | H108: 0.0688126016 | I108: 119 | J108: 3844297064 | K108: 66375977 | L108: 0.06906435782 | T108: Calculation | V108: Mortgage Rate Required | W108: DCR | X108: Effective Constant NOI Graph | Y108: Annual Debt Service Graph
A109: CA-LosAngeles-LongBeach-Glendale | B109: 31084 | C109: I | D109: 20092 | E109: 2009 | F109: 2 | G109: 2009-04-01 | H109: 0.06905139679 | I109: 129 | J109: 3544735457 | K109: 61783659 | L109: 0.06971878127 | T109: FindMortgage Rate using DCR | V109: =V110-'Inputs & Mkt Adj'!$C$15 -> 0.035 | W109: =X109/Y109 -> 1.809470101 | X109: ='Cap Rate Data'!$X$72 -> 55250.49798 | Y109: =(12*(PMT(V109/12,'Inputs & Mkt Adj'!$C$16*12,-('Cap Rate Data'!$X$62*'Inputs & Mkt Adj'!$C$12)))) -> 30534.07622
A110: CA-LosAngeles-LongBeach-Glendale | B110: 31084 | C110: I | D110: 20093 | E110: 2009 | F110: 3 | G110: 2009-07-01 | H110: 0.07422202815 | I110: 121 | J110: 3303565499 | K110: 61534589 | L110: 0.07450687933 | V110: =V111-'Inputs & Mkt Adj'!$C$15 -> 0.04 | W110: 1.701941568 | X110: ='Cap Rate Data'!$X$72 -> 55250.49798 | Y110: =(12*(PMT(V110/12,'Inputs & Mkt Adj'!$C$16*12,-('Cap Rate Data'!$X$62*'Inputs & Mkt Adj'!$C$12)))) -> 32463.21673
A111: CA-LosAngeles-LongBeach-Glendale | B111: 31084 | C111: I | D111: 20094 | E111: 2009 | F111: 4 | G111: 2009-10-01 | H111: 0.07709576055 | I111: 122 | J111: 3310479732 | K111: 61220506 | L111: 0.07397176356 | V111: =V112-'Inputs & Mkt Adj'!$C$15 -> 0.045 | W111: 1.603624421 | X111: ='Cap Rate Data'!$X$72 -> 55250.49798 | Y111: =(12*(PMT(V111/12,'Inputs & Mkt Adj'!$C$16*12,-('Cap Rate Data'!$X$62*'Inputs & Mkt Adj'!$C$12)))) -> 34453.51496
A112: CA-LosAngeles-LongBeach-Glendale | B112: 31084 | C112: I | D112: 20101 | E112: 2010 | F112: 1 | G112: 2010-01-01 | H112: 0.07030316473 | I112: 91 | J112: 2334846431 | K112: 39509427 | L112: 0.06768655356 | V112: =V113-'Inputs & Mkt Adj'!$C$15 -> 0.05 | W112: 1.513599493 | X112: ='Cap Rate Data'!$X$72 -> 55250.49798 | Y112: =(12*(PMT(V112/12,'Inputs & Mkt Adj'!$C$16*12,-('Cap Rate Data'!$X$62*'Inputs & Mkt Adj'!$C$12)))) -> 36502.71966
A113: CA-LosAngeles-LongBeach-Glendale | B113: 31084 | C113: I | D113: 20102 | E113: 2010 | F113: 2 | G113: 2010-04-01 | H113: 0.07208769357 | I113: 117 | J113: 2873698185 | K113: 50967956 | L113: 0.07094406262 | V113: =V114-'Inputs & Mkt Adj'!$C$15 -> 0.055 | W113: 1.431047334 | X113: ='Cap Rate Data'!$X$72 -> 55250.49798 | Y113: =(12*(PMT(V113/12,'Inputs & Mkt Adj'!$C$16*12,-('Cap Rate Data'!$X$62*'Inputs & Mkt Adj'!$C$12)))) -> 38608.435
A114: CA-LosAngeles-LongBeach-Glendale | B114: 31084 | C114: I | D114: 20103 | E114: 2010 | F114: 3 | G114: 2010-07-01 | H114: 0.06834788693 | I114: 84 | J114: 2335190649 | K114: 37418083 | L114: 0.06409426659 | V114: ='Inputs & Mkt Adj'!$C$13 -> 0.06 | W114: 1.355236802 | X114: ='Cap Rate Data'!$X$72 -> 55250.49798 | Y114: =(12*(PMT(V114/12,'Inputs & Mkt Adj'!$C$16*12,-('Cap Rate Data'!$X$62*'Inputs & Mkt Adj'!$C$12)))) -> 40768.15054
A115: CA-LosAngeles-LongBeach-Glendale | B115: 31084 | C115: I | D115: 20104 | E115: 2010 | F115: 4 | G115: 2010-10-01 | H115: 0.0662752945 | I115: 114 | J115: 3039993138 | K115: 47959242 | L115: 0.06310440823 | V115: =V114+'Inputs & Mkt Adj'!$C$15 -> 0.065 | W115: 1.285515018 | X115: ='Cap Rate Data'!$X$72 -> 55250.49798 | Y115: =(12*(PMT(V115/12,'Inputs & Mkt Adj'!$C$16*12,-('Cap Rate Data'!$X$62*'Inputs & Mkt Adj'!$C$12)))) -> 42979.27072
A116: CA-LosAngeles-LongBeach-Glendale | B116: 31084 | C116: I | D116: 20111 | E116: 2011 | F116: 1 | G116: 2011-01-01 | H116: 0.06608458984 | I116: 91 | J116: 2385549493 | K116: 37245106 | L116: 0.06245119811 | V116: =V115+'Inputs & Mkt Adj'!$C$15 -> 0.07 | W116: 1.221298496 | X116: ='Cap Rate Data'!$X$72 -> 55250.49798 | Y116: =(12*(PMT(V116/12,'Inputs & Mkt Adj'!$C$16*12,-('Cap Rate Data'!$X$62*'Inputs & Mkt Adj'!$C$12)))) -> 45239.14356
A117: CA-LosAngeles-LongBeach-Glendale | B117: 31084 | C117: I | D117: 20112 | E117: 2011 | F117: 2 | G117: 2011-04-01 | H117: 0.06253497665 | I117: 103 | J117: 2911113672 | K117: 42986064 | L117: 0.0590647688 | V117: =V116+'Inputs & Mkt Adj'!$C$15 -> 0.075 | W117: 1.162065327 | X117: ='Cap Rate Data'!$X$72 -> 55250.49798 | Y117: =(12*(PMT(V117/12,'Inputs & Mkt Adj'!$C$16*12,-('Cap Rate Data'!$X$62*'Inputs & Mkt Adj'!$C$12)))) -> 47545.08778
A118: CA-LosAngeles-LongBeach-Glendale | B118: 31084 | C118: I | D118: 20113 | E118: 2011 | F118: 3 | G118: 2011-07-01 | H118: 0.06094098107 | I118: 101 | J118: 2499583787 | K118: 36360952 | L118: 0.05818721051 | V118: =V117+'Inputs & Mkt Adj'!$C$15 -> 0.08 | W118: 1.107348277 | X118: ='Cap Rate Data'!$X$72 -> 55250.49798 | Y118: =(12*(PMT(V118/12,'Inputs & Mkt Adj'!$C$16*12,-('Cap Rate Data'!$X$62*'Inputs & Mkt Adj'!$C$12)))) -> 49894.41816
A119: CA-LosAngeles-LongBeach-Glendale | B119: 31084 | C119: I | D119: 20114 | E119: 2011 | F119: 4 | G119: 2011-10-01 | H119: 0.06282823153 | I119: 104 | J119: 2816373977 | K119: 41229889 | L119: 0.05855740656 | V119: =V118+'Inputs & Mkt Adj'!$C$15 -> 0.085 | W119: 1.056728688 | X119: ='Cap Rate Data'!$X$72 -> 55250.49798 | Y119: =(12*(PMT(V119/12,'Inputs & Mkt Adj'!$C$16*12,-('Cap Rate Data'!$X$62*'Inputs & Mkt Adj'!$C$12)))) -> 52284.46867
A120: CA-LosAngeles-LongBeach-Glendale | B120: 31084 | C120: I | D120: 20121 | E120: 2012 | F120: 1 | G120: 2012-01-01 | H120: 0.05830701597 | I120: 95 | J120: 2322638916 | K120: 32712424 | L120: 0.05633665013
A121: CA-LosAngeles-LongBeach-Glendale | B121: 31084 | C121: I | D121: 20122 | E121: 2012 | F121: 2 | G121: 2012-04-01 | H121: 0.05680932104 | I121: 123 | J121: 3093515503 | K121: 43656349 | L121: 0.0564488511
A122: CA-LosAngeles-LongBeach-Glendale | B122: 31084 | C122: I | D122: 20123 | E122: 2012 | F122: 3 | G122: 2012-07-01 | H122: 0.05315686993 | I122: 98 | J122: 2717683170 | K122: 35515017 | L122: 0.05227249062
A123: CA-LosAngeles-LongBeach-Glendale | B123: 31084 | C123: I | D123: 20124 | E123: 2012 | F123: 4 | G123: 2012-10-01 | H123: 0.05311083809 | I123: 132 | J123: 3321673638 | K123: 43172501 | L123: 0.05198885346
A124: CA-LosAngeles-LongBeach-Glendale | B124: 31084 | C124: I | D124: 20131 | E124: 2013 | F124: 1 | G124: 2013-01-01 | H124: 0.0545326224 | I124: 93 | J124: 2909171032 | K124: 38467581 | L124: 0.05289146712
A125: CA-LosAngeles-LongBeach-Glendale | B125: 31084 | C125: I | D125: 20132 | E125: 2013 | F125: 2 | G125: 2013-04-01 | H125: 0.05435053526 | I125: 140 | J125: 3527779289 | K125: 46075251 | L125: 0.0522427819
A126: CA-LosAngeles-LongBeach-Glendale | B126: 31084 | C126: I | D126: 20133 | E126: 2013 | F126: 3 | G126: 2013-07-01 | H126: 0.05206950112 | I126: 134 | J126: 3384244969 | K126: 42459684 | L126: 0.05018511885
A127: CA-LosAngeles-LongBeach-Glendale | B127: 31084 | C127: I | D127: 20134 | E127: 2013 | F127: 4 | G127: 2013-10-01 | H127: 0.05331036839 | I127: 132 | J127: 3802195209 | K127: 49237689 | L127: 0.0517992226
A128: CA-LosAngeles-LongBeach-Glendale | B128: 31084 | C128: I | D128: 20141 | E128: 2014 | F128: 1 | G128: 2014-01-01 | H128: 0.05166484789 | I128: 90 | J128: 3002004043 | K128: 37699423 | L128: 0.05023234141
A129: CA-LosAngeles-LongBeach-Glendale | B129: 31084 | C129: I | D129: 20142 | E129: 2014 | F129: 2 | G129: 2014-04-01 | H129: 0.05098722655 | I129: 167 | J129: 4380517586 | K129: 55723799 | L129: 0.05088330126
A130: CA-LosAngeles-LongBeach-Glendale | B130: 31084 | C130: I | D130: 20143 | E130: 2014 | F130: 3 | G130: 2014-07-01 | H130: 0.04955370395 | I130: 143 | J130: 4091031459 | K130: 51539794 | L130: 0.05039295788
A131: CA-LosAngeles-LongBeach-Glendale | B131: 31084 | C131: I | D131: 20144 | E131: =VALUE(LEFT(D131,4)) -> 2014 | F131: =VALUE(MID(D131,5,1)) -> 4 | G131: =DATE(E131,IF(F131=1,1,IF(F131=2,4,IF(F131=3,7,IF(F131=4,10,5)))),1) -> 2014-10-01 | H131: 0.04935447346 | I131: 155 | J131: 4780362386 | K131: 57001340 | L131: 0.04769625011
A132: CA-LosAngeles-LongBeach-Glendale | B132: 31084 | C132: I | D132: 20151 | E132: 2015 | F132: 1 | G132: 2015-01-01 | H132: 0.05137628852 | I132: 139 | J132: 4467431917 | K132: 56140161 | L132: 0.05026615921
A133: CA-LosAngeles-LongBeach-Glendale | B133: 31084 | C133: I | D133: 20152 | E133: 2015 | F133: 2 | G133: 2015-04-01 | H133: 0.04939547195 | I133: 150 | J133: 4686845740 | K133: 55750940 | L133: 0.04758077658
A134: CA-LosAngeles-LongBeach-Glendale | B134: 31084 | C134: I | D134: 20153 | E134: 2015 | F134: 3 | G134: 2015-07-01 | H134: 0.0489809027 | I134: 138 | J134: 4557537308 | K134: 53560874 | L134: 0.04700861047
A135: CA-LosAngeles-LongBeach-Glendale | B135: 31084 | C135: I | D135: 20154 | E135: 2015 | F135: 4 | G135: 2015-10-01 | H135: 0.04877633484 | I135: 182 | J135: 6105239942 | K135: 71063440 | L135: 0.04655898256
A136: CA-LosAngeles-LongBeach-Glendale | B136: 31084 | C136: I | D136: 20161 | E136: 2016 | F136: 1 | G136: 2016-01-01 | H136: 0.04947235451 | I136: 149 | J136: 5569687471 | K136: 68492582 | L136: 0.04918953342
A137: CA-LosAngeles-LongBeach-Glendale | B137: 31084 | C137: I | D137: 20162 | E137: 2016 | F137: 2 | G137: 2016-04-01 | H137: 0.05036710761 | I137: 175 | J137: 5757895665 | K137: 68301524 | L137: 0.0474489487
A138: CA-LosAngeles-LongBeach-Glendale | B138: 31084 | C138: O | D138: 19914 | E138: 1991 | F138: 4 | G138: 1991-10-01 | H138: 0.05947168244 | I138: 21 | J138: 1131204225 | K138: 15270097 | L138: 0.05399589804
A139: CA-LosAngeles-LongBeach-Glendale | B139: 31084 | C139: O | D139: 19924 | E139: 1992 | F139: 4 | G139: 1992-10-01 | H139: 0.08942613372 | I139: 20 | J139: 876005442 | K139: 17391449 | L139: 0.0794125158
A140: CA-LosAngeles-LongBeach-Glendale | B140: 31084 | C140: O | D140: 20052 | E140: 2005 | F140: 2 | G140: 2005-04-01 | H140: 0.06692085078 | I140: 25 | J140: 2768260370 | K140: 43860218 | L140: 0.06337585651
A141: CA-LosAngeles-LongBeach-Glendale | B141: 31084 | C141: O | D141: 20053 | E141: 2005 | F141: 3 | G141: 2005-07-01 | H141: 0.05538402527 | I141: 24 | J141: 2773415635 | K141: 33070260 | L141: 0.04769607495
A142: CA-LosAngeles-LongBeach-Glendale | B142: 31084 | C142: O | D142: 20054 | E142: 2005 | F142: 4 | G142: 2005-10-01 | H142: 0.05626243102 | I142: 26 | J142: 4038737390 | K142: 50117344 | L142: 0.04963664548
A143: CA-LosAngeles-LongBeach-Glendale | B143: 31084 | C143: O | D143: 20061 | E143: 2006 | F143: 1 | G143: 2006-01-01 | H143: 0.05475509024 | I143: 23 | J143: 3385438242 | K143: 39594921 | L143: 0.0467826239
A144: CA-LosAngeles-LongBeach-Glendale | B144: 31084 | C144: O | D144: 20062 | E144: 2006 | F144: 2 | G144: 2006-04-01 | H144: 0.05609293671 | I144: 29 | J144: 4655844101 | K144: 53268788 | L144: 0.04576509595
A145: CA-LosAngeles-LongBeach-Glendale | B145: 31084 | C145: O | D145: 20063 | E145: 2006 | F145: 3 | G145: 2006-07-01 | H145: 0.04754998957 | I145: 32 | J145: 4279307718 | K145: 52617872 | L145: 0.04918353665
A146: CA-LosAngeles-LongBeach-Glendale | B146: 31084 | C146: O | D146: 20064 | E146: 2006 | F146: 4 | G146: 2006-10-01 | H146: 0.04796433174 | I146: 38 | J146: 5343524767 | K146: 61579137 | L146: 0.04609626768
A147: CA-LosAngeles-LongBeach-Glendale | B147: 31084 | C147: O | D147: 20071 | E147: 2007 | F147: 1 | G147: 2007-01-01 | H147: 0.05134891968 | I147: 40 | J147: 4474040812 | K147: 55453031 | L147: 0.04957758173
A148: CA-LosAngeles-LongBeach-Glendale | B148: 31084 | C148: O | D148: 20072 | E148: 2007 | F148: 2 | G148: 2007-04-01 | H148: 0.05233238808 | I148: 49 | J148: 7148532188 | K148: 83191912 | L148: 0.04655048606
A149: CA-LosAngeles-LongBeach-Glendale | B149: 31084 | C149: O | D149: 20073 | E149: 2007 | F149: 3 | G149: 2007-07-01 | H149: 0.04418609367 | I149: 44 | J149: 5560574376 | K149: 58180252 | L149: 0.04185197288
A150: CA-LosAngeles-LongBeach-Glendale | B150: 31084 | C150: O | D150: 20074 | E150: 2007 | F150: 4 | G150: 2007-10-01 | H150: 0.04691712945 | I150: 51 | J150: 8575431439 | K150: 87483126 | L150: 0.04080640216
A151: CA-LosAngeles-LongBeach-Glendale | B151: 31084 | C151: O | D151: 20081 | E151: 2008 | F151: 1 | G151: 2008-01-01 | H151: 0.04906995469 | I151: 52 | J151: 8311467856 | K151: 89189734 | L151: 0.04292369798
A152: CA-LosAngeles-LongBeach-Glendale | B152: 31084 | C152: O | D152: 20082 | E152: 2008 | F152: 2 | G152: 2008-04-01 | H152: 0.0482654363 | I152: 54 | J152: 8538832304 | K152: 96134212 | L152: 0.04503389156
A153: CA-LosAngeles-LongBeach-Glendale | B153: 31084 | C153: O | D153: 20083 | E153: 2008 | F153: 3 | G153: 2008-07-01 | H153: 0.05123981195 | I153: 54 | J153: 7655494139 | K153: 85615104 | L153: 0.04473394007
A154: CA-LosAngeles-LongBeach-Glendale | B154: 31084 | C154: O | D154: 20084 | E154: 2008 | F154: 4 | G154: 2008-10-01 | H154: 0.05292418537 | I154: 64 | J154: 9316147915 | K154: 114303812 | L154: 0.04907771454
A155: CA-LosAngeles-LongBeach-Glendale | B155: 31084 | C155: O | D155: 20091 | E155: 2009 | F155: 1 | G155: 2009-01-01 | H155: 0.06419669477 | I155: 60 | J155: 8059854688 | K155: 120949435 | L155: 0.06002561569
A156: CA-LosAngeles-LongBeach-Glendale | B156: 31084 | C156: O | D156: 20092 | E156: 2009 | F156: 2 | G156: 2009-04-01 | H156: 0.06186776981 | I156: 52 | J156: 7442131085 | K156: 113867995 | L156: 0.06120182174
A157: CA-LosAngeles-LongBeach-Glendale | B157: 31084 | C157: O | D157: 20093 | E157: 2009 | F157: 3 | G157: 2009-07-01 | H157: 0.06284170504 | I157: 62 | J157: 7118270093 | K157: 113326557 | L157: 0.06368207754
A158: CA-LosAngeles-LongBeach-Glendale | B158: 31084 | C158: O | D158: 20094 | E158: 2009 | F158: 4 | G158: 2009-10-01 | H158: 0.06700501469 | I158: 53 | J158: 6093223107 | K158: 95961646 | L158: 0.06299565554
A159: CA-LosAngeles-LongBeach-Glendale | B159: 31084 | C159: O | D159: 20101 | E159: 2010 | F159: 1 | G159: 2010-01-01 | H159: 0.06868433877 | I159: 61 | J159: 5959068025 | K159: 92874741 | L159: 0.06234178943
A160: CA-LosAngeles-LongBeach-Glendale | B160: 31084 | C160: O | D160: 20102 | E160: 2010 | F160: 2 | G160: 2010-04-01 | H160: 0.06614632113 | I160: 48 | J160: 6448130050 | K160: 100613479 | L160: 0.06241405072
A161: CA-LosAngeles-LongBeach-Glendale | B161: 31084 | C161: O | D161: 20103 | E161: 2010 | F161: 3 | G161: 2010-07-01 | H161: 0.06161241078 | I161: 51 | J161: 6106951285 | K161: 92244242 | L161: 0.06041917657
A162: CA-LosAngeles-LongBeach-Glendale | B162: 31084 | C162: O | D162: 20104 | E162: 2010 | F162: 4 | G162: 2010-10-01 | H162: 0.06268675367 | I162: 59 | J162: 7388456541 | K162: 109570545 | L162: 0.05931985626
A163: CA-LosAngeles-LongBeach-Glendale | B163: 31084 | C163: O | D163: 20111 | E163: 2011 | F163: 1 | G163: 2011-01-01 | H163: 0.06824726273 | I163: 43 | J163: 6049289496 | K163: 91704573 | L163: 0.06063824392
A164: CA-LosAngeles-LongBeach-Glendale | B164: 31084 | C164: O | D164: 20112 | E164: 2011 | F164: 2 | G164: 2011-04-01 | H164: 0.06473361793 | I164: 48 | J164: 7360065571 | K164: 102573285 | L164: 0.0557458539
A165: CA-LosAngeles-LongBeach-Glendale | B165: 31084 | C165: O | D165: 20113 | E165: 2011 | F165: 3 | G165: 2011-07-01 | H165: 0.06001809275 | I165: 53 | J165: 6838710944 | K165: 96509418 | L165: 0.05644889441
A166: CA-LosAngeles-LongBeach-Glendale | B166: 31084 | C166: O | D166: 20114 | E166: 2011 | F166: 4 | G166: 2011-10-01 | H166: 0.05915431382 | I166: 58 | J166: 7972239629 | K166: 111410588 | L166: 0.05589926705
A167: CA-LosAngeles-LongBeach-Glendale | B167: 31084 | C167: O | D167: 20121 | E167: 2012 | F167: 1 | G167: 2012-01-01 | H167: 0.06214292458 | I167: 53 | J167: 6956224688 | K167: 90852353 | L167: 0.05224233378
A168: CA-LosAngeles-LongBeach-Glendale | B168: 31084 | C168: O | D168: 20122 | E168: 2012 | F168: 2 | G168: 2012-04-01 | H168: 0.05829941287 | I168: 52 | J168: 8186648125 | K168: 106235105 | L168: 0.05190652066
A169: CA-LosAngeles-LongBeach-Glendale | B169: 31084 | C169: O | D169: 20123 | E169: 2012 | F169: 3 | G169: 2012-07-01 | H169: 0.05665777518 | I169: 59 | J169: 9293533541 | K169: 129447227 | L169: 0.0557149663
A170: CA-LosAngeles-LongBeach-Glendale | B170: 31084 | C170: O | D170: 20124 | E170: 2012 | F170: 4 | G170: 2012-10-01 | H170: 0.05276134199 | I170: 55 | J170: 8274024813 | K170: 104960163 | L170: 0.05074201027
A171: CA-LosAngeles-LongBeach-Glendale | B171: 31084 | C171: O | D171: 20131 | E171: 2013 | F171: 1 | G171: 2013-01-01 | H171: 0.05334506378 | I171: 58 | J171: 7386650709 | K171: 95964626 | L171: 0.05196651624
A172: CA-LosAngeles-LongBeach-Glendale | B172: 31084 | C172: O | D172: 20132 | E172: 2013 | F172: 2 | G172: 2013-04-01 | H172: 0.05530342737 | I172: 58 | J172: 7480863109 | K172: 100296660 | L172: 0.05362838942
A173: CA-LosAngeles-LongBeach-Glendale | B173: 31084 | C173: O | D173: 20133 | E173: 2013 | F173: 3 | G173: 2013-07-01 | H173: 0.0549185724 | I173: 54 | J173: 6177651185 | K173: 82369830 | L173: 0.05333407636
A174: CA-LosAngeles-LongBeach-Glendale | B174: 31084 | C174: O | D174: 20134 | E174: 2013 | F174: 4 | G174: 2013-10-01 | H174: 0.05349262926 | I174: 53 | J174: 7945461748 | K174: 100793996 | L174: 0.05074292682
A175: CA-LosAngeles-LongBeach-Glendale | B175: 31084 | C175: O | D175: 20141 | E175: 2014 | F175: 1 | G175: 2014-01-01 | H175: 0.05041564371 | I175: 52 | J175: 10322072659 | K175: 131850211 | L175: 0.05109447118
A176: CA-LosAngeles-LongBeach-Glendale | B176: 31084 | C176: O | D176: 20142 | E176: 2014 | F176: 2 | G176: 2014-04-01 | H176: 0.05294067975 | I176: 66 | J176: 9591027319 | K176: 123407606 | L176: 0.05146794056
A177: CA-LosAngeles-LongBeach-Glendale | B177: 31084 | C177: O | D177: 20143 | E177: 2014 | F177: 3 | G177: 2014-07-01 | H177: 0.05127495089 | I177: 58 | J177: 9953766418 | K177: 119390034 | L177: 0.0479778323
A178: CA-LosAngeles-LongBeach-Glendale | B178: 31084 | C178: O | D178: 20144 | E178: 2014 | F178: 4 | G178: 2014-10-01 | H178: 0.05107792657 | I178: 66 | J178: 10382012736 | K178: 117611051 | L178: 0.04531339115
A179: CA-LosAngeles-LongBeach-Glendale | B179: 31084 | C179: O | D179: 20151 | E179: 2015 | F179: 1 | G179: 2015-01-01 | H179: 0.05212583591 | I179: 62 | J179: 9101212360 | K179: 108384184 | L179: 0.04763505332
A180: CA-LosAngeles-LongBeach-Glendale | B180: 31084 | C180: O | D180: 20152 | E180: 2015 | F180: 2 | G180: 2015-04-01 | H180: 0.0502280844 | I180: 70 | J180: 11710415197 | K180: 130774870 | L180: 0.04466959294
A181: CA-LosAngeles-LongBeach-Glendale | B181: 31084 | C181: O | D181: 20153 | E181: 2015 | F181: 3 | G181: 2015-07-01 | H181: 0.04262416648 | I181: 64 | J181: 10061948420 | K181: 114323285 | L181: 0.04544777223
A182: CA-LosAngeles-LongBeach-Glendale | B182: 31084 | C182: O | D182: 20154 | E182: 2015 | F182: 4 | G182: 2015-10-01 | H182: 0.04204057282 | I182: 76 | J182: 15013223998 | K182: 150382375 | L182: 0.04006664392
A183: CA-LosAngeles-LongBeach-Glendale | B183: 31084 | C183: O | D183: 20161 | E183: 2016 | F183: 1 | G183: 2016-01-01 | H183: 0.04773366773 | I183: 76 | J183: 15558440003 | K183: 171626454 | L183: 0.04412433482
A184: CA-LosAngeles-LongBeach-Glendale | B184: 31084 | C184: O | D184: 20162 | E184: 2016 | F184: 2 | G184: 2016-04-01 | H184: 0.04936632111 | I184: 75 | J184: 13938765108 | K184: 153064871 | L184: 0.04392494452
A185: CA-LosAngeles-LongBeach-Glendale | B185: 31084 | C185: R | D185: 19914 | E185: 1991 | F185: 4 | G185: 1991-10-01 | H185: 0.07135273189 | I185: 20 | J185: 697224107 | K185: 11219023 | L185: 0.06436394202
A186: CA-LosAngeles-LongBeach-Glendale | B186: 31084 | C186: R | D186: 20064 | E186: 2006 | F186: 4 | G186: 2006-10-01 | H186: 0.05922320863 | I186: 21 | J186: 1641779921 | K186: 25408268 | L186: 0.06190419964
A187: CA-LosAngeles-LongBeach-Glendale | B187: 31084 | C187: R | D187: 20071 | E187: 2007 | F187: 1 | G187: 2007-01-01 | H187: 0.05466534631 | I187: 20 | J187: 2130434534 | K187: 27665546 | L187: 0.05194348018
A188: CA-LosAngeles-LongBeach-Glendale | B188: 31084 | C188: R | D188: 20074 | E188: 2007 | F188: 4 | G188: 2007-10-01 | H188: 0.05950170431 | I188: 21 | J188: 1714370641 | K188: 25247209 | L188: 0.05890723603
A189: CA-LosAngeles-LongBeach-Glendale | B189: 31084 | C189: R | D189: 20081 | E189: 2008 | F189: 1 | G189: 2008-01-01 | H189: 0.05701345164 | I189: 21 | J189: 2519143112 | K189: 38420778 | L189: 0.06100610611
A190: CA-LosAngeles-LongBeach-Glendale | B190: 31084 | C190: R | D190: 20082 | E190: 2008 | F190: 2 | G190: 2008-04-01 | H190: 0.05851134749 | I190: 21 | J190: 2206481156 | K190: 28508001 | L190: 0.05168047943
A191: CA-LosAngeles-LongBeach-Glendale | B191: 31084 | C191: R | D191: 20084 | E191: 2008 | F191: 4 | G191: 2008-10-01 | H191: 0.06718203252 | I191: 28 | J191: 2222778554 | K191: 37195025 | L191: 0.06693428805
A192: CA-LosAngeles-LongBeach-Glendale | B192: 31084 | C192: R | D192: 20091 | E192: 2009 | F192: 1 | G192: 2009-01-01 | H192: 0.07103082506 | I192: 27 | J192: 2405035737 | K192: 42533222 | L192: 0.07074027441
A193: CA-LosAngeles-LongBeach-Glendale | B193: 31084 | C193: R | D193: 20092 | E193: 2009 | F193: 2 | G193: 2009-04-01 | H193: 0.067188366 | I193: 25 | J193: 1977124025 | K193: 31490347 | L193: 0.06370940134
A194: CA-LosAngeles-LongBeach-Glendale | B194: 31084 | C194: R | D194: 20093 | E194: 2009 | F194: 3 | G194: 2009-07-01 | H194: 0.06917060063 | I194: 26 | J194: 1957380499 | K194: 32643953 | L194: 0.06670946812
A195: CA-LosAngeles-LongBeach-Glendale | B195: 31084 | C195: R | D195: 20094 | E195: =VALUE(LEFT(D195,4)) -> 2009 | F195: =VALUE(MID(D195,5,1)) -> 4 | G195: =DATE(E195,IF(F195=1,1,IF(F195=2,4,IF(F195=3,7,IF(F195=4,10,5)))),1) -> 2009-10-01 | H195: 0.07317575739 | I195: 30 | J195: 2233063211 | K195: 43440874 | L195: 0.07781396207
A196: CA-LosAngeles-LongBeach-Glendale | B196: 31084 | C196: R | D196: 20101 | E196: 2010 | F196: 1 | G196: 2010-01-01 | H196: 0.07387542275 | I196: 20 | J196: 1321970944 | K196: 25295457 | L196: 0.07653861718
A197: CA-LosAngeles-LongBeach-Glendale | B197: 31084 | C197: R | D197: 20102 | E197: 2010 | F197: 2 | G197: 2010-04-01 | H197: 0.07473593535 | I197: 22 | J197: 1283731042 | K197: 22772781 | L197: 0.0709581065
A198: CA-LosAngeles-LongBeach-Glendale | B198: 31084 | C198: R | D198: 20103 | E198: 2010 | F198: 3 | G198: 2010-07-01 | H198: 0.07221337733 | I198: 27 | J198: 2084082628 | K198: 35693544 | L198: 0.06850696517
A199: CA-LosAngeles-LongBeach-Glendale | B199: 31084 | C199: R | D199: 20104 | E199: 2010 | F199: 4 | G199: 2010-10-01 | H199: 0.06820538907 | I199: 26 | J199: 1859386794 | K199: 30500492 | L199: 0.06561408761
A200: CA-LosAngeles-LongBeach-Glendale | B200: 31084 | C200: R | D200: 20111 | E200: 2011 | F200: 1 | G200: 2011-01-01 | H200: 0.06638987759 | I200: 22 | J200: 1873212582 | K200: 31308861 | L200: 0.0668559699
... 1240 more rows

Sheet TNG Spread Calc
B2: Title: | C2: 10-Year Treasury Constant Maturity Rate
B3: Series ID: | C3: DGS10
B4: Source: | C4: Board of Governors of the Federal Reserve System (US)
B5: Release: | C5: H.15 Selected Interest Rates
B6: Seasonal Adjustment: | C6: Not Seasonally Adjusted
B7: Frequency: | C7: Quarterly
B8: Aggregation Method: | C8: Average
B9: Units: | C9: Percent
B10: Date Range: | C10: 1962-01-02 to 2016-07-22
B11: Last Updated: | C11: 2016-07-25 3:46 PM CDT
B12: Notes: | C12: For further information regarding treasury constant maturity data,
C13: please refer to
C14: http://www.federalreserve.gov/releases/h15/current/h15.pdf and
C15: http://www.treasury.gov/resource-center/data-chart-center/interest-rates/Pages/yieldmethod.aspx.
J17: TNG Avg. | K17: =SUMPRODUCT(INDEX(K$22:K$104,MATCH(2,1/(K$22:K$104<>0))):INDEX(K$22:K$104,MATCH(2,1/(K$22:K$104<>0))-('Inputs & Mkt Adj'!$C$19-1)))/'Inputs & Mkt Adj'!$C$19 -> 0.02037921484 | L17: =SUMPRODUCT(INDEX(L$22:L$104,MATCH(2,1/(L$22:L$104<>0))):INDEX(L$22:L$104,MATCH(2,1/(L$22:L$104<>0))-('Inputs & Mkt Adj'!$C$19-1)))/'Inputs & Mkt Adj'!$C$19 -> 0.01802247712 | M17: =SUMPRODUCT(INDEX(M$22:M$104,MATCH(2,1/(M$22:M$104<>0))):INDEX(M$22:M$104,MATCH(2,1/(M$22:M$104<>0))-('Inputs & Mkt Adj'!$C$19-1)))/'Inputs & Mkt Adj'!$C$19 ->  | N17: =SUMPRODUCT(INDEX(N$22:N$104,MATCH(2,1/(N$22:N$104<>0))):INDEX(N$22:N$104,MATCH(2,1/(N$22:N$104<>0))-('Inputs & Mkt Adj'!$C$19-1)))/'Inputs & Mkt Adj'!$C$19 -> 0.02209598177 | O17: =SUMPRODUCT(INDEX(O$22:O$104,MATCH(2,1/(O$22:O$104<>0))):INDEX(O$22:O$104,MATCH(2,1/(O$22:O$104<>0))-('Inputs & Mkt Adj'!$C$19-1)))/'Inputs & Mkt Adj'!$C$19 -> 0.02922814818 | P17: =SUMPRODUCT(INDEX(P$22:P$104,MATCH(2,1/(P$22:P$104<>0))):INDEX(P$22:P$104,MATCH(2,1/(P$22:P$104<>0))-('Inputs & Mkt Adj'!$C$19-1)))/'Inputs & Mkt Adj'!$C$19 -> 0.02334929618 | Q17: =SUMPRODUCT(INDEX(Q$22:Q$104,MATCH(2,1/(Q$22:Q$104<>0))):INDEX(Q$22:Q$104,MATCH(2,1/(Q$22:Q$104<>0))-('Inputs & Mkt Adj'!$C$19-1)))/'Inputs & Mkt Adj'!$C$19 -> 0.02928719143 | R17: =SUMPRODUCT(INDEX(R$22:R$104,MATCH(2,1/(R$22:R$104<>0))):INDEX(R$22:R$104,MATCH(2,1/(R$22:R$104<>0))-('Inputs & Mkt Adj'!$C$19-1)))/'Inputs & Mkt Adj'!$C$19 -> 0.02768936504 | S17: =SUMPRODUCT(INDEX(S$22:S$104,MATCH(2,1/(S$22:S$104<>0))):INDEX(S$22:S$104,MATCH(2,1/(S$22:S$104<>0))-('Inputs & Mkt Adj'!$C$19-1)))/'Inputs & Mkt Adj'!$C$19 -> 0.0235004982 | T17: =SUMPRODUCT(INDEX(T$22:T$104,MATCH(2,1/(T$22:T$104<>0))):INDEX(T$22:T$104,MATCH(2,1/(T$22:T$104<>0))-('Inputs & Mkt Adj'!$C$19-1)))/'Inputs & Mkt Adj'!$C$19 ->  | U17: =SUMPRODUCT(INDEX(U$22:U$104,MATCH(2,1/(U$22:U$104<>0))):INDEX(U$22:U$104,MATCH(2,1/(U$22:U$104<>0))-('Inputs & Mkt Adj'!$C$19-1)))/'Inputs & Mkt Adj'!$C$19 ->  | V17: =SUMPRODUCT(INDEX(V$22:V$104,MATCH(2,1/(V$22:V$104<>0))):INDEX(V$22:V$104,MATCH(2,1/(V$22:V$104<>0))-('Inputs & Mkt Adj'!$C$19-1)))/'Inputs & Mkt Adj'!$C$19 ->  | W17: =SUMPRODUCT(INDEX(W$22:W$104,MATCH(2,1/(W$22:W$104<>0))):INDEX(W$22:W$104,MATCH(2,1/(W$22:W$104<>0))-('Inputs & Mkt Adj'!$C$19-1)))/'Inputs & Mkt Adj'!$C$19 ->  | X17: =SUMPRODUCT(INDEX(X$22:X$104,MATCH(2,1/(X$22:X$104<>0))):INDEX(X$22:X$104,MATCH(2,1/(X$22:X$104<>0))-('Inputs & Mkt Adj'!$C$19-1)))/'Inputs & Mkt Adj'!$C$19 ->  | Y17: =SUMPRODUCT(INDEX(Y$22:Y$104,MATCH(2,1/(Y$22:Y$104<>0))):INDEX(Y$22:Y$104,MATCH(2,1/(Y$22:Y$104<>0))-('Inputs & Mkt Adj'!$C$19-1)))/'Inputs & Mkt Adj'!$C$19 ->  | Z17: =SUMPRODUCT(INDEX(Z$22:Z$104,MATCH(2,1/(Z$22:Z$104<>0))):INDEX(Z$22:Z$104,MATCH(2,1/(Z$22:Z$104<>0))-('Inputs & Mkt Adj'!$C$19-1)))/'Inputs & Mkt Adj'!$C$19 ->  | AA17: =SUMPRODUCT(INDEX(AA$22:AA$104,MATCH(2,1/(AA$22:AA$104<>0))):INDEX(AA$22:AA$104,MATCH(2,1/(AA$22:AA$104<>0))-('Inputs & Mkt Adj'!$C$19-1)))/'Inputs & Mkt Adj'!$C$19 ->  | AB17: =SUMPRODUCT(INDEX(AB$22:AB$104,MATCH(2,1/(AB$22:AB$104<>0))):INDEX(AB$22:AB$104,MATCH(2,1/(AB$22:AB$104<>0))-('Inputs & Mkt Adj'!$C$19-1)))/'Inputs & Mkt Adj'!$C$19 ->  | AC17: =SUMPRODUCT(INDEX(AC$22:AC$104,MATCH(2,1/(AC$22:AC$104<>0))):INDEX(AC$22:AC$104,MATCH(2,1/(AC$22:AC$104<>0))-('Inputs & Mkt Adj'!$C$19-1)))/'Inputs & Mkt Adj'!$C$19 ->  | AD17: =SUMPRODUCT(INDEX(AD$22:AD$104,MATCH(2,1/(AD$22:AD$104<>0))):INDEX(AD$22:AD$104,MATCH(2,1/(AD$22:AD$104<>0))-('Inputs & Mkt Adj'!$C$19-1)))/'Inputs & Mkt Adj'!$C$19 ->  | AE17: =SUMPRODUCT(INDEX(AE$22:AE$104,MATCH(2,1/(AE$22:AE$104<>0))):INDEX(AE$22:AE$104,MATCH(2,1/(AE$22:AE$104<>0))-('Inputs & Mkt Adj'!$C$19-1)))/'Inputs & Mkt Adj'!$C$19 ->  | AF17: =SUMPRODUCT(INDEX(AF$22:AF$104,MATCH(2,1/(AF$22:AF$104<>0))):INDEX(AF$22:AF$104,MATCH(2,1/(AF$22:AF$104<>0))-('Inputs & Mkt Adj'!$C$19-1)))/'Inputs & Mkt Adj'!$C$19 ->  | AG17: =SUMPRODUCT(INDEX(AG$22:AG$104,MATCH(2,1/(AG$22:AG$104<>0))):INDEX(AG$22:AG$104,MATCH(2,1/(AG$22:AG$104<>0))-('Inputs & Mkt Adj'!$C$19-1)))/'Inputs & Mkt Adj'!$C$19 ->  | AH17: =SUMPRODUCT(INDEX(AH$22:AH$104,MATCH(2,1/(AH$22:AH$104<>0))):INDEX(AH$22:AH$104,MATCH(2,1/(AH$22:AH$104<>0))-('Inputs & Mkt Adj'!$C$19-1)))/'Inputs & Mkt Adj'!$C$19 ->  | AI17: =SUMPRODUCT(INDEX(AI$22:AI$104,MATCH(2,1/(AI$22:AI$104<>0))):INDEX(AI$22:AI$104,MATCH(2,1/(AI$22:AI$104<>0))-('Inputs & Mkt Adj'!$C$19-1)))/'Inputs & Mkt Adj'!$C$19 ->  | AJ17: =SUMPRODUCT(INDEX(AJ$22:AJ$104,MATCH(2,1/(AJ$22:AJ$104<>0))):INDEX(AJ$22:AJ$104,MATCH(2,1/(AJ$22:AJ$104<>0))-('Inputs & Mkt Adj'!$C$19-1)))/'Inputs & Mkt Adj'!$C$19 ->  | AK17: =SUMPRODUCT(INDEX(AK$22:AK$104,MATCH(2,1/(AK$22:AK$104<>0))):INDEX(AK$22:AK$104,MATCH(2,1/(AK$22:AK$104<>0))-('Inputs & Mkt Adj'!$C$19-1)))/'Inputs & Mkt Adj'!$C$19 ->  | AL17: =SUMPRODUCT(INDEX(AL$22:AL$104,MATCH(2,1/(AL$22:AL$104<>0))):INDEX(AL$22:AL$104,MATCH(2,1/(AL$22:AL$104<>0))-('Inputs & Mkt Adj'!$C$19-1)))/'Inputs & Mkt Adj'!$C$19 ->  | AM17: =SUMPRODUCT(INDEX(AM$22:AM$104,MATCH(2,1/(AM$22:AM$104<>0))):INDEX(AM$22:AM$104,MATCH(2,1/(AM$22:AM$104<>0))-('Inputs & Mkt Adj'!$C$19-1)))/'Inputs & Mkt Adj'!$C$19 ->  | AN17: =SUMPRODUCT(INDEX(AN$22:AN$104,MATCH(2,1/(AN$22:AN$104<>0))):INDEX(AN$22:AN$104,MATCH(2,1/(AN$22:AN$104<>0))-('Inputs & Mkt Adj'!$C$19-1)))/'Inputs & Mkt Adj'!$C$19 ->  | AO17: =SUMPRODUCT(INDEX(AO$22:AO$104,MATCH(2,1/(AO$22:AO$104<>0))):INDEX(AO$22:AO$104,MATCH(2,1/(AO$22:AO$104<>0))-('Inputs & Mkt Adj'!$C$19-1)))/'Inputs & Mkt Adj'!$C$19 ->  | AP17: =SUMPRODUCT(INDEX(AP$22:AP$104,MATCH(2,1/(AP$22:AP$104<>0))):INDEX(AP$22:AP$104,MATCH(2,1/(AP$22:AP$104<>0))-('Inputs & Mkt Adj'!$C$19-1)))/'Inputs & Mkt Adj'!$C$19 ->  | AQ17: =SUMPRODUCT(INDEX(AQ$22:AQ$104,MATCH(2,1/(AQ$22:AQ$104<>0))):INDEX(AQ$22:AQ$104,MATCH(2,1/(AQ$22:AQ$104<>0))-('Inputs & Mkt Adj'!$C$19-1)))/'Inputs & Mkt Adj'!$C$19 ->  | AR17: =SUMPRODUCT(INDEX(AR$22:AR$104,MATCH(2,1/(AR$22:AR$104<>0))):INDEX(AR$22:AR$104,MATCH(2,1/(AR$22:AR$104<>0))-('Inputs & Mkt Adj'!$C$19-1)))/'Inputs & Mkt Adj'!$C$19 ->  | AS17: =SUMPRODUCT(INDEX(AS$22:AS$104,MATCH(2,1/(AS$22:AS$104<>0))):INDEX(AS$22:AS$104,MATCH(2,1/(AS$22:AS$104<>0))-('Inputs & Mkt Adj'!$C$19-1)))/'Inputs & Mkt Adj'!$C$19 ->  | AT17: =SUMPRODUCT(INDEX(AT$22:AT$104,MATCH(2,1/(AT$22:AT$104<>0))):INDEX(AT$22:AT$104,MATCH(2,1/(AT$22:AT$104<>0))-('Inputs & Mkt Adj'!$C$19-1)))/'Inputs & Mkt Adj'!$C$19 ->  | AU17: =SUMPRODUCT(INDEX(AU$22:AU$104,MATCH(2,1/(AU$22:AU$104<>0))):INDEX(AU$22:AU$104,MATCH(2,1/(AU$22:AU$104<>0))-('Inputs & Mkt Adj'!$C$19-1)))/'Inputs & Mkt Adj'!$C$19 ->  | AV17: =SUMPRODUCT(INDEX(AV$22:AV$104,MATCH(2,1/(AV$22:AV$104<>0))):INDEX(AV$22:AV$104,MATCH(2,1/(AV$22:AV$104<>0))-('Inputs & Mkt Adj'!$C$19-1)))/'Inputs & Mkt Adj'!$C$19 ->  | AW17: =SUMPRODUCT(INDEX(AW$22:AW$104,MATCH(2,1/(AW$22:AW$104<>0))):INDEX(AW$22:AW$104,MATCH(2,1/(AW$22:AW$104<>0))-('Inputs & Mkt Adj'!$C$19-1)))/'Inputs & Mkt Adj'!$C$19 ->  | AX17: =SUMPRODUCT(INDEX(AX$22:AX$104,MATCH(2,1/(AX$22:AX$104<>0))):INDEX(AX$22:AX$104,MATCH(2,1/(AX$22:AX$104<>0))-('Inputs & Mkt Adj'!$C$19-1)))/'Inputs & Mkt Adj'!$C$19 ->  | AY17: =SUMPRODUCT(INDEX(AY$22:AY$104,MATCH(2,1/(AY$22:AY$104<>0))):INDEX(AY$22:AY$104,MATCH(2,1/(AY$22:AY$104<>0))-('Inputs & Mkt Adj'!$C$19-1)))/'Inputs & Mkt Adj'!$C$19 ->  | AZ17: =SUMPRODUCT(INDEX(AZ$22:AZ$104,MATCH(2,1/(AZ$22:AZ$104<>0))):INDEX(AZ$22:AZ$104,MATCH(2,1/(AZ$22:AZ$104<>0))-('Inputs & Mkt Adj'!$C$19-1)))/'Inputs & Mkt Adj'!$C$19 ->  | BA17: =SUMPRODUCT(INDEX(BA$22:BA$104,MATCH(2,1/(BA$22:BA$104<>0))):INDEX(BA$22:BA$104,MATCH(2,1/(BA$22:BA$104<>0))-('Inputs & Mkt Adj'!$C$19-1)))/'Inputs & Mkt Adj'!$C$19 ->  | BB17: =SUMPRODUCT(INDEX(BB$22:BB$104,MATCH(2,1/(BB$22:BB$104<>0))):INDEX(BB$22:BB$104,MATCH(2,1/(BB$22:BB$104<>0))-('Inputs & Mkt Adj'!$C$19-1)))/'Inputs & Mkt Adj'!$C$19 ->  | BC17: =SUMPRODUCT(INDEX(BC$22:BC$104,MATCH(2,1/(BC$22:BC$104<>0))):INDEX(BC$22:BC$104,MATCH(2,1/(BC$22:BC$104<>0))-('Inputs & Mkt Adj'!$C$19-1)))/'Inputs & Mkt Adj'!$C$19 ->  | BD17: =SUMPRODUCT(INDEX(BD$22:BD$104,MATCH(2,1/(BD$22:BD$104<>0))):INDEX(BD$22:BD$104,MATCH(2,1/(BD$22:BD$104<>0))-('Inputs & Mkt Adj'!$C$19-1)))/'Inputs & Mkt Adj'!$C$19 ->  | BE17: =SUMPRODUCT(INDEX(BE$22:BE$104,MATCH(2,1/(BE$22:BE$104<>0))):INDEX(BE$22:BE$104,MATCH(2,1/(BE$22:BE$104<>0))-('Inputs & Mkt Adj'!$C$19-1)))/'Inputs & Mkt Adj'!$C$19 ->  | BF17: =SUMPRODUCT(INDEX(BF$22:BF$104,MATCH(2,1/(BF$22:BF$104<>0))):INDEX(BF$22:BF$104,MATCH(2,1/(BF$22:BF$104<>0))-('Inputs & Mkt Adj'!$C$19-1)))/'Inputs & Mkt Adj'!$C$19 ->  | BG17: =SUMPRODUCT(INDEX(BG$22:BG$104,MATCH(2,1/(BG$22:BG$104<>0))):INDEX(BG$22:BG$104,MATCH(2,1/(BG$22:BG$104<>0))-('Inputs & Mkt Adj'!$C$19-1)))/'Inputs & Mkt Adj'!$C$19 ->  | BH17: =SUMPRODUCT(INDEX(BH$22:BH$104,MATCH(2,1/(BH$22:BH$104<>0))):INDEX(BH$22:BH$104,MATCH(2,1/(BH$22:BH$104<>0))-('Inputs & Mkt Adj'!$C$19-1)))/'Inputs & Mkt Adj'!$C$19 ->  | BI17: =SUMPRODUCT(INDEX(BI$22:BI$104,MATCH(2,1/(BI$22:BI$104<>0))):INDEX(BI$22:BI$104,MATCH(2,1/(BI$22:BI$104<>0))-('Inputs & Mkt Adj'!$C$19-1)))/'Inputs & Mkt Adj'!$C$19 ->  | BJ17: =SUMPRODUCT(INDEX(BJ$22:BJ$104,MATCH(2,1/(BJ$22:BJ$104<>0))):INDEX(BJ$22:BJ$104,MATCH(2,1/(BJ$22:BJ$104<>0))-('Inputs & Mkt Adj'!$C$19-1)))/'Inputs & Mkt Adj'!$C$19 -> 
J19: Spread Graph Generation Table Apartments
A20: Percent Quarterly Average | E20: Percent Quarterly Change Average | I20: Used | J20: Unique | K20: =IF(ISERROR(INDEX(Unique_Name,MATCH(0,COUNTIF($J$20:J20,Unique_Name),0))),0,INDEX(Unique_Name,MATCH(0,COUNTIF($J$20:J20,Unique_Name),0))) -> CA-LosAngeles-LongBeach-Glendale | L20: =IF(ISERROR(INDEX(Unique_Name,MATCH(0,COUNTIF($J$20:K20,Unique_Name),0))),0,INDEX(Unique_Name,MATCH(0,COUNTIF($J$20:K20,Unique_Name),0))) -> CA-SanDiego-Carlsbad | M20: =IF(ISERROR(INDEX(Unique_Name,MATCH(0,COUNTIF($J$20:L20,Unique_Name),0))),0,INDEX(Unique_Name,MATCH(0,COUNTIF($J$20:L20,Unique_Name),0))) -> CA-SanFrancisco-RedwoodCity-SouthSanFrancisco | N20: =IF(ISERROR(INDEX(Unique_Name,MATCH(0,COUNTIF($J$20:M20,Unique_Name),0))),0,INDEX(Unique_Name,MATCH(0,COUNTIF($J$20:M20,Unique_Name),0))) -> DC-VA-MD-WV-Washington-Arlington-Alexandria | O20: =IF(ISERROR(INDEX(Unique_Name,MATCH(0,COUNTIF($J$20:N20,Unique_Name),0))),0,INDEX(Unique_Name,MATCH(0,COUNTIF($J$20:N20,Unique_Name),0))) -> GA-Atlanta-SandySprings-Roswell | P20: =IF(ISERROR(INDEX(Unique_Name,MATCH(0,COUNTIF($J$20:O20,Unique_Name),0))),0,INDEX(Unique_Name,MATCH(0,COUNTIF($J$20:O20,Unique_Name),0))) -> IL-Chicago-Naperville-ArlingtonHeights | Q20: =IF(ISERROR(INDEX(Unique_Name,MATCH(0,COUNTIF($J$20:P20,Unique_Name),0))),0,INDEX(Unique_Name,MATCH(0,COUNTIF($J$20:P20,Unique_Name),0))) -> TX-Dallas-Plano-Irving | R20: =IF(ISERROR(INDEX(Unique_Name,MATCH(0,COUNTIF($J$20:Q20,Unique_Name),0))),0,INDEX(Unique_Name,MATCH(0,COUNTIF($J$20:Q20,Unique_Name),0))) -> TX-Houston-TheWoodlands-SugarLand | S20: =IF(ISERROR(INDEX(Unique_Name,MATCH(0,COUNTIF($J$20:R20,Unique_Name),0))),0,INDEX(Unique_Name,MATCH(0,COUNTIF($J$20:R20,Unique_Name),0))) -> WA-Seattle-Bellevue-Everett | T20: =IF(ISERROR(INDEX(Unique_Name,MATCH(0,COUNTIF($J$20:S20,Unique_Name),0))),0,INDEX(Unique_Name,MATCH(0,COUNTIF($J$20:S20,Unique_Name),0))) -> Austin-Round Rock-San Marcos, TX | U20: =IF(ISERROR(INDEX(Unique_Name,MATCH(0,COUNTIF($J$20:T20,Unique_Name),0))),0,INDEX(Unique_Name,MATCH(0,COUNTIF($J$20:T20,Unique_Name),0))) -> Baltimore-Towson, MD | V20: =IF(ISERROR(INDEX(Unique_Name,MATCH(0,COUNTIF($J$20:U20,Unique_Name),0))),0,INDEX(Unique_Name,MATCH(0,COUNTIF($J$20:U20,Unique_Name),0))) -> Birmingham-Hoover, AL | W20: =IF(ISERROR(INDEX(Unique_Name,MATCH(0,COUNTIF($J$20:V20,Unique_Name),0))),0,INDEX(Unique_Name,MATCH(0,COUNTIF($J$20:V20,Unique_Name),0))) -> Boston-Cambridge-Quincy, MA-NH | X20: =IF(ISERROR(INDEX(Unique_Name,MATCH(0,COUNTIF($J$20:W20,Unique_Name),0))),0,INDEX(Unique_Name,MATCH(0,COUNTIF($J$20:W20,Unique_Name),0))) -> Buffalo-Niagara Falls, NY | Y20: =IF(ISERROR(INDEX(Unique_Name,MATCH(0,COUNTIF($J$20:X20,Unique_Name),0))),0,INDEX(Unique_Name,MATCH(0,COUNTIF($J$20:X20,Unique_Name),0))) -> Charlotte-Gastonia-Rock Hill, NC-SC | Z20: =IF(ISERROR(INDEX(Unique_Name,MATCH(0,COUNTIF($J$20:Y20,Unique_Name),0))),0,INDEX(Unique_Name,MATCH(0,COUNTIF($J$20:Y20,Unique_Name),0))) -> Cincinnati-Middletown, OH-KY-IN | AA20: =IF(ISERROR(INDEX(Unique_Name,MATCH(0,COUNTIF($J$20:Z20,Unique_Name),0))),0,INDEX(Unique_Name,MATCH(0,COUNTIF($J$20:Z20,Unique_Name),0))) -> Cleveland-Elyria-Mentor, OH | AB20: =IF(ISERROR(INDEX(Unique_Name,MATCH(0,COUNTIF($J$20:AA20,Unique_Name),0))),0,INDEX(Unique_Name,MATCH(0,COUNTIF($J$20:AA20,Unique_Name),0))) -> Columbus, OH | AC20: =IF(ISERROR(INDEX(Unique_Name,MATCH(0,COUNTIF($J$20:AB20,Unique_Name),0))),0,INDEX(Unique_Name,MATCH(0,COUNTIF($J$20:AB20,Unique_Name),0))) -> Denver-Aurora-Broomfield, CO | AD20: =IF(ISERROR(INDEX(Unique_Name,MATCH(0,COUNTIF($J$20:AC20,Unique_Name),0))),0,INDEX(Unique_Name,MATCH(0,COUNTIF($J$20:AC20,Unique_Name),0))) -> Detroit-Warren-Livonia, MI | AE20: =IF(ISERROR(INDEX(Unique_Name,MATCH(0,COUNTIF($J$20:AD20,Unique_Name),0))),0,INDEX(Unique_Name,MATCH(0,COUNTIF($J$20:AD20,Unique_Name),0))) -> Hartford-West Hartford-East Hartford, CT | AF20: =IF(ISERROR(INDEX(Unique_Name,MATCH(0,COUNTIF($J$20:AE20,Unique_Name),0))),0,INDEX(Unique_Name,MATCH(0,COUNTIF($J$20:AE20,Unique_Name),0))) -> Indianapolis-Carmel, IN | AG20: =IF(ISERROR(INDEX(Unique_Name,MATCH(0,COUNTIF($J$20:AF20,Unique_Name),0))),0,INDEX(Unique_Name,MATCH(0,COUNTIF($J$20:AF20,Unique_Name),0))) -> Jacksonville, FL | AH20: =IF(ISERROR(INDEX(Unique_Name,MATCH(0,COUNTIF($J$20:AG20,Unique_Name),0))),0,INDEX(Unique_Name,MATCH(0,COUNTIF($J$20:AG20,Unique_Name),0))) -> Kansas City, MO-KS | AI20: =IF(ISERROR(INDEX(Unique_Name,MATCH(0,COUNTIF($J$20:AH20,Unique_Name),0))),0,INDEX(Unique_Name,MATCH(0,COUNTIF($J$20:AH20,Unique_Name),0))) -> Las Vegas-Paradise, NV | AJ20: =IF(ISERROR(INDEX(Unique_Name,MATCH(0,COUNTIF($J$20:AI20,Unique_Name),0))),0,INDEX(Unique_Name,MATCH(0,COUNTIF($J$20:AI20,Unique_Name),0))) -> Louisville/Jefferson County, KY-IN | AK20: =IF(ISERROR(INDEX(Unique_Name,MATCH(0,COUNTIF($J$20:AJ20,Unique_Name),0))),0,INDEX(Unique_Name,MATCH(0,COUNTIF($J$20:AJ20,Unique_Name),0))) -> Memphis, TN-MS-AR | AL20: =IF(ISERROR(INDEX(Unique_Name,MATCH(0,COUNTIF($J$20:AK20,Unique_Name),0))),0,INDEX(Unique_Name,MATCH(0,COUNTIF($J$20:AK20,Unique_Name),0))) -> Miami-Fort Lauderdale-Pompano Beach, FL | AM20: =IF(ISERROR(INDEX(Unique_Name,MATCH(0,COUNTIF($J$20:AL20,Unique_Name),0))),0,INDEX(Unique_Name,MATCH(0,COUNTIF($J$20:AL20,Unique_Name),0))) -> Milwaukee-Waukesha-West Allis, WI | AN20: =IF(ISERROR(INDEX(Unique_Name,MATCH(0,COUNTIF($J$20:AM20,Unique_Name),0))),0,INDEX(Unique_Name,MATCH(0,COUNTIF($J$20:AM20,Unique_Name),0))) -> Minneapolis-St. Paul-Bloomington, MN-WI | AO20: =IF(ISERROR(INDEX(Unique_Name,MATCH(0,COUNTIF($J$20:AN20,Unique_Name),0))),0,INDEX(Unique_Name,MATCH(0,COUNTIF($J$20:AN20,Unique_Name),0))) -> Nashville-Davidson--Murfreesboro--Franklin, TN | AP20: =IF(ISERROR(INDEX(Unique_Name,MATCH(0,COUNTIF($J$20:AO20,Unique_Name),0))),0,INDEX(Unique_Name,MATCH(0,COUNTIF($J$20:AO20,Unique_Name),0))) -> New Orleans-Metairie-Kenner, LA | AQ20: =IF(ISERROR(INDEX(Unique_Name,MATCH(0,COUNTIF($J$20:AP20,Unique_Name),0))),0,INDEX(Unique_Name,MATCH(0,COUNTIF($J$20:AP20,Unique_Name),0))) -> New York-Northern NJ-Long Island, NY-NJ-PA | AR20: =IF(ISERROR(INDEX(Unique_Name,MATCH(0,COUNTIF($J$20:AQ20,Unique_Name),0))),0,INDEX(Unique_Name,MATCH(0,COUNTIF($J$20:AQ20,Unique_Name),0))) -> Oklahoma City, OK | AS20: =IF(ISERROR(INDEX(Unique_Name,MATCH(0,COUNTIF($J$20:AR20,Unique_Name),0))),0,INDEX(Unique_Name,MATCH(0,COUNTIF($J$20:AR20,Unique_Name),0))) -> Orlando-Kissimmee-Sanford, FL | AT20: =IF(ISERROR(INDEX(Unique_Name,MATCH(0,COUNTIF($J$20:AS20,Unique_Name),0))),0,INDEX(Unique_Name,MATCH(0,COUNTIF($J$20:AS20,Unique_Name),0))) -> Philadelphia-Camden-Wilmington, PA-NJ-DE-MD | AU20: =IF(ISERROR(INDEX(Unique_Name,MATCH(0,COUNTIF($J$20:AT20,Unique_Name),0))),0,INDEX(Unique_Name,MATCH(0,COUNTIF($J$20:AT20,Unique_Name),0))) -> Phoenix-Mesa-Glendale, AZ | AV20: =IF(ISERROR(INDEX(Unique_Name,MATCH(0,COUNTIF($J$20:AU20,Unique_Name),0))),0,INDEX(Unique_Name,MATCH(0,COUNTIF($J$20:AU20,Unique_Name),0))) -> Pittsburgh, PA | AW20: =IF(ISERROR(INDEX(Unique_Name,MATCH(0,COUNTIF($J$20:AV20,Unique_Name),0))),0,INDEX(Unique_Name,MATCH(0,COUNTIF($J$20:AV20,Unique_Name),0))) -> Portland-Vancouver-Hillsboro, OR-WA | AX20: =IF(ISERROR(INDEX(Unique_Name,MATCH(0,COUNTIF($J$20:AW20,Unique_Name),0))),0,INDEX(Unique_Name,MATCH(0,COUNTIF($J$20:AW20,Unique_Name),0))) -> Providence-New Bedford-Fall River, RI-MA | AY20: =IF(ISERROR(INDEX(Unique_Name,MATCH(0,COUNTIF($J$20:AX20,Unique_Name),0))),0,INDEX(Unique_Name,MATCH(0,COUNTIF($J$20:AX20,Unique_Name),0))) -> Raleigh-Cary, NC | AZ20: =IF(ISERROR(INDEX(Unique_Name,MATCH(0,COUNTIF($J$20:AY20,Unique_Name),0))),0,INDEX(Unique_Name,MATCH(0,COUNTIF($J$20:AY20,Unique_Name),0))) -> Richmond, VA | BA20: =IF(ISERROR(INDEX(Unique_Name,MATCH(0,COUNTIF($J$20:AZ20,Unique_Name),0))),0,INDEX(Unique_Name,MATCH(0,COUNTIF($J$20:AZ20,Unique_Name),0))) -> Riverside-San Bernardino-Ontario, CA | BB20: =IF(ISERROR(INDEX(Unique_Name,MATCH(0,COUNTIF($J$20:BA20,Unique_Name),0))),0,INDEX(Unique_Name,MATCH(0,COUNTIF($J$20:BA20,Unique_Name),0))) -> Rochester, NY | BC20: =IF(ISERROR(INDEX(Unique_Name,MATCH(0,COUNTIF($J$20:BB20,Unique_Name),0))),0,INDEX(Unique_Name,MATCH(0,COUNTIF($J$20:BB20,Unique_Name),0))) -> Sacramento--Arden-Arcade--Roseville, CA | BD20: =IF(ISERROR(INDEX(Unique_Name,MATCH(0,COUNTIF($J$20:BC20,Unique_Name),0))),0,INDEX(Unique_Name,MATCH(0,COUNTIF($J$20:BC20,Unique_Name),0))) -> Salt Lake City, UT | BE20: =IF(ISERROR(INDEX(Unique_Name,MATCH(0,COUNTIF($J$20:BD20,Unique_Name),0))),0,INDEX(Unique_Name,MATCH(0,COUNTIF($J$20:BD20,Unique_Name),0))) -> San Antonio-New Braunfels, TX | BF20: =IF(ISERROR(INDEX(Unique_Name,MATCH(0,COUNTIF($J$20:BE20,Unique_Name),0))),0,INDEX(Unique_Name,MATCH(0,COUNTIF($J$20:BE20,Unique_Name),0))) -> San Jose-Sunnyvale-Santa Clara, CA | BG20: =IF(ISERROR(INDEX(Unique_Name,MATCH(0,COUNTIF($J$20:BF20,Unique_Name),0))),0,INDEX(Unique_Name,MATCH(0,COUNTIF($J$20:BF20,Unique_Name),0))) -> St. Louis, MO-IL | BH20: =IF(ISERROR(INDEX(Unique_Name,MATCH(0,COUNTIF($J$20:BG20,Unique_Name),0))),0,INDEX(Unique_Name,MATCH(0,COUNTIF($J$20:BG20,Unique_Name),0))) -> Tampa-St. Petersburg-Clearwater, FL | BI20: =IF(ISERROR(INDEX(Unique_Name,MATCH(0,COUNTIF($J$20:BH20,Unique_Name),0))),0,INDEX(Unique_Name,MATCH(0,COUNTIF($J$20:BH20,Unique_Name),0))) -> Virginia Beach-Norfolk-Newport News, VA-NC | BJ20: =IF(ISERROR(INDEX(Unique_Name,MATCH(0,COUNTIF($J$20:BI20,Unique_Name),0))),0,INDEX(Unique_Name,MATCH(0,COUNTIF($J$20:BI20,Unique_Name),0))) -> 0
A21: DATE | B21: VALUE | E21: DATE | F21: VALUE | J21: Quarter | K21: ='Inputs & Mkt Adj'!$C$5 -> A | L21: ='Inputs & Mkt Adj'!$C$5 -> A | M21: ='Inputs & Mkt Adj'!$C$5 -> A | N21: ='Inputs & Mkt Adj'!$C$5 -> A | O21: ='Inputs & Mkt Adj'!$C$5 -> A | P21: ='Inputs & Mkt Adj'!$C$5 -> A | Q21: ='Inputs & Mkt Adj'!$C$5 -> A | R21: ='Inputs & Mkt Adj'!$C$5 -> A | S21: ='Inputs & Mkt Adj'!$C$5 -> A | T21: ='Inputs & Mkt Adj'!$C$5 -> A | U21: ='Inputs & Mkt Adj'!$C$5 -> A | V21: ='Inputs & Mkt Adj'!$C$5 -> A | W21: ='Inputs & Mkt Adj'!$C$5 -> A | X21: ='Inputs & Mkt Adj'!$C$5 -> A | Y21: ='Inputs & Mkt Adj'!$C$5 -> A | Z21: ='Inputs & Mkt Adj'!$C$5 -> A | AA21: ='Inputs & Mkt Adj'!$C$5 -> A | AB21: ='Inputs & Mkt Adj'!$C$5 -> A | AC21: ='Inputs & Mkt Adj'!$C$5 -> A | AD21: ='Inputs & Mkt Adj'!$C$5 -> A | AE21: ='Inputs & Mkt Adj'!$C$5 -> A | AF21: ='Inputs & Mkt Adj'!$C$5 -> A | AG21: ='Inputs & Mkt Adj'!$C$5 -> A | AH21: ='Inputs & Mkt Adj'!$C$5 -> A | AI21: ='Inputs & Mkt Adj'!$C$5 -> A | AJ21: ='Inputs & Mkt Adj'!$C$5 -> A | AK21: ='Inputs & Mkt Adj'!$C$5 -> A | AL21: ='Inputs & Mkt Adj'!$C$5 -> A | AM21: ='Inputs & Mkt Adj'!$C$5 -> A | AN21: ='Inputs & Mkt Adj'!$C$5 -> A | AO21: ='Inputs & Mkt Adj'!$C$5 -> A | AP21: ='Inputs & Mkt Adj'!$C$5 -> A | AQ21: ='Inputs & Mkt Adj'!$C$5 -> A | AR21: ='Inputs & Mkt Adj'!$C$5 -> A | AS21: ='Inputs & Mkt Adj'!$C$5 -> A | AT21: ='Inputs & Mkt Adj'!$C$5 -> A | AU21: ='Inputs & Mkt Adj'!$C$5 -> A | AV21: ='Inputs & Mkt Adj'!$C$5 -> A | AW21: ='Inputs & Mkt Adj'!$C$5 -> A | AX21: ='Inputs & Mkt Adj'!$C$5 -> A | AY21: ='Inputs & Mkt Adj'!$C$5 -> A | AZ21: ='Inputs & Mkt Adj'!$C$5 -> A | BA21: ='Inputs & Mkt Adj'!$C$5 -> A | BB21: ='Inputs & Mkt Adj'!$C$5 -> A | BC21: ='Inputs & Mkt Adj'!$C$5 -> A | BD21: ='Inputs & Mkt Adj'!$C$5 -> A | BE21: ='Inputs & Mkt Adj'!$C$5 -> A | BF21: ='Inputs & Mkt Adj'!$C$5 -> A | BG21: ='Inputs & Mkt Adj'!$C$5 -> A | BH21: ='Inputs & Mkt Adj'!$C$5 -> A | BI21: ='Inputs & Mkt Adj'!$C$5 -> A | BJ21: ='Inputs & Mkt Adj'!$C$5 -> A
A22: 1962-01-01 | B22: 4.02 | C22: =B22/100 -> 0.0402 | E22: 1962-01-01 | F22: 0 | I22: =INDEX(K22:AN22,MATCH('Inputs & Mkt Adj'!$C$4,'TNG Spread Calc'!$K$20:$AN$20,0)) -> 0 | J22: 1996-01-01 | K22: =IF('Cap Rate Graph Table'!C8=0,0,IF(ISNA('Cap Rate Graph Table'!C8-INDEX('TNG Spread Calc'!$C$22:$C$240,MATCH('TNG Spread Calc'!$J22,'TNG Spread Calc'!$A$22:$A$240,0)))=TRUE,0,'Cap Rate Graph Table'!C8-INDEX('TNG Spread Calc'!$C$22:$C$240,MATCH('TNG Spread Calc'!$J22,'TNG Spread Calc'!$A$22:$A$240,0)))) -> 0 | L22: =IF('Cap Rate Graph Table'!D8=0,0,IF(ISNA('Cap Rate Graph Table'!D8-INDEX('TNG Spread Calc'!$C$22:$C$240,MATCH('TNG Spread Calc'!$J22,'TNG Spread Calc'!$A$22:$A$240,0)))=TRUE,0,'Cap Rate Graph Table'!D8-INDEX('TNG Spread Calc'!$C$22:$C$240,MATCH('TNG Spread Calc'!$J22,'TNG Spread Calc'!$A$22:$A$240,0)))) -> 0 | M22: =IF('Cap Rate Graph Table'!E8=0,0,IF(ISNA('Cap Rate Graph Table'!E8-INDEX('TNG Spread Calc'!$C$22:$C$240,MATCH('TNG Spread Calc'!$J22,'TNG Spread Calc'!$A$22:$A$240,0)))=TRUE,0,'Cap Rate Graph Table'!E8-INDEX('TNG Spread Calc'!$C$22:$C$240,MATCH('TNG Spread Calc'!$J22,'TNG Spread Calc'!$A$22:$A$240,0)))) -> 0 | N22: =IF('Cap Rate Graph Table'!F8=0,0,IF(ISNA('Cap Rate Graph Table'!F8-INDEX('TNG Spread Calc'!$C$22:$C$240,MATCH('TNG Spread Calc'!$J22,'TNG Spread Calc'!$A$22:$A$240,0)))=TRUE,0,'Cap Rate Graph Table'!F8-INDEX('TNG Spread Calc'!$C$22:$C$240,MATCH('TNG Spread Calc'!$J22,'TNG Spread Calc'!$A$22:$A$240,0)))) -> 0 | O22: =IF('Cap Rate Graph Table'!G8=0,0,IF(ISNA('Cap Rate Graph Table'!G8-INDEX('TNG Spread Calc'!$C$22:$C$240,MATCH('TNG Spread Calc'!$J22,'TNG Spread Calc'!$A$22:$A$240,0)))=TRUE,0,'Cap Rate Graph Table'!G8-INDEX('TNG Spread Calc'!$C$22:$C$240,MATCH('TNG Spread Calc'!$J22,'TNG Spread Calc'!$A$22:$A$240,0)))) -> 0 | P22: =IF('Cap Rate Graph Table'!H8=0,0,IF(ISNA('Cap Rate Graph Table'!H8-INDEX('TNG Spread Calc'!$C$22:$C$240,MATCH('TNG Spread Calc'!$J22,'TNG Spread Calc'!$A$22:$A$240,0)))=TRUE,0,'Cap Rate Graph Table'!H8-INDEX('TNG Spread Calc'!$C$22:$C$240,MATCH('TNG Spread Calc'!$J22,'TNG Spread Calc'!$A$22:$A$240,0)))) -> 0 | Q22: =IF('Cap Rate Graph Table'!I8=0,0,IF(ISNA('Cap Rate Graph Table'!I8-INDEX('TNG Spread Calc'!$C$22:$C$240,MATCH('TNG Spread Calc'!$J22,'TNG Spread Calc'!$A$22:$A$240,0)))=TRUE,0,'Cap Rate Graph Table'!I8-INDEX('TNG Spread Calc'!$C$22:$C$240,MATCH('TNG Spread Calc'!$J22,'TNG Spread Calc'!$A$22:$A$240,0)))) -> 0 | R22: =IF('Cap Rate Graph Table'!J8=0,0,IF(ISNA('Cap Rate Graph Table'!J8-INDEX('TNG Spread Calc'!$C$22:$C$240,MATCH('TNG Spread Calc'!$J22,'TNG Spread Calc'!$A$22:$A$240,0)))=TRUE,0,'Cap Rate Graph Table'!J8-INDEX('TNG Spread Calc'!$C$22:$C$240,MATCH('TNG Spread Calc'!$J22,'TNG Spread Calc'!$A$22:$A$240,0)))) -> 0 | S22: =IF('Cap Rate Graph Table'!K8=0,0,IF(ISNA('Cap Rate Graph Table'!K8-INDEX('TNG Spread Calc'!$C$22:$C$240,MATCH('TNG Spread Calc'!$J22,'TNG Spread Calc'!$A$22:$A$240,0)))=TRUE,0,'Cap Rate Graph Table'!K8-INDEX('TNG Spread Calc'!$C$22:$C$240,MATCH('TNG Spread Calc'!$J22,'TNG Spread Calc'!$A$22:$A$240,0)))) -> 0 | T22: =IF('Cap Rate Graph Table'!L8=0,0,IF(ISNA('Cap Rate Graph Table'!L8-INDEX('TNG Spread Calc'!$C$22:$C$240,MATCH('TNG Spread Calc'!$J22,'TNG Spread Calc'!$A$22:$A$240,0)))=TRUE,0,'Cap Rate Graph Table'!L8-INDEX('TNG Spread Calc'!$C$22:$C$240,MATCH('TNG Spread Calc'!$J22,'TNG Spread Calc'!$A$22:$A$240,0)))) -> 0 | U22: =IF('Cap Rate Graph Table'!M8=0,0,IF(ISNA('Cap Rate Graph Table'!M8-INDEX('TNG Spread Calc'!$C$22:$C$240,MATCH('TNG Spread Calc'!$J22,'TNG Spread Calc'!$A$22:$A$240,0)))=TRUE,0,'Cap Rate Graph Table'!M8-INDEX('TNG Spread Calc'!$C$22:$C$240,MATCH('TNG Spread Calc'!$J22,'TNG Spread Calc'!$A$22:$A$240,0)))) -> 0 | V22: =IF('Cap Rate Graph Table'!N8=0,0,IF(ISNA('Cap Rate Graph Table'!N8-INDEX('TNG Spread Calc'!$C$22:$C$240,MATCH('TNG Spread Calc'!$J22,'TNG Spread Calc'!$A$22:$A$240,0)))=TRUE,0,'Cap Rate Graph Table'!N8-INDEX('TNG Spread Calc'!$C$22:$C$240,MATCH('TNG Spread Calc'!$J22,'TNG Spread Calc'!$A$22:$A$240,0)))) -> 0 | W22: =IF('Cap Rate Graph Table'!O8=0,0,IF(ISNA('Cap Rate Graph Table'!O8-INDEX('TNG Spread Calc'!$C$22:$C$240,MATCH('TNG Spread Calc'!$J22,'TNG Spread Calc'!$A$22:$A$240,0)))=TRUE,0,'Cap Rate Graph Table'!O8-INDEX('TNG Spread Calc'!$C$22:$C$240,MATCH('TNG Spread Calc'!$J22,'TNG Spread Calc'!$A$22:$A$240,0)))) -> 0 | X22: =IF('Cap Rate Graph Table'!P8=0,0,IF(ISNA('Cap Rate Graph Table'!P8-INDEX('TNG Spread Calc'!$C$22:$C$240,MATCH('TNG Spread Calc'!$J22,'TNG Spread Calc'!$A$22:$A$240,0)))=TRUE,0,'Cap Rate Graph Table'!P8-INDEX('TNG Spread Calc'!$C$22:$C$240,MATCH('TNG Spread Calc'!$J22,'TNG Spread Calc'!$A$22:$A$240,0)))) -> 0 | Y22: =IF('Cap Rate Graph Table'!Q8=0,0,IF(ISNA('Cap Rate Graph Table'!Q8-INDEX('TNG Spread Calc'!$C$22:$C$240,MATCH('TNG Spread Calc'!$J22,'TNG Spread Calc'!$A$22:$A$240,0)))=TRUE,0,'Cap Rate Graph Table'!Q8-INDEX('TNG Spread Calc'!$C$22:$C$240,MATCH('TNG Spread Calc'!$J22,'TNG Spread Calc'!$A$22:$A$240,0)))) -> 0 | Z22: =IF('Cap Rate Graph Table'!R8=0,0,IF(ISNA('Cap Rate Graph Table'!R8-INDEX('TNG Spread Calc'!$C$22:$C$240,MATCH('TNG Spread Calc'!$J22,'TNG Spread Calc'!$A$22:$A$240,0)))=TRUE,0,'Cap Rate Graph Table'!R8-INDEX('TNG Spread Calc'!$C$22:$C$240,MATCH('TNG Spread Calc'!$J22,'TNG Spread Calc'!$A$22:$A$240,0)))) -> 0 | AA22: =IF('Cap Rate Graph Table'!S8=0,0,IF(ISNA('Cap Rate Graph Table'!S8-INDEX('TNG Spread Calc'!$C$22:$C$240,MATCH('TNG Spread Calc'!$J22,'TNG Spread Calc'!$A$22:$A$240,0)))=TRUE,0,'Cap Rate Graph Table'!S8-INDEX('TNG Spread Calc'!$C$22:$C$240,MATCH('TNG Spread Calc'!$J22,'TNG Spread Calc'!$A$22:$A$240,0)))) -> 0 | AB22: =IF('Cap Rate Graph Table'!T8=0,0,IF(ISNA('Cap Rate Graph Table'!T8-INDEX('TNG Spread Calc'!$C$22:$C$240,MATCH('TNG Spread Calc'!$J22,'TNG Spread Calc'!$A$22:$A$240,0)))=TRUE,0,'Cap Rate Graph Table'!T8-INDEX('TNG Spread Calc'!$C$22:$C$240,MATCH('TNG Spread Calc'!$J22,'TNG Spread Calc'!$A$22:$A$240,0)))) -> 0 | AC22: =IF('Cap Rate Graph Table'!U8=0,0,IF(ISNA('Cap Rate Graph Table'!U8-INDEX('TNG Spread Calc'!$C$22:$C$240,MATCH('TNG Spread Calc'!$J22,'TNG Spread Calc'!$A$22:$A$240,0)))=TRUE,0,'Cap Rate Graph Table'!U8-INDEX('TNG Spread Calc'!$C$22:$C$240,MATCH('TNG Spread Calc'!$J22,'TNG Spread Calc'!$A$22:$A$240,0)))) -> 0 | AD22: =IF('Cap Rate Graph Table'!V8=0,0,IF(ISNA('Cap Rate Graph Table'!V8-INDEX('TNG Spread Calc'!$C$22:$C$240,MATCH('TNG Spread Calc'!$J22,'TNG Spread Calc'!$A$22:$A$240,0)))=TRUE,0,'Cap Rate Graph Table'!V8-INDEX('TNG Spread Calc'!$C$22:$C$240,MATCH('TNG Spread Calc'!$J22,'TNG Spread Calc'!$A$22:$A$240,0)))) -> 0 | AE22: =IF('Cap Rate Graph Table'!W8=0,0,IF(ISNA('Cap Rate Graph Table'!W8-INDEX('TNG Spread Calc'!$C$22:$C$240,MATCH('TNG Spread Calc'!$J22,'TNG Spread Calc'!$A$22:$A$240,0)))=TRUE,0,'Cap Rate Graph Table'!W8-INDEX('TNG Spread Calc'!$C$22:$C$240,MATCH('TNG Spread Calc'!$J22,'TNG Spread Calc'!$A$22:$A$240,0)))) -> 0 | AF22: =IF('Cap Rate Graph Table'!X8=0,0,IF(ISNA('Cap Rate Graph Table'!X8-INDEX('TNG Spread Calc'!$C$22:$C$240,MATCH('TNG Spread Calc'!$J22,'TNG Spread Calc'!$A$22:$A$240,0)))=TRUE,0,'Cap Rate Graph Table'!X8-INDEX('TNG Spread Calc'!$C$22:$C$240,MATCH('TNG Spread Calc'!$J22,'TNG Spread Calc'!$A$22:$A$240,0)))) -> 0 | AG22: =IF('Cap Rate Graph Table'!Y8=0,0,IF(ISNA('Cap Rate Graph Table'!Y8-INDEX('TNG Spread Calc'!$C$22:$C$240,MATCH('TNG Spread Calc'!$J22,'TNG Spread Calc'!$A$22:$A$240,0)))=TRUE,0,'Cap Rate Graph Table'!Y8-INDEX('TNG Spread Calc'!$C$22:$C$240,MATCH('TNG Spread Calc'!$J22,'TNG Spread Calc'!$A$22:$A$240,0)))) -> 0 | AH22: =IF('Cap Rate Graph Table'!Z8=0,0,IF(ISNA('Cap Rate Graph Table'!Z8-INDEX('TNG Spread Calc'!$C$22:$C$240,MATCH('TNG Spread Calc'!$J22,'TNG Spread Calc'!$A$22:$A$240,0)))=TRUE,0,'Cap Rate Graph Table'!Z8-INDEX('TNG Spread Calc'!$C$22:$C$240,MATCH('TNG Spread Calc'!$J22,'TNG Spread Calc'!$A$22:$A$240,0)))) -> 0 | AI22: =IF('Cap Rate Graph Table'!AA8=0,0,IF(ISNA('Cap Rate Graph Table'!AA8-INDEX('TNG Spread Calc'!$C$22:$C$240,MATCH('TNG Spread Calc'!$J22,'TNG Spread Calc'!$A$22:$A$240,0)))=TRUE,0,'Cap Rate Graph Table'!AA8-INDEX('TNG Spread Calc'!$C$22:$C$240,MATCH('TNG Spread Calc'!$J22,'TNG Spread Calc'!$A$22:$A$240,0)))) -> 0 | AJ22: =IF('Cap Rate Graph Table'!AB8=0,0,IF(ISNA('Cap Rate Graph Table'!AB8-INDEX('TNG Spread Calc'!$C$22:$C$240,MATCH('TNG Spread Calc'!$J22,'TNG Spread Calc'!$A$22:$A$240,0)))=TRUE,0,'Cap Rate Graph Table'!AB8-INDEX('TNG Spread Calc'!$C$22:$C$240,MATCH('TNG Spread Calc'!$J22,'TNG Spread Calc'!$A$22:$A$240,0)))) -> 0 | AK22: =IF('Cap Rate Graph Table'!AC8=0,0,IF(ISNA('Cap Rate Graph Table'!AC8-INDEX('TNG Spread Calc'!$C$22:$C$240,MATCH('TNG Spread Calc'!$J22,'TNG Spread Calc'!$A$22:$A$240,0)))=TRUE,0,'Cap Rate Graph Table'!AC8-INDEX('TNG Spread Calc'!$C$22:$C$240,MATCH('TNG Spread Calc'!$J22,'TNG Spread Calc'!$A$22:$A$240,0)))) -> 0 | AL22: =IF('Cap Rate Graph Table'!AD8=0,0,IF(ISNA('Cap Rate Graph Table'!AD8-INDEX('TNG Spread Calc'!$C$22:$C$240,MATCH('TNG Spread Calc'!$J22,'TNG Spread Calc'!$A$22:$A$240,0)))=TRUE,0,'Cap Rate Graph Table'!AD8-INDEX('TNG Spread Calc'!$C$22:$C$240,MATCH('TNG Spread Calc'!$J22,'TNG Spread Calc'!$A$22:$A$240,0)))) -> 0 | AM22: =IF('Cap Rate Graph Table'!AE8=0,0,IF(ISNA('Cap Rate Graph Table'!AE8-INDEX('TNG Spread Calc'!$C$22:$C$240,MATCH('TNG Spread Calc'!$J22,'TNG Spread Calc'!$A$22:$A$240,0)))=TRUE,0,'Cap Rate Graph Table'!AE8-INDEX('TNG Spread Calc'!$C$22:$C$240,MATCH('TNG Spread Calc'!$J22,'TNG Spread Calc'!$A$22:$A$240,0)))) -> 0 | AN22: =IF('Cap Rate Graph Table'!AF8=0,0,IF(ISNA('Cap Rate Graph Table'!AF8-INDEX('TNG Spread Calc'!$C$22:$C$240,MATCH('TNG Spread Calc'!$J22,'TNG Spread Calc'!$A$22:$A$240,0)))=TRUE,0,'Cap Rate Graph Table'!AF8-INDEX('TNG Spread Calc'!$C$22:$C$240,MATCH('TNG Spread Calc'!$J22,'TNG Spread Calc'!$A$22:$A$240,0)))) -> 0 | AO22: =IF('Cap Rate Graph Table'!AG8=0,0,IF(ISNA('Cap Rate Graph Table'!AG8-INDEX('TNG Spread Calc'!$C$22:$C$240,MATCH('TNG Spread Calc'!$J22,'TNG Spread Calc'!$A$22:$A$240,0)))=TRUE,0,'Cap Rate Graph Table'!AG8-INDEX('TNG Spread Calc'!$C$22:$C$240,MATCH('TNG Spread Calc'!$J22,'TNG Spread Calc'!$A$22:$A$240,0)))) -> 0 | AP22: =IF('Cap Rate Graph Table'!AH8=0,0,IF(ISNA('Cap Rate Graph Table'!AH8-INDEX('TNG Spread Calc'!$C$22:$C$240,MATCH('TNG Spread Calc'!$J22,'TNG Spread Calc'!$A$22:$A$240,0)))=TRUE,0,'Cap Rate Graph Table'!AH8-INDEX('TNG Spread Calc'!$C$22:$C$240,MATCH('TNG Spread Calc'!$J22,'TNG Spread Calc'!$A$22:$A$240,0)))) -> 0 | AQ22: =IF('Cap Rate Graph Table'!AI8=0,0,IF(ISNA('Cap Rate Graph Table'!AI8-INDEX('TNG Spread Calc'!$C$22:$C$240,MATCH('TNG Spread Calc'!$J22,'TNG Spread Calc'!$A$22:$A$240,0)))=TRUE,0,'Cap Rate Graph Table'!AI8-INDEX('TNG Spread Calc'!$C$22:$C$240,MATCH('TNG Spread Calc'!$J22,'TNG Spread Calc'!$A$22:$A$240,0)))) -> 0 | AR22: =IF('Cap Rate Graph Table'!AJ8=0,0,IF(ISNA('Cap Rate Graph Table'!AJ8-INDEX('TNG Spread Calc'!$C$22:$C$240,MATCH('TNG Spread Calc'!$J22,'TNG Spread Calc'!$A$22:$A$240,0)))=TRUE,0,'Cap Rate Graph Table'!AJ8-INDEX('TNG Spread Calc'!$C$22:$C$240,MATCH('TNG Spread Calc'!$J22,'TNG Spread Calc'!$A$22:$A$240,0)))) -> 0 | AS22: =IF('Cap Rate Graph Table'!AK8=0,0,IF(ISNA('Cap Rate Graph Table'!AK8-INDEX('TNG Spread Calc'!$C$22:$C$240,MATCH('TNG Spread Calc'!$J22,'TNG Spread Calc'!$A$22:$A$240,0)))=TRUE,0,'Cap Rate Graph Table'!AK8-INDEX('TNG Spread Calc'!$C$22:$C$240,MATCH('TNG Spread Calc'!$J22,'TNG Spread Calc'!$A$22:$A$240,0)))) -> 0 | AT22: =IF('Cap Rate Graph Table'!AL8=0,0,IF(ISNA('Cap Rate Graph Table'!AL8-INDEX('TNG Spread Calc'!$C$22:$C$240,MATCH('TNG Spread Calc'!$J22,'TNG Spread Calc'!$A$22:$A$240,0)))=TRUE,0,'Cap Rate Graph Table'!AL8-INDEX('TNG Spread Calc'!$C$22:$C$240,MATCH('TNG Spread Calc'!$J22,'TNG Spread Calc'!$A$22:$A$240,0)))) -> 0 | AU22: =IF('Cap Rate Graph Table'!AM8=0,0,IF(ISNA('Cap Rate Graph Table'!AM8-INDEX('TNG Spread Calc'!$C$22:$C$240,MATCH('TNG Spread Calc'!$J22,'TNG Spread Calc'!$A$22:$A$240,0)))=TRUE,0,'Cap Rate Graph Table'!AM8-INDEX('TNG Spread Calc'!$C$22:$C$240,MATCH('TNG Spread Calc'!$J22,'TNG Spread Calc'!$A$22:$A$240,0)))) -> 0 | AV22: =IF('Cap Rate Graph Table'!AN8=0,0,IF(ISNA('Cap Rate Graph Table'!AN8-INDEX('TNG Spread Calc'!$C$22:$C$240,MATCH('TNG Spread Calc'!$J22,'TNG Spread Calc'!$A$22:$A$240,0)))=TRUE,0,'Cap Rate Graph Table'!AN8-INDEX('TNG Spread Calc'!$C$22:$C$240,MATCH('TNG Spread Calc'!$J22,'TNG Spread Calc'!$A$22:$A$240,0)))) -> 0 | AW22: =IF('Cap Rate Graph Table'!AO8=0,0,IF(ISNA('Cap Rate Graph Table'!AO8-INDEX('TNG Spread Calc'!$C$22:$C$240,MATCH('TNG Spread Calc'!$J22,'TNG Spread Calc'!$A$22:$A$240,0)))=TRUE,0,'Cap Rate Graph Table'!AO8-INDEX('TNG Spread Calc'!$C$22:$C$240,MATCH('TNG Spread Calc'!$J22,'TNG Spread Calc'!$A$22:$A$240,0)))) -> 0 | AX22: =IF('Cap Rate Graph Table'!AP8=0,0,IF(ISNA('Cap Rate Graph Table'!AP8-INDEX('TNG Spread Calc'!$C$22:$C$240,MATCH('TNG Spread Calc'!$J22,'TNG Spread Calc'!$A$22:$A$240,0)))=TRUE,0,'Cap Rate Graph Table'!AP8-INDEX('TNG Spread Calc'!$C$22:$C$240,MATCH('TNG Spread Calc'!$J22,'TNG Spread Calc'!$A$22:$A$240,0)))) -> 0 | AY22: =IF('Cap Rate Graph Table'!AQ8=0,0,IF(ISNA('Cap Rate Graph Table'!AQ8-INDEX('TNG Spread Calc'!$C$22:$C$240,MATCH('TNG Spread Calc'!$J22,'TNG Spread Calc'!$A$22:$A$240,0)))=TRUE,0,'Cap Rate Graph Table'!AQ8-INDEX('TNG Spread Calc'!$C$22:$C$240,MATCH('TNG Spread Calc'!$J22,'TNG Spread Calc'!$A$22:$A$240,0)))) -> 0 | AZ22: =IF('Cap Rate Graph Table'!AR8=0,0,IF(ISNA('Cap Rate Graph Table'!AR8-INDEX('TNG Spread Calc'!$C$22:$C$240,MATCH('TNG Spread Calc'!$J22,'TNG Spread Calc'!$A$22:$A$240,0)))=TRUE,0,'Cap Rate Graph Table'!AR8-INDEX('TNG Spread Calc'!$C$22:$C$240,MATCH('TNG Spread Calc'!$J22,'TNG Spread Calc'!$A$22:$A$240,0)))) -> 0 | BA22: =IF('Cap Rate Graph Table'!AS8=0,0,IF(ISNA('Cap Rate Graph Table'!AS8-INDEX('TNG Spread Calc'!$C$22:$C$240,MATCH('TNG Spread Calc'!$J22,'TNG Spread Calc'!$A$22:$A$240,0)))=TRUE,0,'Cap Rate Graph Table'!AS8-INDEX('TNG Spread Calc'!$C$22:$C$240,MATCH('TNG Spread Calc'!$J22,'TNG Spread Calc'!$A$22:$A$240,0)))) -> 0 | BB22: =IF('Cap Rate Graph Table'!AT8=0,0,IF(ISNA('Cap Rate Graph Table'!AT8-INDEX('TNG Spread Calc'!$C$22:$C$240,MATCH('TNG Spread Calc'!$J22,'TNG Spread Calc'!$A$22:$A$240,0)))=TRUE,0,'Cap Rate Graph Table'!AT8-INDEX('TNG Spread Calc'!$C$22:$C$240,MATCH('TNG Spread Calc'!$J22,'TNG Spread Calc'!$A$22:$A$240,0)))) -> 0 | BC22: =IF('Cap Rate Graph Table'!AU8=0,0,IF(ISNA('Cap Rate Graph Table'!AU8-INDEX('TNG Spread Calc'!$C$22:$C$240,MATCH('TNG Spread Calc'!$J22,'TNG Spread Calc'!$A$22:$A$240,0)))=TRUE,0,'Cap Rate Graph Table'!AU8-INDEX('TNG Spread Calc'!$C$22:$C$240,MATCH('TNG Spread Calc'!$J22,'TNG Spread Calc'!$A$22:$A$240,0)))) -> 0 | BD22: =IF('Cap Rate Graph Table'!AV8=0,0,IF(ISNA('Cap Rate Graph Table'!AV8-INDEX('TNG Spread Calc'!$C$22:$C$240,MATCH('TNG Spread Calc'!$J22,'TNG Spread Calc'!$A$22:$A$240,0)))=TRUE,0,'Cap Rate Graph Table'!AV8-INDEX('TNG Spread Calc'!$C$22:$C$240,MATCH('TNG Spread Calc'!$J22,'TNG Spread Calc'!$A$22:$A$240,0)))) -> 0 | BE22: =IF('Cap Rate Graph Table'!AW8=0,0,IF(ISNA('Cap Rate Graph Table'!AW8-INDEX('TNG Spread Calc'!$C$22:$C$240,MATCH('TNG Spread Calc'!$J22,'TNG Spread Calc'!$A$22:$A$240,0)))=TRUE,0,'Cap Rate Graph Table'!AW8-INDEX('TNG Spread Calc'!$C$22:$C$240,MATCH('TNG Spread Calc'!$J22,'TNG Spread Calc'!$A$22:$A$240,0)))) -> 0 | BF22: =IF('Cap Rate Graph Table'!AX8=0,0,IF(ISNA('Cap Rate Graph Table'!AX8-INDEX('TNG Spread Calc'!$C$22:$C$240,MATCH('TNG Spread Calc'!$J22,'TNG Spread Calc'!$A$22:$A$240,0)))=TRUE,0,'Cap Rate Graph Table'!AX8-INDEX('TNG Spread Calc'!$C$22:$C$240,MATCH('TNG Spread Calc'!$J22,'TNG Spread Calc'!$A$22:$A$240,0)))) -> 0 | BG22: =IF('Cap Rate Graph Table'!AY8=0,0,IF(ISNA('Cap Rate Graph Table'!AY8-INDEX('TNG Spread Calc'!$C$22:$C$240,MATCH('TNG Spread Calc'!$J22,'TNG Spread Calc'!$A$22:$A$240,0)))=TRUE,0,'Cap Rate Graph Table'!AY8-INDEX('TNG Spread Calc'!$C$22:$C$240,MATCH('TNG Spread Calc'!$J22,'TNG Spread Calc'!$A$22:$A$240,0)))) -> 0 | BH22: =IF('Cap Rate Graph Table'!AZ8=0,0,IF(ISNA('Cap Rate Graph Table'!AZ8-INDEX('TNG Spread Calc'!$C$22:$C$240,MATCH('TNG Spread Calc'!$J22,'TNG Spread Calc'!$A$22:$A$240,0)))=TRUE,0,'Cap Rate Graph Table'!AZ8-INDEX('TNG Spread Calc'!$C$22:$C$240,MATCH('TNG Spread Calc'!$J22,'TNG Spread Calc'!$A$22:$A$240,0)))) -> 0 | BI22: =IF('Cap Rate Graph Table'!BA8=0,0,IF(ISNA('Cap Rate Graph Table'!BA8-INDEX('TNG Spread Calc'!$C$22:$C$240,MATCH('TNG Spread Calc'!$J22,'TNG Spread Calc'!$A$22:$A$240,0)))=TRUE,0,'Cap Rate Graph Table'!BA8-INDEX('TNG Spread Calc'!$C$22:$C$240,MATCH('TNG Spread Calc'!$J22,'TNG Spread Calc'!$A$22:$A$240,0)))) -> 0 | BJ22: =IF('Cap Rate Graph Table'!BB8=0,0,IF(ISNA('Cap Rate Graph Table'!BB8-INDEX('TNG Spread Calc'!$C$22:$C$240,MATCH('TNG Spread Calc'!$J22,'TNG Spread Calc'!$A$22:$A$240,0)))=TRUE,0,'Cap Rate Graph Table'!BB8-INDEX('TNG Spread Calc'!$C$22:$C$240,MATCH('TNG Spread Calc'!$J22,'TNG Spread Calc'!$A$22:$A$240,0)))) -> 0
A23: 1962-04-01 | B23: 3.88 | C23: =B23/100 -> 0.0388 | E23: 1962-04-01 | F23: -0.14 | I23: =INDEX(K23:AN23,MATCH('Inputs & Mkt Adj'!$C$4,'TNG Spread Calc'!$K$20:$AN$20,0)) -> 0 | J23: 1996-04-01 | K23: =IF('Cap Rate Graph Table'!C9=0,0,IF(ISNA('Cap Rate Graph Table'!C9-INDEX('TNG Spread Calc'!$C$22:$C$240,MATCH('TNG Spread Calc'!$J23,'TNG Spread Calc'!$A$22:$A$240,0)))=TRUE,0,'Cap Rate Graph Table'!C9-INDEX('TNG Spread Calc'!$C$22:$C$240,MATCH('TNG Spread Calc'!$J23,'TNG Spread Calc'!$A$22:$A$240,0)))) -> 0 | L23: =IF('Cap Rate Graph Table'!D9=0,0,IF(ISNA('Cap Rate Graph Table'!D9-INDEX('TNG Spread Calc'!$C$22:$C$240,MATCH('TNG Spread Calc'!$J23,'TNG Spread Calc'!$A$22:$A$240,0)))=TRUE,0,'Cap Rate Graph Table'!D9-INDEX('TNG Spread Calc'!$C$22:$C$240,MATCH('TNG Spread Calc'!$J23,'TNG Spread Calc'!$A$22:$A$240,0)))) -> 0 | M23: =IF('Cap Rate Graph Table'!E9=0,0,IF(ISNA('Cap Rate Graph Table'!E9-INDEX('TNG Spread Calc'!$C$22:$C$240,MATCH('TNG Spread Calc'!$J23,'TNG Spread Calc'!$A$22:$A$240,0)))=TRUE,0,'Cap Rate Graph Table'!E9-INDEX('TNG Spread Calc'!$C$22:$C$240,MATCH('TNG Spread Calc'!$J23,'TNG Spread Calc'!$A$22:$A$240,0)))) -> 0 | N23: =IF('Cap Rate Graph Table'!F9=0,0,IF(ISNA('Cap Rate Graph Table'!F9-INDEX('TNG Spread Calc'!$C$22:$C$240,MATCH('TNG Spread Calc'!$J23,'TNG Spread Calc'!$A$22:$A$240,0)))=TRUE,0,'Cap Rate Graph Table'!F9-INDEX('TNG Spread Calc'!$C$22:$C$240,MATCH('TNG Spread Calc'!$J23,'TNG Spread Calc'!$A$22:$A$240,0)))) -> 0 | O23: =IF('Cap Rate Graph Table'!G9=0,0,IF(ISNA('Cap Rate Graph Table'!G9-INDEX('TNG Spread Calc'!$C$22:$C$240,MATCH('TNG Spread Calc'!$J23,'TNG Spread Calc'!$A$22:$A$240,0)))=TRUE,0,'Cap Rate Graph Table'!G9-INDEX('TNG Spread Calc'!$C$22:$C$240,MATCH('TNG Spread Calc'!$J23,'TNG Spread Calc'!$A$22:$A$240,0)))) -> 0 | P23: =IF('Cap Rate Graph Table'!H9=0,0,IF(ISNA('Cap Rate Graph Table'!H9-INDEX('TNG Spread Calc'!$C$22:$C$240,MATCH('TNG Spread Calc'!$J23,'TNG Spread Calc'!$A$22:$A$240,0)))=TRUE,0,'Cap Rate Graph Table'!H9-INDEX('TNG Spread Calc'!$C$22:$C$240,MATCH('TNG Spread Calc'!$J23,'TNG Spread Calc'!$A$22:$A$240,0)))) -> 0 | Q23: =IF('Cap Rate Graph Table'!I9=0,0,IF(ISNA('Cap Rate Graph Table'!I9-INDEX('TNG Spread Calc'!$C$22:$C$240,MATCH('TNG Spread Calc'!$J23,'TNG Spread Calc'!$A$22:$A$240,0)))=TRUE,0,'Cap Rate Graph Table'!I9-INDEX('TNG Spread Calc'!$C$22:$C$240,MATCH('TNG Spread Calc'!$J23,'TNG Spread Calc'!$A$22:$A$240,0)))) -> 0 | R23: =IF('Cap Rate Graph Table'!J9=0,0,IF(ISNA('Cap Rate Graph Table'!J9-INDEX('TNG Spread Calc'!$C$22:$C$240,MATCH('TNG Spread Calc'!$J23,'TNG Spread Calc'!$A$22:$A$240,0)))=TRUE,0,'Cap Rate Graph Table'!J9-INDEX('TNG Spread Calc'!$C$22:$C$240,MATCH('TNG Spread Calc'!$J23,'TNG Spread Calc'!$A$22:$A$240,0)))) -> 0 | S23: =IF('Cap Rate Graph Table'!K9=0,0,IF(ISNA('Cap Rate Graph Table'!K9-INDEX('TNG Spread Calc'!$C$22:$C$240,MATCH('TNG Spread Calc'!$J23,'TNG Spread Calc'!$A$22:$A$240,0)))=TRUE,0,'Cap Rate Graph Table'!K9-INDEX('TNG Spread Calc'!$C$22:$C$240,MATCH('TNG Spread Calc'!$J23,'TNG Spread Calc'!$A$22:$A$240,0)))) -> 0 | T23: =IF('Cap Rate Graph Table'!L9=0,0,IF(ISNA('Cap Rate Graph Table'!L9-INDEX('TNG Spread Calc'!$C$22:$C$240,MATCH('TNG Spread Calc'!$J23,'TNG Spread Calc'!$A$22:$A$240,0)))=TRUE,0,'Cap Rate Graph Table'!L9-INDEX('TNG Spread Calc'!$C$22:$C$240,MATCH('TNG Spread Calc'!$J23,'TNG Spread Calc'!$A$22:$A$240,0)))) -> 0 | U23: =IF('Cap Rate Graph Table'!M9=0,0,IF(ISNA('Cap Rate Graph Table'!M9-INDEX('TNG Spread Calc'!$C$22:$C$240,MATCH('TNG Spread Calc'!$J23,'TNG Spread Calc'!$A$22:$A$240,0)))=TRUE,0,'Cap Rate Graph Table'!M9-INDEX('TNG Spread Calc'!$C$22:$C$240,MATCH('TNG Spread Calc'!$J23,'TNG Spread Calc'!$A$22:$A$240,0)))) -> 0 | V23: =IF('Cap Rate Graph Table'!N9=0,0,IF(ISNA('Cap Rate Graph Table'!N9-INDEX('TNG Spread Calc'!$C$22:$C$240,MATCH('TNG Spread Calc'!$J23,'TNG Spread Calc'!$A$22:$A$240,0)))=TRUE,0,'Cap Rate Graph Table'!N9-INDEX('TNG Spread Calc'!$C$22:$C$240,MATCH('TNG Spread Calc'!$J23,'TNG Spread Calc'!$A$22:$A$240,0)))) -> 0 | W23: =IF('Cap Rate Graph Table'!O9=0,0,IF(ISNA('Cap Rate Graph Table'!O9-INDEX('TNG Spread Calc'!$C$22:$C$240,MATCH('TNG Spread Calc'!$J23,'TNG Spread Calc'!$A$22:$A$240,0)))=TRUE,0,'Cap Rate Graph Table'!O9-INDEX('TNG Spread Calc'!$C$22:$C$240,MATCH('TNG Spread Calc'!$J23,'TNG Spread Calc'!$A$22:$A$240,0)))) -> 0 | X23: =IF('Cap Rate Graph Table'!P9=0,0,IF(ISNA('Cap Rate Graph Table'!P9-INDEX('TNG Spread Calc'!$C$22:$C$240,MATCH('TNG Spread Calc'!$J23,'TNG Spread Calc'!$A$22:$A$240,0)))=TRUE,0,'Cap Rate Graph Table'!P9-INDEX('TNG Spread Calc'!$C$22:$C$240,MATCH('TNG Spread Calc'!$J23,'TNG Spread Calc'!$A$22:$A$240,0)))) -> 0 | Y23: =IF('Cap Rate Graph Table'!Q9=0,0,IF(ISNA('Cap Rate Graph Table'!Q9-INDEX('TNG Spread Calc'!$C$22:$C$240,MATCH('TNG Spread Calc'!$J23,'TNG Spread Calc'!$A$22:$A$240,0)))=TRUE,0,'Cap Rate Graph Table'!Q9-INDEX('TNG Spread Calc'!$C$22:$C$240,MATCH('TNG Spread Calc'!$J23,'TNG Spread Calc'!$A$22:$A$240,0)))) -> 0 | Z23: =IF('Cap Rate Graph Table'!R9=0,0,IF(ISNA('Cap Rate Graph Table'!R9-INDEX('TNG Spread Calc'!$C$22:$C$240,MATCH('TNG Spread Calc'!$J23,'TNG Spread Calc'!$A$22:$A$240,0)))=TRUE,0,'Cap Rate Graph Table'!R9-INDEX('TNG Spread Calc'!$C$22:$C$240,MATCH('TNG Spread Calc'!$J23,'TNG Spread Calc'!$A$22:$A$240,0)))) -> 0 | AA23: =IF('Cap Rate Graph Table'!S9=0,0,IF(ISNA('Cap Rate Graph Table'!S9-INDEX('TNG Spread Calc'!$C$22:$C$240,MATCH('TNG Spread Calc'!$J23,'TNG Spread Calc'!$A$22:$A$240,0)))=TRUE,0,'Cap Rate Graph Table'!S9-INDEX('TNG Spread Calc'!$C$22:$C$240,MATCH('TNG Spread Calc'!$J23,'TNG Spread Calc'!$A$22:$A$240,0)))) -> 0 | AB23: =IF('Cap Rate Graph Table'!T9=0,0,IF(ISNA('Cap Rate Graph Table'!T9-INDEX('TNG Spread Calc'!$C$22:$C$240,MATCH('TNG Spread Calc'!$J23,'TNG Spread Calc'!$A$22:$A$240,0)))=TRUE,0,'Cap Rate Graph Table'!T9-INDEX('TNG Spread Calc'!$C$22:$C$240,MATCH('TNG Spread Calc'!$J23,'TNG Spread Calc'!$A$22:$A$240,0)))) -> 0 | AC23: =IF('Cap Rate Graph Table'!U9=0,0,IF(ISNA('Cap Rate Graph Table'!U9-INDEX('TNG Spread Calc'!$C$22:$C$240,MATCH('TNG Spread Calc'!$J23,'TNG Spread Calc'!$A$22:$A$240,0)))=TRUE,0,'Cap Rate Graph Table'!U9-INDEX('TNG Spread Calc'!$C$22:$C$240,MATCH('TNG Spread Calc'!$J23,'TNG Spread Calc'!$A$22:$A$240,0)))) -> 0 | AD23: =IF('Cap Rate Graph Table'!V9=0,0,IF(ISNA('Cap Rate Graph Table'!V9-INDEX('TNG Spread Calc'!$C$22:$C$240,MATCH('TNG Spread Calc'!$J23,'TNG Spread Calc'!$A$22:$A$240,0)))=TRUE,0,'Cap Rate Graph Table'!V9-INDEX('TNG Spread Calc'!$C$22:$C$240,MATCH('TNG Spread Calc'!$J23,'TNG Spread Calc'!$A$22:$A$240,0)))) -> 0 | AE23: =IF('Cap Rate Graph Table'!W9=0,0,IF(ISNA('Cap Rate Graph Table'!W9-INDEX('TNG Spread Calc'!$C$22:$C$240,MATCH('TNG Spread Calc'!$J23,'TNG Spread Calc'!$A$22:$A$240,0)))=TRUE,0,'Cap Rate Graph Table'!W9-INDEX('TNG Spread Calc'!$C$22:$C$240,MATCH('TNG Spread Calc'!$J23,'TNG Spread Calc'!$A$22:$A$240,0)))) -> 0 | AF23: =IF('Cap Rate Graph Table'!X9=0,0,IF(ISNA('Cap Rate Graph Table'!X9-INDEX('TNG Spread Calc'!$C$22:$C$240,MATCH('TNG Spread Calc'!$J23,'TNG Spread Calc'!$A$22:$A$240,0)))=TRUE,0,'Cap Rate Graph Table'!X9-INDEX('TNG Spread Calc'!$C$22:$C$240,MATCH('TNG Spread Calc'!$J23,'TNG Spread Calc'!$A$22:$A$240,0)))) -> 0 | AG23: =IF('Cap Rate Graph Table'!Y9=0,0,IF(ISNA('Cap Rate Graph Table'!Y9-INDEX('TNG Spread Calc'!$C$22:$C$240,MATCH('TNG Spread Calc'!$J23,'TNG Spread Calc'!$A$22:$A$240,0)))=TRUE,0,'Cap Rate Graph Table'!Y9-INDEX('TNG Spread Calc'!$C$22:$C$240,MATCH('TNG Spread Calc'!$J23,'TNG Spread Calc'!$A$22:$A$240,0)))) -> 0 | AH23: =IF('Cap Rate Graph Table'!Z9=0,0,IF(ISNA('Cap Rate Graph Table'!Z9-INDEX('TNG Spread Calc'!$C$22:$C$240,MATCH('TNG Spread Calc'!$J23,'TNG Spread Calc'!$A$22:$A$240,0)))=TRUE,0,'Cap Rate Graph Table'!Z9-INDEX('TNG Spread Calc'!$C$22:$C$240,MATCH('TNG Spread Calc'!$J23,'TNG Spread Calc'!$A$22:$A$240,0)))) -> 0 | AI23: =IF('Cap Rate Graph Table'!AA9=0,0,IF(ISNA('Cap Rate Graph Table'!AA9-INDEX('TNG Spread Calc'!$C$22:$C$240,MATCH('TNG Spread Calc'!$J23,'TNG Spread Calc'!$A$22:$A$240,0)))=TRUE,0,'Cap Rate Graph Table'!AA9-INDEX('TNG Spread Calc'!$C$22:$C$240,MATCH('TNG Spread Calc'!$J23,'TNG Spread Calc'!$A$22:$A$240,0)))) -> 0 | AJ23: =IF('Cap Rate Graph Table'!AB9=0,0,IF(ISNA('Cap Rate Graph Table'!AB9-INDEX('TNG Spread Calc'!$C$22:$C$240,MATCH('TNG Spread Calc'!$J23,'TNG Spread Calc'!$A$22:$A$240,0)))=TRUE,0,'Cap Rate Graph Table'!AB9-INDEX('TNG Spread Calc'!$C$22:$C$240,MATCH('TNG Spread Calc'!$J23,'TNG Spread Calc'!$A$22:$A$240,0)))) -> 0 | AK23: =IF('Cap Rate Graph Table'!AC9=0,0,IF(ISNA('Cap Rate Graph Table'!AC9-INDEX('TNG Spread Calc'!$C$22:$C$240,MATCH('TNG Spread Calc'!$J23,'TNG Spread Calc'!$A$22:$A$240,0)))=TRUE,0,'Cap Rate Graph Table'!AC9-INDEX('TNG Spread Calc'!$C$22:$C$240,MATCH('TNG Spread Calc'!$J23,'TNG Spread Calc'!$A$22:$A$240,0)))) -> 0 | AL23: =IF('Cap Rate Graph Table'!AD9=0,0,IF(ISNA('Cap Rate Graph Table'!AD9-INDEX('TNG Spread Calc'!$C$22:$C$240,MATCH('TNG Spread Calc'!$J23,'TNG Spread Calc'!$A$22:$A$240,0)))=TRUE,0,'Cap Rate Graph Table'!AD9-INDEX('TNG Spread Calc'!$C$22:$C$240,MATCH('TNG Spread Calc'!$J23,'TNG Spread Calc'!$A$22:$A$240,0)))) -> 0 | AM23: =IF('Cap Rate Graph Table'!AE9=0,0,IF(ISNA('Cap Rate Graph Table'!AE9-INDEX('TNG Spread Calc'!$C$22:$C$240,MATCH('TNG Spread Calc'!$J23,'TNG Spread Calc'!$A$22:$A$240,0)))=TRUE,0,'Cap Rate Graph Table'!AE9-INDEX('TNG Spread Calc'!$C$22:$C$240,MATCH('TNG Spread Calc'!$J23,'TNG Spread Calc'!$A$22:$A$240,0)))) -> 0 | AN23: =IF('Cap Rate Graph Table'!AF9=0,0,IF(ISNA('Cap Rate Graph Table'!AF9-INDEX('TNG Spread Calc'!$C$22:$C$240,MATCH('TNG Spread Calc'!$J23,'TNG Spread Calc'!$A$22:$A$240,0)))=TRUE,0,'Cap Rate Graph Table'!AF9-INDEX('TNG Spread Calc'!$C$22:$C$240,MATCH('TNG Spread Calc'!$J23,'TNG Spread Calc'!$A$22:$A$240,0)))) -> 0 | AO23: =IF('Cap Rate Graph Table'!AG9=0,0,IF(ISNA('Cap Rate Graph Table'!AG9-INDEX('TNG Spread Calc'!$C$22:$C$240,MATCH('TNG Spread Calc'!$J23,'TNG Spread Calc'!$A$22:$A$240,0)))=TRUE,0,'Cap Rate Graph Table'!AG9-INDEX('TNG Spread Calc'!$C$22:$C$240,MATCH('TNG Spread Calc'!$J23,'TNG Spread Calc'!$A$22:$A$240,0)))) -> 0 | AP23: =IF('Cap Rate Graph Table'!AH9=0,0,IF(ISNA('Cap Rate Graph Table'!AH9-INDEX('TNG Spread Calc'!$C$22:$C$240,MATCH('TNG Spread Calc'!$J23,'TNG Spread Calc'!$A$22:$A$240,0)))=TRUE,0,'Cap Rate Graph Table'!AH9-INDEX('TNG Spread Calc'!$C$22:$C$240,MATCH('TNG Spread Calc'!$J23,'TNG Spread Calc'!$A$22:$A$240,0)))) -> 0 | AQ23: =IF('Cap Rate Graph Table'!AI9=0,0,IF(ISNA('Cap Rate Graph Table'!AI9-INDEX('TNG Spread Calc'!$C$22:$C$240,MATCH('TNG Spread Calc'!$J23,'TNG Spread Calc'!$A$22:$A$240,0)))=TRUE,0,'Cap Rate Graph Table'!AI9-INDEX('TNG Spread Calc'!$C$22:$C$240,MATCH('TNG Spread Calc'!$J23,'TNG Spread Calc'!$A$22:$A$240,0)))) -> 0 | AR23: =IF('Cap Rate Graph Table'!AJ9=0,0,IF(ISNA('Cap Rate Graph Table'!AJ9-INDEX('TNG Spread Calc'!$C$22:$C$240,MATCH('TNG Spread Calc'!$J23,'TNG Spread Calc'!$A$22:$A$240,0)))=TRUE,0,'Cap Rate Graph Table'!AJ9-INDEX('TNG Spread Calc'!$C$22:$C$240,MATCH('TNG Spread Calc'!$J23,'TNG Spread Calc'!$A$22:$A$240,0)))) -> 0 | AS23: =IF('Cap Rate Graph Table'!AK9=0,0,IF(ISNA('Cap Rate Graph Table'!AK9-INDEX('TNG Spread Calc'!$C$22:$C$240,MATCH('TNG Spread Calc'!$J23,'TNG Spread Calc'!$A$22:$A$240,0)))=TRUE,0,'Cap Rate Graph Table'!AK9-INDEX('TNG Spread Calc'!$C$22:$C$240,MATCH('TNG Spread Calc'!$J23,'TNG Spread Calc'!$A$22:$A$240,0)))) -> 0 | AT23: =IF('Cap Rate Graph Table'!AL9=0,0,IF(ISNA('Cap Rate Graph Table'!AL9-INDEX('TNG Spread Calc'!$C$22:$C$240,MATCH('TNG Spread Calc'!$J23,'TNG Spread Calc'!$A$22:$A$240,0)))=TRUE,0,'Cap Rate Graph Table'!AL9-INDEX('TNG Spread Calc'!$C$22:$C$240,MATCH('TNG Spread Calc'!$J23,'TNG Spread Calc'!$A$22:$A$240,0)))) -> 0 | AU23: =IF('Cap Rate Graph Table'!AM9=0,0,IF(ISNA('Cap Rate Graph Table'!AM9-INDEX('TNG Spread Calc'!$C$22:$C$240,MATCH('TNG Spread Calc'!$J23,'TNG Spread Calc'!$A$22:$A$240,0)))=TRUE,0,'Cap Rate Graph Table'!AM9-INDEX('TNG Spread Calc'!$C$22:$C$240,MATCH('TNG Spread Calc'!$J23,'TNG Spread Calc'!$A$22:$A$240,0)))) -> 0 | AV23: =IF('Cap Rate Graph Table'!AN9=0,0,IF(ISNA('Cap Rate Graph Table'!AN9-INDEX('TNG Spread Calc'!$C$22:$C$240,MATCH('TNG Spread Calc'!$J23,'TNG Spread Calc'!$A$22:$A$240,0)))=TRUE,0,'Cap Rate Graph Table'!AN9-INDEX('TNG Spread Calc'!$C$22:$C$240,MATCH('TNG Spread Calc'!$J23,'TNG Spread Calc'!$A$22:$A$240,0)))) -> 0 | AW23: =IF('Cap Rate Graph Table'!AO9=0,0,IF(ISNA('Cap Rate Graph Table'!AO9-INDEX('TNG Spread Calc'!$C$22:$C$240,MATCH('TNG Spread Calc'!$J23,'TNG Spread Calc'!$A$22:$A$240,0)))=TRUE,0,'Cap Rate Graph Table'!AO9-INDEX('TNG Spread Calc'!$C$22:$C$240,MATCH('TNG Spread Calc'!$J23,'TNG Spread Calc'!$A$22:$A$240,0)))) -> 0 | AX23: =IF('Cap Rate Graph Table'!AP9=0,0,IF(ISNA('Cap Rate Graph Table'!AP9-INDEX('TNG Spread Calc'!$C$22:$C$240,MATCH('TNG Spread Calc'!$J23,'TNG Spread Calc'!$A$22:$A$240,0)))=TRUE,0,'Cap Rate Graph Table'!AP9-INDEX('TNG Spread Calc'!$C$22:$C$240,MATCH('TNG Spread Calc'!$J23,'TNG Spread Calc'!$A$22:$A$240,0)))) -> 0 | AY23: =IF('Cap Rate Graph Table'!AQ9=0,0,IF(ISNA('Cap Rate Graph Table'!AQ9-INDEX('TNG Spread Calc'!$C$22:$C$240,MATCH('TNG Spread Calc'!$J23,'TNG Spread Calc'!$A$22:$A$240,0)))=TRUE,0,'Cap Rate Graph Table'!AQ9-INDEX('TNG Spread Calc'!$C$22:$C$240,MATCH('TNG Spread Calc'!$J23,'TNG Spread Calc'!$A$22:$A$240,0)))) -> 0 | AZ23: =IF('Cap Rate Graph Table'!AR9=0,0,IF(ISNA('Cap Rate Graph Table'!AR9-INDEX('TNG Spread Calc'!$C$22:$C$240,MATCH('TNG Spread Calc'!$J23,'TNG Spread Calc'!$A$22:$A$240,0)))=TRUE,0,'Cap Rate Graph Table'!AR9-INDEX('TNG Spread Calc'!$C$22:$C$240,MATCH('TNG Spread Calc'!$J23,'TNG Spread Calc'!$A$22:$A$240,0)))) -> 0 | BA23: =IF('Cap Rate Graph Table'!AS9=0,0,IF(ISNA('Cap Rate Graph Table'!AS9-INDEX('TNG Spread Calc'!$C$22:$C$240,MATCH('TNG Spread Calc'!$J23,'TNG Spread Calc'!$A$22:$A$240,0)))=TRUE,0,'Cap Rate Graph Table'!AS9-INDEX('TNG Spread Calc'!$C$22:$C$240,MATCH('TNG Spread Calc'!$J23,'TNG Spread Calc'!$A$22:$A$240,0)))) -> 0 | BB23: =IF('Cap Rate Graph Table'!AT9=0,0,IF(ISNA('Cap Rate Graph Table'!AT9-INDEX('TNG Spread Calc'!$C$22:$C$240,MATCH('TNG Spread Calc'!$J23,'TNG Spread Calc'!$A$22:$A$240,0)))=TRUE,0,'Cap Rate Graph Table'!AT9-INDEX('TNG Spread Calc'!$C$22:$C$240,MATCH('TNG Spread Calc'!$J23,'TNG Spread Calc'!$A$22:$A$240,0)))) -> 0 | BC23: =IF('Cap Rate Graph Table'!AU9=0,0,IF(ISNA('Cap Rate Graph Table'!AU9-INDEX('TNG Spread Calc'!$C$22:$C$240,MATCH('TNG Spread Calc'!$J23,'TNG Spread Calc'!$A$22:$A$240,0)))=TRUE,0,'Cap Rate Graph Table'!AU9-INDEX('TNG Spread Calc'!$C$22:$C$240,MATCH('TNG Spread Calc'!$J23,'TNG Spread Calc'!$A$22:$A$240,0)))) -> 0 | BD23: =IF('Cap Rate Graph Table'!AV9=0,0,IF(ISNA('Cap Rate Graph Table'!AV9-INDEX('TNG Spread Calc'!$C$22:$C$240,MATCH('TNG Spread Calc'!$J23,'TNG Spread Calc'!$A$22:$A$240,0)))=TRUE,0,'Cap Rate Graph Table'!AV9-INDEX('TNG Spread Calc'!$C$22:$C$240,MATCH('TNG Spread Calc'!$J23,'TNG Spread Calc'!$A$22:$A$240,0)))) -> 0 | BE23: =IF('Cap Rate Graph Table'!AW9=0,0,IF(ISNA('Cap Rate Graph Table'!AW9-INDEX('TNG Spread Calc'!$C$22:$C$240,MATCH('TNG Spread Calc'!$J23,'TNG Spread Calc'!$A$22:$A$240,0)))=TRUE,0,'Cap Rate Graph Table'!AW9-INDEX('TNG Spread Calc'!$C$22:$C$240,MATCH('TNG Spread Calc'!$J23,'TNG Spread Calc'!$A$22:$A$240,0)))) -> 0 | BF23: =IF('Cap Rate Graph Table'!AX9=0,0,IF(ISNA('Cap Rate Graph Table'!AX9-INDEX('TNG Spread Calc'!$C$22:$C$240,MATCH('TNG Spread Calc'!$J23,'TNG Spread Calc'!$A$22:$A$240,0)))=TRUE,0,'Cap Rate Graph Table'!AX9-INDEX('TNG Spread Calc'!$C$22:$C$240,MATCH('TNG Spread Calc'!$J23,'TNG Spread Calc'!$A$22:$A$240,0)))) -> 0 | BG23: =IF('Cap Rate Graph Table'!AY9=0,0,IF(ISNA('Cap Rate Graph Table'!AY9-INDEX('TNG Spread Calc'!$C$22:$C$240,MATCH('TNG Spread Calc'!$J23,'TNG Spread Calc'!$A$22:$A$240,0)))=TRUE,0,'Cap Rate Graph Table'!AY9-INDEX('TNG Spread Calc'!$C$22:$C$240,MATCH('TNG Spread Calc'!$J23,'TNG Spread Calc'!$A$22:$A$240,0)))) -> 0 | BH23: =IF('Cap Rate Graph Table'!AZ9=0,0,IF(ISNA('Cap Rate Graph Table'!AZ9-INDEX('TNG Spread Calc'!$C$22:$C$240,MATCH('TNG Spread Calc'!$J23,'TNG Spread Calc'!$A$22:$A$240,0)))=TRUE,0,'Cap Rate Graph Table'!AZ9-INDEX('TNG Spread Calc'!$C$22:$C$240,MATCH('TNG Spread Calc'!$J23,'TNG Spread Calc'!$A$22:$A$240,0)))) -> 0 | BI23: =IF('Cap Rate Graph Table'!BA9=0,0,IF(ISNA('Cap Rate Graph Table'!BA9-INDEX('TNG Spread Calc'!$C$22:$C$240,MATCH('TNG Spread Calc'!$J23,'TNG Spread Calc'!$A$22:$A$240,0)))=TRUE,0,'Cap Rate Graph Table'!BA9-INDEX('TNG Spread Calc'!$C$22:$C$240,MATCH('TNG Spread Calc'!$J23,'TNG Spread Calc'!$A$22:$A$240,0)))) -> 0 | BJ23: =IF('Cap Rate Graph Table'!BB9=0,0,IF(ISNA('Cap Rate Graph Table'!BB9-INDEX('TNG Spread Calc'!$C$22:$C$240,MATCH('TNG Spread Calc'!$J23,'TNG Spread Calc'!$A$22:$A$240,0)))=TRUE,0,'Cap Rate Graph Table'!BB9-INDEX('TNG Spread Calc'!$C$22:$C$240,MATCH('TNG Spread Calc'!$J23,'TNG Spread Calc'!$A$22:$A$240,0)))) -> 0
A24: 1962-07-01 | B24: 3.99 | C24: 0.0399 | E24: 1962-07-01 | F24: 0.11 | I24: =INDEX(K24:AN24,MATCH('Inputs & Mkt Adj'!$C$4,'TNG Spread Calc'!$K$20:$AN$20,0)) -> 0 | J24: 1996-07-01 | K24: =IF('Cap Rate Graph Table'!C10=0,0,IF(ISNA('Cap Rate Graph Table'!C10-INDEX('TNG Spread Calc'!$C$22:$C$240,MATCH('TNG Spread Calc'!$J24,'TNG Spread Calc'!$A$22:$A$240,0)))=TRUE,0,'Cap Rate Graph Table'!C10-INDEX('TNG Spread Calc'!$C$22:$C$240,MATCH('TNG Spread Calc'!$J24,'TNG Spread Calc'!$A$22:$A$240,0)))) -> 0 | L24: =IF('Cap Rate Graph Table'!D10=0,0,IF(ISNA('Cap Rate Graph Table'!D10-INDEX('TNG Spread Calc'!$C$22:$C$240,MATCH('TNG Spread Calc'!$J24,'TNG Spread Calc'!$A$22:$A$240,0)))=TRUE,0,'Cap Rate Graph Table'!D10-INDEX('TNG Spread Calc'!$C$22:$C$240,MATCH('TNG Spread Calc'!$J24,'TNG Spread Calc'!$A$22:$A$240,0)))) -> 0 | M24: =IF('Cap Rate Graph Table'!E10=0,0,IF(ISNA('Cap Rate Graph Table'!E10-INDEX('TNG Spread Calc'!$C$22:$C$240,MATCH('TNG Spread Calc'!$J24,'TNG Spread Calc'!$A$22:$A$240,0)))=TRUE,0,'Cap Rate Graph Table'!E10-INDEX('TNG Spread Calc'!$C$22:$C$240,MATCH('TNG Spread Calc'!$J24,'TNG Spread Calc'!$A$22:$A$240,0)))) -> 0 | N24: =IF('Cap Rate Graph Table'!F10=0,0,IF(ISNA('Cap Rate Graph Table'!F10-INDEX('TNG Spread Calc'!$C$22:$C$240,MATCH('TNG Spread Calc'!$J24,'TNG Spread Calc'!$A$22:$A$240,0)))=TRUE,0,'Cap Rate Graph Table'!F10-INDEX('TNG Spread Calc'!$C$22:$C$240,MATCH('TNG Spread Calc'!$J24,'TNG Spread Calc'!$A$22:$A$240,0)))) -> 0 | O24: =IF('Cap Rate Graph Table'!G10=0,0,IF(ISNA('Cap Rate Graph Table'!G10-INDEX('TNG Spread Calc'!$C$22:$C$240,MATCH('TNG Spread Calc'!$J24,'TNG Spread Calc'!$A$22:$A$240,0)))=TRUE,0,'Cap Rate Graph Table'!G10-INDEX('TNG Spread Calc'!$C$22:$C$240,MATCH('TNG Spread Calc'!$J24,'TNG Spread Calc'!$A$22:$A$240,0)))) -> 0 | P24: =IF('Cap Rate Graph Table'!H10=0,0,IF(ISNA('Cap Rate Graph Table'!H10-INDEX('TNG Spread Calc'!$C$22:$C$240,MATCH('TNG Spread Calc'!$J24,'TNG Spread Calc'!$A$22:$A$240,0)))=TRUE,0,'Cap Rate Graph Table'!H10-INDEX('TNG Spread Calc'!$C$22:$C$240,MATCH('TNG Spread Calc'!$J24,'TNG Spread Calc'!$A$22:$A$240,0)))) -> 0 | Q24: =IF('Cap Rate Graph Table'!I10=0,0,IF(ISNA('Cap Rate Graph Table'!I10-INDEX('TNG Spread Calc'!$C$22:$C$240,MATCH('TNG Spread Calc'!$J24,'TNG Spread Calc'!$A$22:$A$240,0)))=TRUE,0,'Cap Rate Graph Table'!I10-INDEX('TNG Spread Calc'!$C$22:$C$240,MATCH('TNG Spread Calc'!$J24,'TNG Spread Calc'!$A$22:$A$240,0)))) -> 0 | R24: =IF('Cap Rate Graph Table'!J10=0,0,IF(ISNA('Cap Rate Graph Table'!J10-INDEX('TNG Spread Calc'!$C$22:$C$240,MATCH('TNG Spread Calc'!$J24,'TNG Spread Calc'!$A$22:$A$240,0)))=TRUE,0,'Cap Rate Graph Table'!J10-INDEX('TNG Spread Calc'!$C$22:$C$240,MATCH('TNG Spread Calc'!$J24,'TNG Spread Calc'!$A$22:$A$240,0)))) -> 0 | S24: =IF('Cap Rate Graph Table'!K10=0,0,IF(ISNA('Cap Rate Graph Table'!K10-INDEX('TNG Spread Calc'!$C$22:$C$240,MATCH('TNG Spread Calc'!$J24,'TNG Spread Calc'!$A$22:$A$240,0)))=TRUE,0,'Cap Rate Graph Table'!K10-INDEX('TNG Spread Calc'!$C$22:$C$240,MATCH('TNG Spread Calc'!$J24,'TNG Spread Calc'!$A$22:$A$240,0)))) -> 0 | T24: =IF('Cap Rate Graph Table'!L10=0,0,IF(ISNA('Cap Rate Graph Table'!L10-INDEX('TNG Spread Calc'!$C$22:$C$240,MATCH('TNG Spread Calc'!$J24,'TNG Spread Calc'!$A$22:$A$240,0)))=TRUE,0,'Cap Rate Graph Table'!L10-INDEX('TNG Spread Calc'!$C$22:$C$240,MATCH('TNG Spread Calc'!$J24,'TNG Spread Calc'!$A$22:$A$240,0)))) -> 0 | U24: =IF('Cap Rate Graph Table'!M10=0,0,IF(ISNA('Cap Rate Graph Table'!M10-INDEX('TNG Spread Calc'!$C$22:$C$240,MATCH('TNG Spread Calc'!$J24,'TNG Spread Calc'!$A$22:$A$240,0)))=TRUE,0,'Cap Rate Graph Table'!M10-INDEX('TNG Spread Calc'!$C$22:$C$240,MATCH('TNG Spread Calc'!$J24,'TNG Spread Calc'!$A$22:$A$240,0)))) -> 0 | V24: =IF('Cap Rate Graph Table'!N10=0,0,IF(ISNA('Cap Rate Graph Table'!N10-INDEX('TNG Spread Calc'!$C$22:$C$240,MATCH('TNG Spread Calc'!$J24,'TNG Spread Calc'!$A$22:$A$240,0)))=TRUE,0,'Cap Rate Graph Table'!N10-INDEX('TNG Spread Calc'!$C$22:$C$240,MATCH('TNG Spread Calc'!$J24,'TNG Spread Calc'!$A$22:$A$240,0)))) -> 0 | W24: =IF('Cap Rate Graph Table'!O10=0,0,IF(ISNA('Cap Rate Graph Table'!O10-INDEX('TNG Spread Calc'!$C$22:$C$240,MATCH('TNG Spread Calc'!$J24,'TNG Spread Calc'!$A$22:$A$240,0)))=TRUE,0,'Cap Rate Graph Table'!O10-INDEX('TNG Spread Calc'!$C$22:$C$240,MATCH('TNG Spread Calc'!$J24,'TNG Spread Calc'!$A$22:$A$240,0)))) -> 0 | X24: =IF('Cap Rate Graph Table'!P10=0,0,IF(ISNA('Cap Rate Graph Table'!P10-INDEX('TNG Spread Calc'!$C$22:$C$240,MATCH('TNG Spread Calc'!$J24,'TNG Spread Calc'!$A$22:$A$240,0)))=TRUE,0,'Cap Rate Graph Table'!P10-INDEX('TNG Spread Calc'!$C$22:$C$240,MATCH('TNG Spread Calc'!$J24,'TNG Spread Calc'!$A$22:$A$240,0)))) -> 0 | Y24: =IF('Cap Rate Graph Table'!Q10=0,0,IF(ISNA('Cap Rate Graph Table'!Q10-INDEX('TNG Spread Calc'!$C$22:$C$240,MATCH('TNG Spread Calc'!$J24,'TNG Spread Calc'!$A$22:$A$240,0)))=TRUE,0,'Cap Rate Graph Table'!Q10-INDEX('TNG Spread Calc'!$C$22:$C$240,MATCH('TNG Spread Calc'!$J24,'TNG Spread Calc'!$A$22:$A$240,0)))) -> 0 | Z24: =IF('Cap Rate Graph Table'!R10=0,0,IF(ISNA('Cap Rate Graph Table'!R10-INDEX('TNG Spread Calc'!$C$22:$C$240,MATCH('TNG Spread Calc'!$J24,'TNG Spread Calc'!$A$22:$A$240,0)))=TRUE,0,'Cap Rate Graph Table'!R10-INDEX('TNG Spread Calc'!$C$22:$C$240,MATCH('TNG Spread Calc'!$J24,'TNG Spread Calc'!$A$22:$A$240,0)))) -> 0 | AA24: =IF('Cap Rate Graph Table'!S10=0,0,IF(ISNA('Cap Rate Graph Table'!S10-INDEX('TNG Spread Calc'!$C$22:$C$240,MATCH('TNG Spread Calc'!$J24,'TNG Spread Calc'!$A$22:$A$240,0)))=TRUE,0,'Cap Rate Graph Table'!S10-INDEX('TNG Spread Calc'!$C$22:$C$240,MATCH('TNG Spread Calc'!$J24,'TNG Spread Calc'!$A$22:$A$240,0)))) -> 0 | AB24: =IF('Cap Rate Graph Table'!T10=0,0,IF(ISNA('Cap Rate Graph Table'!T10-INDEX('TNG Spread Calc'!$C$22:$C$240,MATCH('TNG Spread Calc'!$J24,'TNG Spread Calc'!$A$22:$A$240,0)))=TRUE,0,'Cap Rate Graph Table'!T10-INDEX('TNG Spread Calc'!$C$22:$C$240,MATCH('TNG Spread Calc'!$J24,'TNG Spread Calc'!$A$22:$A$240,0)))) -> 0 | AC24: =IF('Cap Rate Graph Table'!U10=0,0,IF(ISNA('Cap Rate Graph Table'!U10-INDEX('TNG Spread Calc'!$C$22:$C$240,MATCH('TNG Spread Calc'!$J24,'TNG Spread Calc'!$A$22:$A$240,0)))=TRUE,0,'Cap Rate Graph Table'!U10-INDEX('TNG Spread Calc'!$C$22:$C$240,MATCH('TNG Spread Calc'!$J24,'TNG Spread Calc'!$A$22:$A$240,0)))) -> 0 | AD24: =IF('Cap Rate Graph Table'!V10=0,0,IF(ISNA('Cap Rate Graph Table'!V10-INDEX('TNG Spread Calc'!$C$22:$C$240,MATCH('TNG Spread Calc'!$J24,'TNG Spread Calc'!$A$22:$A$240,0)))=TRUE,0,'Cap Rate Graph Table'!V10-INDEX('TNG Spread Calc'!$C$22:$C$240,MATCH('TNG Spread Calc'!$J24,'TNG Spread Calc'!$A$22:$A$240,0)))) -> 0 | AE24: =IF('Cap Rate Graph Table'!W10=0,0,IF(ISNA('Cap Rate Graph Table'!W10-INDEX('TNG Spread Calc'!$C$22:$C$240,MATCH('TNG Spread Calc'!$J24,'TNG Spread Calc'!$A$22:$A$240,0)))=TRUE,0,'Cap Rate Graph Table'!W10-INDEX('TNG Spread Calc'!$C$22:$C$240,MATCH('TNG Spread Calc'!$J24,'TNG Spread Calc'!$A$22:$A$240,0)))) -> 0 | AF24: =IF('Cap Rate Graph Table'!X10=0,0,IF(ISNA('Cap Rate Graph Table'!X10-INDEX('TNG Spread Calc'!$C$22:$C$240,MATCH('TNG Spread Calc'!$J24,'TNG Spread Calc'!$A$22:$A$240,0)))=TRUE,0,'Cap Rate Graph Table'!X10-INDEX('TNG Spread Calc'!$C$22:$C$240,MATCH('TNG Spread Calc'!$J24,'TNG Spread Calc'!$A$22:$A$240,0)))) -> 0 | AG24: =IF('Cap Rate Graph Table'!Y10=0,0,IF(ISNA('Cap Rate Graph Table'!Y10-INDEX('TNG Spread Calc'!$C$22:$C$240,MATCH('TNG Spread Calc'!$J24,'TNG Spread Calc'!$A$22:$A$240,0)))=TRUE,0,'Cap Rate Graph Table'!Y10-INDEX('TNG Spread Calc'!$C$22:$C$240,MATCH('TNG Spread Calc'!$J24,'TNG Spread Calc'!$A$22:$A$240,0)))) -> 0 | AH24: =IF('Cap Rate Graph Table'!Z10=0,0,IF(ISNA('Cap Rate Graph Table'!Z10-INDEX('TNG Spread Calc'!$C$22:$C$240,MATCH('TNG Spread Calc'!$J24,'TNG Spread Calc'!$A$22:$A$240,0)))=TRUE,0,'Cap Rate Graph Table'!Z10-INDEX('TNG Spread Calc'!$C$22:$C$240,MATCH('TNG Spread Calc'!$J24,'TNG Spread Calc'!$A$22:$A$240,0)))) -> 0 | AI24: =IF('Cap Rate Graph Table'!AA10=0,0,IF(ISNA('Cap Rate Graph Table'!AA10-INDEX('TNG Spread Calc'!$C$22:$C$240,MATCH('TNG Spread Calc'!$J24,'TNG Spread Calc'!$A$22:$A$240,0)))=TRUE,0,'Cap Rate Graph Table'!AA10-INDEX('TNG Spread Calc'!$C$22:$C$240,MATCH('TNG Spread Calc'!$J24,'TNG Spread Calc'!$A$22:$A$240,0)))) -> 0 | AJ24: =IF('Cap Rate Graph Table'!AB10=0,0,IF(ISNA('Cap Rate Graph Table'!AB10-INDEX('TNG Spread Calc'!$C$22:$C$240,MATCH('TNG Spread Calc'!$J24,'TNG Spread Calc'!$A$22:$A$240,0)))=TRUE,0,'Cap Rate Graph Table'!AB10-INDEX('TNG Spread Calc'!$C$22:$C$240,MATCH('TNG Spread Calc'!$J24,'TNG Spread Calc'!$A$22:$A$240,0)))) -> 0 | AK24: =IF('Cap Rate Graph Table'!AC10=0,0,IF(ISNA('Cap Rate Graph Table'!AC10-INDEX('TNG Spread Calc'!$C$22:$C$240,MATCH('TNG Spread Calc'!$J24,'TNG Spread Calc'!$A$22:$A$240,0)))=TRUE,0,'Cap Rate Graph Table'!AC10-INDEX('TNG Spread Calc'!$C$22:$C$240,MATCH('TNG Spread Calc'!$J24,'TNG Spread Calc'!$A$22:$A$240,0)))) -> 0 | AL24: =IF('Cap Rate Graph Table'!AD10=0,0,IF(ISNA('Cap Rate Graph Table'!AD10-INDEX('TNG Spread Calc'!$C$22:$C$240,MATCH('TNG Spread Calc'!$J24,'TNG Spread Calc'!$A$22:$A$240,0)))=TRUE,0,'Cap Rate Graph Table'!AD10-INDEX('TNG Spread Calc'!$C$22:$C$240,MATCH('TNG Spread Calc'!$J24,'TNG Spread Calc'!$A$22:$A$240,0)))) -> 0 | AM24: =IF('Cap Rate Graph Table'!AE10=0,0,IF(ISNA('Cap Rate Graph Table'!AE10-INDEX('TNG Spread Calc'!$C$22:$C$240,MATCH('TNG Spread Calc'!$J24,'TNG Spread Calc'!$A$22:$A$240,0)))=TRUE,0,'Cap Rate Graph Table'!AE10-INDEX('TNG Spread Calc'!$C$22:$C$240,MATCH('TNG Spread Calc'!$J24,'TNG Spread Calc'!$A$22:$A$240,0)))) -> 0 | AN24: =IF('Cap Rate Graph Table'!AF10=0,0,IF(ISNA('Cap Rate Graph Table'!AF10-INDEX('TNG Spread Calc'!$C$22:$C$240,MATCH('TNG Spread Calc'!$J24,'TNG Spread Calc'!$A$22:$A$240,0)))=TRUE,0,'Cap Rate Graph Table'!AF10-INDEX('TNG Spread Calc'!$C$22:$C$240,MATCH('TNG Spread Calc'!$J24,'TNG Spread Calc'!$A$22:$A$240,0)))) -> 0 | AO24: =IF('Cap Rate Graph Table'!AG10=0,0,IF(ISNA('Cap Rate Graph Table'!AG10-INDEX('TNG Spread Calc'!$C$22:$C$240,MATCH('TNG Spread Calc'!$J24,'TNG Spread Calc'!$A$22:$A$240,0)))=TRUE,0,'Cap Rate Graph Table'!AG10-INDEX('TNG Spread Calc'!$C$22:$C$240,MATCH('TNG Spread Calc'!$J24,'TNG Spread Calc'!$A$22:$A$240,0)))) -> 0 | AP24: =IF('Cap Rate Graph Table'!AH10=0,0,IF(ISNA('Cap Rate Graph Table'!AH10-INDEX('TNG Spread Calc'!$C$22:$C$240,MATCH('TNG Spread Calc'!$J24,'TNG Spread Calc'!$A$22:$A$240,0)))=TRUE,0,'Cap Rate Graph Table'!AH10-INDEX('TNG Spread Calc'!$C$22:$C$240,MATCH('TNG Spread Calc'!$J24,'TNG Spread Calc'!$A$22:$A$240,0)))) -> 0 | AQ24: =IF('Cap Rate Graph Table'!AI10=0,0,IF(ISNA('Cap Rate Graph Table'!AI10-INDEX('TNG Spread Calc'!$C$22:$C$240,MATCH('TNG Spread Calc'!$J24,'TNG Spread Calc'!$A$22:$A$240,0)))=TRUE,0,'Cap Rate Graph Table'!AI10-INDEX('TNG Spread Calc'!$C$22:$C$240,MATCH('TNG Spread Calc'!$J24,'TNG Spread Calc'!$A$22:$A$240,0)))) -> 0 | AR24: =IF('Cap Rate Graph Table'!AJ10=0,0,IF(ISNA('Cap Rate Graph Table'!AJ10-INDEX('TNG Spread Calc'!$C$22:$C$240,MATCH('TNG Spread Calc'!$J24,'TNG Spread Calc'!$A$22:$A$240,0)))=TRUE,0,'Cap Rate Graph Table'!AJ10-INDEX('TNG Spread Calc'!$C$22:$C$240,MATCH('TNG Spread Calc'!$J24,'TNG Spread Calc'!$A$22:$A$240,0)))) -> 0 | AS24: =IF('Cap Rate Graph Table'!AK10=0,0,IF(ISNA('Cap Rate Graph Table'!AK10-INDEX('TNG Spread Calc'!$C$22:$C$240,MATCH('TNG Spread Calc'!$J24,'TNG Spread Calc'!$A$22:$A$240,0)))=TRUE,0,'Cap Rate Graph Table'!AK10-INDEX('TNG Spread Calc'!$C$22:$C$240,MATCH('TNG Spread Calc'!$J24,'TNG Spread Calc'!$A$22:$A$240,0)))) -> 0 | AT24: =IF('Cap Rate Graph Table'!AL10=0,0,IF(ISNA('Cap Rate Graph Table'!AL10-INDEX('TNG Spread Calc'!$C$22:$C$240,MATCH('TNG Spread Calc'!$J24,'TNG Spread Calc'!$A$22:$A$240,0)))=TRUE,0,'Cap Rate Graph Table'!AL10-INDEX('TNG Spread Calc'!$C$22:$C$240,MATCH('TNG Spread Calc'!$J24,'TNG Spread Calc'!$A$22:$A$240,0)))) -> 0 | AU24: =IF('Cap Rate Graph Table'!AM10=0,0,IF(ISNA('Cap Rate Graph Table'!AM10-INDEX('TNG Spread Calc'!$C$22:$C$240,MATCH('TNG Spread Calc'!$J24,'TNG Spread Calc'!$A$22:$A$240,0)))=TRUE,0,'Cap Rate Graph Table'!AM10-INDEX('TNG Spread Calc'!$C$22:$C$240,MATCH('TNG Spread Calc'!$J24,'TNG Spread Calc'!$A$22:$A$240,0)))) -> 0 | AV24: =IF('Cap Rate Graph Table'!AN10=0,0,IF(ISNA('Cap Rate Graph Table'!AN10-INDEX('TNG Spread Calc'!$C$22:$C$240,MATCH('TNG Spread Calc'!$J24,'TNG Spread Calc'!$A$22:$A$240,0)))=TRUE,0,'Cap Rate Graph Table'!AN10-INDEX('TNG Spread Calc'!$C$22:$C$240,MATCH('TNG Spread Calc'!$J24,'TNG Spread Calc'!$A$22:$A$240,0)))) -> 0 | AW24: =IF('Cap Rate Graph Table'!AO10=0,0,IF(ISNA('Cap Rate Graph Table'!AO10-INDEX('TNG Spread Calc'!$C$22:$C$240,MATCH('TNG Spread Calc'!$J24,'TNG Spread Calc'!$A$22:$A$240,0)))=TRUE,0,'Cap Rate Graph Table'!AO10-INDEX('TNG Spread Calc'!$C$22:$C$240,MATCH('TNG Spread Calc'!$J24,'TNG Spread Calc'!$A$22:$A$240,0)))) -> 0 | AX24: =IF('Cap Rate Graph Table'!AP10=0,0,IF(ISNA('Cap Rate Graph Table'!AP10-INDEX('TNG Spread Calc'!$C$22:$C$240,MATCH('TNG Spread Calc'!$J24,'TNG Spread Calc'!$A$22:$A$240,0)))=TRUE,0,'Cap Rate Graph Table'!AP10-INDEX('TNG Spread Calc'!$C$22:$C$240,MATCH('TNG Spread Calc'!$J24,'TNG Spread Calc'!$A$22:$A$240,0)))) -> 0 | AY24: =IF('Cap Rate Graph Table'!AQ10=0,0,IF(ISNA('Cap Rate Graph Table'!AQ10-INDEX('TNG Spread Calc'!$C$22:$C$240,MATCH('TNG Spread Calc'!$J24,'TNG Spread Calc'!$A$22:$A$240,0)))=TRUE,0,'Cap Rate Graph Table'!AQ10-INDEX('TNG Spread Calc'!$C$22:$C$240,MATCH('TNG Spread Calc'!$J24,'TNG Spread Calc'!$A$22:$A$240,0)))) -> 0 | AZ24: =IF('Cap Rate Graph Table'!AR10=0,0,IF(ISNA('Cap Rate Graph Table'!AR10-INDEX('TNG Spread Calc'!$C$22:$C$240,MATCH('TNG Spread Calc'!$J24,'TNG Spread Calc'!$A$22:$A$240,0)))=TRUE,0,'Cap Rate Graph Table'!AR10-INDEX('TNG Spread Calc'!$C$22:$C$240,MATCH('TNG Spread Calc'!$J24,'TNG Spread Calc'!$A$22:$A$240,0)))) -> 0 | BA24: =IF('Cap Rate Graph Table'!AS10=0,0,IF(ISNA('Cap Rate Graph Table'!AS10-INDEX('TNG Spread Calc'!$C$22:$C$240,MATCH('TNG Spread Calc'!$J24,'TNG Spread Calc'!$A$22:$A$240,0)))=TRUE,0,'Cap Rate Graph Table'!AS10-INDEX('TNG Spread Calc'!$C$22:$C$240,MATCH('TNG Spread Calc'!$J24,'TNG Spread Calc'!$A$22:$A$240,0)))) -> 0 | BB24: =IF('Cap Rate Graph Table'!AT10=0,0,IF(ISNA('Cap Rate Graph Table'!AT10-INDEX('TNG Spread Calc'!$C$22:$C$240,MATCH('TNG Spread Calc'!$J24,'TNG Spread Calc'!$A$22:$A$240,0)))=TRUE,0,'Cap Rate Graph Table'!AT10-INDEX('TNG Spread Calc'!$C$22:$C$240,MATCH('TNG Spread Calc'!$J24,'TNG Spread Calc'!$A$22:$A$240,0)))) -> 0 | BC24: =IF('Cap Rate Graph Table'!AU10=0,0,IF(ISNA('Cap Rate Graph Table'!AU10-INDEX('TNG Spread Calc'!$C$22:$C$240,MATCH('TNG Spread Calc'!$J24,'TNG Spread Calc'!$A$22:$A$240,0)))=TRUE,0,'Cap Rate Graph Table'!AU10-INDEX('TNG Spread Calc'!$C$22:$C$240,MATCH('TNG Spread Calc'!$J24,'TNG Spread Calc'!$A$22:$A$240,0)))) -> 0 | BD24: =IF('Cap Rate Graph Table'!AV10=0,0,IF(ISNA('Cap Rate Graph Table'!AV10-INDEX('TNG Spread Calc'!$C$22:$C$240,MATCH('TNG Spread Calc'!$J24,'TNG Spread Calc'!$A$22:$A$240,0)))=TRUE,0,'Cap Rate Graph Table'!AV10-INDEX('TNG Spread Calc'!$C$22:$C$240,MATCH('TNG Spread Calc'!$J24,'TNG Spread Calc'!$A$22:$A$240,0)))) -> 0 | BE24: =IF('Cap Rate Graph Table'!AW10=0,0,IF(ISNA('Cap Rate Graph Table'!AW10-INDEX('TNG Spread Calc'!$C$22:$C$240,MATCH('TNG Spread Calc'!$J24,'TNG Spread Calc'!$A$22:$A$240,0)))=TRUE,0,'Cap Rate Graph Table'!AW10-INDEX('TNG Spread Calc'!$C$22:$C$240,MATCH('TNG Spread Calc'!$J24,'TNG Spread Calc'!$A$22:$A$240,0)))) -> 0 | BF24: =IF('Cap Rate Graph Table'!AX10=0,0,IF(ISNA('Cap Rate Graph Table'!AX10-INDEX('TNG Spread Calc'!$C$22:$C$240,MATCH('TNG Spread Calc'!$J24,'TNG Spread Calc'!$A$22:$A$240,0)))=TRUE,0,'Cap Rate Graph Table'!AX10-INDEX('TNG Spread Calc'!$C$22:$C$240,MATCH('TNG Spread Calc'!$J24,'TNG Spread Calc'!$A$22:$A$240,0)))) -> 0 | BG24: =IF('Cap Rate Graph Table'!AY10=0,0,IF(ISNA('Cap Rate Graph Table'!AY10-INDEX('TNG Spread Calc'!$C$22:$C$240,MATCH('TNG Spread Calc'!$J24,'TNG Spread Calc'!$A$22:$A$240,0)))=TRUE,0,'Cap Rate Graph Table'!AY10-INDEX('TNG Spread Calc'!$C$22:$C$240,MATCH('TNG Spread Calc'!$J24,'TNG Spread Calc'!$A$22:$A$240,0)))) -> 0 | BH24: =IF('Cap Rate Graph Table'!AZ10=0,0,IF(ISNA('Cap Rate Graph Table'!AZ10-INDEX('TNG Spread Calc'!$C$22:$C$240,MATCH('TNG Spread Calc'!$J24,'TNG Spread Calc'!$A$22:$A$240,0)))=TRUE,0,'Cap Rate Graph Table'!AZ10-INDEX('TNG Spread Calc'!$C$22:$C$240,MATCH('TNG Spread Calc'!$J24,'TNG Spread Calc'!$A$22:$A$240,0)))) -> 0 | BI24: =IF('Cap Rate Graph Table'!BA10=0,0,IF(ISNA('Cap Rate Graph Table'!BA10-INDEX('TNG Spread Calc'!$C$22:$C$240,MATCH('TNG Spread Calc'!$J24,'TNG Spread Calc'!$A$22:$A$240,0)))=TRUE,0,'Cap Rate Graph Table'!BA10-INDEX('TNG Spread Calc'!$C$22:$C$240,MATCH('TNG Spread Calc'!$J24,'TNG Spread Calc'!$A$22:$A$240,0)))) -> 0 | BJ24: =IF('Cap Rate Graph Table'!BB10=0,0,IF(ISNA('Cap Rate Graph Table'!BB10-INDEX('TNG Spread Calc'!$C$22:$C$240,MATCH('TNG Spread Calc'!$J24,'TNG Spread Calc'!$A$22:$A$240,0)))=TRUE,0,'Cap Rate Graph Table'!BB10-INDEX('TNG Spread Calc'!$C$22:$C$240,MATCH('TNG Spread Calc'!$J24,'TNG Spread Calc'!$A$22:$A$240,0)))) -> 0
A25: 1962-10-01 | B25: 3.9 | C25: 0.039 | E25: 1962-10-01 | F25: -0.09 | I25: =INDEX(K25:AN25,MATCH('Inputs & Mkt Adj'!$C$4,'TNG Spread Calc'!$K$20:$AN$20,0)) -> 0 | J25: 1996-10-01 | K25: =IF('Cap Rate Graph Table'!C11=0,0,IF(ISNA('Cap Rate Graph Table'!C11-INDEX('TNG Spread Calc'!$C$22:$C$240,MATCH('TNG Spread Calc'!$J25,'TNG Spread Calc'!$A$22:$A$240,0)))=TRUE,0,'Cap Rate Graph Table'!C11-INDEX('TNG Spread Calc'!$C$22:$C$240,MATCH('TNG Spread Calc'!$J25,'TNG Spread Calc'!$A$22:$A$240,0)))) -> 0 | L25: =IF('Cap Rate Graph Table'!D11=0,0,IF(ISNA('Cap Rate Graph Table'!D11-INDEX('TNG Spread Calc'!$C$22:$C$240,MATCH('TNG Spread Calc'!$J25,'TNG Spread Calc'!$A$22:$A$240,0)))=TRUE,0,'Cap Rate Graph Table'!D11-INDEX('TNG Spread Calc'!$C$22:$C$240,MATCH('TNG Spread Calc'!$J25,'TNG Spread Calc'!$A$22:$A$240,0)))) -> 0 | M25: =IF('Cap Rate Graph Table'!E11=0,0,IF(ISNA('Cap Rate Graph Table'!E11-INDEX('TNG Spread Calc'!$C$22:$C$240,MATCH('TNG Spread Calc'!$J25,'TNG Spread Calc'!$A$22:$A$240,0)))=TRUE,0,'Cap Rate Graph Table'!E11-INDEX('TNG Spread Calc'!$C$22:$C$240,MATCH('TNG Spread Calc'!$J25,'TNG Spread Calc'!$A$22:$A$240,0)))) -> 0 | N25: =IF('Cap Rate Graph Table'!F11=0,0,IF(ISNA('Cap Rate Graph Table'!F11-INDEX('TNG Spread Calc'!$C$22:$C$240,MATCH('TNG Spread Calc'!$J25,'TNG Spread Calc'!$A$22:$A$240,0)))=TRUE,0,'Cap Rate Graph Table'!F11-INDEX('TNG Spread Calc'!$C$22:$C$240,MATCH('TNG Spread Calc'!$J25,'TNG Spread Calc'!$A$22:$A$240,0)))) -> 0 | O25: =IF('Cap Rate Graph Table'!G11=0,0,IF(ISNA('Cap Rate Graph Table'!G11-INDEX('TNG Spread Calc'!$C$22:$C$240,MATCH('TNG Spread Calc'!$J25,'TNG Spread Calc'!$A$22:$A$240,0)))=TRUE,0,'Cap Rate Graph Table'!G11-INDEX('TNG Spread Calc'!$C$22:$C$240,MATCH('TNG Spread Calc'!$J25,'TNG Spread Calc'!$A$22:$A$240,0)))) -> 0.02127502706 | P25: =IF('Cap Rate Graph Table'!H11=0,0,IF(ISNA('Cap Rate Graph Table'!H11-INDEX('TNG Spread Calc'!$C$22:$C$240,MATCH('TNG Spread Calc'!$J25,'TNG Spread Calc'!$A$22:$A$240,0)))=TRUE,0,'Cap Rate Graph Table'!H11-INDEX('TNG Spread Calc'!$C$22:$C$240,MATCH('TNG Spread Calc'!$J25,'TNG Spread Calc'!$A$22:$A$240,0)))) -> 0 | Q25: =IF('Cap Rate Graph Table'!I11=0,0,IF(ISNA('Cap Rate Graph Table'!I11-INDEX('TNG Spread Calc'!$C$22:$C$240,MATCH('TNG Spread Calc'!$J25,'TNG Spread Calc'!$A$22:$A$240,0)))=TRUE,0,'Cap Rate Graph Table'!I11-INDEX('TNG Spread Calc'!$C$22:$C$240,MATCH('TNG Spread Calc'!$J25,'TNG Spread Calc'!$A$22:$A$240,0)))) -> 0 | R25: =IF('Cap Rate Graph Table'!J11=0,0,IF(ISNA('Cap Rate Graph Table'!J11-INDEX('TNG Spread Calc'!$C$22:$C$240,MATCH('TNG Spread Calc'!$J25,'TNG Spread Calc'!$A$22:$A$240,0)))=TRUE,0,'Cap Rate Graph Table'!J11-INDEX('TNG Spread Calc'!$C$22:$C$240,MATCH('TNG Spread Calc'!$J25,'TNG Spread Calc'!$A$22:$A$240,0)))) -> 0 | S25: =IF('Cap Rate Graph Table'!K11=0,0,IF(ISNA('Cap Rate Graph Table'!K11-INDEX('TNG Spread Calc'!$C$22:$C$240,MATCH('TNG Spread Calc'!$J25,'TNG Spread Calc'!$A$22:$A$240,0)))=TRUE,0,'Cap Rate Graph Table'!K11-INDEX('TNG Spread Calc'!$C$22:$C$240,MATCH('TNG Spread Calc'!$J25,'TNG Spread Calc'!$A$22:$A$240,0)))) -> 0 | T25: =IF('Cap Rate Graph Table'!L11=0,0,IF(ISNA('Cap Rate Graph Table'!L11-INDEX('TNG Spread Calc'!$C$22:$C$240,MATCH('TNG Spread Calc'!$J25,'TNG Spread Calc'!$A$22:$A$240,0)))=TRUE,0,'Cap Rate Graph Table'!L11-INDEX('TNG Spread Calc'!$C$22:$C$240,MATCH('TNG Spread Calc'!$J25,'TNG Spread Calc'!$A$22:$A$240,0)))) -> 0 | U25: =IF('Cap Rate Graph Table'!M11=0,0,IF(ISNA('Cap Rate Graph Table'!M11-INDEX('TNG Spread Calc'!$C$22:$C$240,MATCH('TNG Spread Calc'!$J25,'TNG Spread Calc'!$A$22:$A$240,0)))=TRUE,0,'Cap Rate Graph Table'!M11-INDEX('TNG Spread Calc'!$C$22:$C$240,MATCH('TNG Spread Calc'!$J25,'TNG Spread Calc'!$A$22:$A$240,0)))) -> 0 | V25: =IF('Cap Rate Graph Table'!N11=0,0,IF(ISNA('Cap Rate Graph Table'!N11-INDEX('TNG Spread Calc'!$C$22:$C$240,MATCH('TNG Spread Calc'!$J25,'TNG Spread Calc'!$A$22:$A$240,0)))=TRUE,0,'Cap Rate Graph Table'!N11-INDEX('TNG Spread Calc'!$C$22:$C$240,MATCH('TNG Spread Calc'!$J25,'TNG Spread Calc'!$A$22:$A$240,0)))) -> 0 | W25: =IF('Cap Rate Graph Table'!O11=0,0,IF(ISNA('Cap Rate Graph Table'!O11-INDEX('TNG Spread Calc'!$C$22:$C$240,MATCH('TNG Spread Calc'!$J25,'TNG Spread Calc'!$A$22:$A$240,0)))=TRUE,0,'Cap Rate Graph Table'!O11-INDEX('TNG Spread Calc'!$C$22:$C$240,MATCH('TNG Spread Calc'!$J25,'TNG Spread Calc'!$A$22:$A$240,0)))) -> 0 | X25: =IF('Cap Rate Graph Table'!P11=0,0,IF(ISNA('Cap Rate Graph Table'!P11-INDEX('TNG Spread Calc'!$C$22:$C$240,MATCH('TNG Spread Calc'!$J25,'TNG Spread Calc'!$A$22:$A$240,0)))=TRUE,0,'Cap Rate Graph Table'!P11-INDEX('TNG Spread Calc'!$C$22:$C$240,MATCH('TNG Spread Calc'!$J25,'TNG Spread Calc'!$A$22:$A$240,0)))) -> 0 | Y25: =IF('Cap Rate Graph Table'!Q11=0,0,IF(ISNA('Cap Rate Graph Table'!Q11-INDEX('TNG Spread Calc'!$C$22:$C$240,MATCH('TNG Spread Calc'!$J25,'TNG Spread Calc'!$A$22:$A$240,0)))=TRUE,0,'Cap Rate Graph Table'!Q11-INDEX('TNG Spread Calc'!$C$22:$C$240,MATCH('TNG Spread Calc'!$J25,'TNG Spread Calc'!$A$22:$A$240,0)))) -> 0 | Z25: =IF('Cap Rate Graph Table'!R11=0,0,IF(ISNA('Cap Rate Graph Table'!R11-INDEX('TNG Spread Calc'!$C$22:$C$240,MATCH('TNG Spread Calc'!$J25,'TNG Spread Calc'!$A$22:$A$240,0)))=TRUE,0,'Cap Rate Graph Table'!R11-INDEX('TNG Spread Calc'!$C$22:$C$240,MATCH('TNG Spread Calc'!$J25,'TNG Spread Calc'!$A$22:$A$240,0)))) -> 0 | AA25: =IF('Cap Rate Graph Table'!S11=0,0,IF(ISNA('Cap Rate Graph Table'!S11-INDEX('TNG Spread Calc'!$C$22:$C$240,MATCH('TNG Spread Calc'!$J25,'TNG Spread Calc'!$A$22:$A$240,0)))=TRUE,0,'Cap Rate Graph Table'!S11-INDEX('TNG Spread Calc'!$C$22:$C$240,MATCH('TNG Spread Calc'!$J25,'TNG Spread Calc'!$A$22:$A$240,0)))) -> 0 | AB25: =IF('Cap Rate Graph Table'!T11=0,0,IF(ISNA('Cap Rate Graph Table'!T11-INDEX('TNG Spread Calc'!$C$22:$C$240,MATCH('TNG Spread Calc'!$J25,'TNG Spread Calc'!$A$22:$A$240,0)))=TRUE,0,'Cap Rate Graph Table'!T11-INDEX('TNG Spread Calc'!$C$22:$C$240,MATCH('TNG Spread Calc'!$J25,'TNG Spread Calc'!$A$22:$A$240,0)))) -> 0 | AC25: =IF('Cap Rate Graph Table'!U11=0,0,IF(ISNA('Cap Rate Graph Table'!U11-INDEX('TNG Spread Calc'!$C$22:$C$240,MATCH('TNG Spread Calc'!$J25,'TNG Spread Calc'!$A$22:$A$240,0)))=TRUE,0,'Cap Rate Graph Table'!U11-INDEX('TNG Spread Calc'!$C$22:$C$240,MATCH('TNG Spread Calc'!$J25,'TNG Spread Calc'!$A$22:$A$240,0)))) -> 0 | AD25: =IF('Cap Rate Graph Table'!V11=0,0,IF(ISNA('Cap Rate Graph Table'!V11-INDEX('TNG Spread Calc'!$C$22:$C$240,MATCH('TNG Spread Calc'!$J25,'TNG Spread Calc'!$A$22:$A$240,0)))=TRUE,0,'Cap Rate Graph Table'!V11-INDEX('TNG Spread Calc'!$C$22:$C$240,MATCH('TNG Spread Calc'!$J25,'TNG Spread Calc'!$A$22:$A$240,0)))) -> 0 | AE25: =IF('Cap Rate Graph Table'!W11=0,0,IF(ISNA('Cap Rate Graph Table'!W11-INDEX('TNG Spread Calc'!$C$22:$C$240,MATCH('TNG Spread Calc'!$J25,'TNG Spread Calc'!$A$22:$A$240,0)))=TRUE,0,'Cap Rate Graph Table'!W11-INDEX('TNG Spread Calc'!$C$22:$C$240,MATCH('TNG Spread Calc'!$J25,'TNG Spread Calc'!$A$22:$A$240,0)))) -> 0 | AF25: =IF('Cap Rate Graph Table'!X11=0,0,IF(ISNA('Cap Rate Graph Table'!X11-INDEX('TNG Spread Calc'!$C$22:$C$240,MATCH('TNG Spread Calc'!$J25,'TNG Spread Calc'!$A$22:$A$240,0)))=TRUE,0,'Cap Rate Graph Table'!X11-INDEX('TNG Spread Calc'!$C$22:$C$240,MATCH('TNG Spread Calc'!$J25,'TNG Spread Calc'!$A$22:$A$240,0)))) -> 0 | AG25: =IF('Cap Rate Graph Table'!Y11=0,0,IF(ISNA('Cap Rate Graph Table'!Y11-INDEX('TNG Spread Calc'!$C$22:$C$240,MATCH('TNG Spread Calc'!$J25,'TNG Spread Calc'!$A$22:$A$240,0)))=TRUE,0,'Cap Rate Graph Table'!Y11-INDEX('TNG Spread Calc'!$C$22:$C$240,MATCH('TNG Spread Calc'!$J25,'TNG Spread Calc'!$A$22:$A$240,0)))) -> 0 | AH25: =IF('Cap Rate Graph Table'!Z11=0,0,IF(ISNA('Cap Rate Graph Table'!Z11-INDEX('TNG Spread Calc'!$C$22:$C$240,MATCH('TNG Spread Calc'!$J25,'TNG Spread Calc'!$A$22:$A$240,0)))=TRUE,0,'Cap Rate Graph Table'!Z11-INDEX('TNG Spread Calc'!$C$22:$C$240,MATCH('TNG Spread Calc'!$J25,'TNG Spread Calc'!$A$22:$A$240,0)))) -> 0 | AI25: =IF('Cap Rate Graph Table'!AA11=0,0,IF(ISNA('Cap Rate Graph Table'!AA11-INDEX('TNG Spread Calc'!$C$22:$C$240,MATCH('TNG Spread Calc'!$J25,'TNG Spread Calc'!$A$22:$A$240,0)))=TRUE,0,'Cap Rate Graph Table'!AA11-INDEX('TNG Spread Calc'!$C$22:$C$240,MATCH('TNG Spread Calc'!$J25,'TNG Spread Calc'!$A$22:$A$240,0)))) -> 0 | AJ25: =IF('Cap Rate Graph Table'!AB11=0,0,IF(ISNA('Cap Rate Graph Table'!AB11-INDEX('TNG Spread Calc'!$C$22:$C$240,MATCH('TNG Spread Calc'!$J25,'TNG Spread Calc'!$A$22:$A$240,0)))=TRUE,0,'Cap Rate Graph Table'!AB11-INDEX('TNG Spread Calc'!$C$22:$C$240,MATCH('TNG Spread Calc'!$J25,'TNG Spread Calc'!$A$22:$A$240,0)))) -> 0 | AK25: =IF('Cap Rate Graph Table'!AC11=0,0,IF(ISNA('Cap Rate Graph Table'!AC11-INDEX('TNG Spread Calc'!$C$22:$C$240,MATCH('TNG Spread Calc'!$J25,'TNG Spread Calc'!$A$22:$A$240,0)))=TRUE,0,'Cap Rate Graph Table'!AC11-INDEX('TNG Spread Calc'!$C$22:$C$240,MATCH('TNG Spread Calc'!$J25,'TNG Spread Calc'!$A$22:$A$240,0)))) -> 0 | AL25: =IF('Cap Rate Graph Table'!AD11=0,0,IF(ISNA('Cap Rate Graph Table'!AD11-INDEX('TNG Spread Calc'!$C$22:$C$240,MATCH('TNG Spread Calc'!$J25,'TNG Spread Calc'!$A$22:$A$240,0)))=TRUE,0,'Cap Rate Graph Table'!AD11-INDEX('TNG Spread Calc'!$C$22:$C$240,MATCH('TNG Spread Calc'!$J25,'TNG Spread Calc'!$A$22:$A$240,0)))) -> 0 | AM25: =IF('Cap Rate Graph Table'!AE11=0,0,IF(ISNA('Cap Rate Graph Table'!AE11-INDEX('TNG Spread Calc'!$C$22:$C$240,MATCH('TNG Spread Calc'!$J25,'TNG Spread Calc'!$A$22:$A$240,0)))=TRUE,0,'Cap Rate Graph Table'!AE11-INDEX('TNG Spread Calc'!$C$22:$C$240,MATCH('TNG Spread Calc'!$J25,'TNG Spread Calc'!$A$22:$A$240,0)))) -> 0 | AN25: =IF('Cap Rate Graph Table'!AF11=0,0,IF(ISNA('Cap Rate Graph Table'!AF11-INDEX('TNG Spread Calc'!$C$22:$C$240,MATCH('TNG Spread Calc'!$J25,'TNG Spread Calc'!$A$22:$A$240,0)))=TRUE,0,'Cap Rate Graph Table'!AF11-INDEX('TNG Spread Calc'!$C$22:$C$240,MATCH('TNG Spread Calc'!$J25,'TNG Spread Calc'!$A$22:$A$240,0)))) -> 0 | AO25: =IF('Cap Rate Graph Table'!AG11=0,0,IF(ISNA('Cap Rate Graph Table'!AG11-INDEX('TNG Spread Calc'!$C$22:$C$240,MATCH('TNG Spread Calc'!$J25,'TNG Spread Calc'!$A$22:$A$240,0)))=TRUE,0,'Cap Rate Graph Table'!AG11-INDEX('TNG Spread Calc'!$C$22:$C$240,MATCH('TNG Spread Calc'!$J25,'TNG Spread Calc'!$A$22:$A$240,0)))) -> 0 | AP25: =IF('Cap Rate Graph Table'!AH11=0,0,IF(ISNA('Cap Rate Graph Table'!AH11-INDEX('TNG Spread Calc'!$C$22:$C$240,MATCH('TNG Spread Calc'!$J25,'TNG Spread Calc'!$A$22:$A$240,0)))=TRUE,0,'Cap Rate Graph Table'!AH11-INDEX('TNG Spread Calc'!$C$22:$C$240,MATCH('TNG Spread Calc'!$J25,'TNG Spread Calc'!$A$22:$A$240,0)))) -> 0 | AQ25: =IF('Cap Rate Graph Table'!AI11=0,0,IF(ISNA('Cap Rate Graph Table'!AI11-INDEX('TNG Spread Calc'!$C$22:$C$240,MATCH('TNG Spread Calc'!$J25,'TNG Spread Calc'!$A$22:$A$240,0)))=TRUE,0,'Cap Rate Graph Table'!AI11-INDEX('TNG Spread Calc'!$C$22:$C$240,MATCH('TNG Spread Calc'!$J25,'TNG Spread Calc'!$A$22:$A$240,0)))) -> 0 | AR25: =IF('Cap Rate Graph Table'!AJ11=0,0,IF(ISNA('Cap Rate Graph Table'!AJ11-INDEX('TNG Spread Calc'!$C$22:$C$240,MATCH('TNG Spread Calc'!$J25,'TNG Spread Calc'!$A$22:$A$240,0)))=TRUE,0,'Cap Rate Graph Table'!AJ11-INDEX('TNG Spread Calc'!$C$22:$C$240,MATCH('TNG Spread Calc'!$J25,'TNG Spread Calc'!$A$22:$A$240,0)))) -> 0 | AS25: =IF('Cap Rate Graph Table'!AK11=0,0,IF(ISNA('Cap Rate Graph Table'!AK11-INDEX('TNG Spread Calc'!$C$22:$C$240,MATCH('TNG Spread Calc'!$J25,'TNG Spread Calc'!$A$22:$A$240,0)))=TRUE,0,'Cap Rate Graph Table'!AK11-INDEX('TNG Spread Calc'!$C$22:$C$240,MATCH('TNG Spread Calc'!$J25,'TNG Spread Calc'!$A$22:$A$240,0)))) -> 0 | AT25: =IF('Cap Rate Graph Table'!AL11=0,0,IF(ISNA('Cap Rate Graph Table'!AL11-INDEX('TNG Spread Calc'!$C$22:$C$240,MATCH('TNG Spread Calc'!$J25,'TNG Spread Calc'!$A$22:$A$240,0)))=TRUE,0,'Cap Rate Graph Table'!AL11-INDEX('TNG Spread Calc'!$C$22:$C$240,MATCH('TNG Spread Calc'!$J25,'TNG Spread Calc'!$A$22:$A$240,0)))) -> 0 | AU25: =IF('Cap Rate Graph Table'!AM11=0,0,IF(ISNA('Cap Rate Graph Table'!AM11-INDEX('TNG Spread Calc'!$C$22:$C$240,MATCH('TNG Spread Calc'!$J25,'TNG Spread Calc'!$A$22:$A$240,0)))=TRUE,0,'Cap Rate Graph Table'!AM11-INDEX('TNG Spread Calc'!$C$22:$C$240,MATCH('TNG Spread Calc'!$J25,'TNG Spread Calc'!$A$22:$A$240,0)))) -> 0 | AV25: =IF('Cap Rate Graph Table'!AN11=0,0,IF(ISNA('Cap Rate Graph Table'!AN11-INDEX('TNG Spread Calc'!$C$22:$C$240,MATCH('TNG Spread Calc'!$J25,'TNG Spread Calc'!$A$22:$A$240,0)))=TRUE,0,'Cap Rate Graph Table'!AN11-INDEX('TNG Spread Calc'!$C$22:$C$240,MATCH('TNG Spread Calc'!$J25,'TNG Spread Calc'!$A$22:$A$240,0)))) -> 0 | AW25: =IF('Cap Rate Graph Table'!AO11=0,0,IF(ISNA('Cap Rate Graph Table'!AO11-INDEX('TNG Spread Calc'!$C$22:$C$240,MATCH('TNG Spread Calc'!$J25,'TNG Spread Calc'!$A$22:$A$240,0)))=TRUE,0,'Cap Rate Graph Table'!AO11-INDEX('TNG Spread Calc'!$C$22:$C$240,MATCH('TNG Spread Calc'!$J25,'TNG Spread Calc'!$A$22:$A$240,0)))) -> 0 | AX25: =IF('Cap Rate Graph Table'!AP11=0,0,IF(ISNA('Cap Rate Graph Table'!AP11-INDEX('TNG Spread Calc'!$C$22:$C$240,MATCH('TNG Spread Calc'!$J25,'TNG Spread Calc'!$A$22:$A$240,0)))=TRUE,0,'Cap Rate Graph Table'!AP11-INDEX('TNG Spread Calc'!$C$22:$C$240,MATCH('TNG Spread Calc'!$J25,'TNG Spread Calc'!$A$22:$A$240,0)))) -> 0 | AY25: =IF('Cap Rate Graph Table'!AQ11=0,0,IF(ISNA('Cap Rate Graph Table'!AQ11-INDEX('TNG Spread Calc'!$C$22:$C$240,MATCH('TNG Spread Calc'!$J25,'TNG Spread Calc'!$A$22:$A$240,0)))=TRUE,0,'Cap Rate Graph Table'!AQ11-INDEX('TNG Spread Calc'!$C$22:$C$240,MATCH('TNG Spread Calc'!$J25,'TNG Spread Calc'!$A$22:$A$240,0)))) -> 0 | AZ25: =IF('Cap Rate Graph Table'!AR11=0,0,IF(ISNA('Cap Rate Graph Table'!AR11-INDEX('TNG Spread Calc'!$C$22:$C$240,MATCH('TNG Spread Calc'!$J25,'TNG Spread Calc'!$A$22:$A$240,0)))=TRUE,0,'Cap Rate Graph Table'!AR11-INDEX('TNG Spread Calc'!$C$22:$C$240,MATCH('TNG Spread Calc'!$J25,'TNG Spread Calc'!$A$22:$A$240,0)))) -> 0 | BA25: =IF('Cap Rate Graph Table'!AS11=0,0,IF(ISNA('Cap Rate Graph Table'!AS11-INDEX('TNG Spread Calc'!$C$22:$C$240,MATCH('TNG Spread Calc'!$J25,'TNG Spread Calc'!$A$22:$A$240,0)))=TRUE,0,'Cap Rate Graph Table'!AS11-INDEX('TNG Spread Calc'!$C$22:$C$240,MATCH('TNG Spread Calc'!$J25,'TNG Spread Calc'!$A$22:$A$240,0)))) -> 0 | BB25: =IF('Cap Rate Graph Table'!AT11=0,0,IF(ISNA('Cap Rate Graph Table'!AT11-INDEX('TNG Spread Calc'!$C$22:$C$240,MATCH('TNG Spread Calc'!$J25,'TNG Spread Calc'!$A$22:$A$240,0)))=TRUE,0,'Cap Rate Graph Table'!AT11-INDEX('TNG Spread Calc'!$C$22:$C$240,MATCH('TNG Spread Calc'!$J25,'TNG Spread Calc'!$A$22:$A$240,0)))) -> 0 | BC25: =IF('Cap Rate Graph Table'!AU11=0,0,IF(ISNA('Cap Rate Graph Table'!AU11-INDEX('TNG Spread Calc'!$C$22:$C$240,MATCH('TNG Spread Calc'!$J25,'TNG Spread Calc'!$A$22:$A$240,0)))=TRUE,0,'Cap Rate Graph Table'!AU11-INDEX('TNG Spread Calc'!$C$22:$C$240,MATCH('TNG Spread Calc'!$J25,'TNG Spread Calc'!$A$22:$A$240,0)))) -> 0 | BD25: =IF('Cap Rate Graph Table'!AV11=0,0,IF(ISNA('Cap Rate Graph Table'!AV11-INDEX('TNG Spread Calc'!$C$22:$C$240,MATCH('TNG Spread Calc'!$J25,'TNG Spread Calc'!$A$22:$A$240,0)))=TRUE,0,'Cap Rate Graph Table'!AV11-INDEX('TNG Spread Calc'!$C$22:$C$240,MATCH('TNG Spread Calc'!$J25,'TNG Spread Calc'!$A$22:$A$240,0)))) -> 0 | BE25: =IF('Cap Rate Graph Table'!AW11=0,0,IF(ISNA('Cap Rate Graph Table'!AW11-INDEX('TNG Spread Calc'!$C$22:$C$240,MATCH('TNG Spread Calc'!$J25,'TNG Spread Calc'!$A$22:$A$240,0)))=TRUE,0,'Cap Rate Graph Table'!AW11-INDEX('TNG Spread Calc'!$C$22:$C$240,MATCH('TNG Spread Calc'!$J25,'TNG Spread Calc'!$A$22:$A$240,0)))) -> 0 | BF25: =IF('Cap Rate Graph Table'!AX11=0,0,IF(ISNA('Cap Rate Graph Table'!AX11-INDEX('TNG Spread Calc'!$C$22:$C$240,MATCH('TNG Spread Calc'!$J25,'TNG Spread Calc'!$A$22:$A$240,0)))=TRUE,0,'Cap Rate Graph Table'!AX11-INDEX('TNG Spread Calc'!$C$22:$C$240,MATCH('TNG Spread Calc'!$J25,'TNG Spread Calc'!$A$22:$A$240,0)))) -> 0 | BG25: =IF('Cap Rate Graph Table'!AY11=0,0,IF(ISNA('Cap Rate Graph Table'!AY11-INDEX('TNG Spread Calc'!$C$22:$C$240,MATCH('TNG Spread Calc'!$J25,'TNG Spread Calc'!$A$22:$A$240,0)))=TRUE,0,'Cap Rate Graph Table'!AY11-INDEX('TNG Spread Calc'!$C$22:$C$240,MATCH('TNG Spread Calc'!$J25,'TNG Spread Calc'!$A$22:$A$240,0)))) -> 0 | BH25: =IF('Cap Rate Graph Table'!AZ11=0,0,IF(ISNA('Cap Rate Graph Table'!AZ11-INDEX('TNG Spread Calc'!$C$22:$C$240,MATCH('TNG Spread Calc'!$J25,'TNG Spread Calc'!$A$22:$A$240,0)))=TRUE,0,'Cap Rate Graph Table'!AZ11-INDEX('TNG Spread Calc'!$C$22:$C$240,MATCH('TNG Spread Calc'!$J25,'TNG Spread Calc'!$A$22:$A$240,0)))) -> 0 | BI25: =IF('Cap Rate Graph Table'!BA11=0,0,IF(ISNA('Cap Rate Graph Table'!BA11-INDEX('TNG Spread Calc'!$C$22:$C$240,MATCH('TNG Spread Calc'!$J25,'TNG Spread Calc'!$A$22:$A$240,0)))=TRUE,0,'Cap Rate Graph Table'!BA11-INDEX('TNG Spread Calc'!$C$22:$C$240,MATCH('TNG Spread Calc'!$J25,'TNG Spread Calc'!$A$22:$A$240,0)))) -> 0 | BJ25: =IF('Cap Rate Graph Table'!BB11=0,0,IF(ISNA('Cap Rate Graph Table'!BB11-INDEX('TNG Spread Calc'!$C$22:$C$240,MATCH('TNG Spread Calc'!$J25,'TNG Spread Calc'!$A$22:$A$240,0)))=TRUE,0,'Cap Rate Graph Table'!BB11-INDEX('TNG Spread Calc'!$C$22:$C$240,MATCH('TNG Spread Calc'!$J25,'TNG Spread Calc'!$A$22:$A$240,0)))) -> 0
A26: 1963-01-01 | B26: 3.89 | C26: 0.0389 | E26: 1963-01-01 | F26: -0.01 | I26: =INDEX(K26:AN26,MATCH('Inputs & Mkt Adj'!$C$4,'TNG Spread Calc'!$K$20:$AN$20,0)) -> 0 | J26: 1997-01-01 | K26: =IF('Cap Rate Graph Table'!C12=0,0,IF(ISNA('Cap Rate Graph Table'!C12-INDEX('TNG Spread Calc'!$C$22:$C$240,MATCH('TNG Spread Calc'!$J26,'TNG Spread Calc'!$A$22:$A$240,0)))=TRUE,0,'Cap Rate Graph Table'!C12-INDEX('TNG Spread Calc'!$C$22:$C$240,MATCH('TNG Spread Calc'!$J26,'TNG Spread Calc'!$A$22:$A$240,0)))) -> 0 | L26: =IF('Cap Rate Graph Table'!D12=0,0,IF(ISNA('Cap Rate Graph Table'!D12-INDEX('TNG Spread Calc'!$C$22:$C$240,MATCH('TNG Spread Calc'!$J26,'TNG Spread Calc'!$A$22:$A$240,0)))=TRUE,0,'Cap Rate Graph Table'!D12-INDEX('TNG Spread Calc'!$C$22:$C$240,MATCH('TNG Spread Calc'!$J26,'TNG Spread Calc'!$A$22:$A$240,0)))) -> 0 | M26: =IF('Cap Rate Graph Table'!E12=0,0,IF(ISNA('Cap Rate Graph Table'!E12-INDEX('TNG Spread Calc'!$C$22:$C$240,MATCH('TNG Spread Calc'!$J26,'TNG Spread Calc'!$A$22:$A$240,0)))=TRUE,0,'Cap Rate Graph Table'!E12-INDEX('TNG Spread Calc'!$C$22:$C$240,MATCH('TNG Spread Calc'!$J26,'TNG Spread Calc'!$A$22:$A$240,0)))) -> 0 | N26: =IF('Cap Rate Graph Table'!F12=0,0,IF(ISNA('Cap Rate Graph Table'!F12-INDEX('TNG Spread Calc'!$C$22:$C$240,MATCH('TNG Spread Calc'!$J26,'TNG Spread Calc'!$A$22:$A$240,0)))=TRUE,0,'Cap Rate Graph Table'!F12-INDEX('TNG Spread Calc'!$C$22:$C$240,MATCH('TNG Spread Calc'!$J26,'TNG Spread Calc'!$A$22:$A$240,0)))) -> 0 | O26: =IF('Cap Rate Graph Table'!G12=0,0,IF(ISNA('Cap Rate Graph Table'!G12-INDEX('TNG Spread Calc'!$C$22:$C$240,MATCH('TNG Spread Calc'!$J26,'TNG Spread Calc'!$A$22:$A$240,0)))=TRUE,0,'Cap Rate Graph Table'!G12-INDEX('TNG Spread Calc'!$C$22:$C$240,MATCH('TNG Spread Calc'!$J26,'TNG Spread Calc'!$A$22:$A$240,0)))) -> 0 | P26: =IF('Cap Rate Graph Table'!H12=0,0,IF(ISNA('Cap Rate Graph Table'!H12-INDEX('TNG Spread Calc'!$C$22:$C$240,MATCH('TNG Spread Calc'!$J26,'TNG Spread Calc'!$A$22:$A$240,0)))=TRUE,0,'Cap Rate Graph Table'!H12-INDEX('TNG Spread Calc'!$C$22:$C$240,MATCH('TNG Spread Calc'!$J26,'TNG Spread Calc'!$A$22:$A$240,0)))) -> 0 | Q26: =IF('Cap Rate Graph Table'!I12=0,0,IF(ISNA('Cap Rate Graph Table'!I12-INDEX('TNG Spread Calc'!$C$22:$C$240,MATCH('TNG Spread Calc'!$J26,'TNG Spread Calc'!$A$22:$A$240,0)))=TRUE,0,'Cap Rate Graph Table'!I12-INDEX('TNG Spread Calc'!$C$22:$C$240,MATCH('TNG Spread Calc'!$J26,'TNG Spread Calc'!$A$22:$A$240,0)))) -> 0 | R26: =IF('Cap Rate Graph Table'!J12=0,0,IF(ISNA('Cap Rate Graph Table'!J12-INDEX('TNG Spread Calc'!$C$22:$C$240,MATCH('TNG Spread Calc'!$J26,'TNG Spread Calc'!$A$22:$A$240,0)))=TRUE,0,'Cap Rate Graph Table'!J12-INDEX('TNG Spread Calc'!$C$22:$C$240,MATCH('TNG Spread Calc'!$J26,'TNG Spread Calc'!$A$22:$A$240,0)))) -> 0 | S26: =IF('Cap Rate Graph Table'!K12=0,0,IF(ISNA('Cap Rate Graph Table'!K12-INDEX('TNG Spread Calc'!$C$22:$C$240,MATCH('TNG Spread Calc'!$J26,'TNG Spread Calc'!$A$22:$A$240,0)))=TRUE,0,'Cap Rate Graph Table'!K12-INDEX('TNG Spread Calc'!$C$22:$C$240,MATCH('TNG Spread Calc'!$J26,'TNG Spread Calc'!$A$22:$A$240,0)))) -> 0 | T26: =IF('Cap Rate Graph Table'!L12=0,0,IF(ISNA('Cap Rate Graph Table'!L12-INDEX('TNG Spread Calc'!$C$22:$C$240,MATCH('TNG Spread Calc'!$J26,'TNG Spread Calc'!$A$22:$A$240,0)))=TRUE,0,'Cap Rate Graph Table'!L12-INDEX('TNG Spread Calc'!$C$22:$C$240,MATCH('TNG Spread Calc'!$J26,'TNG Spread Calc'!$A$22:$A$240,0)))) -> 0 | U26: =IF('Cap Rate Graph Table'!M12=0,0,IF(ISNA('Cap Rate Graph Table'!M12-INDEX('TNG Spread Calc'!$C$22:$C$240,MATCH('TNG Spread Calc'!$J26,'TNG Spread Calc'!$A$22:$A$240,0)))=TRUE,0,'Cap Rate Graph Table'!M12-INDEX('TNG Spread Calc'!$C$22:$C$240,MATCH('TNG Spread Calc'!$J26,'TNG Spread Calc'!$A$22:$A$240,0)))) -> 0 | V26: =IF('Cap Rate Graph Table'!N12=0,0,IF(ISNA('Cap Rate Graph Table'!N12-INDEX('TNG Spread Calc'!$C$22:$C$240,MATCH('TNG Spread Calc'!$J26,'TNG Spread Calc'!$A$22:$A$240,0)))=TRUE,0,'Cap Rate Graph Table'!N12-INDEX('TNG Spread Calc'!$C$22:$C$240,MATCH('TNG Spread Calc'!$J26,'TNG Spread Calc'!$A$22:$A$240,0)))) -> 0 | W26: =IF('Cap Rate Graph Table'!O12=0,0,IF(ISNA('Cap Rate Graph Table'!O12-INDEX('TNG Spread Calc'!$C$22:$C$240,MATCH('TNG Spread Calc'!$J26,'TNG Spread Calc'!$A$22:$A$240,0)))=TRUE,0,'Cap Rate Graph Table'!O12-INDEX('TNG Spread Calc'!$C$22:$C$240,MATCH('TNG Spread Calc'!$J26,'TNG Spread Calc'!$A$22:$A$240,0)))) -> 0 | X26: =IF('Cap Rate Graph Table'!P12=0,0,IF(ISNA('Cap Rate Graph Table'!P12-INDEX('TNG Spread Calc'!$C$22:$C$240,MATCH('TNG Spread Calc'!$J26,'TNG Spread Calc'!$A$22:$A$240,0)))=TRUE,0,'Cap Rate Graph Table'!P12-INDEX('TNG Spread Calc'!$C$22:$C$240,MATCH('TNG Spread Calc'!$J26,'TNG Spread Calc'!$A$22:$A$240,0)))) -> 0 | Y26: =IF('Cap Rate Graph Table'!Q12=0,0,IF(ISNA('Cap Rate Graph Table'!Q12-INDEX('TNG Spread Calc'!$C$22:$C$240,MATCH('TNG Spread Calc'!$J26,'TNG Spread Calc'!$A$22:$A$240,0)))=TRUE,0,'Cap Rate Graph Table'!Q12-INDEX('TNG Spread Calc'!$C$22:$C$240,MATCH('TNG Spread Calc'!$J26,'TNG Spread Calc'!$A$22:$A$240,0)))) -> 0 | Z26: =IF('Cap Rate Graph Table'!R12=0,0,IF(ISNA('Cap Rate Graph Table'!R12-INDEX('TNG Spread Calc'!$C$22:$C$240,MATCH('TNG Spread Calc'!$J26,'TNG Spread Calc'!$A$22:$A$240,0)))=TRUE,0,'Cap Rate Graph Table'!R12-INDEX('TNG Spread Calc'!$C$22:$C$240,MATCH('TNG Spread Calc'!$J26,'TNG Spread Calc'!$A$22:$A$240,0)))) -> 0 | AA26: =IF('Cap Rate Graph Table'!S12=0,0,IF(ISNA('Cap Rate Graph Table'!S12-INDEX('TNG Spread Calc'!$C$22:$C$240,MATCH('TNG Spread Calc'!$J26,'TNG Spread Calc'!$A$22:$A$240,0)))=TRUE,0,'Cap Rate Graph Table'!S12-INDEX('TNG Spread Calc'!$C$22:$C$240,MATCH('TNG Spread Calc'!$J26,'TNG Spread Calc'!$A$22:$A$240,0)))) -> 0 | AB26: =IF('Cap Rate Graph Table'!T12=0,0,IF(ISNA('Cap Rate Graph Table'!T12-INDEX('TNG Spread Calc'!$C$22:$C$240,MATCH('TNG Spread Calc'!$J26,'TNG Spread Calc'!$A$22:$A$240,0)))=TRUE,0,'Cap Rate Graph Table'!T12-INDEX('TNG Spread Calc'!$C$22:$C$240,MATCH('TNG Spread Calc'!$J26,'TNG Spread Calc'!$A$22:$A$240,0)))) -> 0 | AC26: =IF('Cap Rate Graph Table'!U12=0,0,IF(ISNA('Cap Rate Graph Table'!U12-INDEX('TNG Spread Calc'!$C$22:$C$240,MATCH('TNG Spread Calc'!$J26,'TNG Spread Calc'!$A$22:$A$240,0)))=TRUE,0,'Cap Rate Graph Table'!U12-INDEX('TNG Spread Calc'!$C$22:$C$240,MATCH('TNG Spread Calc'!$J26,'TNG Spread Calc'!$A$22:$A$240,0)))) -> 0 | AD26: =IF('Cap Rate Graph Table'!V12=0,0,IF(ISNA('Cap Rate Graph Table'!V12-INDEX('TNG Spread Calc'!$C$22:$C$240,MATCH('TNG Spread Calc'!$J26,'TNG Spread Calc'!$A$22:$A$240,0)))=TRUE,0,'Cap Rate Graph Table'!V12-INDEX('TNG Spread Calc'!$C$22:$C$240,MATCH('TNG Spread Calc'!$J26,'TNG Spread Calc'!$A$22:$A$240,0)))) -> 0 | AE26: =IF('Cap Rate Graph Table'!W12=0,0,IF(ISNA('Cap Rate Graph Table'!W12-INDEX('TNG Spread Calc'!$C$22:$C$240,MATCH('TNG Spread Calc'!$J26,'TNG Spread Calc'!$A$22:$A$240,0)))=TRUE,0,'Cap Rate Graph Table'!W12-INDEX('TNG Spread Calc'!$C$22:$C$240,MATCH('TNG Spread Calc'!$J26,'TNG Spread Calc'!$A$22:$A$240,0)))) -> 0 | AF26: =IF('Cap Rate Graph Table'!X12=0,0,IF(ISNA('Cap Rate Graph Table'!X12-INDEX('TNG Spread Calc'!$C$22:$C$240,MATCH('TNG Spread Calc'!$J26,'TNG Spread Calc'!$A$22:$A$240,0)))=TRUE,0,'Cap Rate Graph Table'!X12-INDEX('TNG Spread Calc'!$C$22:$C$240,MATCH('TNG Spread Calc'!$J26,'TNG Spread Calc'!$A$22:$A$240,0)))) -> 0 | AG26: =IF('Cap Rate Graph Table'!Y12=0,0,IF(ISNA('Cap Rate Graph Table'!Y12-INDEX('TNG Spread Calc'!$C$22:$C$240,MATCH('TNG Spread Calc'!$J26,'TNG Spread Calc'!$A$22:$A$240,0)))=TRUE,0,'Cap Rate Graph Table'!Y12-INDEX('TNG Spread Calc'!$C$22:$C$240,MATCH('TNG Spread Calc'!$J26,'TNG Spread Calc'!$A$22:$A$240,0)))) -> 0 | AH26: =IF('Cap Rate Graph Table'!Z12=0,0,IF(ISNA('Cap Rate Graph Table'!Z12-INDEX('TNG Spread Calc'!$C$22:$C$240,MATCH('TNG Spread Calc'!$J26,'TNG Spread Calc'!$A$22:$A$240,0)))=TRUE,0,'Cap Rate Graph Table'!Z12-INDEX('TNG Spread Calc'!$C$22:$C$240,MATCH('TNG Spread Calc'!$J26,'TNG Spread Calc'!$A$22:$A$240,0)))) -> 0 | AI26: =IF('Cap Rate Graph Table'!AA12=0,0,IF(ISNA('Cap Rate Graph Table'!AA12-INDEX('TNG Spread Calc'!$C$22:$C$240,MATCH('TNG Spread Calc'!$J26,'TNG Spread Calc'!$A$22:$A$240,0)))=TRUE,0,'Cap Rate Graph Table'!AA12-INDEX('TNG Spread Calc'!$C$22:$C$240,MATCH('TNG Spread Calc'!$J26,'TNG Spread Calc'!$A$22:$A$240,0)))) -> 0 | AJ26: =IF('Cap Rate Graph Table'!AB12=0,0,IF(ISNA('Cap Rate Graph Table'!AB12-INDEX('TNG Spread Calc'!$C$22:$C$240,MATCH('TNG Spread Calc'!$J26,'TNG Spread Calc'!$A$22:$A$240,0)))=TRUE,0,'Cap Rate Graph Table'!AB12-INDEX('TNG Spread Calc'!$C$22:$C$240,MATCH('TNG Spread Calc'!$J26,'TNG Spread Calc'!$A$22:$A$240,0)))) -> 0 | AK26: =IF('Cap Rate Graph Table'!AC12=0,0,IF(ISNA('Cap Rate Graph Table'!AC12-INDEX('TNG Spread Calc'!$C$22:$C$240,MATCH('TNG Spread Calc'!$J26,'TNG Spread Calc'!$A$22:$A$240,0)))=TRUE,0,'Cap Rate Graph Table'!AC12-INDEX('TNG Spread Calc'!$C$22:$C$240,MATCH('TNG Spread Calc'!$J26,'TNG Spread Calc'!$A$22:$A$240,0)))) -> 0 | AL26: =IF('Cap Rate Graph Table'!AD12=0,0,IF(ISNA('Cap Rate Graph Table'!AD12-INDEX('TNG Spread Calc'!$C$22:$C$240,MATCH('TNG Spread Calc'!$J26,'TNG Spread Calc'!$A$22:$A$240,0)))=TRUE,0,'Cap Rate Graph Table'!AD12-INDEX('TNG Spread Calc'!$C$22:$C$240,MATCH('TNG Spread Calc'!$J26,'TNG Spread Calc'!$A$22:$A$240,0)))) -> 0 | AM26: =IF('Cap Rate Graph Table'!AE12=0,0,IF(ISNA('Cap Rate Graph Table'!AE12-INDEX('TNG Spread Calc'!$C$22:$C$240,MATCH('TNG Spread Calc'!$J26,'TNG Spread Calc'!$A$22:$A$240,0)))=TRUE,0,'Cap Rate Graph Table'!AE12-INDEX('TNG Spread Calc'!$C$22:$C$240,MATCH('TNG Spread Calc'!$J26,'TNG Spread Calc'!$A$22:$A$240,0)))) -> 0 | AN26: =IF('Cap Rate Graph Table'!AF12=0,0,IF(ISNA('Cap Rate Graph Table'!AF12-INDEX('TNG Spread Calc'!$C$22:$C$240,MATCH('TNG Spread Calc'!$J26,'TNG Spread Calc'!$A$22:$A$240,0)))=TRUE,0,'Cap Rate Graph Table'!AF12-INDEX('TNG Spread Calc'!$C$22:$C$240,MATCH('TNG Spread Calc'!$J26,'TNG Spread Calc'!$A$22:$A$240,0)))) -> 0 | AO26: =IF('Cap Rate Graph Table'!AG12=0,0,IF(ISNA('Cap Rate Graph Table'!AG12-INDEX('TNG Spread Calc'!$C$22:$C$240,MATCH('TNG Spread Calc'!$J26,'TNG Spread Calc'!$A$22:$A$240,0)))=TRUE,0,'Cap Rate Graph Table'!AG12-INDEX('TNG Spread Calc'!$C$22:$C$240,MATCH('TNG Spread Calc'!$J26,'TNG Spread Calc'!$A$22:$A$240,0)))) -> 0 | AP26: =IF('Cap Rate Graph Table'!AH12=0,0,IF(ISNA('Cap Rate Graph Table'!AH12-INDEX('TNG Spread Calc'!$C$22:$C$240,MATCH('TNG Spread Calc'!$J26,'TNG Spread Calc'!$A$22:$A$240,0)))=TRUE,0,'Cap Rate Graph Table'!AH12-INDEX('TNG Spread Calc'!$C$22:$C$240,MATCH('TNG Spread Calc'!$J26,'TNG Spread Calc'!$A$22:$A$240,0)))) -> 0 | AQ26: =IF('Cap Rate Graph Table'!AI12=0,0,IF(ISNA('Cap Rate Graph Table'!AI12-INDEX('TNG Spread Calc'!$C$22:$C$240,MATCH('TNG Spread Calc'!$J26,'TNG Spread Calc'!$A$22:$A$240,0)))=TRUE,0,'Cap Rate Graph Table'!AI12-INDEX('TNG Spread Calc'!$C$22:$C$240,MATCH('TNG Spread Calc'!$J26,'TNG Spread Calc'!$A$22:$A$240,0)))) -> 0 | AR26: =IF('Cap Rate Graph Table'!AJ12=0,0,IF(ISNA('Cap Rate Graph Table'!AJ12-INDEX('TNG Spread Calc'!$C$22:$C$240,MATCH('TNG Spread Calc'!$J26,'TNG Spread Calc'!$A$22:$A$240,0)))=TRUE,0,'Cap Rate Graph Table'!AJ12-INDEX('TNG Spread Calc'!$C$22:$C$240,MATCH('TNG Spread Calc'!$J26,'TNG Spread Calc'!$A$22:$A$240,0)))) -> 0 | AS26: =IF('Cap Rate Graph Table'!AK12=0,0,IF(ISNA('Cap Rate Graph Table'!AK12-INDEX('TNG Spread Calc'!$C$22:$C$240,MATCH('TNG Spread Calc'!$J26,'TNG Spread Calc'!$A$22:$A$240,0)))=TRUE,0,'Cap Rate Graph Table'!AK12-INDEX('TNG Spread Calc'!$C$22:$C$240,MATCH('TNG Spread Calc'!$J26,'TNG Spread Calc'!$A$22:$A$240,0)))) -> 0 | AT26: =IF('Cap Rate Graph Table'!AL12=0,0,IF(ISNA('Cap Rate Graph Table'!AL12-INDEX('TNG Spread Calc'!$C$22:$C$240,MATCH('TNG Spread Calc'!$J26,'TNG Spread Calc'!$A$22:$A$240,0)))=TRUE,0,'Cap Rate Graph Table'!AL12-INDEX('TNG Spread Calc'!$C$22:$C$240,MATCH('TNG Spread Calc'!$J26,'TNG Spread Calc'!$A$22:$A$240,0)))) -> 0 | AU26: =IF('Cap Rate Graph Table'!AM12=0,0,IF(ISNA('Cap Rate Graph Table'!AM12-INDEX('TNG Spread Calc'!$C$22:$C$240,MATCH('TNG Spread Calc'!$J26,'TNG Spread Calc'!$A$22:$A$240,0)))=TRUE,0,'Cap Rate Graph Table'!AM12-INDEX('TNG Spread Calc'!$C$22:$C$240,MATCH('TNG Spread Calc'!$J26,'TNG Spread Calc'!$A$22:$A$240,0)))) -> 0 | AV26: =IF('Cap Rate Graph Table'!AN12=0,0,IF(ISNA('Cap Rate Graph Table'!AN12-INDEX('TNG Spread Calc'!$C$22:$C$240,MATCH('TNG Spread Calc'!$J26,'TNG Spread Calc'!$A$22:$A$240,0)))=TRUE,0,'Cap Rate Graph Table'!AN12-INDEX('TNG Spread Calc'!$C$22:$C$240,MATCH('TNG Spread Calc'!$J26,'TNG Spread Calc'!$A$22:$A$240,0)))) -> 0 | AW26: =IF('Cap Rate Graph Table'!AO12=0,0,IF(ISNA('Cap Rate Graph Table'!AO12-INDEX('TNG Spread Calc'!$C$22:$C$240,MATCH('TNG Spread Calc'!$J26,'TNG Spread Calc'!$A$22:$A$240,0)))=TRUE,0,'Cap Rate Graph Table'!AO12-INDEX('TNG Spread Calc'!$C$22:$C$240,MATCH('TNG Spread Calc'!$J26,'TNG Spread Calc'!$A$22:$A$240,0)))) -> 0 | AX26: =IF('Cap Rate Graph Table'!AP12=0,0,IF(ISNA('Cap Rate Graph Table'!AP12-INDEX('TNG Spread Calc'!$C$22:$C$240,MATCH('TNG Spread Calc'!$J26,'TNG Spread Calc'!$A$22:$A$240,0)))=TRUE,0,'Cap Rate Graph Table'!AP12-INDEX('TNG Spread Calc'!$C$22:$C$240,MATCH('TNG Spread Calc'!$J26,'TNG Spread Calc'!$A$22:$A$240,0)))) -> 0 | AY26: =IF('Cap Rate Graph Table'!AQ12=0,0,IF(ISNA('Cap Rate Graph Table'!AQ12-INDEX('TNG Spread Calc'!$C$22:$C$240,MATCH('TNG Spread Calc'!$J26,'TNG Spread Calc'!$A$22:$A$240,0)))=TRUE,0,'Cap Rate Graph Table'!AQ12-INDEX('TNG Spread Calc'!$C$22:$C$240,MATCH('TNG Spread Calc'!$J26,'TNG Spread Calc'!$A$22:$A$240,0)))) -> 0 | AZ26: =IF('Cap Rate Graph Table'!AR12=0,0,IF(ISNA('Cap Rate Graph Table'!AR12-INDEX('TNG Spread Calc'!$C$22:$C$240,MATCH('TNG Spread Calc'!$J26,'TNG Spread Calc'!$A$22:$A$240,0)))=TRUE,0,'Cap Rate Graph Table'!AR12-INDEX('TNG Spread Calc'!$C$22:$C$240,MATCH('TNG Spread Calc'!$J26,'TNG Spread Calc'!$A$22:$A$240,0)))) -> 0 | BA26: =IF('Cap Rate Graph Table'!AS12=0,0,IF(ISNA('Cap Rate Graph Table'!AS12-INDEX('TNG Spread Calc'!$C$22:$C$240,MATCH('TNG Spread Calc'!$J26,'TNG Spread Calc'!$A$22:$A$240,0)))=TRUE,0,'Cap Rate Graph Table'!AS12-INDEX('TNG Spread Calc'!$C$22:$C$240,MATCH('TNG Spread Calc'!$J26,'TNG Spread Calc'!$A$22:$A$240,0)))) -> 0 | BB26: =IF('Cap Rate Graph Table'!AT12=0,0,IF(ISNA('Cap Rate Graph Table'!AT12-INDEX('TNG Spread Calc'!$C$22:$C$240,MATCH('TNG Spread Calc'!$J26,'TNG Spread Calc'!$A$22:$A$240,0)))=TRUE,0,'Cap Rate Graph Table'!AT12-INDEX('TNG Spread Calc'!$C$22:$C$240,MATCH('TNG Spread Calc'!$J26,'TNG Spread Calc'!$A$22:$A$240,0)))) -> 0 | BC26: =IF('Cap Rate Graph Table'!AU12=0,0,IF(ISNA('Cap Rate Graph Table'!AU12-INDEX('TNG Spread Calc'!$C$22:$C$240,MATCH('TNG Spread Calc'!$J26,'TNG Spread Calc'!$A$22:$A$240,0)))=TRUE,0,'Cap Rate Graph Table'!AU12-INDEX('TNG Spread Calc'!$C$22:$C$240,MATCH('TNG Spread Calc'!$J26,'TNG Spread Calc'!$A$22:$A$240,0)))) -> 0 | BD26: =IF('Cap Rate Graph Table'!AV12=0,0,IF(ISNA('Cap Rate Graph Table'!AV12-INDEX('TNG Spread Calc'!$C$22:$C$240,MATCH('TNG Spread Calc'!$J26,'TNG Spread Calc'!$A$22:$A$240,0)))=TRUE,0,'Cap Rate Graph Table'!AV12-INDEX('TNG Spread Calc'!$C$22:$C$240,MATCH('TNG Spread Calc'!$J26,'TNG Spread Calc'!$A$22:$A$240,0)))) -> 0 | BE26: =IF('Cap Rate Graph Table'!AW12=0,0,IF(ISNA('Cap Rate Graph Table'!AW12-INDEX('TNG Spread Calc'!$C$22:$C$240,MATCH('TNG Spread Calc'!$J26,'TNG Spread Calc'!$A$22:$A$240,0)))=TRUE,0,'Cap Rate Graph Table'!AW12-INDEX('TNG Spread Calc'!$C$22:$C$240,MATCH('TNG Spread Calc'!$J26,'TNG Spread Calc'!$A$22:$A$240,0)))) -> 0 | BF26: =IF('Cap Rate Graph Table'!AX12=0,0,IF(ISNA('Cap Rate Graph Table'!AX12-INDEX('TNG Spread Calc'!$C$22:$C$240,MATCH('TNG Spread Calc'!$J26,'TNG Spread Calc'!$A$22:$A$240,0)))=TRUE,0,'Cap Rate Graph Table'!AX12-INDEX('TNG Spread Calc'!$C$22:$C$240,MATCH('TNG Spread Calc'!$J26,'TNG Spread Calc'!$A$22:$A$240,0)))) -> 0 | BG26: =IF('Cap Rate Graph Table'!AY12=0,0,IF(ISNA('Cap Rate Graph Table'!AY12-INDEX('TNG Spread Calc'!$C$22:$C$240,MATCH('TNG Spread Calc'!$J26,'TNG Spread Calc'!$A$22:$A$240,0)))=TRUE,0,'Cap Rate Graph Table'!AY12-INDEX('TNG Spread Calc'!$C$22:$C$240,MATCH('TNG Spread Calc'!$J26,'TNG Spread Calc'!$A$22:$A$240,0)))) -> 0 | BH26: =IF('Cap Rate Graph Table'!AZ12=0,0,IF(ISNA('Cap Rate Graph Table'!AZ12-INDEX('TNG Spread Calc'!$C$22:$C$240,MATCH('TNG Spread Calc'!$J26,'TNG Spread Calc'!$A$22:$A$240,0)))=TRUE,0,'Cap Rate Graph Table'!AZ12-INDEX('TNG Spread Calc'!$C$22:$C$240,MATCH('TNG Spread Calc'!$J26,'TNG Spread Calc'!$A$22:$A$240,0)))) -> 0 | BI26: =IF('Cap Rate Graph Table'!BA12=0,0,IF(ISNA('Cap Rate Graph Table'!BA12-INDEX('TNG Spread Calc'!$C$22:$C$240,MATCH('TNG Spread Calc'!$J26,'TNG Spread Calc'!$A$22:$A$240,0)))=TRUE,0,'Cap Rate Graph Table'!BA12-INDEX('TNG Spread Calc'!$C$22:$C$240,MATCH('TNG Spread Calc'!$J26,'TNG Spread Calc'!$A$22:$A$240,0)))) -> 0 | BJ26: =IF('Cap Rate Graph Table'!BB12=0,0,IF(ISNA('Cap Rate Graph Table'!BB12-INDEX('TNG Spread Calc'!$C$22:$C$240,MATCH('TNG Spread Calc'!$J26,'TNG Spread Calc'!$A$22:$A$240,0)))=TRUE,0,'Cap Rate Graph Table'!BB12-INDEX('TNG Spread Calc'!$C$22:$C$240,MATCH('TNG Spread Calc'!$J26,'TNG Spread Calc'!$A$22:$A$240,0)))) -> 0
A27: 1963-04-01 | B27: 3.96 | C27: =B27/100 -> 0.0396 | E27: 1963-04-01 | F27: 0.07 | I27: =INDEX(K27:AN27,MATCH('Inputs & Mkt Adj'!$C$4,'TNG Spread Calc'!$K$20:$AN$20,0)) -> 0 | J27: 1997-04-01 | K27: =IF('Cap Rate Graph Table'!C13=0,0,IF(ISNA('Cap Rate Graph Table'!C13-INDEX('TNG Spread Calc'!$C$22:$C$240,MATCH('TNG Spread Calc'!$J27,'TNG Spread Calc'!$A$22:$A$240,0)))=TRUE,0,'Cap Rate Graph Table'!C13-INDEX('TNG Spread Calc'!$C$22:$C$240,MATCH('TNG Spread Calc'!$J27,'TNG Spread Calc'!$A$22:$A$240,0)))) -> 0 | L27: =IF('Cap Rate Graph Table'!D13=0,0,IF(ISNA('Cap Rate Graph Table'!D13-INDEX('TNG Spread Calc'!$C$22:$C$240,MATCH('TNG Spread Calc'!$J27,'TNG Spread Calc'!$A$22:$A$240,0)))=TRUE,0,'Cap Rate Graph Table'!D13-INDEX('TNG Spread Calc'!$C$22:$C$240,MATCH('TNG Spread Calc'!$J27,'TNG Spread Calc'!$A$22:$A$240,0)))) -> 0 | M27: =IF('Cap Rate Graph Table'!E13=0,0,IF(ISNA('Cap Rate Graph Table'!E13-INDEX('TNG Spread Calc'!$C$22:$C$240,MATCH('TNG Spread Calc'!$J27,'TNG Spread Calc'!$A$22:$A$240,0)))=TRUE,0,'Cap Rate Graph Table'!E13-INDEX('TNG Spread Calc'!$C$22:$C$240,MATCH('TNG Spread Calc'!$J27,'TNG Spread Calc'!$A$22:$A$240,0)))) -> 0 | N27: =IF('Cap Rate Graph Table'!F13=0,0,IF(ISNA('Cap Rate Graph Table'!F13-INDEX('TNG Spread Calc'!$C$22:$C$240,MATCH('TNG Spread Calc'!$J27,'TNG Spread Calc'!$A$22:$A$240,0)))=TRUE,0,'Cap Rate Graph Table'!F13-INDEX('TNG Spread Calc'!$C$22:$C$240,MATCH('TNG Spread Calc'!$J27,'TNG Spread Calc'!$A$22:$A$240,0)))) -> 0 | O27: =IF('Cap Rate Graph Table'!G13=0,0,IF(ISNA('Cap Rate Graph Table'!G13-INDEX('TNG Spread Calc'!$C$22:$C$240,MATCH('TNG Spread Calc'!$J27,'TNG Spread Calc'!$A$22:$A$240,0)))=TRUE,0,'Cap Rate Graph Table'!G13-INDEX('TNG Spread Calc'!$C$22:$C$240,MATCH('TNG Spread Calc'!$J27,'TNG Spread Calc'!$A$22:$A$240,0)))) -> 0 | P27: =IF('Cap Rate Graph Table'!H13=0,0,IF(ISNA('Cap Rate Graph Table'!H13-INDEX('TNG Spread Calc'!$C$22:$C$240,MATCH('TNG Spread Calc'!$J27,'TNG Spread Calc'!$A$22:$A$240,0)))=TRUE,0,'Cap Rate Graph Table'!H13-INDEX('TNG Spread Calc'!$C$22:$C$240,MATCH('TNG Spread Calc'!$J27,'TNG Spread Calc'!$A$22:$A$240,0)))) -> 0 | Q27: =IF('Cap Rate Graph Table'!I13=0,0,IF(ISNA('Cap Rate Graph Table'!I13-INDEX('TNG Spread Calc'!$C$22:$C$240,MATCH('TNG Spread Calc'!$J27,'TNG Spread Calc'!$A$22:$A$240,0)))=TRUE,0,'Cap Rate Graph Table'!I13-INDEX('TNG Spread Calc'!$C$22:$C$240,MATCH('TNG Spread Calc'!$J27,'TNG Spread Calc'!$A$22:$A$240,0)))) -> 0 | R27: =IF('Cap Rate Graph Table'!J13=0,0,IF(ISNA('Cap Rate Graph Table'!J13-INDEX('TNG Spread Calc'!$C$22:$C$240,MATCH('TNG Spread Calc'!$J27,'TNG Spread Calc'!$A$22:$A$240,0)))=TRUE,0,'Cap Rate Graph Table'!J13-INDEX('TNG Spread Calc'!$C$22:$C$240,MATCH('TNG Spread Calc'!$J27,'TNG Spread Calc'!$A$22:$A$240,0)))) -> 0 | S27: =IF('Cap Rate Graph Table'!K13=0,0,IF(ISNA('Cap Rate Graph Table'!K13-INDEX('TNG Spread Calc'!$C$22:$C$240,MATCH('TNG Spread Calc'!$J27,'TNG Spread Calc'!$A$22:$A$240,0)))=TRUE,0,'Cap Rate Graph Table'!K13-INDEX('TNG Spread Calc'!$C$22:$C$240,MATCH('TNG Spread Calc'!$J27,'TNG Spread Calc'!$A$22:$A$240,0)))) -> 0 | T27: =IF('Cap Rate Graph Table'!L13=0,0,IF(ISNA('Cap Rate Graph Table'!L13-INDEX('TNG Spread Calc'!$C$22:$C$240,MATCH('TNG Spread Calc'!$J27,'TNG Spread Calc'!$A$22:$A$240,0)))=TRUE,0,'Cap Rate Graph Table'!L13-INDEX('TNG Spread Calc'!$C$22:$C$240,MATCH('TNG Spread Calc'!$J27,'TNG Spread Calc'!$A$22:$A$240,0)))) -> 0 | U27: =IF('Cap Rate Graph Table'!M13=0,0,IF(ISNA('Cap Rate Graph Table'!M13-INDEX('TNG Spread Calc'!$C$22:$C$240,MATCH('TNG Spread Calc'!$J27,'TNG Spread Calc'!$A$22:$A$240,0)))=TRUE,0,'Cap Rate Graph Table'!M13-INDEX('TNG Spread Calc'!$C$22:$C$240,MATCH('TNG Spread Calc'!$J27,'TNG Spread Calc'!$A$22:$A$240,0)))) -> 0 | V27: =IF('Cap Rate Graph Table'!N13=0,0,IF(ISNA('Cap Rate Graph Table'!N13-INDEX('TNG Spread Calc'!$C$22:$C$240,MATCH('TNG Spread Calc'!$J27,'TNG Spread Calc'!$A$22:$A$240,0)))=TRUE,0,'Cap Rate Graph Table'!N13-INDEX('TNG Spread Calc'!$C$22:$C$240,MATCH('TNG Spread Calc'!$J27,'TNG Spread Calc'!$A$22:$A$240,0)))) -> 0 | W27: =IF('Cap Rate Graph Table'!O13=0,0,IF(ISNA('Cap Rate Graph Table'!O13-INDEX('TNG Spread Calc'!$C$22:$C$240,MATCH('TNG Spread Calc'!$J27,'TNG Spread Calc'!$A$22:$A$240,0)))=TRUE,0,'Cap Rate Graph Table'!O13-INDEX('TNG Spread Calc'!$C$22:$C$240,MATCH('TNG Spread Calc'!$J27,'TNG Spread Calc'!$A$22:$A$240,0)))) -> 0 | X27: =IF('Cap Rate Graph Table'!P13=0,0,IF(ISNA('Cap Rate Graph Table'!P13-INDEX('TNG Spread Calc'!$C$22:$C$240,MATCH('TNG Spread Calc'!$J27,'TNG Spread Calc'!$A$22:$A$240,0)))=TRUE,0,'Cap Rate Graph Table'!P13-INDEX('TNG Spread Calc'!$C$22:$C$240,MATCH('TNG Spread Calc'!$J27,'TNG Spread Calc'!$A$22:$A$240,0)))) -> 0 | Y27: =IF('Cap Rate Graph Table'!Q13=0,0,IF(ISNA('Cap Rate Graph Table'!Q13-INDEX('TNG Spread Calc'!$C$22:$C$240,MATCH('TNG Spread Calc'!$J27,'TNG Spread Calc'!$A$22:$A$240,0)))=TRUE,0,'Cap Rate Graph Table'!Q13-INDEX('TNG Spread Calc'!$C$22:$C$240,MATCH('TNG Spread Calc'!$J27,'TNG Spread Calc'!$A$22:$A$240,0)))) -> 0 | Z27: =IF('Cap Rate Graph Table'!R13=0,0,IF(ISNA('Cap Rate Graph Table'!R13-INDEX('TNG Spread Calc'!$C$22:$C$240,MATCH('TNG Spread Calc'!$J27,'TNG Spread Calc'!$A$22:$A$240,0)))=TRUE,0,'Cap Rate Graph Table'!R13-INDEX('TNG Spread Calc'!$C$22:$C$240,MATCH('TNG Spread Calc'!$J27,'TNG Spread Calc'!$A$22:$A$240,0)))) -> 0 | AA27: =IF('Cap Rate Graph Table'!S13=0,0,IF(ISNA('Cap Rate Graph Table'!S13-INDEX('TNG Spread Calc'!$C$22:$C$240,MATCH('TNG Spread Calc'!$J27,'TNG Spread Calc'!$A$22:$A$240,0)))=TRUE,0,'Cap Rate Graph Table'!S13-INDEX('TNG Spread Calc'!$C$22:$C$240,MATCH('TNG Spread Calc'!$J27,'TNG Spread Calc'!$A$22:$A$240,0)))) -> 0 | AB27: =IF('Cap Rate Graph Table'!T13=0,0,IF(ISNA('Cap Rate Graph Table'!T13-INDEX('TNG Spread Calc'!$C$22:$C$240,MATCH('TNG Spread Calc'!$J27,'TNG Spread Calc'!$A$22:$A$240,0)))=TRUE,0,'Cap Rate Graph Table'!T13-INDEX('TNG Spread Calc'!$C$22:$C$240,MATCH('TNG Spread Calc'!$J27,'TNG Spread Calc'!$A$22:$A$240,0)))) -> 0 | AC27: =IF('Cap Rate Graph Table'!U13=0,0,IF(ISNA('Cap Rate Graph Table'!U13-INDEX('TNG Spread Calc'!$C$22:$C$240,MATCH('TNG Spread Calc'!$J27,'TNG Spread Calc'!$A$22:$A$240,0)))=TRUE,0,'Cap Rate Graph Table'!U13-INDEX('TNG Spread Calc'!$C$22:$C$240,MATCH('TNG Spread Calc'!$J27,'TNG Spread Calc'!$A$22:$A$240,0)))) -> 0 | AD27: =IF('Cap Rate Graph Table'!V13=0,0,IF(ISNA('Cap Rate Graph Table'!V13-INDEX('TNG Spread Calc'!$C$22:$C$240,MATCH('TNG Spread Calc'!$J27,'TNG Spread Calc'!$A$22:$A$240,0)))=TRUE,0,'Cap Rate Graph Table'!V13-INDEX('TNG Spread Calc'!$C$22:$C$240,MATCH('TNG Spread Calc'!$J27,'TNG Spread Calc'!$A$22:$A$240,0)))) -> 0 | AE27: =IF('Cap Rate Graph Table'!W13=0,0,IF(ISNA('Cap Rate Graph Table'!W13-INDEX('TNG Spread Calc'!$C$22:$C$240,MATCH('TNG Spread Calc'!$J27,'TNG Spread Calc'!$A$22:$A$240,0)))=TRUE,0,'Cap Rate Graph Table'!W13-INDEX('TNG Spread Calc'!$C$22:$C$240,MATCH('TNG Spread Calc'!$J27,'TNG Spread Calc'!$A$22:$A$240,0)))) -> 0 | AF27: =IF('Cap Rate Graph Table'!X13=0,0,IF(ISNA('Cap Rate Graph Table'!X13-INDEX('TNG Spread Calc'!$C$22:$C$240,MATCH('TNG Spread Calc'!$J27,'TNG Spread Calc'!$A$22:$A$240,0)))=TRUE,0,'Cap Rate Graph Table'!X13-INDEX('TNG Spread Calc'!$C$22:$C$240,MATCH('TNG Spread Calc'!$J27,'TNG Spread Calc'!$A$22:$A$240,0)))) -> 0 | AG27: =IF('Cap Rate Graph Table'!Y13=0,0,IF(ISNA('Cap Rate Graph Table'!Y13-INDEX('TNG Spread Calc'!$C$22:$C$240,MATCH('TNG Spread Calc'!$J27,'TNG Spread Calc'!$A$22:$A$240,0)))=TRUE,0,'Cap Rate Graph Table'!Y13-INDEX('TNG Spread Calc'!$C$22:$C$240,MATCH('TNG Spread Calc'!$J27,'TNG Spread Calc'!$A$22:$A$240,0)))) -> 0 | AH27: =IF('Cap Rate Graph Table'!Z13=0,0,IF(ISNA('Cap Rate Graph Table'!Z13-INDEX('TNG Spread Calc'!$C$22:$C$240,MATCH('TNG Spread Calc'!$J27,'TNG Spread Calc'!$A$22:$A$240,0)))=TRUE,0,'Cap Rate Graph Table'!Z13-INDEX('TNG Spread Calc'!$C$22:$C$240,MATCH('TNG Spread Calc'!$J27,'TNG Spread Calc'!$A$22:$A$240,0)))) -> 0 | AI27: =IF('Cap Rate Graph Table'!AA13=0,0,IF(ISNA('Cap Rate Graph Table'!AA13-INDEX('TNG Spread Calc'!$C$22:$C$240,MATCH('TNG Spread Calc'!$J27,'TNG Spread Calc'!$A$22:$A$240,0)))=TRUE,0,'Cap Rate Graph Table'!AA13-INDEX('TNG Spread Calc'!$C$22:$C$240,MATCH('TNG Spread Calc'!$J27,'TNG Spread Calc'!$A$22:$A$240,0)))) -> 0 | AJ27: =IF('Cap Rate Graph Table'!AB13=0,0,IF(ISNA('Cap Rate Graph Table'!AB13-INDEX('TNG Spread Calc'!$C$22:$C$240,MATCH('TNG Spread Calc'!$J27,'TNG Spread Calc'!$A$22:$A$240,0)))=TRUE,0,'Cap Rate Graph Table'!AB13-INDEX('TNG Spread Calc'!$C$22:$C$240,MATCH('TNG Spread Calc'!$J27,'TNG Spread Calc'!$A$22:$A$240,0)))) -> 0 | AK27: =IF('Cap Rate Graph Table'!AC13=0,0,IF(ISNA('Cap Rate Graph Table'!AC13-INDEX('TNG Spread Calc'!$C$22:$C$240,MATCH('TNG Spread Calc'!$J27,'TNG Spread Calc'!$A$22:$A$240,0)))=TRUE,0,'Cap Rate Graph Table'!AC13-INDEX('TNG Spread Calc'!$C$22:$C$240,MATCH('TNG Spread Calc'!$J27,'TNG Spread Calc'!$A$22:$A$240,0)))) -> 0 | AL27: =IF('Cap Rate Graph Table'!AD13=0,0,IF(ISNA('Cap Rate Graph Table'!AD13-INDEX('TNG Spread Calc'!$C$22:$C$240,MATCH('TNG Spread Calc'!$J27,'TNG Spread Calc'!$A$22:$A$240,0)))=TRUE,0,'Cap Rate Graph Table'!AD13-INDEX('TNG Spread Calc'!$C$22:$C$240,MATCH('TNG Spread Calc'!$J27,'TNG Spread Calc'!$A$22:$A$240,0)))) -> 0 | AM27: =IF('Cap Rate Graph Table'!AE13=0,0,IF(ISNA('Cap Rate Graph Table'!AE13-INDEX('TNG Spread Calc'!$C$22:$C$240,MATCH('TNG Spread Calc'!$J27,'TNG Spread Calc'!$A$22:$A$240,0)))=TRUE,0,'Cap Rate Graph Table'!AE13-INDEX('TNG Spread Calc'!$C$22:$C$240,MATCH('TNG Spread Calc'!$J27,'TNG Spread Calc'!$A$22:$A$240,0)))) -> 0 | AN27: =IF('Cap Rate Graph Table'!AF13=0,0,IF(ISNA('Cap Rate Graph Table'!AF13-INDEX('TNG Spread Calc'!$C$22:$C$240,MATCH('TNG Spread Calc'!$J27,'TNG Spread Calc'!$A$22:$A$240,0)))=TRUE,0,'Cap Rate Graph Table'!AF13-INDEX('TNG Spread Calc'!$C$22:$C$240,MATCH('TNG Spread Calc'!$J27,'TNG Spread Calc'!$A$22:$A$240,0)))) -> 0 | AO27: =IF('Cap Rate Graph Table'!AG13=0,0,IF(ISNA('Cap Rate Graph Table'!AG13-INDEX('TNG Spread Calc'!$C$22:$C$240,MATCH('TNG Spread Calc'!$J27,'TNG Spread Calc'!$A$22:$A$240,0)))=TRUE,0,'Cap Rate Graph Table'!AG13-INDEX('TNG Spread Calc'!$C$22:$C$240,MATCH('TNG Spread Calc'!$J27,'TNG Spread Calc'!$A$22:$A$240,0)))) -> 0 | AP27: =IF('Cap Rate Graph Table'!AH13=0,0,IF(ISNA('Cap Rate Graph Table'!AH13-INDEX('TNG Spread Calc'!$C$22:$C$240,MATCH('TNG Spread Calc'!$J27,'TNG Spread Calc'!$A$22:$A$240,0)))=TRUE,0,'Cap Rate Graph Table'!AH13-INDEX('TNG Spread Calc'!$C$22:$C$240,MATCH('TNG Spread Calc'!$J27,'TNG Spread Calc'!$A$22:$A$240,0)))) -> 0 | AQ27: =IF('Cap Rate Graph Table'!AI13=0,0,IF(ISNA('Cap Rate Graph Table'!AI13-INDEX('TNG Spread Calc'!$C$22:$C$240,MATCH('TNG Spread Calc'!$J27,'TNG Spread Calc'!$A$22:$A$240,0)))=TRUE,0,'Cap Rate Graph Table'!AI13-INDEX('TNG Spread Calc'!$C$22:$C$240,MATCH('TNG Spread Calc'!$J27,'TNG Spread Calc'!$A$22:$A$240,0)))) -> 0 | AR27: =IF('Cap Rate Graph Table'!AJ13=0,0,IF(ISNA('Cap Rate Graph Table'!AJ13-INDEX('TNG Spread Calc'!$C$22:$C$240,MATCH('TNG Spread Calc'!$J27,'TNG Spread Calc'!$A$22:$A$240,0)))=TRUE,0,'Cap Rate Graph Table'!AJ13-INDEX('TNG Spread Calc'!$C$22:$C$240,MATCH('TNG Spread Calc'!$J27,'TNG Spread Calc'!$A$22:$A$240,0)))) -> 0 | AS27: =IF('Cap Rate Graph Table'!AK13=0,0,IF(ISNA('Cap Rate Graph Table'!AK13-INDEX('TNG Spread Calc'!$C$22:$C$240,MATCH('TNG Spread Calc'!$J27,'TNG Spread Calc'!$A$22:$A$240,0)))=TRUE,0,'Cap Rate Graph Table'!AK13-INDEX('TNG Spread Calc'!$C$22:$C$240,MATCH('TNG Spread Calc'!$J27,'TNG Spread Calc'!$A$22:$A$240,0)))) -> 0 | AT27: =IF('Cap Rate Graph Table'!AL13=0,0,IF(ISNA('Cap Rate Graph Table'!AL13-INDEX('TNG Spread Calc'!$C$22:$C$240,MATCH('TNG Spread Calc'!$J27,'TNG Spread Calc'!$A$22:$A$240,0)))=TRUE,0,'Cap Rate Graph Table'!AL13-INDEX('TNG Spread Calc'!$C$22:$C$240,MATCH('TNG Spread Calc'!$J27,'TNG Spread Calc'!$A$22:$A$240,0)))) -> 0 | AU27: =IF('Cap Rate Graph Table'!AM13=0,0,IF(ISNA('Cap Rate Graph Table'!AM13-INDEX('TNG Spread Calc'!$C$22:$C$240,MATCH('TNG Spread Calc'!$J27,'TNG Spread Calc'!$A$22:$A$240,0)))=TRUE,0,'Cap Rate Graph Table'!AM13-INDEX('TNG Spread Calc'!$C$22:$C$240,MATCH('TNG Spread Calc'!$J27,'TNG Spread Calc'!$A$22:$A$240,0)))) -> 0 | AV27: =IF('Cap Rate Graph Table'!AN13=0,0,IF(ISNA('Cap Rate Graph Table'!AN13-INDEX('TNG Spread Calc'!$C$22:$C$240,MATCH('TNG Spread Calc'!$J27,'TNG Spread Calc'!$A$22:$A$240,0)))=TRUE,0,'Cap Rate Graph Table'!AN13-INDEX('TNG Spread Calc'!$C$22:$C$240,MATCH('TNG Spread Calc'!$J27,'TNG Spread Calc'!$A$22:$A$240,0)))) -> 0 | AW27: =IF('Cap Rate Graph Table'!AO13=0,0,IF(ISNA('Cap Rate Graph Table'!AO13-INDEX('TNG Spread Calc'!$C$22:$C$240,MATCH('TNG Spread Calc'!$J27,'TNG Spread Calc'!$A$22:$A$240,0)))=TRUE,0,'Cap Rate Graph Table'!AO13-INDEX('TNG Spread Calc'!$C$22:$C$240,MATCH('TNG Spread Calc'!$J27,'TNG Spread Calc'!$A$22:$A$240,0)))) -> 0 | AX27: =IF('Cap Rate Graph Table'!AP13=0,0,IF(ISNA('Cap Rate Graph Table'!AP13-INDEX('TNG Spread Calc'!$C$22:$C$240,MATCH('TNG Spread Calc'!$J27,'TNG Spread Calc'!$A$22:$A$240,0)))=TRUE,0,'Cap Rate Graph Table'!AP13-INDEX('TNG Spread Calc'!$C$22:$C$240,MATCH('TNG Spread Calc'!$J27,'TNG Spread Calc'!$A$22:$A$240,0)))) -> 0 | AY27: =IF('Cap Rate Graph Table'!AQ13=0,0,IF(ISNA('Cap Rate Graph Table'!AQ13-INDEX('TNG Spread Calc'!$C$22:$C$240,MATCH('TNG Spread Calc'!$J27,'TNG Spread Calc'!$A$22:$A$240,0)))=TRUE,0,'Cap Rate Graph Table'!AQ13-INDEX('TNG Spread Calc'!$C$22:$C$240,MATCH('TNG Spread Calc'!$J27,'TNG Spread Calc'!$A$22:$A$240,0)))) -> 0 | AZ27: =IF('Cap Rate Graph Table'!AR13=0,0,IF(ISNA('Cap Rate Graph Table'!AR13-INDEX('TNG Spread Calc'!$C$22:$C$240,MATCH('TNG Spread Calc'!$J27,'TNG Spread Calc'!$A$22:$A$240,0)))=TRUE,0,'Cap Rate Graph Table'!AR13-INDEX('TNG Spread Calc'!$C$22:$C$240,MATCH('TNG Spread Calc'!$J27,'TNG Spread Calc'!$A$22:$A$240,0)))) -> 0 | BA27: =IF('Cap Rate Graph Table'!AS13=0,0,IF(ISNA('Cap Rate Graph Table'!AS13-INDEX('TNG Spread Calc'!$C$22:$C$240,MATCH('TNG Spread Calc'!$J27,'TNG Spread Calc'!$A$22:$A$240,0)))=TRUE,0,'Cap Rate Graph Table'!AS13-INDEX('TNG Spread Calc'!$C$22:$C$240,MATCH('TNG Spread Calc'!$J27,'TNG Spread Calc'!$A$22:$A$240,0)))) -> 0 | BB27: =IF('Cap Rate Graph Table'!AT13=0,0,IF(ISNA('Cap Rate Graph Table'!AT13-INDEX('TNG Spread Calc'!$C$22:$C$240,MATCH('TNG Spread Calc'!$J27,'TNG Spread Calc'!$A$22:$A$240,0)))=TRUE,0,'Cap Rate Graph Table'!AT13-INDEX('TNG Spread Calc'!$C$22:$C$240,MATCH('TNG Spread Calc'!$J27,'TNG Spread Calc'!$A$22:$A$240,0)))) -> 0 | BC27: =IF('Cap Rate Graph Table'!AU13=0,0,IF(ISNA('Cap Rate Graph Table'!AU13-INDEX('TNG Spread Calc'!$C$22:$C$240,MATCH('TNG Spread Calc'!$J27,'TNG Spread Calc'!$A$22:$A$240,0)))=TRUE,0,'Cap Rate Graph Table'!AU13-INDEX('TNG Spread Calc'!$C$22:$C$240,MATCH('TNG Spread Calc'!$J27,'TNG Spread Calc'!$A$22:$A$240,0)))) -> 0 | BD27: =IF('Cap Rate Graph Table'!AV13=0,0,IF(ISNA('Cap Rate Graph Table'!AV13-INDEX('TNG Spread Calc'!$C$22:$C$240,MATCH('TNG Spread Calc'!$J27,'TNG Spread Calc'!$A$22:$A$240,0)))=TRUE,0,'Cap Rate Graph Table'!AV13-INDEX('TNG Spread Calc'!$C$22:$C$240,MATCH('TNG Spread Calc'!$J27,'TNG Spread Calc'!$A$22:$A$240,0)))) -> 0 | BE27: =IF('Cap Rate Graph Table'!AW13=0,0,IF(ISNA('Cap Rate Graph Table'!AW13-INDEX('TNG Spread Calc'!$C$22:$C$240,MATCH('TNG Spread Calc'!$J27,'TNG Spread Calc'!$A$22:$A$240,0)))=TRUE,0,'Cap Rate Graph Table'!AW13-INDEX('TNG Spread Calc'!$C$22:$C$240,MATCH('TNG Spread Calc'!$J27,'TNG Spread Calc'!$A$22:$A$240,0)))) -> 0 | BF27: =IF('Cap Rate Graph Table'!AX13=0,0,IF(ISNA('Cap Rate Graph Table'!AX13-INDEX('TNG Spread Calc'!$C$22:$C$240,MATCH('TNG Spread Calc'!$J27,'TNG Spread Calc'!$A$22:$A$240,0)))=TRUE,0,'Cap Rate Graph Table'!AX13-INDEX('TNG Spread Calc'!$C$22:$C$240,MATCH('TNG Spread Calc'!$J27,'TNG Spread Calc'!$A$22:$A$240,0)))) -> 0 | BG27: =IF('Cap Rate Graph Table'!AY13=0,0,IF(ISNA('Cap Rate Graph Table'!AY13-INDEX('TNG Spread Calc'!$C$22:$C$240,MATCH('TNG Spread Calc'!$J27,'TNG Spread Calc'!$A$22:$A$240,0)))=TRUE,0,'Cap Rate Graph Table'!AY13-INDEX('TNG Spread Calc'!$C$22:$C$240,MATCH('TNG Spread Calc'!$J27,'TNG Spread Calc'!$A$22:$A$240,0)))) -> 0 | BH27: =IF('Cap Rate Graph Table'!AZ13=0,0,IF(ISNA('Cap Rate Graph Table'!AZ13-INDEX('TNG Spread Calc'!$C$22:$C$240,MATCH('TNG Spread Calc'!$J27,'TNG Spread Calc'!$A$22:$A$240,0)))=TRUE,0,'Cap Rate Graph Table'!AZ13-INDEX('TNG Spread Calc'!$C$22:$C$240,MATCH('TNG Spread Calc'!$J27,'TNG Spread Calc'!$A$22:$A$240,0)))) -> 0 | BI27: =IF('Cap Rate Graph Table'!BA13=0,0,IF(ISNA('Cap Rate Graph Table'!BA13-INDEX('TNG Spread Calc'!$C$22:$C$240,MATCH('TNG Spread Calc'!$J27,'TNG Spread Calc'!$A$22:$A$240,0)))=TRUE,0,'Cap Rate Graph Table'!BA13-INDEX('TNG Spread Calc'!$C$22:$C$240,MATCH('TNG Spread Calc'!$J27,'TNG Spread Calc'!$A$22:$A$240,0)))) -> 0 | BJ27: =IF('Cap Rate Graph Table'!BB13=0,0,IF(ISNA('Cap Rate Graph Table'!BB13-INDEX('TNG Spread Calc'!$C$22:$C$240,MATCH('TNG Spread Calc'!$J27,'TNG Spread Calc'!$A$22:$A$240,0)))=TRUE,0,'Cap Rate Graph Table'!BB13-INDEX('TNG Spread Calc'!$C$22:$C$240,MATCH('TNG Spread Calc'!$J27,'TNG Spread Calc'!$A$22:$A$240,0)))) -> 0
A28: 1963-07-01 | B28: 4.03 | C28: 0.0403 | E28: 1963-07-01 | F28: 0.07 | I28: =INDEX(K28:AN28,MATCH('Inputs & Mkt Adj'!$C$4,'TNG Spread Calc'!$K$20:$AN$20,0)) -> 0 | J28: 1997-07-01 | K28: =IF('Cap Rate Graph Table'!C14=0,0,IF(ISNA('Cap Rate Graph Table'!C14-INDEX('TNG Spread Calc'!$C$22:$C$240,MATCH('TNG Spread Calc'!$J28,'TNG Spread Calc'!$A$22:$A$240,0)))=TRUE,0,'Cap Rate Graph Table'!C14-INDEX('TNG Spread Calc'!$C$22:$C$240,MATCH('TNG Spread Calc'!$J28,'TNG Spread Calc'!$A$22:$A$240,0)))) -> 0 | L28: =IF('Cap Rate Graph Table'!D14=0,0,IF(ISNA('Cap Rate Graph Table'!D14-INDEX('TNG Spread Calc'!$C$22:$C$240,MATCH('TNG Spread Calc'!$J28,'TNG Spread Calc'!$A$22:$A$240,0)))=TRUE,0,'Cap Rate Graph Table'!D14-INDEX('TNG Spread Calc'!$C$22:$C$240,MATCH('TNG Spread Calc'!$J28,'TNG Spread Calc'!$A$22:$A$240,0)))) -> 0 | M28: =IF('Cap Rate Graph Table'!E14=0,0,IF(ISNA('Cap Rate Graph Table'!E14-INDEX('TNG Spread Calc'!$C$22:$C$240,MATCH('TNG Spread Calc'!$J28,'TNG Spread Calc'!$A$22:$A$240,0)))=TRUE,0,'Cap Rate Graph Table'!E14-INDEX('TNG Spread Calc'!$C$22:$C$240,MATCH('TNG Spread Calc'!$J28,'TNG Spread Calc'!$A$22:$A$240,0)))) -> 0 | N28: =IF('Cap Rate Graph Table'!F14=0,0,IF(ISNA('Cap Rate Graph Table'!F14-INDEX('TNG Spread Calc'!$C$22:$C$240,MATCH('TNG Spread Calc'!$J28,'TNG Spread Calc'!$A$22:$A$240,0)))=TRUE,0,'Cap Rate Graph Table'!F14-INDEX('TNG Spread Calc'!$C$22:$C$240,MATCH('TNG Spread Calc'!$J28,'TNG Spread Calc'!$A$22:$A$240,0)))) -> 0 | O28: =IF('Cap Rate Graph Table'!G14=0,0,IF(ISNA('Cap Rate Graph Table'!G14-INDEX('TNG Spread Calc'!$C$22:$C$240,MATCH('TNG Spread Calc'!$J28,'TNG Spread Calc'!$A$22:$A$240,0)))=TRUE,0,'Cap Rate Graph Table'!G14-INDEX('TNG Spread Calc'!$C$22:$C$240,MATCH('TNG Spread Calc'!$J28,'TNG Spread Calc'!$A$22:$A$240,0)))) -> 0 | P28: =IF('Cap Rate Graph Table'!H14=0,0,IF(ISNA('Cap Rate Graph Table'!H14-INDEX('TNG Spread Calc'!$C$22:$C$240,MATCH('TNG Spread Calc'!$J28,'TNG Spread Calc'!$A$22:$A$240,0)))=TRUE,0,'Cap Rate Graph Table'!H14-INDEX('TNG Spread Calc'!$C$22:$C$240,MATCH('TNG Spread Calc'!$J28,'TNG Spread Calc'!$A$22:$A$240,0)))) -> 0 | Q28: =IF('Cap Rate Graph Table'!I14=0,0,IF(ISNA('Cap Rate Graph Table'!I14-INDEX('TNG Spread Calc'!$C$22:$C$240,MATCH('TNG Spread Calc'!$J28,'TNG Spread Calc'!$A$22:$A$240,0)))=TRUE,0,'Cap Rate Graph Table'!I14-INDEX('TNG Spread Calc'!$C$22:$C$240,MATCH('TNG Spread Calc'!$J28,'TNG Spread Calc'!$A$22:$A$240,0)))) -> 0 | R28: =IF('Cap Rate Graph Table'!J14=0,0,IF(ISNA('Cap Rate Graph Table'!J14-INDEX('TNG Spread Calc'!$C$22:$C$240,MATCH('TNG Spread Calc'!$J28,'TNG Spread Calc'!$A$22:$A$240,0)))=TRUE,0,'Cap Rate Graph Table'!J14-INDEX('TNG Spread Calc'!$C$22:$C$240,MATCH('TNG Spread Calc'!$J28,'TNG Spread Calc'!$A$22:$A$240,0)))) -> 0 | S28: =IF('Cap Rate Graph Table'!K14=0,0,IF(ISNA('Cap Rate Graph Table'!K14-INDEX('TNG Spread Calc'!$C$22:$C$240,MATCH('TNG Spread Calc'!$J28,'TNG Spread Calc'!$A$22:$A$240,0)))=TRUE,0,'Cap Rate Graph Table'!K14-INDEX('TNG Spread Calc'!$C$22:$C$240,MATCH('TNG Spread Calc'!$J28,'TNG Spread Calc'!$A$22:$A$240,0)))) -> 0 | T28: =IF('Cap Rate Graph Table'!L14=0,0,IF(ISNA('Cap Rate Graph Table'!L14-INDEX('TNG Spread Calc'!$C$22:$C$240,MATCH('TNG Spread Calc'!$J28,'TNG Spread Calc'!$A$22:$A$240,0)))=TRUE,0,'Cap Rate Graph Table'!L14-INDEX('TNG Spread Calc'!$C$22:$C$240,MATCH('TNG Spread Calc'!$J28,'TNG Spread Calc'!$A$22:$A$240,0)))) -> 0 | U28: =IF('Cap Rate Graph Table'!M14=0,0,IF(ISNA('Cap Rate Graph Table'!M14-INDEX('TNG Spread Calc'!$C$22:$C$240,MATCH('TNG Spread Calc'!$J28,'TNG Spread Calc'!$A$22:$A$240,0)))=TRUE,0,'Cap Rate Graph Table'!M14-INDEX('TNG Spread Calc'!$C$22:$C$240,MATCH('TNG Spread Calc'!$J28,'TNG Spread Calc'!$A$22:$A$240,0)))) -> 0 | V28: =IF('Cap Rate Graph Table'!N14=0,0,IF(ISNA('Cap Rate Graph Table'!N14-INDEX('TNG Spread Calc'!$C$22:$C$240,MATCH('TNG Spread Calc'!$J28,'TNG Spread Calc'!$A$22:$A$240,0)))=TRUE,0,'Cap Rate Graph Table'!N14-INDEX('TNG Spread Calc'!$C$22:$C$240,MATCH('TNG Spread Calc'!$J28,'TNG Spread Calc'!$A$22:$A$240,0)))) -> 0 | W28: =IF('Cap Rate Graph Table'!O14=0,0,IF(ISNA('Cap Rate Graph Table'!O14-INDEX('TNG Spread Calc'!$C$22:$C$240,MATCH('TNG Spread Calc'!$J28,'TNG Spread Calc'!$A$22:$A$240,0)))=TRUE,0,'Cap Rate Graph Table'!O14-INDEX('TNG Spread Calc'!$C$22:$C$240,MATCH('TNG Spread Calc'!$J28,'TNG Spread Calc'!$A$22:$A$240,0)))) -> 0 | X28: =IF('Cap Rate Graph Table'!P14=0,0,IF(ISNA('Cap Rate Graph Table'!P14-INDEX('TNG Spread Calc'!$C$22:$C$240,MATCH('TNG Spread Calc'!$J28,'TNG Spread Calc'!$A$22:$A$240,0)))=TRUE,0,'Cap Rate Graph Table'!P14-INDEX('TNG Spread Calc'!$C$22:$C$240,MATCH('TNG Spread Calc'!$J28,'TNG Spread Calc'!$A$22:$A$240,0)))) -> 0 | Y28: =IF('Cap Rate Graph Table'!Q14=0,0,IF(ISNA('Cap Rate Graph Table'!Q14-INDEX('TNG Spread Calc'!$C$22:$C$240,MATCH('TNG Spread Calc'!$J28,'TNG Spread Calc'!$A$22:$A$240,0)))=TRUE,0,'Cap Rate Graph Table'!Q14-INDEX('TNG Spread Calc'!$C$22:$C$240,MATCH('TNG Spread Calc'!$J28,'TNG Spread Calc'!$A$22:$A$240,0)))) -> 0 | Z28: =IF('Cap Rate Graph Table'!R14=0,0,IF(ISNA('Cap Rate Graph Table'!R14-INDEX('TNG Spread Calc'!$C$22:$C$240,MATCH('TNG Spread Calc'!$J28,'TNG Spread Calc'!$A$22:$A$240,0)))=TRUE,0,'Cap Rate Graph Table'!R14-INDEX('TNG Spread Calc'!$C$22:$C$240,MATCH('TNG Spread Calc'!$J28,'TNG Spread Calc'!$A$22:$A$240,0)))) -> 0 | AA28: =IF('Cap Rate Graph Table'!S14=0,0,IF(ISNA('Cap Rate Graph Table'!S14-INDEX('TNG Spread Calc'!$C$22:$C$240,MATCH('TNG Spread Calc'!$J28,'TNG Spread Calc'!$A$22:$A$240,0)))=TRUE,0,'Cap Rate Graph Table'!S14-INDEX('TNG Spread Calc'!$C$22:$C$240,MATCH('TNG Spread Calc'!$J28,'TNG Spread Calc'!$A$22:$A$240,0)))) -> 0 | AB28: =IF('Cap Rate Graph Table'!T14=0,0,IF(ISNA('Cap Rate Graph Table'!T14-INDEX('TNG Spread Calc'!$C$22:$C$240,MATCH('TNG Spread Calc'!$J28,'TNG Spread Calc'!$A$22:$A$240,0)))=TRUE,0,'Cap Rate Graph Table'!T14-INDEX('TNG Spread Calc'!$C$22:$C$240,MATCH('TNG Spread Calc'!$J28,'TNG Spread Calc'!$A$22:$A$240,0)))) -> 0 | AC28: =IF('Cap Rate Graph Table'!U14=0,0,IF(ISNA('Cap Rate Graph Table'!U14-INDEX('TNG Spread Calc'!$C$22:$C$240,MATCH('TNG Spread Calc'!$J28,'TNG Spread Calc'!$A$22:$A$240,0)))=TRUE,0,'Cap Rate Graph Table'!U14-INDEX('TNG Spread Calc'!$C$22:$C$240,MATCH('TNG Spread Calc'!$J28,'TNG Spread Calc'!$A$22:$A$240,0)))) -> 0 | AD28: =IF('Cap Rate Graph Table'!V14=0,0,IF(ISNA('Cap Rate Graph Table'!V14-INDEX('TNG Spread Calc'!$C$22:$C$240,MATCH('TNG Spread Calc'!$J28,'TNG Spread Calc'!$A$22:$A$240,0)))=TRUE,0,'Cap Rate Graph Table'!V14-INDEX('TNG Spread Calc'!$C$22:$C$240,MATCH('TNG Spread Calc'!$J28,'TNG Spread Calc'!$A$22:$A$240,0)))) -> 0 | AE28: =IF('Cap Rate Graph Table'!W14=0,0,IF(ISNA('Cap Rate Graph Table'!W14-INDEX('TNG Spread Calc'!$C$22:$C$240,MATCH('TNG Spread Calc'!$J28,'TNG Spread Calc'!$A$22:$A$240,0)))=TRUE,0,'Cap Rate Graph Table'!W14-INDEX('TNG Spread Calc'!$C$22:$C$240,MATCH('TNG Spread Calc'!$J28,'TNG Spread Calc'!$A$22:$A$240,0)))) -> 0 | AF28: =IF('Cap Rate Graph Table'!X14=0,0,IF(ISNA('Cap Rate Graph Table'!X14-INDEX('TNG Spread Calc'!$C$22:$C$240,MATCH('TNG Spread Calc'!$J28,'TNG Spread Calc'!$A$22:$A$240,0)))=TRUE,0,'Cap Rate Graph Table'!X14-INDEX('TNG Spread Calc'!$C$22:$C$240,MATCH('TNG Spread Calc'!$J28,'TNG Spread Calc'!$A$22:$A$240,0)))) -> 0 | AG28: =IF('Cap Rate Graph Table'!Y14=0,0,IF(ISNA('Cap Rate Graph Table'!Y14-INDEX('TNG Spread Calc'!$C$22:$C$240,MATCH('TNG Spread Calc'!$J28,'TNG Spread Calc'!$A$22:$A$240,0)))=TRUE,0,'Cap Rate Graph Table'!Y14-INDEX('TNG Spread Calc'!$C$22:$C$240,MATCH('TNG Spread Calc'!$J28,'TNG Spread Calc'!$A$22:$A$240,0)))) -> 0 | AH28: =IF('Cap Rate Graph Table'!Z14=0,0,IF(ISNA('Cap Rate Graph Table'!Z14-INDEX('TNG Spread Calc'!$C$22:$C$240,MATCH('TNG Spread Calc'!$J28,'TNG Spread Calc'!$A$22:$A$240,0)))=TRUE,0,'Cap Rate Graph Table'!Z14-INDEX('TNG Spread Calc'!$C$22:$C$240,MATCH('TNG Spread Calc'!$J28,'TNG Spread Calc'!$A$22:$A$240,0)))) -> 0 | AI28: =IF('Cap Rate Graph Table'!AA14=0,0,IF(ISNA('Cap Rate Graph Table'!AA14-INDEX('TNG Spread Calc'!$C$22:$C$240,MATCH('TNG Spread Calc'!$J28,'TNG Spread Calc'!$A$22:$A$240,0)))=TRUE,0,'Cap Rate Graph Table'!AA14-INDEX('TNG Spread Calc'!$C$22:$C$240,MATCH('TNG Spread Calc'!$J28,'TNG Spread Calc'!$A$22:$A$240,0)))) -> 0 | AJ28: =IF('Cap Rate Graph Table'!AB14=0,0,IF(ISNA('Cap Rate Graph Table'!AB14-INDEX('TNG Spread Calc'!$C$22:$C$240,MATCH('TNG Spread Calc'!$J28,'TNG Spread Calc'!$A$22:$A$240,0)))=TRUE,0,'Cap Rate Graph Table'!AB14-INDEX('TNG Spread Calc'!$C$22:$C$240,MATCH('TNG Spread Calc'!$J28,'TNG Spread Calc'!$A$22:$A$240,0)))) -> 0 | AK28: =IF('Cap Rate Graph Table'!AC14=0,0,IF(ISNA('Cap Rate Graph Table'!AC14-INDEX('TNG Spread Calc'!$C$22:$C$240,MATCH('TNG Spread Calc'!$J28,'TNG Spread Calc'!$A$22:$A$240,0)))=TRUE,0,'Cap Rate Graph Table'!AC14-INDEX('TNG Spread Calc'!$C$22:$C$240,MATCH('TNG Spread Calc'!$J28,'TNG Spread Calc'!$A$22:$A$240,0)))) -> 0 | AL28: =IF('Cap Rate Graph Table'!AD14=0,0,IF(ISNA('Cap Rate Graph Table'!AD14-INDEX('TNG Spread Calc'!$C$22:$C$240,MATCH('TNG Spread Calc'!$J28,'TNG Spread Calc'!$A$22:$A$240,0)))=TRUE,0,'Cap Rate Graph Table'!AD14-INDEX('TNG Spread Calc'!$C$22:$C$240,MATCH('TNG Spread Calc'!$J28,'TNG Spread Calc'!$A$22:$A$240,0)))) -> 0 | AM28: =IF('Cap Rate Graph Table'!AE14=0,0,IF(ISNA('Cap Rate Graph Table'!AE14-INDEX('TNG Spread Calc'!$C$22:$C$240,MATCH('TNG Spread Calc'!$J28,'TNG Spread Calc'!$A$22:$A$240,0)))=TRUE,0,'Cap Rate Graph Table'!AE14-INDEX('TNG Spread Calc'!$C$22:$C$240,MATCH('TNG Spread Calc'!$J28,'TNG Spread Calc'!$A$22:$A$240,0)))) -> 0 | AN28: =IF('Cap Rate Graph Table'!AF14=0,0,IF(ISNA('Cap Rate Graph Table'!AF14-INDEX('TNG Spread Calc'!$C$22:$C$240,MATCH('TNG Spread Calc'!$J28,'TNG Spread Calc'!$A$22:$A$240,0)))=TRUE,0,'Cap Rate Graph Table'!AF14-INDEX('TNG Spread Calc'!$C$22:$C$240,MATCH('TNG Spread Calc'!$J28,'TNG Spread Calc'!$A$22:$A$240,0)))) -> 0 | AO28: =IF('Cap Rate Graph Table'!AG14=0,0,IF(ISNA('Cap Rate Graph Table'!AG14-INDEX('TNG Spread Calc'!$C$22:$C$240,MATCH('TNG Spread Calc'!$J28,'TNG Spread Calc'!$A$22:$A$240,0)))=TRUE,0,'Cap Rate Graph Table'!AG14-INDEX('TNG Spread Calc'!$C$22:$C$240,MATCH('TNG Spread Calc'!$J28,'TNG Spread Calc'!$A$22:$A$240,0)))) -> 0 | AP28: =IF('Cap Rate Graph Table'!AH14=0,0,IF(ISNA('Cap Rate Graph Table'!AH14-INDEX('TNG Spread Calc'!$C$22:$C$240,MATCH('TNG Spread Calc'!$J28,'TNG Spread Calc'!$A$22:$A$240,0)))=TRUE,0,'Cap Rate Graph Table'!AH14-INDEX('TNG Spread Calc'!$C$22:$C$240,MATCH('TNG Spread Calc'!$J28,'TNG Spread Calc'!$A$22:$A$240,0)))) -> 0 | AQ28: =IF('Cap Rate Graph Table'!AI14=0,0,IF(ISNA('Cap Rate Graph Table'!AI14-INDEX('TNG Spread Calc'!$C$22:$C$240,MATCH('TNG Spread Calc'!$J28,'TNG Spread Calc'!$A$22:$A$240,0)))=TRUE,0,'Cap Rate Graph Table'!AI14-INDEX('TNG Spread Calc'!$C$22:$C$240,MATCH('TNG Spread Calc'!$J28,'TNG Spread Calc'!$A$22:$A$240,0)))) -> 0 | AR28: =IF('Cap Rate Graph Table'!AJ14=0,0,IF(ISNA('Cap Rate Graph Table'!AJ14-INDEX('TNG Spread Calc'!$C$22:$C$240,MATCH('TNG Spread Calc'!$J28,'TNG Spread Calc'!$A$22:$A$240,0)))=TRUE,0,'Cap Rate Graph Table'!AJ14-INDEX('TNG Spread Calc'!$C$22:$C$240,MATCH('TNG Spread Calc'!$J28,'TNG Spread Calc'!$A$22:$A$240,0)))) -> 0 | AS28: =IF('Cap Rate Graph Table'!AK14=0,0,IF(ISNA('Cap Rate Graph Table'!AK14-INDEX('TNG Spread Calc'!$C$22:$C$240,MATCH('TNG Spread Calc'!$J28,'TNG Spread Calc'!$A$22:$A$240,0)))=TRUE,0,'Cap Rate Graph Table'!AK14-INDEX('TNG Spread Calc'!$C$22:$C$240,MATCH('TNG Spread Calc'!$J28,'TNG Spread Calc'!$A$22:$A$240,0)))) -> 0 | AT28: =IF('Cap Rate Graph Table'!AL14=0,0,IF(ISNA('Cap Rate Graph Table'!AL14-INDEX('TNG Spread Calc'!$C$22:$C$240,MATCH('TNG Spread Calc'!$J28,'TNG Spread Calc'!$A$22:$A$240,0)))=TRUE,0,'Cap Rate Graph Table'!AL14-INDEX('TNG Spread Calc'!$C$22:$C$240,MATCH('TNG Spread Calc'!$J28,'TNG Spread Calc'!$A$22:$A$240,0)))) -> 0 | AU28: =IF('Cap Rate Graph Table'!AM14=0,0,IF(ISNA('Cap Rate Graph Table'!AM14-INDEX('TNG Spread Calc'!$C$22:$C$240,MATCH('TNG Spread Calc'!$J28,'TNG Spread Calc'!$A$22:$A$240,0)))=TRUE,0,'Cap Rate Graph Table'!AM14-INDEX('TNG Spread Calc'!$C$22:$C$240,MATCH('TNG Spread Calc'!$J28,'TNG Spread Calc'!$A$22:$A$240,0)))) -> 0 | AV28: =IF('Cap Rate Graph Table'!AN14=0,0,IF(ISNA('Cap Rate Graph Table'!AN14-INDEX('TNG Spread Calc'!$C$22:$C$240,MATCH('TNG Spread Calc'!$J28,'TNG Spread Calc'!$A$22:$A$240,0)))=TRUE,0,'Cap Rate Graph Table'!AN14-INDEX('TNG Spread Calc'!$C$22:$C$240,MATCH('TNG Spread Calc'!$J28,'TNG Spread Calc'!$A$22:$A$240,0)))) -> 0 | AW28: =IF('Cap Rate Graph Table'!AO14=0,0,IF(ISNA('Cap Rate Graph Table'!AO14-INDEX('TNG Spread Calc'!$C$22:$C$240,MATCH('TNG Spread Calc'!$J28,'TNG Spread Calc'!$A$22:$A$240,0)))=TRUE,0,'Cap Rate Graph Table'!AO14-INDEX('TNG Spread Calc'!$C$22:$C$240,MATCH('TNG Spread Calc'!$J28,'TNG Spread Calc'!$A$22:$A$240,0)))) -> 0 | AX28: =IF('Cap Rate Graph Table'!AP14=0,0,IF(ISNA('Cap Rate Graph Table'!AP14-INDEX('TNG Spread Calc'!$C$22:$C$240,MATCH('TNG Spread Calc'!$J28,'TNG Spread Calc'!$A$22:$A$240,0)))=TRUE,0,'Cap Rate Graph Table'!AP14-INDEX('TNG Spread Calc'!$C$22:$C$240,MATCH('TNG Spread Calc'!$J28,'TNG Spread Calc'!$A$22:$A$240,0)))) -> 0 | AY28: =IF('Cap Rate Graph Table'!AQ14=0,0,IF(ISNA('Cap Rate Graph Table'!AQ14-INDEX('TNG Spread Calc'!$C$22:$C$240,MATCH('TNG Spread Calc'!$J28,'TNG Spread Calc'!$A$22:$A$240,0)))=TRUE,0,'Cap Rate Graph Table'!AQ14-INDEX('TNG Spread Calc'!$C$22:$C$240,MATCH('TNG Spread Calc'!$J28,'TNG Spread Calc'!$A$22:$A$240,0)))) -> 0 | AZ28: =IF('Cap Rate Graph Table'!AR14=0,0,IF(ISNA('Cap Rate Graph Table'!AR14-INDEX('TNG Spread Calc'!$C$22:$C$240,MATCH('TNG Spread Calc'!$J28,'TNG Spread Calc'!$A$22:$A$240,0)))=TRUE,0,'Cap Rate Graph Table'!AR14-INDEX('TNG Spread Calc'!$C$22:$C$240,MATCH('TNG Spread Calc'!$J28,'TNG Spread Calc'!$A$22:$A$240,0)))) -> 0 | BA28: =IF('Cap Rate Graph Table'!AS14=0,0,IF(ISNA('Cap Rate Graph Table'!AS14-INDEX('TNG Spread Calc'!$C$22:$C$240,MATCH('TNG Spread Calc'!$J28,'TNG Spread Calc'!$A$22:$A$240,0)))=TRUE,0,'Cap Rate Graph Table'!AS14-INDEX('TNG Spread Calc'!$C$22:$C$240,MATCH('TNG Spread Calc'!$J28,'TNG Spread Calc'!$A$22:$A$240,0)))) -> 0 | BB28: =IF('Cap Rate Graph Table'!AT14=0,0,IF(ISNA('Cap Rate Graph Table'!AT14-INDEX('TNG Spread Calc'!$C$22:$C$240,MATCH('TNG Spread Calc'!$J28,'TNG Spread Calc'!$A$22:$A$240,0)))=TRUE,0,'Cap Rate Graph Table'!AT14-INDEX('TNG Spread Calc'!$C$22:$C$240,MATCH('TNG Spread Calc'!$J28,'TNG Spread Calc'!$A$22:$A$240,0)))) -> 0 | BC28: =IF('Cap Rate Graph Table'!AU14=0,0,IF(ISNA('Cap Rate Graph Table'!AU14-INDEX('TNG Spread Calc'!$C$22:$C$240,MATCH('TNG Spread Calc'!$J28,'TNG Spread Calc'!$A$22:$A$240,0)))=TRUE,0,'Cap Rate Graph Table'!AU14-INDEX('TNG Spread Calc'!$C$22:$C$240,MATCH('TNG Spread Calc'!$J28,'TNG Spread Calc'!$A$22:$A$240,0)))) -> 0 | BD28: =IF('Cap Rate Graph Table'!AV14=0,0,IF(ISNA('Cap Rate Graph Table'!AV14-INDEX('TNG Spread Calc'!$C$22:$C$240,MATCH('TNG Spread Calc'!$J28,'TNG Spread Calc'!$A$22:$A$240,0)))=TRUE,0,'Cap Rate Graph Table'!AV14-INDEX('TNG Spread Calc'!$C$22:$C$240,MATCH('TNG Spread Calc'!$J28,'TNG Spread Calc'!$A$22:$A$240,0)))) -> 0 | BE28: =IF('Cap Rate Graph Table'!AW14=0,0,IF(ISNA('Cap Rate Graph Table'!AW14-INDEX('TNG Spread Calc'!$C$22:$C$240,MATCH('TNG Spread Calc'!$J28,'TNG Spread Calc'!$A$22:$A$240,0)))=TRUE,0,'Cap Rate Graph Table'!AW14-INDEX('TNG Spread Calc'!$C$22:$C$240,MATCH('TNG Spread Calc'!$J28,'TNG Spread Calc'!$A$22:$A$240,0)))) -> 0 | BF28: =IF('Cap Rate Graph Table'!AX14=0,0,IF(ISNA('Cap Rate Graph Table'!AX14-INDEX('TNG Spread Calc'!$C$22:$C$240,MATCH('TNG Spread Calc'!$J28,'TNG Spread Calc'!$A$22:$A$240,0)))=TRUE,0,'Cap Rate Graph Table'!AX14-INDEX('TNG Spread Calc'!$C$22:$C$240,MATCH('TNG Spread Calc'!$J28,'TNG Spread Calc'!$A$22:$A$240,0)))) -> 0 | BG28: =IF('Cap Rate Graph Table'!AY14=0,0,IF(ISNA('Cap Rate Graph Table'!AY14-INDEX('TNG Spread Calc'!$C$22:$C$240,MATCH('TNG Spread Calc'!$J28,'TNG Spread Calc'!$A$22:$A$240,0)))=TRUE,0,'Cap Rate Graph Table'!AY14-INDEX('TNG Spread Calc'!$C$22:$C$240,MATCH('TNG Spread Calc'!$J28,'TNG Spread Calc'!$A$22:$A$240,0)))) -> 0 | BH28: =IF('Cap Rate Graph Table'!AZ14=0,0,IF(ISNA('Cap Rate Graph Table'!AZ14-INDEX('TNG Spread Calc'!$C$22:$C$240,MATCH('TNG Spread Calc'!$J28,'TNG Spread Calc'!$A$22:$A$240,0)))=TRUE,0,'Cap Rate Graph Table'!AZ14-INDEX('TNG Spread Calc'!$C$22:$C$240,MATCH('TNG Spread Calc'!$J28,'TNG Spread Calc'!$A$22:$A$240,0)))) -> 0 | BI28: =IF('Cap Rate Graph Table'!BA14=0,0,IF(ISNA('Cap Rate Graph Table'!BA14-INDEX('TNG Spread Calc'!$C$22:$C$240,MATCH('TNG Spread Calc'!$J28,'TNG Spread Calc'!$A$22:$A$240,0)))=TRUE,0,'Cap Rate Graph Table'!BA14-INDEX('TNG Spread Calc'!$C$22:$C$240,MATCH('TNG Spread Calc'!$J28,'TNG Spread Calc'!$A$22:$A$240,0)))) -> 0 | BJ28: =IF('Cap Rate Graph Table'!BB14=0,0,IF(ISNA('Cap Rate Graph Table'!BB14-INDEX('TNG Spread Calc'!$C$22:$C$240,MATCH('TNG Spread Calc'!$J28,'TNG Spread Calc'!$A$22:$A$240,0)))=TRUE,0,'Cap Rate Graph Table'!BB14-INDEX('TNG Spread Calc'!$C$22:$C$240,MATCH('TNG Spread Calc'!$J28,'TNG Spread Calc'!$A$22:$A$240,0)))) -> 0
A29: 1963-10-01 | B29: 4.12 | C29: 0.0412 | E29: 1963-10-01 | F29: 0.09 | I29: =INDEX(K29:AN29,MATCH('Inputs & Mkt Adj'!$C$4,'TNG Spread Calc'!$K$20:$AN$20,0)) -> 0 | J29: 1997-10-01 | K29: =IF('Cap Rate Graph Table'!C15=0,0,IF(ISNA('Cap Rate Graph Table'!C15-INDEX('TNG Spread Calc'!$C$22:$C$240,MATCH('TNG Spread Calc'!$J29,'TNG Spread Calc'!$A$22:$A$240,0)))=TRUE,0,'Cap Rate Graph Table'!C15-INDEX('TNG Spread Calc'!$C$22:$C$240,MATCH('TNG Spread Calc'!$J29,'TNG Spread Calc'!$A$22:$A$240,0)))) -> 0 | L29: =IF('Cap Rate Graph Table'!D15=0,0,IF(ISNA('Cap Rate Graph Table'!D15-INDEX('TNG Spread Calc'!$C$22:$C$240,MATCH('TNG Spread Calc'!$J29,'TNG Spread Calc'!$A$22:$A$240,0)))=TRUE,0,'Cap Rate Graph Table'!D15-INDEX('TNG Spread Calc'!$C$22:$C$240,MATCH('TNG Spread Calc'!$J29,'TNG Spread Calc'!$A$22:$A$240,0)))) -> 0 | M29: =IF('Cap Rate Graph Table'!E15=0,0,IF(ISNA('Cap Rate Graph Table'!E15-INDEX('TNG Spread Calc'!$C$22:$C$240,MATCH('TNG Spread Calc'!$J29,'TNG Spread Calc'!$A$22:$A$240,0)))=TRUE,0,'Cap Rate Graph Table'!E15-INDEX('TNG Spread Calc'!$C$22:$C$240,MATCH('TNG Spread Calc'!$J29,'TNG Spread Calc'!$A$22:$A$240,0)))) -> 0 | N29: =IF('Cap Rate Graph Table'!F15=0,0,IF(ISNA('Cap Rate Graph Table'!F15-INDEX('TNG Spread Calc'!$C$22:$C$240,MATCH('TNG Spread Calc'!$J29,'TNG Spread Calc'!$A$22:$A$240,0)))=TRUE,0,'Cap Rate Graph Table'!F15-INDEX('TNG Spread Calc'!$C$22:$C$240,MATCH('TNG Spread Calc'!$J29,'TNG Spread Calc'!$A$22:$A$240,0)))) -> 0 | O29: =IF('Cap Rate Graph Table'!G15=0,0,IF(ISNA('Cap Rate Graph Table'!G15-INDEX('TNG Spread Calc'!$C$22:$C$240,MATCH('TNG Spread Calc'!$J29,'TNG Spread Calc'!$A$22:$A$240,0)))=TRUE,0,'Cap Rate Graph Table'!G15-INDEX('TNG Spread Calc'!$C$22:$C$240,MATCH('TNG Spread Calc'!$J29,'TNG Spread Calc'!$A$22:$A$240,0)))) -> 0.02423361099 | P29: =IF('Cap Rate Graph Table'!H15=0,0,IF(ISNA('Cap Rate Graph Table'!H15-INDEX('TNG Spread Calc'!$C$22:$C$240,MATCH('TNG Spread Calc'!$J29,'TNG Spread Calc'!$A$22:$A$240,0)))=TRUE,0,'Cap Rate Graph Table'!H15-INDEX('TNG Spread Calc'!$C$22:$C$240,MATCH('TNG Spread Calc'!$J29,'TNG Spread Calc'!$A$22:$A$240,0)))) -> 0 | Q29: =IF('Cap Rate Graph Table'!I15=0,0,IF(ISNA('Cap Rate Graph Table'!I15-INDEX('TNG Spread Calc'!$C$22:$C$240,MATCH('TNG Spread Calc'!$J29,'TNG Spread Calc'!$A$22:$A$240,0)))=TRUE,0,'Cap Rate Graph Table'!I15-INDEX('TNG Spread Calc'!$C$22:$C$240,MATCH('TNG Spread Calc'!$J29,'TNG Spread Calc'!$A$22:$A$240,0)))) -> 0 | R29: =IF('Cap Rate Graph Table'!J15=0,0,IF(ISNA('Cap Rate Graph Table'!J15-INDEX('TNG Spread Calc'!$C$22:$C$240,MATCH('TNG Spread Calc'!$J29,'TNG Spread Calc'!$A$22:$A$240,0)))=TRUE,0,'Cap Rate Graph Table'!J15-INDEX('TNG Spread Calc'!$C$22:$C$240,MATCH('TNG Spread Calc'!$J29,'TNG Spread Calc'!$A$22:$A$240,0)))) -> 0 | S29: =IF('Cap Rate Graph Table'!K15=0,0,IF(ISNA('Cap Rate Graph Table'!K15-INDEX('TNG Spread Calc'!$C$22:$C$240,MATCH('TNG Spread Calc'!$J29,'TNG Spread Calc'!$A$22:$A$240,0)))=TRUE,0,'Cap Rate Graph Table'!K15-INDEX('TNG Spread Calc'!$C$22:$C$240,MATCH('TNG Spread Calc'!$J29,'TNG Spread Calc'!$A$22:$A$240,0)))) -> 0 | T29: =IF('Cap Rate Graph Table'!L15=0,0,IF(ISNA('Cap Rate Graph Table'!L15-INDEX('TNG Spread Calc'!$C$22:$C$240,MATCH('TNG Spread Calc'!$J29,'TNG Spread Calc'!$A$22:$A$240,0)))=TRUE,0,'Cap Rate Graph Table'!L15-INDEX('TNG Spread Calc'!$C$22:$C$240,MATCH('TNG Spread Calc'!$J29,'TNG Spread Calc'!$A$22:$A$240,0)))) -> 0 | U29: =IF('Cap Rate Graph Table'!M15=0,0,IF(ISNA('Cap Rate Graph Table'!M15-INDEX('TNG Spread Calc'!$C$22:$C$240,MATCH('TNG Spread Calc'!$J29,'TNG Spread Calc'!$A$22:$A$240,0)))=TRUE,0,'Cap Rate Graph Table'!M15-INDEX('TNG Spread Calc'!$C$22:$C$240,MATCH('TNG Spread Calc'!$J29,'TNG Spread Calc'!$A$22:$A$240,0)))) -> 0 | V29: =IF('Cap Rate Graph Table'!N15=0,0,IF(ISNA('Cap Rate Graph Table'!N15-INDEX('TNG Spread Calc'!$C$22:$C$240,MATCH('TNG Spread Calc'!$J29,'TNG Spread Calc'!$A$22:$A$240,0)))=TRUE,0,'Cap Rate Graph Table'!N15-INDEX('TNG Spread Calc'!$C$22:$C$240,MATCH('TNG Spread Calc'!$J29,'TNG Spread Calc'!$A$22:$A$240,0)))) -> 0 | W29: =IF('Cap Rate Graph Table'!O15=0,0,IF(ISNA('Cap Rate Graph Table'!O15-INDEX('TNG Spread Calc'!$C$22:$C$240,MATCH('TNG Spread Calc'!$J29,'TNG Spread Calc'!$A$22:$A$240,0)))=TRUE,0,'Cap Rate Graph Table'!O15-INDEX('TNG Spread Calc'!$C$22:$C$240,MATCH('TNG Spread Calc'!$J29,'TNG Spread Calc'!$A$22:$A$240,0)))) -> 0 | X29: =IF('Cap Rate Graph Table'!P15=0,0,IF(ISNA('Cap Rate Graph Table'!P15-INDEX('TNG Spread Calc'!$C$22:$C$240,MATCH('TNG Spread Calc'!$J29,'TNG Spread Calc'!$A$22:$A$240,0)))=TRUE,0,'Cap Rate Graph Table'!P15-INDEX('TNG Spread Calc'!$C$22:$C$240,MATCH('TNG Spread Calc'!$J29,'TNG Spread Calc'!$A$22:$A$240,0)))) -> 0 | Y29: =IF('Cap Rate Graph Table'!Q15=0,0,IF(ISNA('Cap Rate Graph Table'!Q15-INDEX('TNG Spread Calc'!$C$22:$C$240,MATCH('TNG Spread Calc'!$J29,'TNG Spread Calc'!$A$22:$A$240,0)))=TRUE,0,'Cap Rate Graph Table'!Q15-INDEX('TNG Spread Calc'!$C$22:$C$240,MATCH('TNG Spread Calc'!$J29,'TNG Spread Calc'!$A$22:$A$240,0)))) -> 0 | Z29: =IF('Cap Rate Graph Table'!R15=0,0,IF(ISNA('Cap Rate Graph Table'!R15-INDEX('TNG Spread Calc'!$C$22:$C$240,MATCH('TNG Spread Calc'!$J29,'TNG Spread Calc'!$A$22:$A$240,0)))=TRUE,0,'Cap Rate Graph Table'!R15-INDEX('TNG Spread Calc'!$C$22:$C$240,MATCH('TNG Spread Calc'!$J29,'TNG Spread Calc'!$A$22:$A$240,0)))) -> 0 | AA29: =IF('Cap Rate Graph Table'!S15=0,0,IF(ISNA('Cap Rate Graph Table'!S15-INDEX('TNG Spread Calc'!$C$22:$C$240,MATCH('TNG Spread Calc'!$J29,'TNG Spread Calc'!$A$22:$A$240,0)))=TRUE,0,'Cap Rate Graph Table'!S15-INDEX('TNG Spread Calc'!$C$22:$C$240,MATCH('TNG Spread Calc'!$J29,'TNG Spread Calc'!$A$22:$A$240,0)))) -> 0 | AB29: =IF('Cap Rate Graph Table'!T15=0,0,IF(ISNA('Cap Rate Graph Table'!T15-INDEX('TNG Spread Calc'!$C$22:$C$240,MATCH('TNG Spread Calc'!$J29,'TNG Spread Calc'!$A$22:$A$240,0)))=TRUE,0,'Cap Rate Graph Table'!T15-INDEX('TNG Spread Calc'!$C$22:$C$240,MATCH('TNG Spread Calc'!$J29,'TNG Spread Calc'!$A$22:$A$240,0)))) -> 0 | AC29: =IF('Cap Rate Graph Table'!U15=0,0,IF(ISNA('Cap Rate Graph Table'!U15-INDEX('TNG Spread Calc'!$C$22:$C$240,MATCH('TNG Spread Calc'!$J29,'TNG Spread Calc'!$A$22:$A$240,0)))=TRUE,0,'Cap Rate Graph Table'!U15-INDEX('TNG Spread Calc'!$C$22:$C$240,MATCH('TNG Spread Calc'!$J29,'TNG Spread Calc'!$A$22:$A$240,0)))) -> 0 | AD29: =IF('Cap Rate Graph Table'!V15=0,0,IF(ISNA('Cap Rate Graph Table'!V15-INDEX('TNG Spread Calc'!$C$22:$C$240,MATCH('TNG Spread Calc'!$J29,'TNG Spread Calc'!$A$22:$A$240,0)))=TRUE,0,'Cap Rate Graph Table'!V15-INDEX('TNG Spread Calc'!$C$22:$C$240,MATCH('TNG Spread Calc'!$J29,'TNG Spread Calc'!$A$22:$A$240,0)))) -> 0 | AE29: =IF('Cap Rate Graph Table'!W15=0,0,IF(ISNA('Cap Rate Graph Table'!W15-INDEX('TNG Spread Calc'!$C$22:$C$240,MATCH('TNG Spread Calc'!$J29,'TNG Spread Calc'!$A$22:$A$240,0)))=TRUE,0,'Cap Rate Graph Table'!W15-INDEX('TNG Spread Calc'!$C$22:$C$240,MATCH('TNG Spread Calc'!$J29,'TNG Spread Calc'!$A$22:$A$240,0)))) -> 0 | AF29: =IF('Cap Rate Graph Table'!X15=0,0,IF(ISNA('Cap Rate Graph Table'!X15-INDEX('TNG Spread Calc'!$C$22:$C$240,MATCH('TNG Spread Calc'!$J29,'TNG Spread Calc'!$A$22:$A$240,0)))=TRUE,0,'Cap Rate Graph Table'!X15-INDEX('TNG Spread Calc'!$C$22:$C$240,MATCH('TNG Spread Calc'!$J29,'TNG Spread Calc'!$A$22:$A$240,0)))) -> 0 | AG29: =IF('Cap Rate Graph Table'!Y15=0,0,IF(ISNA('Cap Rate Graph Table'!Y15-INDEX('TNG Spread Calc'!$C$22:$C$240,MATCH('TNG Spread Calc'!$J29,'TNG Spread Calc'!$A$22:$A$240,0)))=TRUE,0,'Cap Rate Graph Table'!Y15-INDEX('TNG Spread Calc'!$C$22:$C$240,MATCH('TNG Spread Calc'!$J29,'TNG Spread Calc'!$A$22:$A$240,0)))) -> 0 | AH29: =IF('Cap Rate Graph Table'!Z15=0,0,IF(ISNA('Cap Rate Graph Table'!Z15-INDEX('TNG Spread Calc'!$C$22:$C$240,MATCH('TNG Spread Calc'!$J29,'TNG Spread Calc'!$A$22:$A$240,0)))=TRUE,0,'Cap Rate Graph Table'!Z15-INDEX('TNG Spread Calc'!$C$22:$C$240,MATCH('TNG Spread Calc'!$J29,'TNG Spread Calc'!$A$22:$A$240,0)))) -> 0 | AI29: =IF('Cap Rate Graph Table'!AA15=0,0,IF(ISNA('Cap Rate Graph Table'!AA15-INDEX('TNG Spread Calc'!$C$22:$C$240,MATCH('TNG Spread Calc'!$J29,'TNG Spread Calc'!$A$22:$A$240,0)))=TRUE,0,'Cap Rate Graph Table'!AA15-INDEX('TNG Spread Calc'!$C$22:$C$240,MATCH('TNG Spread Calc'!$J29,'TNG Spread Calc'!$A$22:$A$240,0)))) -> 0 | AJ29: =IF('Cap Rate Graph Table'!AB15=0,0,IF(ISNA('Cap Rate Graph Table'!AB15-INDEX('TNG Spread Calc'!$C$22:$C$240,MATCH('TNG Spread Calc'!$J29,'TNG Spread Calc'!$A$22:$A$240,0)))=TRUE,0,'Cap Rate Graph Table'!AB15-INDEX('TNG Spread Calc'!$C$22:$C$240,MATCH('TNG Spread Calc'!$J29,'TNG Spread Calc'!$A$22:$A$240,0)))) -> 0 | AK29: =IF('Cap Rate Graph Table'!AC15=0,0,IF(ISNA('Cap Rate Graph Table'!AC15-INDEX('TNG Spread Calc'!$C$22:$C$240,MATCH('TNG Spread Calc'!$J29,'TNG Spread Calc'!$A$22:$A$240,0)))=TRUE,0,'Cap Rate Graph Table'!AC15-INDEX('TNG Spread Calc'!$C$22:$C$240,MATCH('TNG Spread Calc'!$J29,'TNG Spread Calc'!$A$22:$A$240,0)))) -> 0 | AL29: =IF('Cap Rate Graph Table'!AD15=0,0,IF(ISNA('Cap Rate Graph Table'!AD15-INDEX('TNG Spread Calc'!$C$22:$C$240,MATCH('TNG Spread Calc'!$J29,'TNG Spread Calc'!$A$22:$A$240,0)))=TRUE,0,'Cap Rate Graph Table'!AD15-INDEX('TNG Spread Calc'!$C$22:$C$240,MATCH('TNG Spread Calc'!$J29,'TNG Spread Calc'!$A$22:$A$240,0)))) -> 0 | AM29: =IF('Cap Rate Graph Table'!AE15=0,0,IF(ISNA('Cap Rate Graph Table'!AE15-INDEX('TNG Spread Calc'!$C$22:$C$240,MATCH('TNG Spread Calc'!$J29,'TNG Spread Calc'!$A$22:$A$240,0)))=TRUE,0,'Cap Rate Graph Table'!AE15-INDEX('TNG Spread Calc'!$C$22:$C$240,MATCH('TNG Spread Calc'!$J29,'TNG Spread Calc'!$A$22:$A$240,0)))) -> 0 | AN29: =IF('Cap Rate Graph Table'!AF15=0,0,IF(ISNA('Cap Rate Graph Table'!AF15-INDEX('TNG Spread Calc'!$C$22:$C$240,MATCH('TNG Spread Calc'!$J29,'TNG Spread Calc'!$A$22:$A$240,0)))=TRUE,0,'Cap Rate Graph Table'!AF15-INDEX('TNG Spread Calc'!$C$22:$C$240,MATCH('TNG Spread Calc'!$J29,'TNG Spread Calc'!$A$22:$A$240,0)))) -> 0 | AO29: =IF('Cap Rate Graph Table'!AG15=0,0,IF(ISNA('Cap Rate Graph Table'!AG15-INDEX('TNG Spread Calc'!$C$22:$C$240,MATCH('TNG Spread Calc'!$J29,'TNG Spread Calc'!$A$22:$A$240,0)))=TRUE,0,'Cap Rate Graph Table'!AG15-INDEX('TNG Spread Calc'!$C$22:$C$240,MATCH('TNG Spread Calc'!$J29,'TNG Spread Calc'!$A$22:$A$240,0)))) -> 0 | AP29: =IF('Cap Rate Graph Table'!AH15=0,0,IF(ISNA('Cap Rate Graph Table'!AH15-INDEX('TNG Spread Calc'!$C$22:$C$240,MATCH('TNG Spread Calc'!$J29,'TNG Spread Calc'!$A$22:$A$240,0)))=TRUE,0,'Cap Rate Graph Table'!AH15-INDEX('TNG Spread Calc'!$C$22:$C$240,MATCH('TNG Spread Calc'!$J29,'TNG Spread Calc'!$A$22:$A$240,0)))) -> 0 | AQ29: =IF('Cap Rate Graph Table'!AI15=0,0,IF(ISNA('Cap Rate Graph Table'!AI15-INDEX('TNG Spread Calc'!$C$22:$C$240,MATCH('TNG Spread Calc'!$J29,'TNG Spread Calc'!$A$22:$A$240,0)))=TRUE,0,'Cap Rate Graph Table'!AI15-INDEX('TNG Spread Calc'!$C$22:$C$240,MATCH('TNG Spread Calc'!$J29,'TNG Spread Calc'!$A$22:$A$240,0)))) -> 0 | AR29: =IF('Cap Rate Graph Table'!AJ15=0,0,IF(ISNA('Cap Rate Graph Table'!AJ15-INDEX('TNG Spread Calc'!$C$22:$C$240,MATCH('TNG Spread Calc'!$J29,'TNG Spread Calc'!$A$22:$A$240,0)))=TRUE,0,'Cap Rate Graph Table'!AJ15-INDEX('TNG Spread Calc'!$C$22:$C$240,MATCH('TNG Spread Calc'!$J29,'TNG Spread Calc'!$A$22:$A$240,0)))) -> 0 | AS29: =IF('Cap Rate Graph Table'!AK15=0,0,IF(ISNA('Cap Rate Graph Table'!AK15-INDEX('TNG Spread Calc'!$C$22:$C$240,MATCH('TNG Spread Calc'!$J29,'TNG Spread Calc'!$A$22:$A$240,0)))=TRUE,0,'Cap Rate Graph Table'!AK15-INDEX('TNG Spread Calc'!$C$22:$C$240,MATCH('TNG Spread Calc'!$J29,'TNG Spread Calc'!$A$22:$A$240,0)))) -> 0 | AT29: =IF('Cap Rate Graph Table'!AL15=0,0,IF(ISNA('Cap Rate Graph Table'!AL15-INDEX('TNG Spread Calc'!$C$22:$C$240,MATCH('TNG Spread Calc'!$J29,'TNG Spread Calc'!$A$22:$A$240,0)))=TRUE,0,'Cap Rate Graph Table'!AL15-INDEX('TNG Spread Calc'!$C$22:$C$240,MATCH('TNG Spread Calc'!$J29,'TNG Spread Calc'!$A$22:$A$240,0)))) -> 0 | AU29: =IF('Cap Rate Graph Table'!AM15=0,0,IF(ISNA('Cap Rate Graph Table'!AM15-INDEX('TNG Spread Calc'!$C$22:$C$240,MATCH('TNG Spread Calc'!$J29,'TNG Spread Calc'!$A$22:$A$240,0)))=TRUE,0,'Cap Rate Graph Table'!AM15-INDEX('TNG Spread Calc'!$C$22:$C$240,MATCH('TNG Spread Calc'!$J29,'TNG Spread Calc'!$A$22:$A$240,0)))) -> 0 | AV29: =IF('Cap Rate Graph Table'!AN15=0,0,IF(ISNA('Cap Rate Graph Table'!AN15-INDEX('TNG Spread Calc'!$C$22:$C$240,MATCH('TNG Spread Calc'!$J29,'TNG Spread Calc'!$A$22:$A$240,0)))=TRUE,0,'Cap Rate Graph Table'!AN15-INDEX('TNG Spread Calc'!$C$22:$C$240,MATCH('TNG Spread Calc'!$J29,'TNG Spread Calc'!$A$22:$A$240,0)))) -> 0 | AW29: =IF('Cap Rate Graph Table'!AO15=0,0,IF(ISNA('Cap Rate Graph Table'!AO15-INDEX('TNG Spread Calc'!$C$22:$C$240,MATCH('TNG Spread Calc'!$J29,'TNG Spread Calc'!$A$22:$A$240,0)))=TRUE,0,'Cap Rate Graph Table'!AO15-INDEX('TNG Spread Calc'!$C$22:$C$240,MATCH('TNG Spread Calc'!$J29,'TNG Spread Calc'!$A$22:$A$240,0)))) -> 0 | AX29: =IF('Cap Rate Graph Table'!AP15=0,0,IF(ISNA('Cap Rate Graph Table'!AP15-INDEX('TNG Spread Calc'!$C$22:$C$240,MATCH('TNG Spread Calc'!$J29,'TNG Spread Calc'!$A$22:$A$240,0)))=TRUE,0,'Cap Rate Graph Table'!AP15-INDEX('TNG Spread Calc'!$C$22:$C$240,MATCH('TNG Spread Calc'!$J29,'TNG Spread Calc'!$A$22:$A$240,0)))) -> 0 | AY29: =IF('Cap Rate Graph Table'!AQ15=0,0,IF(ISNA('Cap Rate Graph Table'!AQ15-INDEX('TNG Spread Calc'!$C$22:$C$240,MATCH('TNG Spread Calc'!$J29,'TNG Spread Calc'!$A$22:$A$240,0)))=TRUE,0,'Cap Rate Graph Table'!AQ15-INDEX('TNG Spread Calc'!$C$22:$C$240,MATCH('TNG Spread Calc'!$J29,'TNG Spread Calc'!$A$22:$A$240,0)))) -> 0 | AZ29: =IF('Cap Rate Graph Table'!AR15=0,0,IF(ISNA('Cap Rate Graph Table'!AR15-INDEX('TNG Spread Calc'!$C$22:$C$240,MATCH('TNG Spread Calc'!$J29,'TNG Spread Calc'!$A$22:$A$240,0)))=TRUE,0,'Cap Rate Graph Table'!AR15-INDEX('TNG Spread Calc'!$C$22:$C$240,MATCH('TNG Spread Calc'!$J29,'TNG Spread Calc'!$A$22:$A$240,0)))) -> 0 | BA29: =IF('Cap Rate Graph Table'!AS15=0,0,IF(ISNA('Cap Rate Graph Table'!AS15-INDEX('TNG Spread Calc'!$C$22:$C$240,MATCH('TNG Spread Calc'!$J29,'TNG Spread Calc'!$A$22:$A$240,0)))=TRUE,0,'Cap Rate Graph Table'!AS15-INDEX('TNG Spread Calc'!$C$22:$C$240,MATCH('TNG Spread Calc'!$J29,'TNG Spread Calc'!$A$22:$A$240,0)))) -> 0 | BB29: =IF('Cap Rate Graph Table'!AT15=0,0,IF(ISNA('Cap Rate Graph Table'!AT15-INDEX('TNG Spread Calc'!$C$22:$C$240,MATCH('TNG Spread Calc'!$J29,'TNG Spread Calc'!$A$22:$A$240,0)))=TRUE,0,'Cap Rate Graph Table'!AT15-INDEX('TNG Spread Calc'!$C$22:$C$240,MATCH('TNG Spread Calc'!$J29,'TNG Spread Calc'!$A$22:$A$240,0)))) -> 0 | BC29: =IF('Cap Rate Graph Table'!AU15=0,0,IF(ISNA('Cap Rate Graph Table'!AU15-INDEX('TNG Spread Calc'!$C$22:$C$240,MATCH('TNG Spread Calc'!$J29,'TNG Spread Calc'!$A$22:$A$240,0)))=TRUE,0,'Cap Rate Graph Table'!AU15-INDEX('TNG Spread Calc'!$C$22:$C$240,MATCH('TNG Spread Calc'!$J29,'TNG Spread Calc'!$A$22:$A$240,0)))) -> 0 | BD29: =IF('Cap Rate Graph Table'!AV15=0,0,IF(ISNA('Cap Rate Graph Table'!AV15-INDEX('TNG Spread Calc'!$C$22:$C$240,MATCH('TNG Spread Calc'!$J29,'TNG Spread Calc'!$A$22:$A$240,0)))=TRUE,0,'Cap Rate Graph Table'!AV15-INDEX('TNG Spread Calc'!$C$22:$C$240,MATCH('TNG Spread Calc'!$J29,'TNG Spread Calc'!$A$22:$A$240,0)))) -> 0 | BE29: =IF('Cap Rate Graph Table'!AW15=0,0,IF(ISNA('Cap Rate Graph Table'!AW15-INDEX('TNG Spread Calc'!$C$22:$C$240,MATCH('TNG Spread Calc'!$J29,'TNG Spread Calc'!$A$22:$A$240,0)))=TRUE,0,'Cap Rate Graph Table'!AW15-INDEX('TNG Spread Calc'!$C$22:$C$240,MATCH('TNG Spread Calc'!$J29,'TNG Spread Calc'!$A$22:$A$240,0)))) -> 0 | BF29: =IF('Cap Rate Graph Table'!AX15=0,0,IF(ISNA('Cap Rate Graph Table'!AX15-INDEX('TNG Spread Calc'!$C$22:$C$240,MATCH('TNG Spread Calc'!$J29,'TNG Spread Calc'!$A$22:$A$240,0)))=TRUE,0,'Cap Rate Graph Table'!AX15-INDEX('TNG Spread Calc'!$C$22:$C$240,MATCH('TNG Spread Calc'!$J29,'TNG Spread Calc'!$A$22:$A$240,0)))) -> 0 | BG29: =IF('Cap Rate Graph Table'!AY15=0,0,IF(ISNA('Cap Rate Graph Table'!AY15-INDEX('TNG Spread Calc'!$C$22:$C$240,MATCH('TNG Spread Calc'!$J29,'TNG Spread Calc'!$A$22:$A$240,0)))=TRUE,0,'Cap Rate Graph Table'!AY15-INDEX('TNG Spread Calc'!$C$22:$C$240,MATCH('TNG Spread Calc'!$J29,'TNG Spread Calc'!$A$22:$A$240,0)))) -> 0 | BH29: =IF('Cap Rate Graph Table'!AZ15=0,0,IF(ISNA('Cap Rate Graph Table'!AZ15-INDEX('TNG Spread Calc'!$C$22:$C$240,MATCH('TNG Spread Calc'!$J29,'TNG Spread Calc'!$A$22:$A$240,0)))=TRUE,0,'Cap Rate Graph Table'!AZ15-INDEX('TNG Spread Calc'!$C$22:$C$240,MATCH('TNG Spread Calc'!$J29,'TNG Spread Calc'!$A$22:$A$240,0)))) -> 0 | BI29: =IF('Cap Rate Graph Table'!BA15=0,0,IF(ISNA('Cap Rate Graph Table'!BA15-INDEX('TNG Spread Calc'!$C$22:$C$240,MATCH('TNG Spread Calc'!$J29,'TNG Spread Calc'!$A$22:$A$240,0)))=TRUE,0,'Cap Rate Graph Table'!BA15-INDEX('TNG Spread Calc'!$C$22:$C$240,MATCH('TNG Spread Calc'!$J29,'TNG Spread Calc'!$A$22:$A$240,0)))) -> 0 | BJ29: =IF('Cap Rate Graph Table'!BB15=0,0,IF(ISNA('Cap Rate Graph Table'!BB15-INDEX('TNG Spread Calc'!$C$22:$C$240,MATCH('TNG Spread Calc'!$J29,'TNG Spread Calc'!$A$22:$A$240,0)))=TRUE,0,'Cap Rate Graph Table'!BB15-INDEX('TNG Spread Calc'!$C$22:$C$240,MATCH('TNG Spread Calc'!$J29,'TNG Spread Calc'!$A$22:$A$240,0)))) -> 0
A30: 1964-01-01 | B30: 4.18 | C30: 0.0418 | E30: 1964-01-01 | F30: 0.06 | I30: =INDEX(K30:AN30,MATCH('Inputs & Mkt Adj'!$C$4,'TNG Spread Calc'!$K$20:$AN$20,0)) -> 0 | J30: 1998-01-01 | K30: =IF('Cap Rate Graph Table'!C16=0,0,IF(ISNA('Cap Rate Graph Table'!C16-INDEX('TNG Spread Calc'!$C$22:$C$240,MATCH('TNG Spread Calc'!$J30,'TNG Spread Calc'!$A$22:$A$240,0)))=TRUE,0,'Cap Rate Graph Table'!C16-INDEX('TNG Spread Calc'!$C$22:$C$240,MATCH('TNG Spread Calc'!$J30,'TNG Spread Calc'!$A$22:$A$240,0)))) -> 0 | L30: =IF('Cap Rate Graph Table'!D16=0,0,IF(ISNA('Cap Rate Graph Table'!D16-INDEX('TNG Spread Calc'!$C$22:$C$240,MATCH('TNG Spread Calc'!$J30,'TNG Spread Calc'!$A$22:$A$240,0)))=TRUE,0,'Cap Rate Graph Table'!D16-INDEX('TNG Spread Calc'!$C$22:$C$240,MATCH('TNG Spread Calc'!$J30,'TNG Spread Calc'!$A$22:$A$240,0)))) -> 0 | M30: =IF('Cap Rate Graph Table'!E16=0,0,IF(ISNA('Cap Rate Graph Table'!E16-INDEX('TNG Spread Calc'!$C$22:$C$240,MATCH('TNG Spread Calc'!$J30,'TNG Spread Calc'!$A$22:$A$240,0)))=TRUE,0,'Cap Rate Graph Table'!E16-INDEX('TNG Spread Calc'!$C$22:$C$240,MATCH('TNG Spread Calc'!$J30,'TNG Spread Calc'!$A$22:$A$240,0)))) -> 0 | N30: =IF('Cap Rate Graph Table'!F16=0,0,IF(ISNA('Cap Rate Graph Table'!F16-INDEX('TNG Spread Calc'!$C$22:$C$240,MATCH('TNG Spread Calc'!$J30,'TNG Spread Calc'!$A$22:$A$240,0)))=TRUE,0,'Cap Rate Graph Table'!F16-INDEX('TNG Spread Calc'!$C$22:$C$240,MATCH('TNG Spread Calc'!$J30,'TNG Spread Calc'!$A$22:$A$240,0)))) -> 0 | O30: =IF('Cap Rate Graph Table'!G16=0,0,IF(ISNA('Cap Rate Graph Table'!G16-INDEX('TNG Spread Calc'!$C$22:$C$240,MATCH('TNG Spread Calc'!$J30,'TNG Spread Calc'!$A$22:$A$240,0)))=TRUE,0,'Cap Rate Graph Table'!G16-INDEX('TNG Spread Calc'!$C$22:$C$240,MATCH('TNG Spread Calc'!$J30,'TNG Spread Calc'!$A$22:$A$240,0)))) -> 0 | P30: =IF('Cap Rate Graph Table'!H16=0,0,IF(ISNA('Cap Rate Graph Table'!H16-INDEX('TNG Spread Calc'!$C$22:$C$240,MATCH('TNG Spread Calc'!$J30,'TNG Spread Calc'!$A$22:$A$240,0)))=TRUE,0,'Cap Rate Graph Table'!H16-INDEX('TNG Spread Calc'!$C$22:$C$240,MATCH('TNG Spread Calc'!$J30,'TNG Spread Calc'!$A$22:$A$240,0)))) -> 0 | Q30: =IF('Cap Rate Graph Table'!I16=0,0,IF(ISNA('Cap Rate Graph Table'!I16-INDEX('TNG Spread Calc'!$C$22:$C$240,MATCH('TNG Spread Calc'!$J30,'TNG Spread Calc'!$A$22:$A$240,0)))=TRUE,0,'Cap Rate Graph Table'!I16-INDEX('TNG Spread Calc'!$C$22:$C$240,MATCH('TNG Spread Calc'!$J30,'TNG Spread Calc'!$A$22:$A$240,0)))) -> 0 | R30: =IF('Cap Rate Graph Table'!J16=0,0,IF(ISNA('Cap Rate Graph Table'!J16-INDEX('TNG Spread Calc'!$C$22:$C$240,MATCH('TNG Spread Calc'!$J30,'TNG Spread Calc'!$A$22:$A$240,0)))=TRUE,0,'Cap Rate Graph Table'!J16-INDEX('TNG Spread Calc'!$C$22:$C$240,MATCH('TNG Spread Calc'!$J30,'TNG Spread Calc'!$A$22:$A$240,0)))) -> 0 | S30: =IF('Cap Rate Graph Table'!K16=0,0,IF(ISNA('Cap Rate Graph Table'!K16-INDEX('TNG Spread Calc'!$C$22:$C$240,MATCH('TNG Spread Calc'!$J30,'TNG Spread Calc'!$A$22:$A$240,0)))=TRUE,0,'Cap Rate Graph Table'!K16-INDEX('TNG Spread Calc'!$C$22:$C$240,MATCH('TNG Spread Calc'!$J30,'TNG Spread Calc'!$A$22:$A$240,0)))) -> 0 | T30: =IF('Cap Rate Graph Table'!L16=0,0,IF(ISNA('Cap Rate Graph Table'!L16-INDEX('TNG Spread Calc'!$C$22:$C$240,MATCH('TNG Spread Calc'!$J30,'TNG Spread Calc'!$A$22:$A$240,0)))=TRUE,0,'Cap Rate Graph Table'!L16-INDEX('TNG Spread Calc'!$C$22:$C$240,MATCH('TNG Spread Calc'!$J30,'TNG Spread Calc'!$A$22:$A$240,0)))) -> 0 | U30: =IF('Cap Rate Graph Table'!M16=0,0,IF(ISNA('Cap Rate Graph Table'!M16-INDEX('TNG Spread Calc'!$C$22:$C$240,MATCH('TNG Spread Calc'!$J30,'TNG Spread Calc'!$A$22:$A$240,0)))=TRUE,0,'Cap Rate Graph Table'!M16-INDEX('TNG Spread Calc'!$C$22:$C$240,MATCH('TNG Spread Calc'!$J30,'TNG Spread Calc'!$A$22:$A$240,0)))) -> 0 | V30: =IF('Cap Rate Graph Table'!N16=0,0,IF(ISNA('Cap Rate Graph Table'!N16-INDEX('TNG Spread Calc'!$C$22:$C$240,MATCH('TNG Spread Calc'!$J30,'TNG Spread Calc'!$A$22:$A$240,0)))=TRUE,0,'Cap Rate Graph Table'!N16-INDEX('TNG Spread Calc'!$C$22:$C$240,MATCH('TNG Spread Calc'!$J30,'TNG Spread Calc'!$A$22:$A$240,0)))) -> 0 | W30: =IF('Cap Rate Graph Table'!O16=0,0,IF(ISNA('Cap Rate Graph Table'!O16-INDEX('TNG Spread Calc'!$C$22:$C$240,MATCH('TNG Spread Calc'!$J30,'TNG Spread Calc'!$A$22:$A$240,0)))=TRUE,0,'Cap Rate Graph Table'!O16-INDEX('TNG Spread Calc'!$C$22:$C$240,MATCH('TNG Spread Calc'!$J30,'TNG Spread Calc'!$A$22:$A$240,0)))) -> 0 | X30: =IF('Cap Rate Graph Table'!P16=0,0,IF(ISNA('Cap Rate Graph Table'!P16-INDEX('TNG Spread Calc'!$C$22:$C$240,MATCH('TNG Spread Calc'!$J30,'TNG Spread Calc'!$A$22:$A$240,0)))=TRUE,0,'Cap Rate Graph Table'!P16-INDEX('TNG Spread Calc'!$C$22:$C$240,MATCH('TNG Spread Calc'!$J30,'TNG Spread Calc'!$A$22:$A$240,0)))) -> 0 | Y30: =IF('Cap Rate Graph Table'!Q16=0,0,IF(ISNA('Cap Rate Graph Table'!Q16-INDEX('TNG Spread Calc'!$C$22:$C$240,MATCH('TNG Spread Calc'!$J30,'TNG Spread Calc'!$A$22:$A$240,0)))=TRUE,0,'Cap Rate Graph Table'!Q16-INDEX('TNG Spread Calc'!$C$22:$C$240,MATCH('TNG Spread Calc'!$J30,'TNG Spread Calc'!$A$22:$A$240,0)))) -> 0 | Z30: =IF('Cap Rate Graph Table'!R16=0,0,IF(ISNA('Cap Rate Graph Table'!R16-INDEX('TNG Spread Calc'!$C$22:$C$240,MATCH('TNG Spread Calc'!$J30,'TNG Spread Calc'!$A$22:$A$240,0)))=TRUE,0,'Cap Rate Graph Table'!R16-INDEX('TNG Spread Calc'!$C$22:$C$240,MATCH('TNG Spread Calc'!$J30,'TNG Spread Calc'!$A$22:$A$240,0)))) -> 0 | AA30: =IF('Cap Rate Graph Table'!S16=0,0,IF(ISNA('Cap Rate Graph Table'!S16-INDEX('TNG Spread Calc'!$C$22:$C$240,MATCH('TNG Spread Calc'!$J30,'TNG Spread Calc'!$A$22:$A$240,0)))=TRUE,0,'Cap Rate Graph Table'!S16-INDEX('TNG Spread Calc'!$C$22:$C$240,MATCH('TNG Spread Calc'!$J30,'TNG Spread Calc'!$A$22:$A$240,0)))) -> 0 | AB30: =IF('Cap Rate Graph Table'!T16=0,0,IF(ISNA('Cap Rate Graph Table'!T16-INDEX('TNG Spread Calc'!$C$22:$C$240,MATCH('TNG Spread Calc'!$J30,'TNG Spread Calc'!$A$22:$A$240,0)))=TRUE,0,'Cap Rate Graph Table'!T16-INDEX('TNG Spread Calc'!$C$22:$C$240,MATCH('TNG Spread Calc'!$J30,'TNG Spread Calc'!$A$22:$A$240,0)))) -> 0 | AC30: =IF('Cap Rate Graph Table'!U16=0,0,IF(ISNA('Cap Rate Graph Table'!U16-INDEX('TNG Spread Calc'!$C$22:$C$240,MATCH('TNG Spread Calc'!$J30,'TNG Spread Calc'!$A$22:$A$240,0)))=TRUE,0,'Cap Rate Graph Table'!U16-INDEX('TNG Spread Calc'!$C$22:$C$240,MATCH('TNG Spread Calc'!$J30,'TNG Spread Calc'!$A$22:$A$240,0)))) -> 0 | AD30: =IF('Cap Rate Graph Table'!V16=0,0,IF(ISNA('Cap Rate Graph Table'!V16-INDEX('TNG Spread Calc'!$C$22:$C$240,MATCH('TNG Spread Calc'!$J30,'TNG Spread Calc'!$A$22:$A$240,0)))=TRUE,0,'Cap Rate Graph Table'!V16-INDEX('TNG Spread Calc'!$C$22:$C$240,MATCH('TNG Spread Calc'!$J30,'TNG Spread Calc'!$A$22:$A$240,0)))) -> 0 | AE30: =IF('Cap Rate Graph Table'!W16=0,0,IF(ISNA('Cap Rate Graph Table'!W16-INDEX('TNG Spread Calc'!$C$22:$C$240,MATCH('TNG Spread Calc'!$J30,'TNG Spread Calc'!$A$22:$A$240,0)))=TRUE,0,'Cap Rate Graph Table'!W16-INDEX('TNG Spread Calc'!$C$22:$C$240,MATCH('TNG Spread Calc'!$J30,'TNG Spread Calc'!$A$22:$A$240,0)))) -> 0 | AF30: =IF('Cap Rate Graph Table'!X16=0,0,IF(ISNA('Cap Rate Graph Table'!X16-INDEX('TNG Spread Calc'!$C$22:$C$240,MATCH('TNG Spread Calc'!$J30,'TNG Spread Calc'!$A$22:$A$240,0)))=TRUE,0,'Cap Rate Graph Table'!X16-INDEX('TNG Spread Calc'!$C$22:$C$240,MATCH('TNG Spread Calc'!$J30,'TNG Spread Calc'!$A$22:$A$240,0)))) -> 0 | AG30: =IF('Cap Rate Graph Table'!Y16=0,0,IF(ISNA('Cap Rate Graph Table'!Y16-INDEX('TNG Spread Calc'!$C$22:$C$240,MATCH('TNG Spread Calc'!$J30,'TNG Spread Calc'!$A$22:$A$240,0)))=TRUE,0,'Cap Rate Graph Table'!Y16-INDEX('TNG Spread Calc'!$C$22:$C$240,MATCH('TNG Spread Calc'!$J30,'TNG Spread Calc'!$A$22:$A$240,0)))) -> 0 | AH30: =IF('Cap Rate Graph Table'!Z16=0,0,IF(ISNA('Cap Rate Graph Table'!Z16-INDEX('TNG Spread Calc'!$C$22:$C$240,MATCH('TNG Spread Calc'!$J30,'TNG Spread Calc'!$A$22:$A$240,0)))=TRUE,0,'Cap Rate Graph Table'!Z16-INDEX('TNG Spread Calc'!$C$22:$C$240,MATCH('TNG Spread Calc'!$J30,'TNG Spread Calc'!$A$22:$A$240,0)))) -> 0 | AI30: =IF('Cap Rate Graph Table'!AA16=0,0,IF(ISNA('Cap Rate Graph Table'!AA16-INDEX('TNG Spread Calc'!$C$22:$C$240,MATCH('TNG Spread Calc'!$J30,'TNG Spread Calc'!$A$22:$A$240,0)))=TRUE,0,'Cap Rate Graph Table'!AA16-INDEX('TNG Spread Calc'!$C$22:$C$240,MATCH('TNG Spread Calc'!$J30,'TNG Spread Calc'!$A$22:$A$240,0)))) -> 0 | AJ30: =IF('Cap Rate Graph Table'!AB16=0,0,IF(ISNA('Cap Rate Graph Table'!AB16-INDEX('TNG Spread Calc'!$C$22:$C$240,MATCH('TNG Spread Calc'!$J30,'TNG Spread Calc'!$A$22:$A$240,0)))=TRUE,0,'Cap Rate Graph Table'!AB16-INDEX('TNG Spread Calc'!$C$22:$C$240,MATCH('TNG Spread Calc'!$J30,'TNG Spread Calc'!$A$22:$A$240,0)))) -> 0 | AK30: =IF('Cap Rate Graph Table'!AC16=0,0,IF(ISNA('Cap Rate Graph Table'!AC16-INDEX('TNG Spread Calc'!$C$22:$C$240,MATCH('TNG Spread Calc'!$J30,'TNG Spread Calc'!$A$22:$A$240,0)))=TRUE,0,'Cap Rate Graph Table'!AC16-INDEX('TNG Spread Calc'!$C$22:$C$240,MATCH('TNG Spread Calc'!$J30,'TNG Spread Calc'!$A$22:$A$240,0)))) -> 0 | AL30: =IF('Cap Rate Graph Table'!AD16=0,0,IF(ISNA('Cap Rate Graph Table'!AD16-INDEX('TNG Spread Calc'!$C$22:$C$240,MATCH('TNG Spread Calc'!$J30,'TNG Spread Calc'!$A$22:$A$240,0)))=TRUE,0,'Cap Rate Graph Table'!AD16-INDEX('TNG Spread Calc'!$C$22:$C$240,MATCH('TNG Spread Calc'!$J30,'TNG Spread Calc'!$A$22:$A$240,0)))) -> 0 | AM30: =IF('Cap Rate Graph Table'!AE16=0,0,IF(ISNA('Cap Rate Graph Table'!AE16-INDEX('TNG Spread Calc'!$C$22:$C$240,MATCH('TNG Spread Calc'!$J30,'TNG Spread Calc'!$A$22:$A$240,0)))=TRUE,0,'Cap Rate Graph Table'!AE16-INDEX('TNG Spread Calc'!$C$22:$C$240,MATCH('TNG Spread Calc'!$J30,'TNG Spread Calc'!$A$22:$A$240,0)))) -> 0 | AN30: =IF('Cap Rate Graph Table'!AF16=0,0,IF(ISNA('Cap Rate Graph Table'!AF16-INDEX('TNG Spread Calc'!$C$22:$C$240,MATCH('TNG Spread Calc'!$J30,'TNG Spread Calc'!$A$22:$A$240,0)))=TRUE,0,'Cap Rate Graph Table'!AF16-INDEX('TNG Spread Calc'!$C$22:$C$240,MATCH('TNG Spread Calc'!$J30,'TNG Spread Calc'!$A$22:$A$240,0)))) -> 0 | AO30: =IF('Cap Rate Graph Table'!AG16=0,0,IF(ISNA('Cap Rate Graph Table'!AG16-INDEX('TNG Spread Calc'!$C$22:$C$240,MATCH('TNG Spread Calc'!$J30,'TNG Spread Calc'!$A$22:$A$240,0)))=TRUE,0,'Cap Rate Graph Table'!AG16-INDEX('TNG Spread Calc'!$C$22:$C$240,MATCH('TNG Spread Calc'!$J30,'TNG Spread Calc'!$A$22:$A$240,0)))) -> 0 | AP30: =IF('Cap Rate Graph Table'!AH16=0,0,IF(ISNA('Cap Rate Graph Table'!AH16-INDEX('TNG Spread Calc'!$C$22:$C$240,MATCH('TNG Spread Calc'!$J30,'TNG Spread Calc'!$A$22:$A$240,0)))=TRUE,0,'Cap Rate Graph Table'!AH16-INDEX('TNG Spread Calc'!$C$22:$C$240,MATCH('TNG Spread Calc'!$J30,'TNG Spread Calc'!$A$22:$A$240,0)))) -> 0 | AQ30: =IF('Cap Rate Graph Table'!AI16=0,0,IF(ISNA('Cap Rate Graph Table'!AI16-INDEX('TNG Spread Calc'!$C$22:$C$240,MATCH('TNG Spread Calc'!$J30,'TNG Spread Calc'!$A$22:$A$240,0)))=TRUE,0,'Cap Rate Graph Table'!AI16-INDEX('TNG Spread Calc'!$C$22:$C$240,MATCH('TNG Spread Calc'!$J30,'TNG Spread Calc'!$A$22:$A$240,0)))) -> 0 | AR30: =IF('Cap Rate Graph Table'!AJ16=0,0,IF(ISNA('Cap Rate Graph Table'!AJ16-INDEX('TNG Spread Calc'!$C$22:$C$240,MATCH('TNG Spread Calc'!$J30,'TNG Spread Calc'!$A$22:$A$240,0)))=TRUE,0,'Cap Rate Graph Table'!AJ16-INDEX('TNG Spread Calc'!$C$22:$C$240,MATCH('TNG Spread Calc'!$J30,'TNG Spread Calc'!$A$22:$A$240,0)))) -> 0 | AS30: =IF('Cap Rate Graph Table'!AK16=0,0,IF(ISNA('Cap Rate Graph Table'!AK16-INDEX('TNG Spread Calc'!$C$22:$C$240,MATCH('TNG Spread Calc'!$J30,'TNG Spread Calc'!$A$22:$A$240,0)))=TRUE,0,'Cap Rate Graph Table'!AK16-INDEX('TNG Spread Calc'!$C$22:$C$240,MATCH('TNG Spread Calc'!$J30,'TNG Spread Calc'!$A$22:$A$240,0)))) -> 0 | AT30: =IF('Cap Rate Graph Table'!AL16=0,0,IF(ISNA('Cap Rate Graph Table'!AL16-INDEX('TNG Spread Calc'!$C$22:$C$240,MATCH('TNG Spread Calc'!$J30,'TNG Spread Calc'!$A$22:$A$240,0)))=TRUE,0,'Cap Rate Graph Table'!AL16-INDEX('TNG Spread Calc'!$C$22:$C$240,MATCH('TNG Spread Calc'!$J30,'TNG Spread Calc'!$A$22:$A$240,0)))) -> 0 | AU30: =IF('Cap Rate Graph Table'!AM16=0,0,IF(ISNA('Cap Rate Graph Table'!AM16-INDEX('TNG Spread Calc'!$C$22:$C$240,MATCH('TNG Spread Calc'!$J30,'TNG Spread Calc'!$A$22:$A$240,0)))=TRUE,0,'Cap Rate Graph Table'!AM16-INDEX('TNG Spread Calc'!$C$22:$C$240,MATCH('TNG Spread Calc'!$J30,'TNG Spread Calc'!$A$22:$A$240,0)))) -> 0 | AV30: =IF('Cap Rate Graph Table'!AN16=0,0,IF(ISNA('Cap Rate Graph Table'!AN16-INDEX('TNG Spread Calc'!$C$22:$C$240,MATCH('TNG Spread Calc'!$J30,'TNG Spread Calc'!$A$22:$A$240,0)))=TRUE,0,'Cap Rate Graph Table'!AN16-INDEX('TNG Spread Calc'!$C$22:$C$240,MATCH('TNG Spread Calc'!$J30,'TNG Spread Calc'!$A$22:$A$240,0)))) -> 0 | AW30: =IF('Cap Rate Graph Table'!AO16=0,0,IF(ISNA('Cap Rate Graph Table'!AO16-INDEX('TNG Spread Calc'!$C$22:$C$240,MATCH('TNG Spread Calc'!$J30,'TNG Spread Calc'!$A$22:$A$240,0)))=TRUE,0,'Cap Rate Graph Table'!AO16-INDEX('TNG Spread Calc'!$C$22:$C$240,MATCH('TNG Spread Calc'!$J30,'TNG Spread Calc'!$A$22:$A$240,0)))) -> 0 | AX30: =IF('Cap Rate Graph Table'!AP16=0,0,IF(ISNA('Cap Rate Graph Table'!AP16-INDEX('TNG Spread Calc'!$C$22:$C$240,MATCH('TNG Spread Calc'!$J30,'TNG Spread Calc'!$A$22:$A$240,0)))=TRUE,0,'Cap Rate Graph Table'!AP16-INDEX('TNG Spread Calc'!$C$22:$C$240,MATCH('TNG Spread Calc'!$J30,'TNG Spread Calc'!$A$22:$A$240,0)))) -> 0 | AY30: =IF('Cap Rate Graph Table'!AQ16=0,0,IF(ISNA('Cap Rate Graph Table'!AQ16-INDEX('TNG Spread Calc'!$C$22:$C$240,MATCH('TNG Spread Calc'!$J30,'TNG Spread Calc'!$A$22:$A$240,0)))=TRUE,0,'Cap Rate Graph Table'!AQ16-INDEX('TNG Spread Calc'!$C$22:$C$240,MATCH('TNG Spread Calc'!$J30,'TNG Spread Calc'!$A$22:$A$240,0)))) -> 0 | AZ30: =IF('Cap Rate Graph Table'!AR16=0,0,IF(ISNA('Cap Rate Graph Table'!AR16-INDEX('TNG Spread Calc'!$C$22:$C$240,MATCH('TNG Spread Calc'!$J30,'TNG Spread Calc'!$A$22:$A$240,0)))=TRUE,0,'Cap Rate Graph Table'!AR16-INDEX('TNG Spread Calc'!$C$22:$C$240,MATCH('TNG Spread Calc'!$J30,'TNG Spread Calc'!$A$22:$A$240,0)))) -> 0 | BA30: =IF('Cap Rate Graph Table'!AS16=0,0,IF(ISNA('Cap Rate Graph Table'!AS16-INDEX('TNG Spread Calc'!$C$22:$C$240,MATCH('TNG Spread Calc'!$J30,'TNG Spread Calc'!$A$22:$A$240,0)))=TRUE,0,'Cap Rate Graph Table'!AS16-INDEX('TNG Spread Calc'!$C$22:$C$240,MATCH('TNG Spread Calc'!$J30,'TNG Spread Calc'!$A$22:$A$240,0)))) -> 0 | BB30: =IF('Cap Rate Graph Table'!AT16=0,0,IF(ISNA('Cap Rate Graph Table'!AT16-INDEX('TNG Spread Calc'!$C$22:$C$240,MATCH('TNG Spread Calc'!$J30,'TNG Spread Calc'!$A$22:$A$240,0)))=TRUE,0,'Cap Rate Graph Table'!AT16-INDEX('TNG Spread Calc'!$C$22:$C$240,MATCH('TNG Spread Calc'!$J30,'TNG Spread Calc'!$A$22:$A$240,0)))) -> 0 | BC30: =IF('Cap Rate Graph Table'!AU16=0,0,IF(ISNA('Cap Rate Graph Table'!AU16-INDEX('TNG Spread Calc'!$C$22:$C$240,MATCH('TNG Spread Calc'!$J30,'TNG Spread Calc'!$A$22:$A$240,0)))=TRUE,0,'Cap Rate Graph Table'!AU16-INDEX('TNG Spread Calc'!$C$22:$C$240,MATCH('TNG Spread Calc'!$J30,'TNG Spread Calc'!$A$22:$A$240,0)))) -> 0 | BD30: =IF('Cap Rate Graph Table'!AV16=0,0,IF(ISNA('Cap Rate Graph Table'!AV16-INDEX('TNG Spread Calc'!$C$22:$C$240,MATCH('TNG Spread Calc'!$J30,'TNG Spread Calc'!$A$22:$A$240,0)))=TRUE,0,'Cap Rate Graph Table'!AV16-INDEX('TNG Spread Calc'!$C$22:$C$240,MATCH('TNG Spread Calc'!$J30,'TNG Spread Calc'!$A$22:$A$240,0)))) -> 0 | BE30: =IF('Cap Rate Graph Table'!AW16=0,0,IF(ISNA('Cap Rate Graph Table'!AW16-INDEX('TNG Spread Calc'!$C$22:$C$240,MATCH('TNG Spread Calc'!$J30,'TNG Spread Calc'!$A$22:$A$240,0)))=TRUE,0,'Cap Rate Graph Table'!AW16-INDEX('TNG Spread Calc'!$C$22:$C$240,MATCH('TNG Spread Calc'!$J30,'TNG Spread Calc'!$A$22:$A$240,0)))) -> 0 | BF30: =IF('Cap Rate Graph Table'!AX16=0,0,IF(ISNA('Cap Rate Graph Table'!AX16-INDEX('TNG Spread Calc'!$C$22:$C$240,MATCH('TNG Spread Calc'!$J30,'TNG Spread Calc'!$A$22:$A$240,0)))=TRUE,0,'Cap Rate Graph Table'!AX16-INDEX('TNG Spread Calc'!$C$22:$C$240,MATCH('TNG Spread Calc'!$J30,'TNG Spread Calc'!$A$22:$A$240,0)))) -> 0 | BG30: =IF('Cap Rate Graph Table'!AY16=0,0,IF(ISNA('Cap Rate Graph Table'!AY16-INDEX('TNG Spread Calc'!$C$22:$C$240,MATCH('TNG Spread Calc'!$J30,'TNG Spread Calc'!$A$22:$A$240,0)))=TRUE,0,'Cap Rate Graph Table'!AY16-INDEX('TNG Spread Calc'!$C$22:$C$240,MATCH('TNG Spread Calc'!$J30,'TNG Spread Calc'!$A$22:$A$240,0)))) -> 0 | BH30: =IF('Cap Rate Graph Table'!AZ16=0,0,IF(ISNA('Cap Rate Graph Table'!AZ16-INDEX('TNG Spread Calc'!$C$22:$C$240,MATCH('TNG Spread Calc'!$J30,'TNG Spread Calc'!$A$22:$A$240,0)))=TRUE,0,'Cap Rate Graph Table'!AZ16-INDEX('TNG Spread Calc'!$C$22:$C$240,MATCH('TNG Spread Calc'!$J30,'TNG Spread Calc'!$A$22:$A$240,0)))) -> 0 | BI30: =IF('Cap Rate Graph Table'!BA16=0,0,IF(ISNA('Cap Rate Graph Table'!BA16-INDEX('TNG Spread Calc'!$C$22:$C$240,MATCH('TNG Spread Calc'!$J30,'TNG Spread Calc'!$A$22:$A$240,0)))=TRUE,0,'Cap Rate Graph Table'!BA16-INDEX('TNG Spread Calc'!$C$22:$C$240,MATCH('TNG Spread Calc'!$J30,'TNG Spread Calc'!$A$22:$A$240,0)))) -> 0 | BJ30: =IF('Cap Rate Graph Table'!BB16=0,0,IF(ISNA('Cap Rate Graph Table'!BB16-INDEX('TNG Spread Calc'!$C$22:$C$240,MATCH('TNG Spread Calc'!$J30,'TNG Spread Calc'!$A$22:$A$240,0)))=TRUE,0,'Cap Rate Graph Table'!BB16-INDEX('TNG Spread Calc'!$C$22:$C$240,MATCH('TNG Spread Calc'!$J30,'TNG Spread Calc'!$A$22:$A$240,0)))) -> 0
A31: 1964-04-01 | B31: 4.2 | C31: 0.042 | E31: 1964-04-01 | F31: 0.02 | I31: =INDEX(K31:AN31,MATCH('Inputs & Mkt Adj'!$C$4,'TNG Spread Calc'!$K$20:$AN$20,0)) -> 0 | J31: 1998-04-01 | K31: =IF('Cap Rate Graph Table'!C17=0,0,IF(ISNA('Cap Rate Graph Table'!C17-INDEX('TNG Spread Calc'!$C$22:$C$240,MATCH('TNG Spread Calc'!$J31,'TNG Spread Calc'!$A$22:$A$240,0)))=TRUE,0,'Cap Rate Graph Table'!C17-INDEX('TNG Spread Calc'!$C$22:$C$240,MATCH('TNG Spread Calc'!$J31,'TNG Spread Calc'!$A$22:$A$240,0)))) -> 0 | L31: =IF('Cap Rate Graph Table'!D17=0,0,IF(ISNA('Cap Rate Graph Table'!D17-INDEX('TNG Spread Calc'!$C$22:$C$240,MATCH('TNG Spread Calc'!$J31,'TNG Spread Calc'!$A$22:$A$240,0)))=TRUE,0,'Cap Rate Graph Table'!D17-INDEX('TNG Spread Calc'!$C$22:$C$240,MATCH('TNG Spread Calc'!$J31,'TNG Spread Calc'!$A$22:$A$240,0)))) -> 0 | M31: =IF('Cap Rate Graph Table'!E17=0,0,IF(ISNA('Cap Rate Graph Table'!E17-INDEX('TNG Spread Calc'!$C$22:$C$240,MATCH('TNG Spread Calc'!$J31,'TNG Spread Calc'!$A$22:$A$240,0)))=TRUE,0,'Cap Rate Graph Table'!E17-INDEX('TNG Spread Calc'!$C$22:$C$240,MATCH('TNG Spread Calc'!$J31,'TNG Spread Calc'!$A$22:$A$240,0)))) -> 0 | N31: =IF('Cap Rate Graph Table'!F17=0,0,IF(ISNA('Cap Rate Graph Table'!F17-INDEX('TNG Spread Calc'!$C$22:$C$240,MATCH('TNG Spread Calc'!$J31,'TNG Spread Calc'!$A$22:$A$240,0)))=TRUE,0,'Cap Rate Graph Table'!F17-INDEX('TNG Spread Calc'!$C$22:$C$240,MATCH('TNG Spread Calc'!$J31,'TNG Spread Calc'!$A$22:$A$240,0)))) -> 0 | O31: =IF('Cap Rate Graph Table'!G17=0,0,IF(ISNA('Cap Rate Graph Table'!G17-INDEX('TNG Spread Calc'!$C$22:$C$240,MATCH('TNG Spread Calc'!$J31,'TNG Spread Calc'!$A$22:$A$240,0)))=TRUE,0,'Cap Rate Graph Table'!G17-INDEX('TNG Spread Calc'!$C$22:$C$240,MATCH('TNG Spread Calc'!$J31,'TNG Spread Calc'!$A$22:$A$240,0)))) -> 0 | P31: =IF('Cap Rate Graph Table'!H17=0,0,IF(ISNA('Cap Rate Graph Table'!H17-INDEX('TNG Spread Calc'!$C$22:$C$240,MATCH('TNG Spread Calc'!$J31,'TNG Spread Calc'!$A$22:$A$240,0)))=TRUE,0,'Cap Rate Graph Table'!H17-INDEX('TNG Spread Calc'!$C$22:$C$240,MATCH('TNG Spread Calc'!$J31,'TNG Spread Calc'!$A$22:$A$240,0)))) -> 0 | Q31: =IF('Cap Rate Graph Table'!I17=0,0,IF(ISNA('Cap Rate Graph Table'!I17-INDEX('TNG Spread Calc'!$C$22:$C$240,MATCH('TNG Spread Calc'!$J31,'TNG Spread Calc'!$A$22:$A$240,0)))=TRUE,0,'Cap Rate Graph Table'!I17-INDEX('TNG Spread Calc'!$C$22:$C$240,MATCH('TNG Spread Calc'!$J31,'TNG Spread Calc'!$A$22:$A$240,0)))) -> 0 | R31: =IF('Cap Rate Graph Table'!J17=0,0,IF(ISNA('Cap Rate Graph Table'!J17-INDEX('TNG Spread Calc'!$C$22:$C$240,MATCH('TNG Spread Calc'!$J31,'TNG Spread Calc'!$A$22:$A$240,0)))=TRUE,0,'Cap Rate Graph Table'!J17-INDEX('TNG Spread Calc'!$C$22:$C$240,MATCH('TNG Spread Calc'!$J31,'TNG Spread Calc'!$A$22:$A$240,0)))) -> 0 | S31: =IF('Cap Rate Graph Table'!K17=0,0,IF(ISNA('Cap Rate Graph Table'!K17-INDEX('TNG Spread Calc'!$C$22:$C$240,MATCH('TNG Spread Calc'!$J31,'TNG Spread Calc'!$A$22:$A$240,0)))=TRUE,0,'Cap Rate Graph Table'!K17-INDEX('TNG Spread Calc'!$C$22:$C$240,MATCH('TNG Spread Calc'!$J31,'TNG Spread Calc'!$A$22:$A$240,0)))) -> 0 | T31: =IF('Cap Rate Graph Table'!L17=0,0,IF(ISNA('Cap Rate Graph Table'!L17-INDEX('TNG Spread Calc'!$C$22:$C$240,MATCH('TNG Spread Calc'!$J31,'TNG Spread Calc'!$A$22:$A$240,0)))=TRUE,0,'Cap Rate Graph Table'!L17-INDEX('TNG Spread Calc'!$C$22:$C$240,MATCH('TNG Spread Calc'!$J31,'TNG Spread Calc'!$A$22:$A$240,0)))) -> 0 | U31: =IF('Cap Rate Graph Table'!M17=0,0,IF(ISNA('Cap Rate Graph Table'!M17-INDEX('TNG Spread Calc'!$C$22:$C$240,MATCH('TNG Spread Calc'!$J31,'TNG Spread Calc'!$A$22:$A$240,0)))=TRUE,0,'Cap Rate Graph Table'!M17-INDEX('TNG Spread Calc'!$C$22:$C$240,MATCH('TNG Spread Calc'!$J31,'TNG Spread Calc'!$A$22:$A$240,0)))) -> 0 | V31: =IF('Cap Rate Graph Table'!N17=0,0,IF(ISNA('Cap Rate Graph Table'!N17-INDEX('TNG Spread Calc'!$C$22:$C$240,MATCH('TNG Spread Calc'!$J31,'TNG Spread Calc'!$A$22:$A$240,0)))=TRUE,0,'Cap Rate Graph Table'!N17-INDEX('TNG Spread Calc'!$C$22:$C$240,MATCH('TNG Spread Calc'!$J31,'TNG Spread Calc'!$A$22:$A$240,0)))) -> 0 | W31: =IF('Cap Rate Graph Table'!O17=0,0,IF(ISNA('Cap Rate Graph Table'!O17-INDEX('TNG Spread Calc'!$C$22:$C$240,MATCH('TNG Spread Calc'!$J31,'TNG Spread Calc'!$A$22:$A$240,0)))=TRUE,0,'Cap Rate Graph Table'!O17-INDEX('TNG Spread Calc'!$C$22:$C$240,MATCH('TNG Spread Calc'!$J31,'TNG Spread Calc'!$A$22:$A$240,0)))) -> 0 | X31: =IF('Cap Rate Graph Table'!P17=0,0,IF(ISNA('Cap Rate Graph Table'!P17-INDEX('TNG Spread Calc'!$C$22:$C$240,MATCH('TNG Spread Calc'!$J31,'TNG Spread Calc'!$A$22:$A$240,0)))=TRUE,0,'Cap Rate Graph Table'!P17-INDEX('TNG Spread Calc'!$C$22:$C$240,MATCH('TNG Spread Calc'!$J31,'TNG Spread Calc'!$A$22:$A$240,0)))) -> 0 | Y31: =IF('Cap Rate Graph Table'!Q17=0,0,IF(ISNA('Cap Rate Graph Table'!Q17-INDEX('TNG Spread Calc'!$C$22:$C$240,MATCH('TNG Spread Calc'!$J31,'TNG Spread Calc'!$A$22:$A$240,0)))=TRUE,0,'Cap Rate Graph Table'!Q17-INDEX('TNG Spread Calc'!$C$22:$C$240,MATCH('TNG Spread Calc'!$J31,'TNG Spread Calc'!$A$22:$A$240,0)))) -> 0 | Z31: =IF('Cap Rate Graph Table'!R17=0,0,IF(ISNA('Cap Rate Graph Table'!R17-INDEX('TNG Spread Calc'!$C$22:$C$240,MATCH('TNG Spread Calc'!$J31,'TNG Spread Calc'!$A$22:$A$240,0)))=TRUE,0,'Cap Rate Graph Table'!R17-INDEX('TNG Spread Calc'!$C$22:$C$240,MATCH('TNG Spread Calc'!$J31,'TNG Spread Calc'!$A$22:$A$240,0)))) -> 0 | AA31: =IF('Cap Rate Graph Table'!S17=0,0,IF(ISNA('Cap Rate Graph Table'!S17-INDEX('TNG Spread Calc'!$C$22:$C$240,MATCH('TNG Spread Calc'!$J31,'TNG Spread Calc'!$A$22:$A$240,0)))=TRUE,0,'Cap Rate Graph Table'!S17-INDEX('TNG Spread Calc'!$C$22:$C$240,MATCH('TNG Spread Calc'!$J31,'TNG Spread Calc'!$A$22:$A$240,0)))) -> 0 | AB31: =IF('Cap Rate Graph Table'!T17=0,0,IF(ISNA('Cap Rate Graph Table'!T17-INDEX('TNG Spread Calc'!$C$22:$C$240,MATCH('TNG Spread Calc'!$J31,'TNG Spread Calc'!$A$22:$A$240,0)))=TRUE,0,'Cap Rate Graph Table'!T17-INDEX('TNG Spread Calc'!$C$22:$C$240,MATCH('TNG Spread Calc'!$J31,'TNG Spread Calc'!$A$22:$A$240,0)))) -> 0 | AC31: =IF('Cap Rate Graph Table'!U17=0,0,IF(ISNA('Cap Rate Graph Table'!U17-INDEX('TNG Spread Calc'!$C$22:$C$240,MATCH('TNG Spread Calc'!$J31,'TNG Spread Calc'!$A$22:$A$240,0)))=TRUE,0,'Cap Rate Graph Table'!U17-INDEX('TNG Spread Calc'!$C$22:$C$240,MATCH('TNG Spread Calc'!$J31,'TNG Spread Calc'!$A$22:$A$240,0)))) -> 0 | AD31: =IF('Cap Rate Graph Table'!V17=0,0,IF(ISNA('Cap Rate Graph Table'!V17-INDEX('TNG Spread Calc'!$C$22:$C$240,MATCH('TNG Spread Calc'!$J31,'TNG Spread Calc'!$A$22:$A$240,0)))=TRUE,0,'Cap Rate Graph Table'!V17-INDEX('TNG Spread Calc'!$C$22:$C$240,MATCH('TNG Spread Calc'!$J31,'TNG Spread Calc'!$A$22:$A$240,0)))) -> 0 | AE31: =IF('Cap Rate Graph Table'!W17=0,0,IF(ISNA('Cap Rate Graph Table'!W17-INDEX('TNG Spread Calc'!$C$22:$C$240,MATCH('TNG Spread Calc'!$J31,'TNG Spread Calc'!$A$22:$A$240,0)))=TRUE,0,'Cap Rate Graph Table'!W17-INDEX('TNG Spread Calc'!$C$22:$C$240,MATCH('TNG Spread Calc'!$J31,'TNG Spread Calc'!$A$22:$A$240,0)))) -> 0 | AF31: =IF('Cap Rate Graph Table'!X17=0,0,IF(ISNA('Cap Rate Graph Table'!X17-INDEX('TNG Spread Calc'!$C$22:$C$240,MATCH('TNG Spread Calc'!$J31,'TNG Spread Calc'!$A$22:$A$240,0)))=TRUE,0,'Cap Rate Graph Table'!X17-INDEX('TNG Spread Calc'!$C$22:$C$240,MATCH('TNG Spread Calc'!$J31,'TNG Spread Calc'!$A$22:$A$240,0)))) -> 0 | AG31: =IF('Cap Rate Graph Table'!Y17=0,0,IF(ISNA('Cap Rate Graph Table'!Y17-INDEX('TNG Spread Calc'!$C$22:$C$240,MATCH('TNG Spread Calc'!$J31,'TNG Spread Calc'!$A$22:$A$240,0)))=TRUE,0,'Cap Rate Graph Table'!Y17-INDEX('TNG Spread Calc'!$C$22:$C$240,MATCH('TNG Spread Calc'!$J31,'TNG Spread Calc'!$A$22:$A$240,0)))) -> 0 | AH31: =IF('Cap Rate Graph Table'!Z17=0,0,IF(ISNA('Cap Rate Graph Table'!Z17-INDEX('TNG Spread Calc'!$C$22:$C$240,MATCH('TNG Spread Calc'!$J31,'TNG Spread Calc'!$A$22:$A$240,0)))=TRUE,0,'Cap Rate Graph Table'!Z17-INDEX('TNG Spread Calc'!$C$22:$C$240,MATCH('TNG Spread Calc'!$J31,'TNG Spread Calc'!$A$22:$A$240,0)))) -> 0 | AI31: =IF('Cap Rate Graph Table'!AA17=0,0,IF(ISNA('Cap Rate Graph Table'!AA17-INDEX('TNG Spread Calc'!$C$22:$C$240,MATCH('TNG Spread Calc'!$J31,'TNG Spread Calc'!$A$22:$A$240,0)))=TRUE,0,'Cap Rate Graph Table'!AA17-INDEX('TNG Spread Calc'!$C$22:$C$240,MATCH('TNG Spread Calc'!$J31,'TNG Spread Calc'!$A$22:$A$240,0)))) -> 0 | AJ31: =IF('Cap Rate Graph Table'!AB17=0,0,IF(ISNA('Cap Rate Graph Table'!AB17-INDEX('TNG Spread Calc'!$C$22:$C$240,MATCH('TNG Spread Calc'!$J31,'TNG Spread Calc'!$A$22:$A$240,0)))=TRUE,0,'Cap Rate Graph Table'!AB17-INDEX('TNG Spread Calc'!$C$22:$C$240,MATCH('TNG Spread Calc'!$J31,'TNG Spread Calc'!$A$22:$A$240,0)))) -> 0 | AK31: =IF('Cap Rate Graph Table'!AC17=0,0,IF(ISNA('Cap Rate Graph Table'!AC17-INDEX('TNG Spread Calc'!$C$22:$C$240,MATCH('TNG Spread Calc'!$J31,'TNG Spread Calc'!$A$22:$A$240,0)))=TRUE,0,'Cap Rate Graph Table'!AC17-INDEX('TNG Spread Calc'!$C$22:$C$240,MATCH('TNG Spread Calc'!$J31,'TNG Spread Calc'!$A$22:$A$240,0)))) -> 0 | AL31: =IF('Cap Rate Graph Table'!AD17=0,0,IF(ISNA('Cap Rate Graph Table'!AD17-INDEX('TNG Spread Calc'!$C$22:$C$240,MATCH('TNG Spread Calc'!$J31,'TNG Spread Calc'!$A$22:$A$240,0)))=TRUE,0,'Cap Rate Graph Table'!AD17-INDEX('TNG Spread Calc'!$C$22:$C$240,MATCH('TNG Spread Calc'!$J31,'TNG Spread Calc'!$A$22:$A$240,0)))) -> 0 | AM31: =IF('Cap Rate Graph Table'!AE17=0,0,IF(ISNA('Cap Rate Graph Table'!AE17-INDEX('TNG Spread Calc'!$C$22:$C$240,MATCH('TNG Spread Calc'!$J31,'TNG Spread Calc'!$A$22:$A$240,0)))=TRUE,0,'Cap Rate Graph Table'!AE17-INDEX('TNG Spread Calc'!$C$22:$C$240,MATCH('TNG Spread Calc'!$J31,'TNG Spread Calc'!$A$22:$A$240,0)))) -> 0 | AN31: =IF('Cap Rate Graph Table'!AF17=0,0,IF(ISNA('Cap Rate Graph Table'!AF17-INDEX('TNG Spread Calc'!$C$22:$C$240,MATCH('TNG Spread Calc'!$J31,'TNG Spread Calc'!$A$22:$A$240,0)))=TRUE,0,'Cap Rate Graph Table'!AF17-INDEX('TNG Spread Calc'!$C$22:$C$240,MATCH('TNG Spread Calc'!$J31,'TNG Spread Calc'!$A$22:$A$240,0)))) -> 0 | AO31: =IF('Cap Rate Graph Table'!AG17=0,0,IF(ISNA('Cap Rate Graph Table'!AG17-INDEX('TNG Spread Calc'!$C$22:$C$240,MATCH('TNG Spread Calc'!$J31,'TNG Spread Calc'!$A$22:$A$240,0)))=TRUE,0,'Cap Rate Graph Table'!AG17-INDEX('TNG Spread Calc'!$C$22:$C$240,MATCH('TNG Spread Calc'!$J31,'TNG Spread Calc'!$A$22:$A$240,0)))) -> 0 | AP31: =IF('Cap Rate Graph Table'!AH17=0,0,IF(ISNA('Cap Rate Graph Table'!AH17-INDEX('TNG Spread Calc'!$C$22:$C$240,MATCH('TNG Spread Calc'!$J31,'TNG Spread Calc'!$A$22:$A$240,0)))=TRUE,0,'Cap Rate Graph Table'!AH17-INDEX('TNG Spread Calc'!$C$22:$C$240,MATCH('TNG Spread Calc'!$J31,'TNG Spread Calc'!$A$22:$A$240,0)))) -> 0 | AQ31: =IF('Cap Rate Graph Table'!AI17=0,0,IF(ISNA('Cap Rate Graph Table'!AI17-INDEX('TNG Spread Calc'!$C$22:$C$240,MATCH('TNG Spread Calc'!$J31,'TNG Spread Calc'!$A$22:$A$240,0)))=TRUE,0,'Cap Rate Graph Table'!AI17-INDEX('TNG Spread Calc'!$C$22:$C$240,MATCH('TNG Spread Calc'!$J31,'TNG Spread Calc'!$A$22:$A$240,0)))) -> 0 | AR31: =IF('Cap Rate Graph Table'!AJ17=0,0,IF(ISNA('Cap Rate Graph Table'!AJ17-INDEX('TNG Spread Calc'!$C$22:$C$240,MATCH('TNG Spread Calc'!$J31,'TNG Spread Calc'!$A$22:$A$240,0)))=TRUE,0,'Cap Rate Graph Table'!AJ17-INDEX('TNG Spread Calc'!$C$22:$C$240,MATCH('TNG Spread Calc'!$J31,'TNG Spread Calc'!$A$22:$A$240,0)))) -> 0 | AS31: =IF('Cap Rate Graph Table'!AK17=0,0,IF(ISNA('Cap Rate Graph Table'!AK17-INDEX('TNG Spread Calc'!$C$22:$C$240,MATCH('TNG Spread Calc'!$J31,'TNG Spread Calc'!$A$22:$A$240,0)))=TRUE,0,'Cap Rate Graph Table'!AK17-INDEX('TNG Spread Calc'!$C$22:$C$240,MATCH('TNG Spread Calc'!$J31,'TNG Spread Calc'!$A$22:$A$240,0)))) -> 0 | AT31: =IF('Cap Rate Graph Table'!AL17=0,0,IF(ISNA('Cap Rate Graph Table'!AL17-INDEX('TNG Spread Calc'!$C$22:$C$240,MATCH('TNG Spread Calc'!$J31,'TNG Spread Calc'!$A$22:$A$240,0)))=TRUE,0,'Cap Rate Graph Table'!AL17-INDEX('TNG Spread Calc'!$C$22:$C$240,MATCH('TNG Spread Calc'!$J31,'TNG Spread Calc'!$A$22:$A$240,0)))) -> 0 | AU31: =IF('Cap Rate Graph Table'!AM17=0,0,IF(ISNA('Cap Rate Graph Table'!AM17-INDEX('TNG Spread Calc'!$C$22:$C$240,MATCH('TNG Spread Calc'!$J31,'TNG Spread Calc'!$A$22:$A$240,0)))=TRUE,0,'Cap Rate Graph Table'!AM17-INDEX('TNG Spread Calc'!$C$22:$C$240,MATCH('TNG Spread Calc'!$J31,'TNG Spread Calc'!$A$22:$A$240,0)))) -> 0 | AV31: =IF('Cap Rate Graph Table'!AN17=0,0,IF(ISNA('Cap Rate Graph Table'!AN17-INDEX('TNG Spread Calc'!$C$22:$C$240,MATCH('TNG Spread Calc'!$J31,'TNG Spread Calc'!$A$22:$A$240,0)))=TRUE,0,'Cap Rate Graph Table'!AN17-INDEX('TNG Spread Calc'!$C$22:$C$240,MATCH('TNG Spread Calc'!$J31,'TNG Spread Calc'!$A$22:$A$240,0)))) -> 0 | AW31: =IF('Cap Rate Graph Table'!AO17=0,0,IF(ISNA('Cap Rate Graph Table'!AO17-INDEX('TNG Spread Calc'!$C$22:$C$240,MATCH('TNG Spread Calc'!$J31,'TNG Spread Calc'!$A$22:$A$240,0)))=TRUE,0,'Cap Rate Graph Table'!AO17-INDEX('TNG Spread Calc'!$C$22:$C$240,MATCH('TNG Spread Calc'!$J31,'TNG Spread Calc'!$A$22:$A$240,0)))) -> 0 | AX31: =IF('Cap Rate Graph Table'!AP17=0,0,IF(ISNA('Cap Rate Graph Table'!AP17-INDEX('TNG Spread Calc'!$C$22:$C$240,MATCH('TNG Spread Calc'!$J31,'TNG Spread Calc'!$A$22:$A$240,0)))=TRUE,0,'Cap Rate Graph Table'!AP17-INDEX('TNG Spread Calc'!$C$22:$C$240,MATCH('TNG Spread Calc'!$J31,'TNG Spread Calc'!$A$22:$A$240,0)))) -> 0 | AY31: =IF('Cap Rate Graph Table'!AQ17=0,0,IF(ISNA('Cap Rate Graph Table'!AQ17-INDEX('TNG Spread Calc'!$C$22:$C$240,MATCH('TNG Spread Calc'!$J31,'TNG Spread Calc'!$A$22:$A$240,0)))=TRUE,0,'Cap Rate Graph Table'!AQ17-INDEX('TNG Spread Calc'!$C$22:$C$240,MATCH('TNG Spread Calc'!$J31,'TNG Spread Calc'!$A$22:$A$240,0)))) -> 0 | AZ31: =IF('Cap Rate Graph Table'!AR17=0,0,IF(ISNA('Cap Rate Graph Table'!AR17-INDEX('TNG Spread Calc'!$C$22:$C$240,MATCH('TNG Spread Calc'!$J31,'TNG Spread Calc'!$A$22:$A$240,0)))=TRUE,0,'Cap Rate Graph Table'!AR17-INDEX('TNG Spread Calc'!$C$22:$C$240,MATCH('TNG Spread Calc'!$J31,'TNG Spread Calc'!$A$22:$A$240,0)))) -> 0 | BA31: =IF('Cap Rate Graph Table'!AS17=0,0,IF(ISNA('Cap Rate Graph Table'!AS17-INDEX('TNG Spread Calc'!$C$22:$C$240,MATCH('TNG Spread Calc'!$J31,'TNG Spread Calc'!$A$22:$A$240,0)))=TRUE,0,'Cap Rate Graph Table'!AS17-INDEX('TNG Spread Calc'!$C$22:$C$240,MATCH('TNG Spread Calc'!$J31,'TNG Spread Calc'!$A$22:$A$240,0)))) -> 0 | BB31: =IF('Cap Rate Graph Table'!AT17=0,0,IF(ISNA('Cap Rate Graph Table'!AT17-INDEX('TNG Spread Calc'!$C$22:$C$240,MATCH('TNG Spread Calc'!$J31,'TNG Spread Calc'!$A$22:$A$240,0)))=TRUE,0,'Cap Rate Graph Table'!AT17-INDEX('TNG Spread Calc'!$C$22:$C$240,MATCH('TNG Spread Calc'!$J31,'TNG Spread Calc'!$A$22:$A$240,0)))) -> 0 | BC31: =IF('Cap Rate Graph Table'!AU17=0,0,IF(ISNA('Cap Rate Graph Table'!AU17-INDEX('TNG Spread Calc'!$C$22:$C$240,MATCH('TNG Spread Calc'!$J31,'TNG Spread Calc'!$A$22:$A$240,0)))=TRUE,0,'Cap Rate Graph Table'!AU17-INDEX('TNG Spread Calc'!$C$22:$C$240,MATCH('TNG Spread Calc'!$J31,'TNG Spread Calc'!$A$22:$A$240,0)))) -> 0 | BD31: =IF('Cap Rate Graph Table'!AV17=0,0,IF(ISNA('Cap Rate Graph Table'!AV17-INDEX('TNG Spread Calc'!$C$22:$C$240,MATCH('TNG Spread Calc'!$J31,'TNG Spread Calc'!$A$22:$A$240,0)))=TRUE,0,'Cap Rate Graph Table'!AV17-INDEX('TNG Spread Calc'!$C$22:$C$240,MATCH('TNG Spread Calc'!$J31,'TNG Spread Calc'!$A$22:$A$240,0)))) -> 0 | BE31: =IF('Cap Rate Graph Table'!AW17=0,0,IF(ISNA('Cap Rate Graph Table'!AW17-INDEX('TNG Spread Calc'!$C$22:$C$240,MATCH('TNG Spread Calc'!$J31,'TNG Spread Calc'!$A$22:$A$240,0)))=TRUE,0,'Cap Rate Graph Table'!AW17-INDEX('TNG Spread Calc'!$C$22:$C$240,MATCH('TNG Spread Calc'!$J31,'TNG Spread Calc'!$A$22:$A$240,0)))) -> 0 | BF31: =IF('Cap Rate Graph Table'!AX17=0,0,IF(ISNA('Cap Rate Graph Table'!AX17-INDEX('TNG Spread Calc'!$C$22:$C$240,MATCH('TNG Spread Calc'!$J31,'TNG Spread Calc'!$A$22:$A$240,0)))=TRUE,0,'Cap Rate Graph Table'!AX17-INDEX('TNG Spread Calc'!$C$22:$C$240,MATCH('TNG Spread Calc'!$J31,'TNG Spread Calc'!$A$22:$A$240,0)))) -> 0 | BG31: =IF('Cap Rate Graph Table'!AY17=0,0,IF(ISNA('Cap Rate Graph Table'!AY17-INDEX('TNG Spread Calc'!$C$22:$C$240,MATCH('TNG Spread Calc'!$J31,'TNG Spread Calc'!$A$22:$A$240,0)))=TRUE,0,'Cap Rate Graph Table'!AY17-INDEX('TNG Spread Calc'!$C$22:$C$240,MATCH('TNG Spread Calc'!$J31,'TNG Spread Calc'!$A$22:$A$240,0)))) -> 0 | BH31: =IF('Cap Rate Graph Table'!AZ17=0,0,IF(ISNA('Cap Rate Graph Table'!AZ17-INDEX('TNG Spread Calc'!$C$22:$C$240,MATCH('TNG Spread Calc'!$J31,'TNG Spread Calc'!$A$22:$A$240,0)))=TRUE,0,'Cap Rate Graph Table'!AZ17-INDEX('TNG Spread Calc'!$C$22:$C$240,MATCH('TNG Spread Calc'!$J31,'TNG Spread Calc'!$A$22:$A$240,0)))) -> 0 | BI31: =IF('Cap Rate Graph Table'!BA17=0,0,IF(ISNA('Cap Rate Graph Table'!BA17-INDEX('TNG Spread Calc'!$C$22:$C$240,MATCH('TNG Spread Calc'!$J31,'TNG Spread Calc'!$A$22:$A$240,0)))=TRUE,0,'Cap Rate Graph Table'!BA17-INDEX('TNG Spread Calc'!$C$22:$C$240,MATCH('TNG Spread Calc'!$J31,'TNG Spread Calc'!$A$22:$A$240,0)))) -> 0 | BJ31: =IF('Cap Rate Graph Table'!BB17=0,0,IF(ISNA('Cap Rate Graph Table'!BB17-INDEX('TNG Spread Calc'!$C$22:$C$240,MATCH('TNG Spread Calc'!$J31,'TNG Spread Calc'!$A$22:$A$240,0)))=TRUE,0,'Cap Rate Graph Table'!BB17-INDEX('TNG Spread Calc'!$C$22:$C$240,MATCH('TNG Spread Calc'!$J31,'TNG Spread Calc'!$A$22:$A$240,0)))) -> 0
